Workbook

Sheet Summary of Returns
A1: JACKSON PURCHASE ENERGY CORPORATION | I1: Revised 11-29-2021
A2: Summary of Rates of Return by Class
L3: Target Incr
L4: 7304520.74
L5: ROROB
D6: Pro Forma | E6: Pro Forma | H6: Pro Forma | I6: Unitized | L6: 0.03951300656
D7: Operating | E7: Operating | H7: Rate of Return | I7: Rate of Return | L7: 0.03303393083
A8: # | B8: Rate | C8: Code | D8: Revenue | E8: Expenses | F8: Margin | G8: Rate Base | H8: on Rate Base | I8: on Rate Base | L8: Target ROROB
M9: =SUM(M10:M16) -> 7090782.88
A10: 1 | B10: R - Residential | C10: R | D10: ='Alloc & Returns'!F$351 -> 41853519.84 | E10: ='Alloc & Returns'!F$384 -> 45444422.53 | F10: =D10-E10 -> -3590902.689 | G10: ='Alloc & Returns'!F$392 -> 71414519.06 | H10: =F10/G10 -> -0.05028252988 | I10: =IF(H$26<0,-H10/H$26,H10/H$26) -> -1.497250962 | L10: =L$7 -> 0.03303393083 | M10: =ROUND(L10*G10-F10,2) -> 5950004.97
A11: 2 | B11: C-1 Small Commercial Single Phase | C11: C1 | D11: ='Alloc & Returns'!G$351 -> 4083011.516 | E11: ='Alloc & Returns'!G$384 -> 4526876.98 | F11: =D11-E11 -> -443865.4641 | G11: ='Alloc & Returns'!G$392 -> 8315195.925 | H11: =F11/G11 -> -0.05338003675 | I11: =IF(H$26<0,-H11/H$26,H11/H$26) -> -1.589484689 | L11: =L$7 -> 0.03303393083 | M11: =ROUND(L11*G11-F11,2) -> 718549.07
A12: 3 | B12: C-3 Small Commercial Three Phase | C12: C3 | D12: ='Alloc & Returns'!H$351 -> 1256122.496 | E12: ='Alloc & Returns'!H$384 -> 1372517.309 | F12: -116394.8131 | G12: ='Alloc & Returns'!H$392 -> 2216260.101 | H12: -0.05251857084 | I12: -1.563833023 | L12: 0.03303393083 | M12: 189606.6
A13: 4 | B13: D - Commercial and Industrial Demand < 3,000 kW | C13: D | D13: ='Alloc & Returns'!I$351 -> 16598044.37 | E13: ='Alloc & Returns'!I$384 -> 16358125.04 | F13: 239919.333 | G13: ='Alloc & Returns'!I$392 -> 13618518.42 | H13: 0.01761713908 | I13: 0.5245813703 | L13: 0.03303393083 | M13: 209953.86
A14: 5 | B14: D - Commercial and Industrial - DIRECT SERVED | C14: D | D14: ='Alloc & Returns'!J$351 -> 277325.6135 | E14: ='Alloc & Returns'!J$384 -> 84701.23339 | F14: 192624.3801 | G14: ='Alloc & Returns'!J$392 -> 113078.4135 | H14: 1.70345846 | I14: 50.72347839 | L14: =H14 -> 1.70345846 | M14: 0
A15: 6 | B15: I-E - Large Commercial Existing | C15: I-E | D15: ='Alloc & Returns'!K$351 -> 1488080.572 | E15: ='Alloc & Returns'!K$384 -> 1476834.448 | F15: 11246.12433 | G15: ='Alloc & Returns'!K$392 -> 1026656.492 | H15: 0.01095412577 | I15: 0.3261784039 | L15: 0.03303393083 | M15: 22668.38
A16: 7 | B16: OL - Outdoor Lighting | C16: OL | D16: ='Alloc & Returns'!L$351 -> 1366664.771 | E16: ='Alloc & Returns'!L$384 -> 959188.2238 | F16: =D16-E16 -> 407476.5469 | G16: ='Alloc & Returns'!L$392 -> 1556009.12 | H16: =F16/G16 -> 0.2618728526 | I16: 7.797725797 | L16: =H16 -> 0.2618728526 | M16: 0
A26: 8 | B26: Total | D26: =SUM(D10:D25) -> 66922769.18 | E26: =SUM(E10:E25) -> 70222665.76 | F26: -3299896.582 | G26: =SUM(G10:G25) -> 98260237.53 | H26: =F26/G26 -> -0.03358323432 | I26: =H26/H$26 -> 1 | M26: =SUM(M10:M25) -> 7090782.88
M27: =M26-L4 -> -213737.8597
H28: After Proposed Rate Revisions
H29: Pro Forma | I29: Unitized
D30: Share of | E30: Share of | H30: Rate of Return | I30: Rate of Return
A31: # | B31: Rate | C31: Code | D31: Revenue | E31: Energy | H31: on Rate Base | I31: on Rate Base
A33: =A26+1 -> 9 | B33: =B10 -> R - Residential | C33: =C10 -> R | D33: =D10/D$26 -> 0.6254002988 | E33: ='Billing Det'!P8 -> 0.5941924273 | H33: 0.03302998995 | I33: 0.835983643
A34: =A33+1 -> 10 | B34: =B11 -> C-1 Small Commercial Single Phase | C34: C1 | D34: 0.06101079746 | E34: ='Billing Det'!P9 -> 0.05368878664 | H34: 0.03303627204 | I34: 0.8361426419
A35: =A34+1 -> 11 | B35: C-3 Small Commercial Three Phase | C35: C3 | D35: 0.0187697328 | E35: ='Billing Det'!P10 -> 0.01869786854 | H35: 0.03303903916 | I35: 0.8362126771
A36: 12 | B36: D - Commercial and Industrial Demand < 3,000 kW | C36: D | D36: 0.2480178955 | E36: ='Billing Det'!P11 -> 0.2919595883 | H36: 0.03303393057 | I36: 0.8360833797
A37: 13 | B37: D - Commercial and Industrial - DIRECT SERVED | C37: D | D37: 0.004143965005 | E37: ='Billing Det'!P12 -> 0.000647124524 | H37: 1.775588903 | I37: 44.93986472
A38: 14 | B38: I-E - Large Commercial Existing | C38: I-E | D38: 0.02223578896 | E38: ='Billing Det'!P13 -> 0.02774866397 | H38: 0.03303393271 | I38: 0.8360834338
A39: 15 | B39: OL - Outdoor Lighting | C39: OL | D39: 0.02042152152 | E39: ='Billing Det'!P14 -> 0.01306554075 | H39: 0.4057962317 | I39: 10.27063625
D40: =D18/D$26 -> 0 | E40: ='Billing Det'!P16 -> 0
D41: 0 | E41: ='Billing Det'!P17 -> 0
D42: 0 | E42: ='Billing Det'!P18 -> 0
D43: 0 | E43: ='Billing Det'!P19 -> 0
D44: 0 | E44: ='Billing Det'!P20 -> 0
D45: 0 | E45: ='Billing Det'!P21 -> 0
D46: 0 | E46: ='Billing Det'!P22 -> 0
D47: 0 | E47: ='Billing Det'!P23 -> 0
A48: 16 | D48: 1 | E48: =SUM(E33:E39) -> 1 | H48: 0.0395103304 | I48: 1

Sheet Summary of Rates
A1: JACKSON PURCHASE ENERGY CORPORATION
A2: Summary of Cost-Based Rates
D4: Two-Part Rates | G4: Three-Part Rates
D6: Customer | E6: Energy | G6: Customer | H6: Energy | I6: Demand
A7: # | B7: Rate | D7: $/Month | E7: $/KWH | G7: $/Month | H7: $/KWH | I7: $/KW
A9: 1 | B9: ='Summary of Returns'!B10 -> R - Residential | D9: ='Alloc & Returns'!F648 -> 39.92851573 | E9: ='Alloc & Returns'!F649 -> 0.1007834546
A10: 2 | B10: ='Summary of Returns'!B11 -> C-1 Small Commercial Single Phase | D10: ='Alloc & Returns'!G648 -> 44.07804758 | E10: ='Alloc & Returns'!G649 -> 0.09388470441
A11: 3 | B11: ='Summary of Returns'!B12 -> C-3 Small Commercial Three Phase | D11: ='Alloc & Returns'!H648 -> 58.0716383 | E11: ='Alloc & Returns'!H649 -> 0.09942916233
A12: 4 | B12: ='Summary of Returns'!B13 -> D - Commercial and Industrial Demand < 3,000 kW | G12: ='Alloc & Returns'!I648 -> 91.72886055 | H12: ='Alloc & Returns'!I649 -> 0.05431443758 | I12: ='Alloc & Returns'!I650 -> 10.73583632
A13: 5 | B13: ='Summary of Returns'!B14 -> D - Commercial and Industrial - DIRECT SERVED | G13: ='Alloc & Returns'!J648 -> 210.8551189 | H13: ='Alloc & Returns'!J649 -> 0.04461947117 | I13: ='Alloc & Returns'!J650 -> 12.71873218
A14: 6 | B14: ='Summary of Returns'!B15 -> I-E - Large Commercial Existing | G14: ='Alloc & Returns'!K648 -> 994.3260921 | H14: ='Alloc & Returns'!K649 -> 0.05236385934 | I14: ='Alloc & Returns'!K650 -> 12.08207707

Sheet Func & Classif
AC1: =IF(COUNTIF(AC4:AC490,"err"),"err","ok") -> ok
D2: Allocation | F2: Total | H2: Power Supply | K2: Transmission | M2: Station Equipment | O2: Pri & Sec. Distr Plant | R2: Customer Services | U2: Meters | W2: Lighting | Y2: Meter Reading Billing and Cust Acct Service | AA2: Load Management
A3: Description | C3: Name | D3: Vector | F3: System | H3: Demand | I3: Energy | K3: Demand | M3: Demand | O3: Demand | P3: Customer | R3: Demand | S3: Customer | U3: Customer | W3: Customer | Y3: Customer | AA3: Customer | AB3: Total Check | AC3: Status
A5: Plant in Service
A7: Intangible Plant
A8: 301 | B8: ORGANIZATION | C8: P301 | D8: PT&D | F8: 0 | H8: =IF(VLOOKUP($D8,$C$5:$AA$496,6,)=0,0,((VLOOKUP($D8,$C$5:$AA$496,6,)/VLOOKUP($D8,$C$5:$AA$496,4,))*$F8)) -> 0 | I8: =IF(VLOOKUP($D8,$C$5:$AA$496,7,)=0,0,((VLOOKUP($D8,$C$5:$AA$496,7,)/VLOOKUP($D8,$C$5:$AA$496,4,))*$F8)) -> 0 | K8: =IF(VLOOKUP($D8,$C$5:$AA$496,9,)=0,0,((VLOOKUP($D8,$C$5:$AA$496,9,)/VLOOKUP($D8,$C$5:$AA$496,4,))*$F8)) -> 0 | M8: =IF(VLOOKUP($D8,$C$5:$AA$496,11,)=0,0,((VLOOKUP($D8,$C$5:$AA$496,11,)/VLOOKUP($D8,$C$5:$AA$496,4,))*$F8)) -> 0 | O8: =IF(VLOOKUP($D8,$C$5:$AA$496,13,)=0,0,((VLOOKUP($D8,$C$5:$AA$496,13,)/VLOOKUP($D8,$C$5:$AA$496,4,))*$F8)) -> 0 | P8: =IF(VLOOKUP($D8,$C$5:$AA$496,14,)=0,0,((VLOOKUP($D8,$C$5:$AA$496,14,)/VLOOKUP($D8,$C$5:$AA$496,4,))*$F8)) -> 0 | R8: =IF(VLOOKUP($D8,$C$5:$AA$496,16,)=0,0,((VLOOKUP($D8,$C$5:$AA$496,16,)/VLOOKUP($D8,$C$5:$AA$496,4,))*$F8)) -> 0 | S8: =IF(VLOOKUP($D8,$C$5:$AA$496,17,)=0,0,((VLOOKUP($D8,$C$5:$AA$496,17,)/VLOOKUP($D8,$C$5:$AA$496,4,))*$F8)) -> 0 | U8: =IF(VLOOKUP($D8,$C$5:$AA$496,19,)=0,0,((VLOOKUP($D8,$C$5:$AA$496,19,)/VLOOKUP($D8,$C$5:$AA$496,4,))*$F8)) -> 0 | W8: =IF(VLOOKUP($D8,$C$5:$AA$496,21,)=0,0,((VLOOKUP($D8,$C$5:$AA$496,21,)/VLOOKUP($D8,$C$5:$AA$496,4,))*$F8)) -> 0 | Y8: =IF(VLOOKUP($D8,$C$5:$AA$496,23,)=0,0,((VLOOKUP($D8,$C$5:$AA$496,23,)/VLOOKUP($D8,$C$5:$AA$496,4,))*$F8)) -> 0 | AA8: =IF(VLOOKUP($D8,$C$5:$AA$496,25,)=0,0,((VLOOKUP($D8,$C$5:$AA$496,25,)/VLOOKUP($D8,$C$5:$AA$496,4,))*$F8)) -> 0 | AB8: =SUM(H8:AA8) -> 0 | AC8: =IF(ABS(AB8-F8)<1,"ok","err") -> ok
A9: 302 | B9: FRANCHISES | C9: P302 | D9: PT&D | F9: 0 | H9: =IF(VLOOKUP($D9,$C$5:$AA$496,6,)=0,0,((VLOOKUP($D9,$C$5:$AA$496,6,)/VLOOKUP($D9,$C$5:$AA$496,4,))*$F9)) -> 0 | I9: =IF(VLOOKUP($D9,$C$5:$AA$496,7,)=0,0,((VLOOKUP($D9,$C$5:$AA$496,7,)/VLOOKUP($D9,$C$5:$AA$496,4,))*$F9)) -> 0 | K9: =IF(VLOOKUP($D9,$C$5:$AA$496,9,)=0,0,((VLOOKUP($D9,$C$5:$AA$496,9,)/VLOOKUP($D9,$C$5:$AA$496,4,))*$F9)) -> 0 | M9: =IF(VLOOKUP($D9,$C$5:$AA$496,11,)=0,0,((VLOOKUP($D9,$C$5:$AA$496,11,)/VLOOKUP($D9,$C$5:$AA$496,4,))*$F9)) -> 0 | O9: =IF(VLOOKUP($D9,$C$5:$AA$496,13,)=0,0,((VLOOKUP($D9,$C$5:$AA$496,13,)/VLOOKUP($D9,$C$5:$AA$496,4,))*$F9)) -> 0 | P9: =IF(VLOOKUP($D9,$C$5:$AA$496,14,)=0,0,((VLOOKUP($D9,$C$5:$AA$496,14,)/VLOOKUP($D9,$C$5:$AA$496,4,))*$F9)) -> 0 | R9: =IF(VLOOKUP($D9,$C$5:$AA$496,16,)=0,0,((VLOOKUP($D9,$C$5:$AA$496,16,)/VLOOKUP($D9,$C$5:$AA$496,4,))*$F9)) -> 0 | S9: =IF(VLOOKUP($D9,$C$5:$AA$496,17,)=0,0,((VLOOKUP($D9,$C$5:$AA$496,17,)/VLOOKUP($D9,$C$5:$AA$496,4,))*$F9)) -> 0 | U9: =IF(VLOOKUP($D9,$C$5:$AA$496,19,)=0,0,((VLOOKUP($D9,$C$5:$AA$496,19,)/VLOOKUP($D9,$C$5:$AA$496,4,))*$F9)) -> 0 | W9: =IF(VLOOKUP($D9,$C$5:$AA$496,21,)=0,0,((VLOOKUP($D9,$C$5:$AA$496,21,)/VLOOKUP($D9,$C$5:$AA$496,4,))*$F9)) -> 0 | Y9: =IF(VLOOKUP($D9,$C$5:$AA$496,23,)=0,0,((VLOOKUP($D9,$C$5:$AA$496,23,)/VLOOKUP($D9,$C$5:$AA$496,4,))*$F9)) -> 0 | AA9: =IF(VLOOKUP($D9,$C$5:$AA$496,25,)=0,0,((VLOOKUP($D9,$C$5:$AA$496,25,)/VLOOKUP($D9,$C$5:$AA$496,4,))*$F9)) -> 0 | AB9: =SUM(H9:AA9) -> 0 | AC9: =IF(ABS(AB9-F9)<1,"ok","err") -> ok
A10: 303 | B10: MISC. INTANGIBLE | C10: P303 | D10: PT&D | F10: 0 | H10: =IF(VLOOKUP($D10,$C$5:$AA$496,6,)=0,0,((VLOOKUP($D10,$C$5:$AA$496,6,)/VLOOKUP($D10,$C$5:$AA$496,4,))*$F10)) -> 0 | I10: =IF(VLOOKUP($D10,$C$5:$AA$496,7,)=0,0,((VLOOKUP($D10,$C$5:$AA$496,7,)/VLOOKUP($D10,$C$5:$AA$496,4,))*$F10)) -> 0 | K10: =IF(VLOOKUP($D10,$C$5:$AA$496,9,)=0,0,((VLOOKUP($D10,$C$5:$AA$496,9,)/VLOOKUP($D10,$C$5:$AA$496,4,))*$F10)) -> 0 | M10: =IF(VLOOKUP($D10,$C$5:$AA$496,11,)=0,0,((VLOOKUP($D10,$C$5:$AA$496,11,)/VLOOKUP($D10,$C$5:$AA$496,4,))*$F10)) -> 0 | O10: =IF(VLOOKUP($D10,$C$5:$AA$496,13,)=0,0,((VLOOKUP($D10,$C$5:$AA$496,13,)/VLOOKUP($D10,$C$5:$AA$496,4,))*$F10)) -> 0 | P10: =IF(VLOOKUP($D10,$C$5:$AA$496,14,)=0,0,((VLOOKUP($D10,$C$5:$AA$496,14,)/VLOOKUP($D10,$C$5:$AA$496,4,))*$F10)) -> 0 | R10: =IF(VLOOKUP($D10,$C$5:$AA$496,16,)=0,0,((VLOOKUP($D10,$C$5:$AA$496,16,)/VLOOKUP($D10,$C$5:$AA$496,4,))*$F10)) -> 0 | S10: =IF(VLOOKUP($D10,$C$5:$AA$496,17,)=0,0,((VLOOKUP($D10,$C$5:$AA$496,17,)/VLOOKUP($D10,$C$5:$AA$496,4,))*$F10)) -> 0 | U10: =IF(VLOOKUP($D10,$C$5:$AA$496,19,)=0,0,((VLOOKUP($D10,$C$5:$AA$496,19,)/VLOOKUP($D10,$C$5:$AA$496,4,))*$F10)) -> 0 | W10: =IF(VLOOKUP($D10,$C$5:$AA$496,21,)=0,0,((VLOOKUP($D10,$C$5:$AA$496,21,)/VLOOKUP($D10,$C$5:$AA$496,4,))*$F10)) -> 0 | Y10: =IF(VLOOKUP($D10,$C$5:$AA$496,23,)=0,0,((VLOOKUP($D10,$C$5:$AA$496,23,)/VLOOKUP($D10,$C$5:$AA$496,4,))*$F10)) -> 0 | AA10: =IF(VLOOKUP($D10,$C$5:$AA$496,25,)=0,0,((VLOOKUP($D10,$C$5:$AA$496,25,)/VLOOKUP($D10,$C$5:$AA$496,4,))*$F10)) -> 0 | AB10: =SUM(H10:AA10) -> 0 | AC10: =IF(ABS(AB10-F10)<1,"ok","err") -> ok
B12: Total Intangible Plant | C12: PINT | F12: =SUM(F8:F10) -> 0 | G12: =SUM(G8:G10) -> 0 | H12: =SUM(H8:H10) -> 0 | I12: =SUM(I8:I10) -> 0 | K12: =SUM(K8:K10) -> 0 | M12: =SUM(M8:M10) -> 0 | O12: =SUM(O8:O10) -> 0 | P12: =SUM(P8:P10) -> 0 | R12: =SUM(R8:R10) -> 0 | S12: =SUM(S8:S10) -> 0 | U12: =SUM(U8:U10) -> 0 | W12: =SUM(W8:W10) -> 0 | Y12: =SUM(Y8:Y10) -> 0 | AA12: =SUM(AA8:AA10) -> 0 | AB12: =SUM(H12:AA12) -> 0 | AC12: =IF(ABS(AB12-F12)<1,"ok","err") -> ok
A14: Steam Production
A15: 310 | B15: LAND AND LAND RIGHTS | C15: P310 | D15: F016 | F15: 0 | H15: =IF(VLOOKUP($D15,$C$5:$AA$496,6,)=0,0,((VLOOKUP($D15,$C$5:$AA$496,6,)/VLOOKUP($D15,$C$5:$AA$496,4,))*$F15)) -> 0 | I15: =IF(VLOOKUP($D15,$C$5:$AA$496,7,)=0,0,((VLOOKUP($D15,$C$5:$AA$496,7,)/VLOOKUP($D15,$C$5:$AA$496,4,))*$F15)) -> 0 | K15: =IF(VLOOKUP($D15,$C$5:$AA$496,9,)=0,0,((VLOOKUP($D15,$C$5:$AA$496,9,)/VLOOKUP($D15,$C$5:$AA$496,4,))*$F15)) -> 0 | M15: =IF(VLOOKUP($D15,$C$5:$AA$496,11,)=0,0,((VLOOKUP($D15,$C$5:$AA$496,11,)/VLOOKUP($D15,$C$5:$AA$496,4,))*$F15)) -> 0 | O15: =IF(VLOOKUP($D15,$C$5:$AA$496,13,)=0,0,((VLOOKUP($D15,$C$5:$AA$496,13,)/VLOOKUP($D15,$C$5:$AA$496,4,))*$F15)) -> 0 | P15: =IF(VLOOKUP($D15,$C$5:$AA$496,14,)=0,0,((VLOOKUP($D15,$C$5:$AA$496,14,)/VLOOKUP($D15,$C$5:$AA$496,4,))*$F15)) -> 0 | R15: =IF(VLOOKUP($D15,$C$5:$AA$496,16,)=0,0,((VLOOKUP($D15,$C$5:$AA$496,16,)/VLOOKUP($D15,$C$5:$AA$496,4,))*$F15)) -> 0 | S15: =IF(VLOOKUP($D15,$C$5:$AA$496,17,)=0,0,((VLOOKUP($D15,$C$5:$AA$496,17,)/VLOOKUP($D15,$C$5:$AA$496,4,))*$F15)) -> 0 | U15: =IF(VLOOKUP($D15,$C$5:$AA$496,19,)=0,0,((VLOOKUP($D15,$C$5:$AA$496,19,)/VLOOKUP($D15,$C$5:$AA$496,4,))*$F15)) -> 0 | W15: =IF(VLOOKUP($D15,$C$5:$AA$496,21,)=0,0,((VLOOKUP($D15,$C$5:$AA$496,21,)/VLOOKUP($D15,$C$5:$AA$496,4,))*$F15)) -> 0 | Y15: =IF(VLOOKUP($D15,$C$5:$AA$496,23,)=0,0,((VLOOKUP($D15,$C$5:$AA$496,23,)/VLOOKUP($D15,$C$5:$AA$496,4,))*$F15)) -> 0 | AA15: =IF(VLOOKUP($D15,$C$5:$AA$496,25,)=0,0,((VLOOKUP($D15,$C$5:$AA$496,25,)/VLOOKUP($D15,$C$5:$AA$496,4,))*$F15)) -> 0 | AB15: =SUM(H15:AA15) -> 0 | AC15: =IF(ABS(AB15-F15)<1,"ok","err") -> ok
A16: 311 | B16: STRUCTURES AND IMPROVEMENTS | C16: P311 | D16: F016 | F16: 0 | H16: 0 | I16: 0 | K16: 0 | M16: 0 | O16: 0 | P16: 0 | R16: 0 | S16: 0 | U16: 0 | W16: 0 | Y16: 0 | AA16: 0 | AB16: 0 | AC16: ok
A17: 312 | B17: BOILER PLANT EQUIPMENT | C17: P312 | D17: F016 | F17: 0 | H17: 0 | I17: 0 | K17: 0 | M17: 0 | O17: 0 | P17: 0 | R17: 0 | S17: 0 | U17: 0 | W17: 0 | Y17: 0 | AA17: 0 | AB17: 0 | AC17: ok
A18: 313 | B18: ENGINES AND ENGINE DRIVEN GENERATORS | C18: P313 | D18: F016 | F18: 0 | H18: 0 | I18: 0 | K18: 0 | M18: 0 | O18: 0 | P18: 0 | R18: 0 | S18: 0 | U18: 0 | W18: 0 | Y18: 0 | AA18: 0 | AB18: 0 | AC18: ok
A19: 314 | B19: TURBOGENERATOR UNITS | C19: P314 | D19: F016 | F19: 0 | H19: 0 | I19: 0 | K19: 0 | M19: 0 | O19: 0 | P19: 0 | R19: 0 | S19: 0 | U19: 0 | W19: 0 | Y19: 0 | AA19: 0 | AB19: 0 | AC19: ok
A20: 315 | B20: ACCESSORY ELEC EQUIP | C20: P315 | D20: F016 | F20: 0 | H20: 0 | I20: 0 | K20: 0 | M20: 0 | O20: 0 | P20: 0 | R20: 0 | S20: 0 | U20: 0 | W20: 0 | Y20: 0 | AA20: 0 | AB20: 0 | AC20: ok
A21: 316 | B21: MISC POWER PLANT EQUIPMENT | C21: P316 | D21: F016 | F21: 0 | H21: 0 | I21: 0 | K21: 0 | M21: 0 | O21: 0 | P21: 0 | R21: 0 | S21: 0 | U21: 0 | W21: 0 | Y21: 0 | AA21: 0 | AB21: =SUM(H21:AA21) -> 0 | AC21: =IF(ABS(AB21-F21)<1,"ok","err") -> ok
A22: 317 | B22: ASSET RETIREMENT COST FOR STEAM PROD | C22: P317 | D22: F016 | F22: 0 | H22: 0 | I22: 0 | K22: 0 | M22: 0 | O22: 0 | P22: 0 | R22: 0 | S22: 0 | U22: 0 | W22: 0 | Y22: 0 | AA22: 0 | AB22: 0 | AC22: ok
B24: Total Steam Production Plant | C24: PPROD | F24: =SUM(F15:F23) -> 0 | G24: =SUM(G15:G23) -> 0 | H24: =SUM(H15:H23) -> 0 | I24: =SUM(I15:I23) -> 0 | K24: =SUM(K15:K23) -> 0 | M24: =SUM(M15:M23) -> 0 | O24: =SUM(O15:O23) -> 0 | P24: =SUM(P15:P23) -> 0 | R24: =SUM(R15:R23) -> 0 | S24: =SUM(S15:S23) -> 0 | U24: =SUM(U15:U23) -> 0 | W24: =SUM(W15:W23) -> 0 | Y24: =SUM(Y15:Y23) -> 0 | AA24: =SUM(AA15:AA23) -> 0 | AB24: =SUM(H24:AA24) -> 0 | AC24: =IF(ABS(AB24-F24)<1,"ok","err") -> ok
A26: Transmission
A27: 350 | B27: LAND AND LAND RIGHTS | C27: P350 | D27: F011 | F27: 0 | H27: =IF(VLOOKUP($D27,$C$5:$AA$496,6,)=0,0,((VLOOKUP($D27,$C$5:$AA$496,6,)/VLOOKUP($D27,$C$5:$AA$496,4,))*$F27)) -> 0 | I27: =IF(VLOOKUP($D27,$C$5:$AA$496,7,)=0,0,((VLOOKUP($D27,$C$5:$AA$496,7,)/VLOOKUP($D27,$C$5:$AA$496,4,))*$F27)) -> 0 | K27: =IF(VLOOKUP($D27,$C$5:$AA$496,9,)=0,0,((VLOOKUP($D27,$C$5:$AA$496,9,)/VLOOKUP($D27,$C$5:$AA$496,4,))*$F27)) -> 0 | M27: =IF(VLOOKUP($D27,$C$5:$AA$496,11,)=0,0,((VLOOKUP($D27,$C$5:$AA$496,11,)/VLOOKUP($D27,$C$5:$AA$496,4,))*$F27)) -> 0 | O27: =IF(VLOOKUP($D27,$C$5:$AA$496,13,)=0,0,((VLOOKUP($D27,$C$5:$AA$496,13,)/VLOOKUP($D27,$C$5:$AA$496,4,))*$F27)) -> 0 | P27: =IF(VLOOKUP($D27,$C$5:$AA$496,14,)=0,0,((VLOOKUP($D27,$C$5:$AA$496,14,)/VLOOKUP($D27,$C$5:$AA$496,4,))*$F27)) -> 0 | R27: =IF(VLOOKUP($D27,$C$5:$AA$496,16,)=0,0,((VLOOKUP($D27,$C$5:$AA$496,16,)/VLOOKUP($D27,$C$5:$AA$496,4,))*$F27)) -> 0 | S27: =IF(VLOOKUP($D27,$C$5:$AA$496,17,)=0,0,((VLOOKUP($D27,$C$5:$AA$496,17,)/VLOOKUP($D27,$C$5:$AA$496,4,))*$F27)) -> 0 | U27: =IF(VLOOKUP($D27,$C$5:$AA$496,19,)=0,0,((VLOOKUP($D27,$C$5:$AA$496,19,)/VLOOKUP($D27,$C$5:$AA$496,4,))*$F27)) -> 0 | W27: =IF(VLOOKUP($D27,$C$5:$AA$496,21,)=0,0,((VLOOKUP($D27,$C$5:$AA$496,21,)/VLOOKUP($D27,$C$5:$AA$496,4,))*$F27)) -> 0 | Y27: =IF(VLOOKUP($D27,$C$5:$AA$496,23,)=0,0,((VLOOKUP($D27,$C$5:$AA$496,23,)/VLOOKUP($D27,$C$5:$AA$496,4,))*$F27)) -> 0 | AA27: =IF(VLOOKUP($D27,$C$5:$AA$496,25,)=0,0,((VLOOKUP($D27,$C$5:$AA$496,25,)/VLOOKUP($D27,$C$5:$AA$496,4,))*$F27)) -> 0 | AB27: =SUM(H27:AA27) -> 0 | AC27: =IF(ABS(AB27-F27)<1,"ok","err") -> ok
A28: 352 | B28: STRUCTURES AND IMPROVEMENTS | C28: P352 | D28: F011 | F28: 0 | H28: 0 | I28: 0 | K28: 0 | M28: 0 | O28: 0 | P28: 0 | R28: 0 | S28: 0 | U28: 0 | W28: 0 | Y28: 0 | AA28: 0 | AB28: 0 | AC28: ok
A29: 353 | B29: STATION EQUIPMENT | C29: P353 | D29: F011 | F29: 0 | H29: 0 | I29: 0 | K29: 0 | M29: 0 | O29: 0 | P29: 0 | R29: 0 | S29: 0 | U29: 0 | W29: 0 | Y29: 0 | AA29: 0 | AB29: 0 | AC29: ok
A30: 354 | B30: TOWERS AND FIXTURES | C30: P354 | D30: F011 | F30: 0 | H30: 0 | I30: 0 | K30: 0 | M30: 0 | O30: 0 | P30: 0 | R30: 0 | S30: 0 | U30: 0 | W30: 0 | Y30: 0 | AA30: 0 | AB30: 0 | AC30: ok
A31: 355 | B31: POLES AND FIXTURES | C31: P355 | D31: F011 | F31: 0 | H31: 0 | I31: 0 | K31: 0 | M31: 0 | O31: 0 | P31: 0 | R31: 0 | S31: 0 | U31: 0 | W31: 0 | Y31: 0 | AA31: 0 | AB31: 0 | AC31: ok
A32: 356 | B32: CONDUCTORS AND DEVICES | C32: P356 | D32: F011 | F32: 0 | H32: 0 | I32: 0 | K32: 0 | M32: 0 | O32: 0 | P32: 0 | R32: 0 | S32: 0 | U32: 0 | W32: 0 | Y32: 0 | AA32: 0 | AB32: 0 | AC32: ok
A33: 359 | B33: ROADS AND TRAILS | C33: P359 | D33: F011 | F33: 0 | H33: 0 | I33: 0 | K33: 0 | M33: 0 | O33: 0 | P33: 0 | R33: 0 | S33: 0 | U33: 0 | W33: 0 | Y33: 0 | AA33: 0 | AB33: 0 | AC33: ok
B35: Total Transmission Plant | C35: PTRAN | F35: =SUM(F27:F34) -> 0 | G35: =SUM(G27:G34) -> 0 | H35: 0 | I35: 0 | K35: 0 | M35: 0 | O35: 0 | P35: 0 | R35: 0 | S35: 0 | U35: 0 | W35: 0 | Y35: 0 | AA35: 0 | AB35: =SUM(H35:AA35) -> 0 | AC35: =IF(ABS(AB35-F35)<1,"ok","err") -> ok
A37: Plant in Service (Continued)
A39: Distribution
A40: 360 | B40: LAND AND LAND RIGHTS | C40: P360 | D40: F001 | F40: 274958.43 | H40: =IF(VLOOKUP($D40,$C$5:$AA$496,6,)=0,0,((VLOOKUP($D40,$C$5:$AA$496,6,)/VLOOKUP($D40,$C$5:$AA$496,4,))*$F63)) -> 0 | I40: =IF(VLOOKUP($D40,$C$5:$AA$496,7,)=0,0,((VLOOKUP($D40,$C$5:$AA$496,7,)/VLOOKUP($D40,$C$5:$AA$496,4,))*$F63)) -> 0 | K40: =IF(VLOOKUP($D40,$C$5:$AA$496,9,)=0,0,((VLOOKUP($D40,$C$5:$AA$496,9,)/VLOOKUP($D40,$C$5:$AA$496,4,))*$F63)) -> 0 | M40: =IF(VLOOKUP($D40,$C$5:$AA$496,11,)=0,0,((VLOOKUP($D40,$C$5:$AA$496,11,)/VLOOKUP($D40,$C$5:$AA$496,4,))*$F40)) -> 274958.43 | O40: =IF(VLOOKUP($D40,$C$5:$AA$496,13,)=0,0,((VLOOKUP($D40,$C$5:$AA$496,13,)/VLOOKUP($D40,$C$5:$AA$496,4,))*$F63)) -> 0 | P40: =IF(VLOOKUP($D40,$C$5:$AA$496,14,)=0,0,((VLOOKUP($D40,$C$5:$AA$496,14,)/VLOOKUP($D40,$C$5:$AA$496,4,))*$F63)) -> 0 | R40: =IF(VLOOKUP($D40,$C$5:$AA$496,16,)=0,0,((VLOOKUP($D40,$C$5:$AA$496,16,)/VLOOKUP($D40,$C$5:$AA$496,4,))*$F63)) -> 0 | S40: =IF(VLOOKUP($D40,$C$5:$AA$496,17,)=0,0,((VLOOKUP($D40,$C$5:$AA$496,17,)/VLOOKUP($D40,$C$5:$AA$496,4,))*$F63)) -> 0 | U40: =IF(VLOOKUP($D40,$C$5:$AA$496,19,)=0,0,((VLOOKUP($D40,$C$5:$AA$496,19,)/VLOOKUP($D40,$C$5:$AA$496,4,))*$F63)) -> 0 | W40: =IF(VLOOKUP($D40,$C$5:$AA$496,21,)=0,0,((VLOOKUP($D40,$C$5:$AA$496,21,)/VLOOKUP($D40,$C$5:$AA$496,4,))*$F63)) -> 0 | Y40: =IF(VLOOKUP($D40,$C$5:$AA$496,23,)=0,0,((VLOOKUP($D40,$C$5:$AA$496,23,)/VLOOKUP($D40,$C$5:$AA$496,4,))*$F63)) -> 0 | AA40: =IF(VLOOKUP($D40,$C$5:$AA$496,25,)=0,0,((VLOOKUP($D40,$C$5:$AA$496,25,)/VLOOKUP($D40,$C$5:$AA$496,4,))*$F63)) -> 0 | AB40: =SUM(H40:AA40) -> 274958.43 | AC40: =IF(ABS(AB40-F40)<1,"ok","err") -> ok
A41: 361 | B41: STRUCTURES AND IMPROVEMENTS | C41: P361 | D41: F001 | F41: 0 | H41: =IF(VLOOKUP($D41,$C$5:$AA$496,6,)=0,0,((VLOOKUP($D41,$C$5:$AA$496,6,)/VLOOKUP($D41,$C$5:$AA$496,4,))*$F41)) -> 0 | I41: =IF(VLOOKUP($D41,$C$5:$AA$496,7,)=0,0,((VLOOKUP($D41,$C$5:$AA$496,7,)/VLOOKUP($D41,$C$5:$AA$496,4,))*$F41)) -> 0 | K41: =IF(VLOOKUP($D41,$C$5:$AA$496,9,)=0,0,((VLOOKUP($D41,$C$5:$AA$496,9,)/VLOOKUP($D41,$C$5:$AA$496,4,))*$F41)) -> 0 | M41: 0 | O41: =IF(VLOOKUP($D41,$C$5:$AA$496,13,)=0,0,((VLOOKUP($D41,$C$5:$AA$496,13,)/VLOOKUP($D41,$C$5:$AA$496,4,))*$F41)) -> 0 | P41: =IF(VLOOKUP($D41,$C$5:$AA$496,14,)=0,0,((VLOOKUP($D41,$C$5:$AA$496,14,)/VLOOKUP($D41,$C$5:$AA$496,4,))*$F41)) -> 0 | R41: =IF(VLOOKUP($D41,$C$5:$AA$496,16,)=0,0,((VLOOKUP($D41,$C$5:$AA$496,16,)/VLOOKUP($D41,$C$5:$AA$496,4,))*$F41)) -> 0 | S41: =IF(VLOOKUP($D41,$C$5:$AA$496,17,)=0,0,((VLOOKUP($D41,$C$5:$AA$496,17,)/VLOOKUP($D41,$C$5:$AA$496,4,))*$F41)) -> 0 | U41: =IF(VLOOKUP($D41,$C$5:$AA$496,19,)=0,0,((VLOOKUP($D41,$C$5:$AA$496,19,)/VLOOKUP($D41,$C$5:$AA$496,4,))*$F41)) -> 0 | W41: =IF(VLOOKUP($D41,$C$5:$AA$496,21,)=0,0,((VLOOKUP($D41,$C$5:$AA$496,21,)/VLOOKUP($D41,$C$5:$AA$496,4,))*$F41)) -> 0 | Y41: =IF(VLOOKUP($D41,$C$5:$AA$496,23,)=0,0,((VLOOKUP($D41,$C$5:$AA$496,23,)/VLOOKUP($D41,$C$5:$AA$496,4,))*$F41)) -> 0 | AA41: =IF(VLOOKUP($D41,$C$5:$AA$496,25,)=0,0,((VLOOKUP($D41,$C$5:$AA$496,25,)/VLOOKUP($D41,$C$5:$AA$496,4,))*$F41)) -> 0 | AB41: 0 | AC41: =IF(ABS(AB41-F41)<1,"ok","err") -> ok
A42: 362 | B42: STATION EQUIPMENT | C42: P362 | D42: F001 | F42: 20145121.01 | H42: 0 | I42: 0 | K42: 0 | M42: 20145121.01 | O42: 0 | P42: 0 | R42: 0 | S42: 0 | U42: 0 | W42: 0 | Y42: 0 | AA42: 0 | AB42: 20145121.01 | AC42: ok
A43: 364 | B43: POLES, TOWERS AND FIXTURES | C43: P364 | D43: F002 | F43: 45935170.99 | H43: 0 | I43: 0 | K43: 0 | M43: 0 | O43: 5859251.19 | P43: 40075919.8 | R43: 0 | S43: 0 | U43: 0 | W43: 0 | Y43: 0 | AA43: 0 | AB43: 45935170.99 | AC43: ok
A44: 365 | B44: OVERHEAD CONDUCTORS AND DEVICE | C44: P365 | D44: F003 | F44: 22394795.44 | H44: 0 | I44: 0 | K44: 0 | M44: 0 | O44: 2856563.478 | P44: 19538231.96 | R44: 0 | S44: 0 | U44: 0 | W44: 0 | Y44: 0 | AA44: 0 | AB44: 22394795.44 | AC44: ok
A45: 366 | B45: UNDERGROUND CONDUIT | C45: P366 | D45: F004 | F45: 4934295.15 | H45: 0 | I45: 0 | K45: 0 | M45: 0 | O45: 4338846.364 | P45: 595448.7862 | R45: 0 | S45: 0 | U45: 0 | W45: 0 | Y45: 0 | AA45: 0 | AB45: 4934295.15 | AC45: ok
A46: 367 | B46: UNDERGROUND CONDUCTORS AND DEV | C46: P367 | D46: F004 | F46: 17555072.25 | H46: 0 | I46: 0 | K46: 0 | M46: 0 | O46: 15436604.23 | P46: 2118468.017 | R46: 0 | S46: 0 | U46: 0 | W46: 0 | Y46: 0 | AA46: 0 | AB46: 17555072.25 | AC46: ok
A47: 368 | B47: LINE TRANSFORMERS | C47: P368 | D47: F005 | F47: 22768892.4 | H47: 0 | I47: 0 | K47: 0 | M47: 0 | O47: 10881577.61 | P47: 11887314.79 | R47: 0 | S47: 0 | U47: 0 | W47: 0 | Y47: 0 | AA47: 0 | AB47: 22768892.4 | AC47: ok
A48: 369 | B48: SERVICES | C48: P369 | D48: F006 | F48: 10768682.94 | H48: 0 | I48: 0 | K48: 0 | M48: 0 | O48: 0 | P48: 0 | R48: 0 | S48: 10768682.94 | U48: 0 | W48: 0 | Y48: 0 | AA48: 0 | AB48: 10768682.94 | AC48: ok
A49: 370 | B49: METERS | C49: P370 | D49: F007 | F49: 8864190.72 | H49: 0 | I49: 0 | K49: 0 | M49: 0 | O49: 0 | P49: 0 | R49: 0 | S49: 0 | U49: 8864190.72 | W49: 0 | Y49: 0 | AA49: 0 | AB49: 8864190.72 | AC49: ok
A50: 371 | B50: INSTALLATIONS ON CONSUMERS PRE | C50: P371 | D50: F013 | F50: 2630093.66 | H50: 0 | I50: 0 | K50: 0 | M50: 0 | O50: 0 | P50: 0 | R50: 0 | S50: 0 | U50: 0 | W50: 2630093.66 | Y50: 0 | AA50: 0 | AB50: 2630093.66 | AC50: ok
A51: 372 | B51: LEASED PROP. ON CONSUMERS PREMISES | C51: P372 | D51: F013 | F51: 0 | H51: 0 | I51: 0 | K51: 0 | M51: 0 | O51: 0 | P51: 0 | R51: 0 | S51: 0 | U51: 0 | W51: 0 | Y51: 0 | AA51: 0 | AB51: 0 | AC51: ok
A52: 373 | B52: STREET LIGHTING AND SIGNAL SYS | C52: P373 | D52: F008 | F52: 646535.6 | H52: 0 | I52: 0 | K52: 0 | M52: 0 | O52: 0 | P52: 0 | R52: 0 | S52: 0 | U52: 0 | W52: 646535.6 | Y52: 0 | AA52: 0 | AB52: 646535.6 | AC52: ok
B54: Total Distribution Plant | C54: PDIST | F54: =SUM(F40:F53) -> 156917808.6 | G54: =SUM(G42:G52) -> 0 | H54: =SUM(H40:H53) -> 0 | I54: =SUM(I40:I53) -> 0 | L54: =SUM(L40:L53) -> 0 | M54: =SUM(M40:M53) -> 20420079.44 | O54: =SUM(O40:O53) -> 39372842.88 | P54: =SUM(P40:P53) -> 74215383.35 | R54: =SUM(R40:R52) -> 0 | S54: =SUM(S40:S52) -> 10768682.94 | U54: =SUM(U40:U52) -> 8864190.72 | W54: =SUM(W40:W52) -> 3276629.26 | Y54: =SUM(Y40:Y52) -> 0 | AA54: =SUM(AA40:AA52) -> 0 | AB54: =SUM(H54:AA54) -> 156917808.6 | AC54: =IF(ABS(AB54-F54)<1,"ok","err") -> ok
B56: Total Transmission and Distribution Plant | C56: PT&D | F56: =F35+F54 -> 156917808.6 | G56: 0 | H56: 0 | I56: 0 | J56: 0 | K56: 0 | L56: 0 | M56: 20420079.44 | O56: =O35+O54 -> 39372842.88 | P56: 74215383.35 | Q56: 0 | R56: 0 | S56: 10768682.94 | T56: 0 | U56: 8864190.72 | V56: 0 | W56: 3276629.26 | X56: 0 | Y56: 0 | Z56: 0 | AA56: 0 | AB56: =SUM(H56:AA56) -> 156917808.6 | AC56: =IF(ABS(AB56-F56)<1,"ok","err") -> ok
B58: Total Production, Transmission & Distribution Plant | C58: PPT&D | F58: =F56+F24 -> 156917808.6 | H58: =H56+H24 -> 0 | I58: 0 | J58: 0 | K58: 0 | L58: 0 | M58: 20420079.44 | O58: 39372842.88 | P58: 74215383.35 | Q58: 0 | R58: 0 | S58: 10768682.94 | T58: 0 | U58: 8864190.72 | V58: 0 | W58: 3276629.26 | X58: 0 | Y58: 0 | AA58: =AA56+AA24 -> 0 | AB58: =SUM(H58:AA58) -> 156917808.6 | AC58: =IF(ABS(AB58-F58)<1,"ok","err") -> ok
A60: Plant in Service (Continued)
A62: General Plant
A63: 389 | B63: LAND AND LAND RIGHTS | C63: P389 | D63: PT&D | F63: 86866.25 | H63: =IF(VLOOKUP($D63,$C$5:$AA$496,6,)=0,0,((VLOOKUP($D63,$C$5:$AA$496,6,)/VLOOKUP($D63,$C$5:$AA$496,4,))*$F63)) -> 0 | I63: =IF(VLOOKUP($D63,$C$5:$AA$496,7,)=0,0,((VLOOKUP($D63,$C$5:$AA$496,7,)/VLOOKUP($D63,$C$5:$AA$496,4,))*$F63)) -> 0 | K63: =IF(VLOOKUP($D63,$C$5:$AA$496,9,)=0,0,((VLOOKUP($D63,$C$5:$AA$496,9,)/VLOOKUP($D63,$C$5:$AA$496,4,))*$F63)) -> 0 | M63: =IF(VLOOKUP($D63,$C$5:$AA$496,11,)=0,0,((VLOOKUP($D63,$C$5:$AA$496,11,)/VLOOKUP($D63,$C$5:$AA$496,4,))*$F63)) -> 11304.10717 | O63: =IF(VLOOKUP($D63,$C$5:$AA$496,13,)=0,0,((VLOOKUP($D63,$C$5:$AA$496,13,)/VLOOKUP($D63,$C$5:$AA$496,4,))*$F63)) -> 21795.94046 | P63: =IF(VLOOKUP($D63,$C$5:$AA$496,14,)=0,0,((VLOOKUP($D63,$C$5:$AA$496,14,)/VLOOKUP($D63,$C$5:$AA$496,4,))*$F63)) -> 41084.00507 | R63: =IF(VLOOKUP($D63,$C$5:$AA$496,16,)=0,0,((VLOOKUP($D63,$C$5:$AA$496,16,)/VLOOKUP($D63,$C$5:$AA$496,4,))*$F63)) -> 0 | S63: =IF(VLOOKUP($D63,$C$5:$AA$496,17,)=0,0,((VLOOKUP($D63,$C$5:$AA$496,17,)/VLOOKUP($D63,$C$5:$AA$496,4,))*$F63)) -> 5961.306195 | U63: =IF(VLOOKUP($D63,$C$5:$AA$496,19,)=0,0,((VLOOKUP($D63,$C$5:$AA$496,19,)/VLOOKUP($D63,$C$5:$AA$496,4,))*$F63)) -> 4907.02116 | W63: =IF(VLOOKUP($D63,$C$5:$AA$496,21,)=0,0,((VLOOKUP($D63,$C$5:$AA$496,21,)/VLOOKUP($D63,$C$5:$AA$496,4,))*$F63)) -> 1813.869943 | Y63: =IF(VLOOKUP($D63,$C$5:$AA$496,23,)=0,0,((VLOOKUP($D63,$C$5:$AA$496,23,)/VLOOKUP($D63,$C$5:$AA$496,4,))*$F63)) -> 0 | AA63: =IF(VLOOKUP($D63,$C$5:$AA$496,25,)=0,0,((VLOOKUP($D63,$C$5:$AA$496,25,)/VLOOKUP($D63,$C$5:$AA$496,4,))*$F63)) -> 0 | AB63: =SUM(H63:AA63) -> 86866.25 | AC63: =IF(ABS(AB63-F63)<1,"ok","err") -> ok
A64: 390 | B64: STRUCTURES AND IMPROVEMENTS | C64: P390 | D64: PT&D | F64: 2809679.5 | H64: 0 | I64: 0 | K64: 0 | M64: 365630.129 | O64: 704987.3464 | P64: 1328857.719 | R64: 0 | S64: 192817.8068 | U64: 158717.0709 | W64: 58669.42792 | Y64: 0 | AA64: 0 | AB64: =SUM(H64:AA64) -> 2809679.5 | AC64: =IF(ABS(AB64-F64)<1,"ok","err") -> ok
A65: 391 | B65: OFFICE FURNITURE AND EQUIPMENT | C65: P391 | D65: PT&D | F65: 895926.24 | H65: 0 | I65: 0 | K65: 0 | M65: 116588.9656 | O65: 224800.253 | P65: 423734.6287 | R65: 0 | S65: 61484.07056 | U65: 50610.32354 | W65: 18707.99853 | Y65: 0 | AA65: 0 | AB65: 895926.24 | AC65: ok
A66: 392 | B66: TRANSPORTATION EQUIPMENT | C66: P392 | D66: PT&D | F66: 4037553.52 | H66: 0 | I66: 0 | K66: 0 | M66: 525416.2314 | O66: 1013077.877 | P66: 1909589.389 | R66: 0 | S66: 277082.2133 | U66: 228078.9208 | W66: 84308.88834 | Y66: 0 | AA66: 0 | AB66: 4037553.52 | AC66: ok
A67: 393 | B67: STORES EQUIPMENT | C67: P393 | D67: PT&D | F67: 99882.37 | H67: 0 | I67: 0 | K67: 0 | M67: 12997.92515 | O67: 25061.86452 | P67: 47240.07075 | R67: 0 | S67: 6854.553881 | U67: 5642.293792 | W67: 2085.661908 | Y67: 0 | AA67: 0 | AB67: 99882.37 | AC67: ok
A68: 394 | B68: TOOLS, SHOP & GARAGE EQUIPMENT | C68: P394 | D68: PT&D | F68: 761009.82 | H68: 0 | I68: 0 | K68: 0 | M68: 99031.97807 | O68: 190947.8621 | P68: 359924.9571 | R68: 0 | S68: 52225.26072 | U68: 42988.97776 | W68: 15890.78426 | Y68: 0 | AA68: 0 | AB68: 761009.82 | AC68: ok
A69: 395 | B69: LABORATORY EQUIPMENT | C69: P395 | D69: PT&D | F69: 247090.45 | H69: 0 | I69: 0 | K69: 0 | M69: 32154.45502 | O69: 61998.40255 | P69: 116863.1695 | R69: 0 | S69: 16956.89442 | U69: 13957.9879 | W69: 5159.540562 | Y69: 0 | AA69: 0 | AB69: 247090.45 | AC69: ok
A70: 396 | B70: POWER OPERATED EQUIPMENT | C70: P396 | D70: PT&D | F70: 654504.95 | H70: 0 | I70: 0 | K70: 0 | M70: 85172.25159 | O70: 164224.3209 | P70: 309552.7283 | R70: 0 | S70: 44916.22941 | U70: 36972.58301 | W70: 13666.83673 | Y70: 0 | AA70: 0 | AB70: 654504.95 | AC70: ok
A71: 397 | B71: COMMUNICATION EQUIPMENT | C71: P397 | D71: PT&D | F71: 970717.64 | H71: 0 | I71: 0 | K71: 0 | M71: 126321.7445 | O71: 243566.4471 | P71: 459107.7484 | R71: 0 | S71: 66616.72492 | U71: 54835.24384 | W71: 20269.73134 | Y71: 0 | AA71: 0 | AB71: 970717.64 | AC71: ok
A72: 398 | B72: MISCELLANEOUS EQUIPMENT | C72: P398 | D72: PT&D | F72: 238133.64 | H72: 0 | I72: 0 | K72: 0 | M72: 30988.8845 | O72: 59751.01536 | P72: 112626.9831 | R72: 0 | S72: 16342.22202 | U72: 13452.0232 | W72: 4972.511786 | Y72: 0 | AA72: 0 | AB72: 238133.64 | AC72: ok
A73: 399 | B73: OTHER TANGIBLE PROPERTY | C73: P399 | D73: PT&D | F73: 0 | H73: 0 | I73: 0 | K73: 0 | M73: 0 | O73: 0 | P73: 0 | R73: 0 | S73: 0 | U73: 0 | W73: 0 | Y73: 0 | AA73: 0 | AB73: 0 | AC73: ok
B75: Total General Plant | C75: PGP | F75: =SUM(F63:F74) -> 10801364.38 | G75: =SUM(G63:G74) -> 0 | H75: 0 | I75: 0 | K75: =SUM(K63:K74) -> 0 | M75: 1405606.672 | O75: 2710211.329 | P75: 5108581.399 | R75: 0 | S75: 741257.2822 | U75: 610162.4459 | W75: 225545.2513 | Y75: =SUM(Y63:Y74) -> 0 | AA75: =SUM(AA63:AA74) -> 0 | AB75: =SUM(H75:AA75) -> 10801364.38 | AC75: =IF(ABS(AB75-F75)<1,"ok","err") -> ok
A77: 106 | B77: COMPLETED CONSTR NOT CLASSIFIED | C77: P106 | D77: PT&D | F77: 0 | H77: =IF(VLOOKUP($D77,$C$5:$AA$496,6,)=0,0,((VLOOKUP($D77,$C$5:$AA$496,6,)/VLOOKUP($D77,$C$5:$AA$496,4,))*$F77)) -> 0 | I77: =IF(VLOOKUP($D77,$C$5:$AA$496,7,)=0,0,((VLOOKUP($D77,$C$5:$AA$496,7,)/VLOOKUP($D77,$C$5:$AA$496,4,))*$F77)) -> 0 | K77: =IF(VLOOKUP($D77,$C$5:$AA$496,9,)=0,0,((VLOOKUP($D77,$C$5:$AA$496,9,)/VLOOKUP($D77,$C$5:$AA$496,4,))*$F77)) -> 0 | M77: =IF(VLOOKUP($D77,$C$5:$AA$496,11,)=0,0,((VLOOKUP($D77,$C$5:$AA$496,11,)/VLOOKUP($D77,$C$5:$AA$496,4,))*$F77)) -> 0 | O77: =IF(VLOOKUP($D77,$C$5:$AA$496,13,)=0,0,((VLOOKUP($D77,$C$5:$AA$496,13,)/VLOOKUP($D77,$C$5:$AA$496,4,))*$F77)) -> 0 | P77: =IF(VLOOKUP($D77,$C$5:$AA$496,14,)=0,0,((VLOOKUP($D77,$C$5:$AA$496,14,)/VLOOKUP($D77,$C$5:$AA$496,4,))*$F77)) -> 0 | R77: =IF(VLOOKUP($D77,$C$5:$AA$496,16,)=0,0,((VLOOKUP($D77,$C$5:$AA$496,16,)/VLOOKUP($D77,$C$5:$AA$496,4,))*$F77)) -> 0 | S77: =IF(VLOOKUP($D77,$C$5:$AA$496,17,)=0,0,((VLOOKUP($D77,$C$5:$AA$496,17,)/VLOOKUP($D77,$C$5:$AA$496,4,))*$F77)) -> 0 | U77: =IF(VLOOKUP($D77,$C$5:$AA$496,19,)=0,0,((VLOOKUP($D77,$C$5:$AA$496,19,)/VLOOKUP($D77,$C$5:$AA$496,4,))*$F77)) -> 0 | W77: =IF(VLOOKUP($D77,$C$5:$AA$496,21,)=0,0,((VLOOKUP($D77,$C$5:$AA$496,21,)/VLOOKUP($D77,$C$5:$AA$496,4,))*$F77)) -> 0 | Y77: =IF(VLOOKUP($D77,$C$5:$AA$496,23,)=0,0,((VLOOKUP($D77,$C$5:$AA$496,23,)/VLOOKUP($D77,$C$5:$AA$496,4,))*$F77)) -> 0 | AA77: =IF(VLOOKUP($D77,$C$5:$AA$496,25,)=0,0,((VLOOKUP($D77,$C$5:$AA$496,25,)/VLOOKUP($D77,$C$5:$AA$496,4,))*$F77)) -> 0 | AB77: =SUM(H77:AA77) -> 0 | AC77: =IF(ABS(AB77-F77)<1,"ok","err") -> ok
A78: 102 | B78: ELECTRIC PLANT PURCHASED OR SOLD | C78: P102 | D78: PDIST | F78: 0 | H78: =IF(VLOOKUP($D78,$C$5:$AA$496,6,)=0,0,((VLOOKUP($D78,$C$5:$AA$496,6,)/VLOOKUP($D78,$C$5:$AA$496,4,))*$F78)) -> 0 | I78: =IF(VLOOKUP($D78,$C$5:$AA$496,7,)=0,0,((VLOOKUP($D78,$C$5:$AA$496,7,)/VLOOKUP($D78,$C$5:$AA$496,4,))*$F78)) -> 0 | K78: =IF(VLOOKUP($D78,$C$5:$AA$496,9,)=0,0,((VLOOKUP($D78,$C$5:$AA$496,9,)/VLOOKUP($D78,$C$5:$AA$496,4,))*$F78)) -> 0 | M78: =IF(VLOOKUP($D78,$C$5:$AA$496,11,)=0,0,((VLOOKUP($D78,$C$5:$AA$496,11,)/VLOOKUP($D78,$C$5:$AA$496,4,))*$F78)) -> 0 | O78: =IF(VLOOKUP($D78,$C$5:$AA$496,13,)=0,0,((VLOOKUP($D78,$C$5:$AA$496,13,)/VLOOKUP($D78,$C$5:$AA$496,4,))*$F78)) -> 0 | P78: =IF(VLOOKUP($D78,$C$5:$AA$496,14,)=0,0,((VLOOKUP($D78,$C$5:$AA$496,14,)/VLOOKUP($D78,$C$5:$AA$496,4,))*$F78)) -> 0 | R78: =IF(VLOOKUP($D78,$C$5:$AA$496,16,)=0,0,((VLOOKUP($D78,$C$5:$AA$496,16,)/VLOOKUP($D78,$C$5:$AA$496,4,))*$F78)) -> 0 | S78: =IF(VLOOKUP($D78,$C$5:$AA$496,17,)=0,0,((VLOOKUP($D78,$C$5:$AA$496,17,)/VLOOKUP($D78,$C$5:$AA$496,4,))*$F78)) -> 0 | U78: =IF(VLOOKUP($D78,$C$5:$AA$496,19,)=0,0,((VLOOKUP($D78,$C$5:$AA$496,19,)/VLOOKUP($D78,$C$5:$AA$496,4,))*$F78)) -> 0 | W78: =IF(VLOOKUP($D78,$C$5:$AA$496,21,)=0,0,((VLOOKUP($D78,$C$5:$AA$496,21,)/VLOOKUP($D78,$C$5:$AA$496,4,))*$F78)) -> 0 | Y78: =IF(VLOOKUP($D78,$C$5:$AA$496,23,)=0,0,((VLOOKUP($D78,$C$5:$AA$496,23,)/VLOOKUP($D78,$C$5:$AA$496,4,))*$F78)) -> 0 | AA78: =IF(VLOOKUP($D78,$C$5:$AA$496,25,)=0,0,((VLOOKUP($D78,$C$5:$AA$496,25,)/VLOOKUP($D78,$C$5:$AA$496,4,))*$F78)) -> 0 | AB78: =SUM(H78:AA78) -> 0 | AC78: =IF(ABS(AB78-F78)<1,"ok","err") -> ok
A80: 114 | B80: Electric Plant Acquisition Adjustment | D80: PPROD | F80: 0 | H80: =IF(VLOOKUP($D80,$C$5:$AA$496,6,)=0,0,((VLOOKUP($D80,$C$5:$AA$496,6,)/VLOOKUP($D80,$C$5:$AA$496,4,))*$F80)) -> 0 | I80: =IF(VLOOKUP($D80,$C$5:$AA$496,7,)=0,0,((VLOOKUP($D80,$C$5:$AA$496,7,)/VLOOKUP($D80,$C$5:$AA$496,4,))*$F80)) -> 0 | K80: =IF(VLOOKUP($D80,$C$5:$AA$496,9,)=0,0,((VLOOKUP($D80,$C$5:$AA$496,9,)/VLOOKUP($D80,$C$5:$AA$496,4,))*$F80)) -> 0 | M80: =IF(VLOOKUP($D80,$C$5:$AA$496,11,)=0,0,((VLOOKUP($D80,$C$5:$AA$496,11,)/VLOOKUP($D80,$C$5:$AA$496,4,))*$F80)) -> 0 | O80: =IF(VLOOKUP($D80,$C$5:$AA$496,13,)=0,0,((VLOOKUP($D80,$C$5:$AA$496,13,)/VLOOKUP($D80,$C$5:$AA$496,4,))*$F80)) -> 0 | P80: =IF(VLOOKUP($D80,$C$5:$AA$496,14,)=0,0,((VLOOKUP($D80,$C$5:$AA$496,14,)/VLOOKUP($D80,$C$5:$AA$496,4,))*$F80)) -> 0 | R80: =IF(VLOOKUP($D80,$C$5:$AA$496,16,)=0,0,((VLOOKUP($D80,$C$5:$AA$496,16,)/VLOOKUP($D80,$C$5:$AA$496,4,))*$F80)) -> 0 | S80: =IF(VLOOKUP($D80,$C$5:$AA$496,17,)=0,0,((VLOOKUP($D80,$C$5:$AA$496,17,)/VLOOKUP($D80,$C$5:$AA$496,4,))*$F80)) -> 0 | U80: =IF(VLOOKUP($D80,$C$5:$AA$496,19,)=0,0,((VLOOKUP($D80,$C$5:$AA$496,19,)/VLOOKUP($D80,$C$5:$AA$496,4,))*$F80)) -> 0 | W80: =IF(VLOOKUP($D80,$C$5:$AA$496,21,)=0,0,((VLOOKUP($D80,$C$5:$AA$496,21,)/VLOOKUP($D80,$C$5:$AA$496,4,))*$F80)) -> 0 | Y80: =IF(VLOOKUP($D80,$C$5:$AA$496,23,)=0,0,((VLOOKUP($D80,$C$5:$AA$496,23,)/VLOOKUP($D80,$C$5:$AA$496,4,))*$F80)) -> 0 | AA80: =IF(VLOOKUP($D80,$C$5:$AA$496,25,)=0,0,((VLOOKUP($D80,$C$5:$AA$496,25,)/VLOOKUP($D80,$C$5:$AA$496,4,))*$F80)) -> 0 | AB80: =SUM(H80:AA80) -> 0 | AC80: =IF(ABS(AB80-F80)<1,"ok","err") -> ok
B82: Total Plant in Service | C82: TPIS | F82: =F12+F24+F35+F54+F75+F77+F78+F80 -> 167719173 | G82: =G12+G35+G54+G75+G77+G80 -> 0 | H82: =H12+H24+H35+H54+H75+H77+H78+H80 -> 0 | I82: =I12+I24+I35+I54+I75+I77+I78+I80 -> 0 | K82: =K12+K24+K35+K54+K75+K77+K78+K80 -> 0 | M82: =M12+M24+M35+M54+M75+M77+M78+M80 -> 21825686.11 | O82: =O12+O24+O35+O54+O75+O77+O78+O80 -> 42083054.21 | P82: =P12+P24+P35+P54+P75+P77+P78+P80 -> 79323964.75 | R82: =R12+R24+R35+R54+R75+R77+R78+R80 -> 0 | S82: =S12+S24+S35+S54+S75+S77+S78+S80 -> 11509940.22 | U82: =U12+U24+U35+U54+U75+U77+U78+U80 -> 9474353.166 | W82: =W12+W24+W35+W54+W75+W77+W78+W80 -> 3502174.511 | Y82: =Y12+Y24+Y35+Y54+Y75+Y77+Y78+Y80 -> 0 | AA82: =AA12+AA24+AA35+AA54+AA75+AA77+AA78+AA80 -> 0 | AB82: =SUM(H82:AA82) -> 167719173 | AC82: =IF(ABS(AB82-F82)<1,"ok","err") -> ok
A84: Construction Work in Progress (CWIP)
B85: CWIP Production | C85: CWIP1 | D85: PPROD | F85: 0 | H85: =IF(VLOOKUP($D85,$C$5:$AA$496,6,)=0,0,((VLOOKUP($D85,$C$5:$AA$496,6,)/VLOOKUP($D85,$C$5:$AA$496,4,))*$F85)) -> 0 | I85: =IF(VLOOKUP($D85,$C$5:$AA$496,7,)=0,0,((VLOOKUP($D85,$C$5:$AA$496,7,)/VLOOKUP($D85,$C$5:$AA$496,4,))*$F85)) -> 0 | K85: =IF(VLOOKUP($D85,$C$5:$AA$496,9,)=0,0,((VLOOKUP($D85,$C$5:$AA$496,9,)/VLOOKUP($D85,$C$5:$AA$496,4,))*$F85)) -> 0 | M85: =IF(VLOOKUP($D85,$C$5:$AA$496,11,)=0,0,((VLOOKUP($D85,$C$5:$AA$496,11,)/VLOOKUP($D85,$C$5:$AA$496,4,))*$F85)) -> 0 | O85: =IF(VLOOKUP($D85,$C$5:$AA$496,13,)=0,0,((VLOOKUP($D85,$C$5:$AA$496,13,)/VLOOKUP($D85,$C$5:$AA$496,4,))*$F85)) -> 0 | P85: =IF(VLOOKUP($D85,$C$5:$AA$496,14,)=0,0,((VLOOKUP($D85,$C$5:$AA$496,14,)/VLOOKUP($D85,$C$5:$AA$496,4,))*$F85)) -> 0 | R85: =IF(VLOOKUP($D85,$C$5:$AA$496,16,)=0,0,((VLOOKUP($D85,$C$5:$AA$496,16,)/VLOOKUP($D85,$C$5:$AA$496,4,))*$F85)) -> 0 | S85: =IF(VLOOKUP($D85,$C$5:$AA$496,17,)=0,0,((VLOOKUP($D85,$C$5:$AA$496,17,)/VLOOKUP($D85,$C$5:$AA$496,4,))*$F85)) -> 0 | U85: =IF(VLOOKUP($D85,$C$5:$AA$496,19,)=0,0,((VLOOKUP($D85,$C$5:$AA$496,19,)/VLOOKUP($D85,$C$5:$AA$496,4,))*$F85)) -> 0 | W85: =IF(VLOOKUP($D85,$C$5:$AA$496,21,)=0,0,((VLOOKUP($D85,$C$5:$AA$496,21,)/VLOOKUP($D85,$C$5:$AA$496,4,))*$F85)) -> 0 | Y85: =IF(VLOOKUP($D85,$C$5:$AA$496,23,)=0,0,((VLOOKUP($D85,$C$5:$AA$496,23,)/VLOOKUP($D85,$C$5:$AA$496,4,))*$F85)) -> 0 | AA85: =IF(VLOOKUP($D85,$C$5:$AA$496,25,)=0,0,((VLOOKUP($D85,$C$5:$AA$496,25,)/VLOOKUP($D85,$C$5:$AA$496,4,))*$F85)) -> 0 | AB85: =SUM(H85:AA85) -> 0 | AC85: =IF(ABS(AB85-F85)<1,"ok","err") -> ok
B86: CWIP Transmission | C86: CWIP2 | D86: PTRAN | F86: 0 | H86: =IF(VLOOKUP($D86,$C$5:$AA$496,6,)=0,0,((VLOOKUP($D86,$C$5:$AA$496,6,)/VLOOKUP($D86,$C$5:$AA$496,4,))*$F86)) -> 0 | I86: =IF(VLOOKUP($D86,$C$5:$AA$496,7,)=0,0,((VLOOKUP($D86,$C$5:$AA$496,7,)/VLOOKUP($D86,$C$5:$AA$496,4,))*$F86)) -> 0 | K86: =IF(VLOOKUP($D86,$C$5:$AA$496,9,)=0,0,((VLOOKUP($D86,$C$5:$AA$496,9,)/VLOOKUP($D86,$C$5:$AA$496,4,))*$F86)) -> 0 | M86: =IF(VLOOKUP($D86,$C$5:$AA$496,11,)=0,0,((VLOOKUP($D86,$C$5:$AA$496,11,)/VLOOKUP($D86,$C$5:$AA$496,4,))*$F86)) -> 0 | O86: =IF(VLOOKUP($D86,$C$5:$AA$496,13,)=0,0,((VLOOKUP($D86,$C$5:$AA$496,13,)/VLOOKUP($D86,$C$5:$AA$496,4,))*$F86)) -> 0 | P86: =IF(VLOOKUP($D86,$C$5:$AA$496,14,)=0,0,((VLOOKUP($D86,$C$5:$AA$496,14,)/VLOOKUP($D86,$C$5:$AA$496,4,))*$F86)) -> 0 | R86: =IF(VLOOKUP($D86,$C$5:$AA$496,16,)=0,0,((VLOOKUP($D86,$C$5:$AA$496,16,)/VLOOKUP($D86,$C$5:$AA$496,4,))*$F86)) -> 0 | S86: =IF(VLOOKUP($D86,$C$5:$AA$496,17,)=0,0,((VLOOKUP($D86,$C$5:$AA$496,17,)/VLOOKUP($D86,$C$5:$AA$496,4,))*$F86)) -> 0 | U86: =IF(VLOOKUP($D86,$C$5:$AA$496,19,)=0,0,((VLOOKUP($D86,$C$5:$AA$496,19,)/VLOOKUP($D86,$C$5:$AA$496,4,))*$F86)) -> 0 | W86: =IF(VLOOKUP($D86,$C$5:$AA$496,21,)=0,0,((VLOOKUP($D86,$C$5:$AA$496,21,)/VLOOKUP($D86,$C$5:$AA$496,4,))*$F86)) -> 0 | Y86: =IF(VLOOKUP($D86,$C$5:$AA$496,23,)=0,0,((VLOOKUP($D86,$C$5:$AA$496,23,)/VLOOKUP($D86,$C$5:$AA$496,4,))*$F86)) -> 0 | AA86: =IF(VLOOKUP($D86,$C$5:$AA$496,25,)=0,0,((VLOOKUP($D86,$C$5:$AA$496,25,)/VLOOKUP($D86,$C$5:$AA$496,4,))*$F86)) -> 0 | AB86: =SUM(H86:AA86) -> 0 | AC86: =IF(ABS(AB86-F86)<1,"ok","err") -> ok
B87: CWIP Distribution | C87: CWIP3 | D87: PDIST | F87: 1537505.42 | H87: =IF(VLOOKUP($D87,$C$5:$AA$496,6,)=0,0,((VLOOKUP($D87,$C$5:$AA$496,6,)/VLOOKUP($D87,$C$5:$AA$496,4,))*$F87)) -> 0 | I87: =IF(VLOOKUP($D87,$C$5:$AA$496,7,)=0,0,((VLOOKUP($D87,$C$5:$AA$496,7,)/VLOOKUP($D87,$C$5:$AA$496,4,))*$F87)) -> 0 | K87: =IF(VLOOKUP($D87,$C$5:$AA$496,9,)=0,0,((VLOOKUP($D87,$C$5:$AA$496,9,)/VLOOKUP($D87,$C$5:$AA$496,4,))*$F87)) -> 0 | M87: =IF(VLOOKUP($D87,$C$5:$AA$496,11,)=0,0,((VLOOKUP($D87,$C$5:$AA$496,11,)/VLOOKUP($D87,$C$5:$AA$496,4,))*$F87)) -> 200079.1567 | O87: =IF(VLOOKUP($D87,$C$5:$AA$496,13,)=0,0,((VLOOKUP($D87,$C$5:$AA$496,13,)/VLOOKUP($D87,$C$5:$AA$496,4,))*$F87)) -> 385781.32 | P87: =IF(VLOOKUP($D87,$C$5:$AA$496,14,)=0,0,((VLOOKUP($D87,$C$5:$AA$496,14,)/VLOOKUP($D87,$C$5:$AA$496,4,))*$F87)) -> 727174.023 | R87: =IF(VLOOKUP($D87,$C$5:$AA$496,16,)=0,0,((VLOOKUP($D87,$C$5:$AA$496,16,)/VLOOKUP($D87,$C$5:$AA$496,4,))*$F87)) -> 0 | S87: =IF(VLOOKUP($D87,$C$5:$AA$496,17,)=0,0,((VLOOKUP($D87,$C$5:$AA$496,17,)/VLOOKUP($D87,$C$5:$AA$496,4,))*$F87)) -> 105513.2527 | U87: =IF(VLOOKUP($D87,$C$5:$AA$496,19,)=0,0,((VLOOKUP($D87,$C$5:$AA$496,19,)/VLOOKUP($D87,$C$5:$AA$496,4,))*$F87)) -> 86852.73774 | W87: =IF(VLOOKUP($D87,$C$5:$AA$496,21,)=0,0,((VLOOKUP($D87,$C$5:$AA$496,21,)/VLOOKUP($D87,$C$5:$AA$496,4,))*$F87)) -> 32104.92991 | Y87: =IF(VLOOKUP($D87,$C$5:$AA$496,23,)=0,0,((VLOOKUP($D87,$C$5:$AA$496,23,)/VLOOKUP($D87,$C$5:$AA$496,4,))*$F87)) -> 0 | AA87: =IF(VLOOKUP($D87,$C$5:$AA$496,25,)=0,0,((VLOOKUP($D87,$C$5:$AA$496,25,)/VLOOKUP($D87,$C$5:$AA$496,4,))*$F87)) -> 0 | AB87: =SUM(H87:AA87) -> 1537505.42 | AC87: =IF(ABS(AB87-F87)<1,"ok","err") -> ok
B88: CWIP General Plant | C88: CWIP4 | D88: PGP | F88: 0 | H88: =IF(VLOOKUP($D88,$C$5:$AA$496,6,)=0,0,((VLOOKUP($D88,$C$5:$AA$496,6,)/VLOOKUP($D88,$C$5:$AA$496,4,))*$F88)) -> 0 | I88: =IF(VLOOKUP($D88,$C$5:$AA$496,7,)=0,0,((VLOOKUP($D88,$C$5:$AA$496,7,)/VLOOKUP($D88,$C$5:$AA$496,4,))*$F88)) -> 0 | K88: =IF(VLOOKUP($D88,$C$5:$AA$496,9,)=0,0,((VLOOKUP($D88,$C$5:$AA$496,9,)/VLOOKUP($D88,$C$5:$AA$496,4,))*$F88)) -> 0 | M88: =IF(VLOOKUP($D88,$C$5:$AA$496,11,)=0,0,((VLOOKUP($D88,$C$5:$AA$496,11,)/VLOOKUP($D88,$C$5:$AA$496,4,))*$F88)) -> 0 | O88: =IF(VLOOKUP($D88,$C$5:$AA$496,13,)=0,0,((VLOOKUP($D88,$C$5:$AA$496,13,)/VLOOKUP($D88,$C$5:$AA$496,4,))*$F88)) -> 0 | P88: =IF(VLOOKUP($D88,$C$5:$AA$496,14,)=0,0,((VLOOKUP($D88,$C$5:$AA$496,14,)/VLOOKUP($D88,$C$5:$AA$496,4,))*$F88)) -> 0 | R88: =IF(VLOOKUP($D88,$C$5:$AA$496,16,)=0,0,((VLOOKUP($D88,$C$5:$AA$496,16,)/VLOOKUP($D88,$C$5:$AA$496,4,))*$F88)) -> 0 | S88: =IF(VLOOKUP($D88,$C$5:$AA$496,17,)=0,0,((VLOOKUP($D88,$C$5:$AA$496,17,)/VLOOKUP($D88,$C$5:$AA$496,4,))*$F88)) -> 0 | U88: =IF(VLOOKUP($D88,$C$5:$AA$496,19,)=0,0,((VLOOKUP($D88,$C$5:$AA$496,19,)/VLOOKUP($D88,$C$5:$AA$496,4,))*$F88)) -> 0 | W88: =IF(VLOOKUP($D88,$C$5:$AA$496,21,)=0,0,((VLOOKUP($D88,$C$5:$AA$496,21,)/VLOOKUP($D88,$C$5:$AA$496,4,))*$F88)) -> 0 | Y88: =IF(VLOOKUP($D88,$C$5:$AA$496,23,)=0,0,((VLOOKUP($D88,$C$5:$AA$496,23,)/VLOOKUP($D88,$C$5:$AA$496,4,))*$F88)) -> 0 | AA88: =IF(VLOOKUP($D88,$C$5:$AA$496,25,)=0,0,((VLOOKUP($D88,$C$5:$AA$496,25,)/VLOOKUP($D88,$C$5:$AA$496,4,))*$F88)) -> 0 | AB88: =SUM(H88:AA88) -> 0 | AC88: =IF(ABS(AB88-F88)<1,"ok","err") -> ok
B89: CWIP Other | C89: CWIP5 | D89: PDIST | F89: 0 | H89: =IF(VLOOKUP($D89,$C$5:$AA$496,6,)=0,0,((VLOOKUP($D89,$C$5:$AA$496,6,)/VLOOKUP($D89,$C$5:$AA$496,4,))*$F89)) -> 0 | I89: =IF(VLOOKUP($D89,$C$5:$AA$496,7,)=0,0,((VLOOKUP($D89,$C$5:$AA$496,7,)/VLOOKUP($D89,$C$5:$AA$496,4,))*$F89)) -> 0 | K89: =IF(VLOOKUP($D89,$C$5:$AA$496,9,)=0,0,((VLOOKUP($D89,$C$5:$AA$496,9,)/VLOOKUP($D89,$C$5:$AA$496,4,))*$F89)) -> 0 | M89: =IF(VLOOKUP($D89,$C$5:$AA$496,11,)=0,0,((VLOOKUP($D89,$C$5:$AA$496,11,)/VLOOKUP($D89,$C$5:$AA$496,4,))*$F89)) -> 0 | O89: =IF(VLOOKUP($D89,$C$5:$AA$496,13,)=0,0,((VLOOKUP($D89,$C$5:$AA$496,13,)/VLOOKUP($D89,$C$5:$AA$496,4,))*$F89)) -> 0 | P89: =IF(VLOOKUP($D89,$C$5:$AA$496,14,)=0,0,((VLOOKUP($D89,$C$5:$AA$496,14,)/VLOOKUP($D89,$C$5:$AA$496,4,))*$F89)) -> 0 | R89: =IF(VLOOKUP($D89,$C$5:$AA$496,16,)=0,0,((VLOOKUP($D89,$C$5:$AA$496,16,)/VLOOKUP($D89,$C$5:$AA$496,4,))*$F89)) -> 0 | S89: =IF(VLOOKUP($D89,$C$5:$AA$496,17,)=0,0,((VLOOKUP($D89,$C$5:$AA$496,17,)/VLOOKUP($D89,$C$5:$AA$496,4,))*$F89)) -> 0 | U89: =IF(VLOOKUP($D89,$C$5:$AA$496,19,)=0,0,((VLOOKUP($D89,$C$5:$AA$496,19,)/VLOOKUP($D89,$C$5:$AA$496,4,))*$F89)) -> 0 | W89: =IF(VLOOKUP($D89,$C$5:$AA$496,21,)=0,0,((VLOOKUP($D89,$C$5:$AA$496,21,)/VLOOKUP($D89,$C$5:$AA$496,4,))*$F89)) -> 0 | Y89: =IF(VLOOKUP($D89,$C$5:$AA$496,23,)=0,0,((VLOOKUP($D89,$C$5:$AA$496,23,)/VLOOKUP($D89,$C$5:$AA$496,4,))*$F89)) -> 0 | AA89: =IF(VLOOKUP($D89,$C$5:$AA$496,25,)=0,0,((VLOOKUP($D89,$C$5:$AA$496,25,)/VLOOKUP($D89,$C$5:$AA$496,4,))*$F89)) -> 0 | AB89: =SUM(H89:AA89) -> 0 | AC89: =IF(ABS(AB89-F89)<1,"ok","err") -> ok
A91: Total Construction Work in Progress | C91: TCWIP | F91: =SUM(F85:F89) -> 1537505.42 | G91: =SUM(G85:G89) -> 0 | H91: =SUM(H85:H89) -> 0 | I91: =SUM(I85:I89) -> 0 | K91: =SUM(K85:K89) -> 0 | M91: =SUM(M85:M89) -> 200079.1567 | O91: =SUM(O85:O89) -> 385781.32 | P91: =SUM(P85:P89) -> 727174.023 | R91: =SUM(R85:R89) -> 0 | S91: =SUM(S85:S89) -> 105513.2527 | U91: =SUM(U85:U89) -> 86852.73774 | W91: =SUM(W85:W89) -> 32104.92991 | Y91: =SUM(Y85:Y89) -> 0 | AA91: =SUM(AA85:AA89) -> 0 | AB91: =SUM(H91:AA91) -> 1537505.42 | AC91: =IF(ABS(AB91-F91)<1,"ok","err") -> ok
A93: Total Utility Plant | F93: =F82+F91 -> 169256678.4 | G93: =G82+G91 -> 0 | H93: =H82+H91 -> 0 | I93: =I82+I91 -> 0 | K93: =K82+K91 -> 0 | M93: =M82+M91 -> 22025765.27 | O93: =O82+O91 -> 42468835.53 | P93: =P82+P91 -> 80051138.78 | R93: =R82+R91 -> 0 | S93: =S82+S91 -> 11615453.47 | U93: =U82+U91 -> 9561205.904 | W93: =W82+W91 -> 3534279.441 | Y93: =Y82+Y91 -> 0 | AA93: =AA82+AA91 -> 0 | AB93: =SUM(H93:AA93) -> 169256678.4 | AC93: =IF(ABS(AB93-F93)<1,"ok","err") -> ok
A95: Rate Base
A97: Utility Plant
A98: Plant in Service | F98: =F82 -> 167719173 | H98: =H82 -> 0 | I98: =I82 -> 0 | K98: =K82 -> 0 | M98: =M82 -> 21825686.11 | O98: =O82 -> 42083054.21 | P98: =P82 -> 79323964.75 | R98: =R82 -> 0 | S98: =S82 -> 11509940.22 | U98: =U82 -> 9474353.166 | W98: =W82 -> 3502174.511 | Y98: =Y82 -> 0 | AA98: =AA82 -> 0 | AB98: =SUM(H98:AA98) -> 167719173 | AC98: =IF(ABS(AB98-F98)<1,"ok","err") -> ok
A99: Construction Work in Progress (CWIP) | F99: =F91 -> 1537505.42 | G99: =G91 -> 0 | H99: =H91 -> 0 | I99: =I91 -> 0 | K99: =K91 -> 0 | M99: =M91 -> 200079.1567 | O99: =O91 -> 385781.32 | P99: =P91 -> 727174.023 | R99: =R91 -> 0 | S99: =S91 -> 105513.2527 | U99: =U91 -> 86852.73774 | W99: =W91 -> 32104.92991 | Y99: =Y91 -> 0 | AA99: =AA91 -> 0 | AB99: =SUM(H99:AA99) -> 1537505.42 | AC99: =IF(ABS(AB99-F99)<1,"ok","err") -> ok
A101: Total Utility Plant | C101: TUP | F101: =F98+F99 -> 169256678.4 | G101: =G98+G99 -> 0 | H101: 0 | I101: 0 | K101: 0 | M101: 22025765.27 | O101: 42468835.53 | P101: 80051138.78 | R101: 0 | S101: 11615453.47 | U101: 9561205.904 | W101: 3534279.441 | Y101: 0 | AA101: 0 | AB101: =SUM(H101:AA101) -> 169256678.4 | AC101: =IF(ABS(AB101-F101)<1,"ok","err") -> ok
A103: Less: Acummulated Provision for Depreciation
A104: Electric Plant Amortization | C104: ADEPREPA | D104: TUP | H104: =IF(VLOOKUP($D104,$C$5:$AA$496,6,)=0,0,((VLOOKUP($D104,$C$5:$AA$496,6,)/VLOOKUP($D104,$C$5:$AA$496,4,))*$F104)) -> 0 | I104: =IF(VLOOKUP($D104,$C$5:$AA$496,7,)=0,0,((VLOOKUP($D104,$C$5:$AA$496,7,)/VLOOKUP($D104,$C$5:$AA$496,4,))*$F104)) -> 0 | K104: =IF(VLOOKUP($D104,$C$5:$AA$496,9,)=0,0,((VLOOKUP($D104,$C$5:$AA$496,9,)/VLOOKUP($D104,$C$5:$AA$496,4,))*$F104)) -> 0 | M104: =IF(VLOOKUP($D104,$C$5:$AA$496,11,)=0,0,((VLOOKUP($D104,$C$5:$AA$496,11,)/VLOOKUP($D104,$C$5:$AA$496,4,))*$F104)) -> 0 | O104: =IF(VLOOKUP($D104,$C$5:$AA$496,13,)=0,0,((VLOOKUP($D104,$C$5:$AA$496,13,)/VLOOKUP($D104,$C$5:$AA$496,4,))*$F104)) -> 0 | P104: =IF(VLOOKUP($D104,$C$5:$AA$496,14,)=0,0,((VLOOKUP($D104,$C$5:$AA$496,14,)/VLOOKUP($D104,$C$5:$AA$496,4,))*$F104)) -> 0 | R104: =IF(VLOOKUP($D104,$C$5:$AA$496,16,)=0,0,((VLOOKUP($D104,$C$5:$AA$496,16,)/VLOOKUP($D104,$C$5:$AA$496,4,))*$F104)) -> 0 | S104: =IF(VLOOKUP($D104,$C$5:$AA$496,17,)=0,0,((VLOOKUP($D104,$C$5:$AA$496,17,)/VLOOKUP($D104,$C$5:$AA$496,4,))*$F104)) -> 0 | U104: =IF(VLOOKUP($D104,$C$5:$AA$496,19,)=0,0,((VLOOKUP($D104,$C$5:$AA$496,19,)/VLOOKUP($D104,$C$5:$AA$496,4,))*$F104)) -> 0 | W104: =IF(VLOOKUP($D104,$C$5:$AA$496,21,)=0,0,((VLOOKUP($D104,$C$5:$AA$496,21,)/VLOOKUP($D104,$C$5:$AA$496,4,))*$F104)) -> 0 | Y104: =IF(VLOOKUP($D104,$C$5:$AA$496,23,)=0,0,((VLOOKUP($D104,$C$5:$AA$496,23,)/VLOOKUP($D104,$C$5:$AA$496,4,))*$F104)) -> 0 | AA104: =IF(VLOOKUP($D104,$C$5:$AA$496,25,)=0,0,((VLOOKUP($D104,$C$5:$AA$496,25,)/VLOOKUP($D104,$C$5:$AA$496,4,))*$F104)) -> 0 | AB104: =SUM(H104:AA104) -> 0 | AC104: =IF(ABS(AB104-F104)<1,"ok","err") -> ok
A105: Retirement Work in Progress | C105: RWIP | D105: PDIST | F105: 0 | H105: 0 | I105: 0 | K105: 0 | M105: 0 | O105: 0 | P105: 0 | R105: 0 | S105: 0 | U105: 0 | W105: 0 | Y105: 0 | AA105: 0 | AB105: 0 | AC105: ok
A106: Steam Production | C106: ADEPRPP | D106: PPROD | F106: 0 | H106: 0 | I106: 0 | K106: 0 | M106: 0 | O106: 0 | P106: 0 | R106: 0 | S106: 0 | U106: 0 | W106: 0 | Y106: 0 | AA106: 0 | AB106: 0 | AC106: ok
A107: Transmission | C107: ADEPRTP | D107: PTRAN | F107: 0 | H107: 0 | I107: 0 | K107: 0 | M107: 0 | O107: 0 | P107: 0 | R107: 0 | S107: 0 | U107: 0 | W107: 0 | Y107: 0 | AA107: 0 | AB107: 0 | AC107: ok
A108: Dist | C108: ADEPRD12 | D108: PDIST | F108: 3852144.11 | H108: 0 | I108: 0 | K108: 0 | M108: 501288.4735 | O108: 966556.098 | P108: 1821898.702 | R108: 0 | S108: 264358.2582 | U108: 217605.257 | W108: 80437.32077 | Y108: 0 | AA108: 0 | AB108: 3852144.11 | AC108: ok
A109: Dist-Structures | C109: ADEPRD1 | D109: P361 | F109: 0 | H109: 0 | I109: 0 | K109: 0 | M109: 0 | O109: 0 | P109: 0 | R109: 0 | S109: 0 | U109: 0 | W109: 0 | Y109: 0 | AA109: 0 | AB109: 0 | AC109: ok
A110: Dist-Station | C110: ADEPRD2 | D110: P362 | F110: 3933927.62 | H110: 0 | I110: 0 | K110: 0 | M110: 3933927.62 | O110: 0 | P110: 0 | R110: 0 | S110: 0 | U110: 0 | W110: 0 | Y110: 0 | AA110: 0 | AB110: 3933927.62 | AC110: ok
A111: Dist-Poles and Fixtures | C111: ADEPRD3 | D111: P364 | F111: 20090826.06 | H111: 0 | I111: 0 | K111: 0 | M111: 0 | O111: 2562681.143 | P111: 17528144.92 | R111: 0 | S111: 0 | U111: 0 | W111: 0 | Y111: 0 | AA111: 0 | AB111: 20090826.06 | AC111: =IF(ABS(AB111-F111)<1,"ok","err") -> ok
A112: Dist-OH Conductor | C112: ADEPRD4 | D112: P365 | F112: 11171223.28 | H112: 0 | I112: 0 | K112: 0 | M112: 0 | O112: 1424943.064 | P112: 9746280.216 | R112: 0 | S112: 0 | U112: 0 | W112: 0 | Y112: 0 | AA112: 0 | AB112: 11171223.28 | AC112: ok
A113: Dist-UG Conduit | C113: ADEPRD5 | D113: P366 | F113: 1667203.04 | H113: 0 | I113: 0 | K113: 0 | M113: 0 | O113: 1466012.394 | P113: 201190.6456 | R113: 0 | S113: 0 | U113: 0 | W113: 0 | Y113: 0 | AA113: 0 | AB113: 1667203.04 | AC113: ok
A114: Dist-UG Conductor | C114: ADEPRD6 | D114: P367 | F114: 6621520.38 | H114: 0 | I114: 0 | K114: 0 | M114: 0 | O114: 5822464.759 | P114: 799055.6206 | R114: 0 | S114: 0 | U114: 0 | W114: 0 | Y114: 0 | AA114: 0 | AB114: 6621520.38 | AC114: ok
A115: Dist-Line Transformers | C115: ADEPRD7 | D115: P368 | F115: 11503771.26 | H115: 0 | I115: 0 | K115: 0 | M115: 0 | O115: 5497815.95 | P115: 6005955.31 | R115: 0 | S115: 0 | U115: 0 | W115: 0 | Y115: 0 | AA115: 0 | AB115: 11503771.26 | AC115: =IF(ABS(AB115-F115)<1,"ok","err") -> ok
A116: Dist-Services | C116: ADEPRD8 | D116: P369 | F116: 3555089.55 | H116: 0 | I116: 0 | K116: 0 | M116: 0 | O116: 0 | P116: 0 | R116: 0 | S116: 3555089.55 | U116: 0 | W116: 0 | Y116: 0 | AA116: 0 | AB116: 3555089.55 | AC116: ok
A117: Dist-Meters | C117: ADEPRD9 | D117: P370 | F117: 479102.39 | H117: 0 | I117: 0 | K117: 0 | M117: 0 | O117: 0 | P117: 0 | R117: 0 | S117: 0 | U117: 479102.39 | W117: 0 | Y117: 0 | AA117: 0 | AB117: 479102.39 | AC117: ok
A118: Dist-Installations on Customer Premises | C118: ADEPRD10 | D118: P371 | F118: 2256091.86 | H118: 0 | I118: 0 | K118: 0 | M118: 0 | O118: 0 | P118: 0 | R118: 0 | S118: 0 | U118: 0 | W118: 2256091.86 | Y118: 0 | AA118: 0 | AB118: 2256091.86 | AC118: ok
A119: Dist-Lighting & Signal Systems | C119: ADEPRD11 | D119: P373 | F119: 318809.47 | H119: 0 | I119: 0 | K119: 0 | M119: 0 | O119: 0 | P119: 0 | R119: 0 | S119: 0 | U119: 0 | W119: 318809.47 | Y119: 0 | AA119: 0 | AB119: 318809.47 | AC119: ok
A120: Accum Amtz - Electric Plant Acquisition | D120: PGP | F120: 0 | H120: 0 | I120: 0 | K120: 0 | M120: 0 | O120: 0 | P120: 0 | R120: 0 | S120: 0 | U120: 0 | W120: 0 | Y120: 0 | AA120: 0 | AB120: 0 | AC120: =IF(ABS(AB120-F120)<1,"ok","err") -> ok
A121: Accum Amtz - Electric Plant in Service | D121: PGP | F121: 0 | H121: 0 | I121: 0 | K121: 0 | M121: 0 | O121: 0 | P121: 0 | R121: 0 | S121: 0 | U121: 0 | W121: 0 | Y121: 0 | AA121: 0 | AB121: 0 | AC121: =IF(ABS(AB121-F121)<1,"ok","err") -> ok
A122: General Plant | D122: PGP | F122: 6698503.29 | H122: 0 | I122: 0 | K122: 0 | M122: 871691.8146 | O122: 1680746.882 | P122: 3168104.335 | R122: 0 | S122: 459693.2544 | U122: 378394.3405 | W122: 139872.6638 | Y122: 0 | AA122: 0 | AB122: 6698503.29 | AC122: =IF(ABS(AB122-F122)<1,"ok","err") -> ok
A124: Total Accumulated Depreciation & Amort | C124: TADEPR | F124: =SUM(F104:F122) -> 72148212.31 | G124: =SUM(G104:G122) -> 0 | H124: =SUM(H104:H122) -> 0 | I124: =SUM(I104:I122) -> 0 | K124: =SUM(K104:K122) -> 0 | M124: =SUM(M104:M122) -> 5306907.908 | O124: =SUM(O104:O122) -> 19421220.29 | P124: =SUM(P104:P122) -> 39270629.75 | R124: =SUM(R104:R122) -> 0 | S124: =SUM(S104:S122) -> 4279141.063 | U124: =SUM(U104:U122) -> 1075101.988 | W124: =SUM(W104:W122) -> 2795211.315 | Y124: =SUM(Y104:Y122) -> 0 | AA124: =SUM(AA104:AA122) -> 0 | AB124: =SUM(H124:AA124) -> 72148212.31 | AC124: =IF(ABS(AB124-F124)<1,"ok","err") -> ok
A126: Net Utility Plant | C126: NTPLANT | F126: =F101-F124 -> 97108466.08 | G126: =G101-G124 -> 0 | H126: =H101-H124 -> 0 | I126: =I101-I124 -> 0 | K126: =K101-K124 -> 0 | M126: =M101-M124 -> 16718857.36 | O126: =O101-O124 -> 23047615.23 | P126: =P101-P124 -> 40780509.03 | R126: =R101-R124 -> 0 | S126: =S101-S124 -> 7336312.412 | U126: =U101-U124 -> 8486103.916 | W126: =W101-W124 -> 739068.1267 | Y126: =Y101-Y124 -> 0 | AA126: =AA101-AA124 -> 0 | AB126: =SUM(H126:AA126) -> 97108466.08 | AC126: =IF(ABS(AB126-F126)<1,"ok","err") -> ok
A128: Working Capital
A129: Cash Working Capital - Operation and Maintenance Expenses | C129: CWC | D129: OMLPP | F129: =0.125*(F285-F180) -> 1347728.308 | H129: =0.125*(H285-H180) -> 0 | I129: =0.125*(I285-I180) -> 0 | K129: =0.125*(K285-K180) -> 0 | M129: =0.125*(M285-M180) -> 106337.5543 | O129: =0.125*(O285-O180) -> 211300.1041 | P129: =0.125*(P285-P180) -> 619179.2286 | R129: =0.125*(R285-R180) -> 0 | S129: =0.125*(S285-S180) -> 27628.54899 | U129: =0.125*(U285-U180) -> 140375.9126 | W129: =0.125*(W285-W180) -> 11433.20218 | Y129: =0.125*(Y285-Y180) -> 231473.7568 | AA129: =0.125*(AA285-AA180) -> 0 | AB129: =SUM(H129:AA129) -> 1347728.307 | AC129: =IF(ABS(AB129-F129)<1,"ok","err") -> ok
A130: Materials and Supplies (13-Month Avg) | C130: M&S | D130: TPIS | F130: 2075025.429 | H130: =IF(VLOOKUP($D130,$C$5:$AA$496,6,)=0,0,((VLOOKUP($D130,$C$5:$AA$496,6,)/VLOOKUP($D130,$C$5:$AA$496,4,))*$F130)) -> 0 | I130: =IF(VLOOKUP($D130,$C$5:$AA$496,7,)=0,0,((VLOOKUP($D130,$C$5:$AA$496,7,)/VLOOKUP($D130,$C$5:$AA$496,4,))*$F130)) -> 0 | K130: =IF(VLOOKUP($D130,$C$5:$AA$496,9,)=0,0,((VLOOKUP($D130,$C$5:$AA$496,9,)/VLOOKUP($D130,$C$5:$AA$496,4,))*$F130)) -> 0 | M130: =IF(VLOOKUP($D130,$C$5:$AA$496,11,)=0,0,((VLOOKUP($D130,$C$5:$AA$496,11,)/VLOOKUP($D130,$C$5:$AA$496,4,))*$F130)) -> 270027.8858 | O130: =IF(VLOOKUP($D130,$C$5:$AA$496,13,)=0,0,((VLOOKUP($D130,$C$5:$AA$496,13,)/VLOOKUP($D130,$C$5:$AA$496,4,))*$F130)) -> 520652.5054 | P130: =IF(VLOOKUP($D130,$C$5:$AA$496,14,)=0,0,((VLOOKUP($D130,$C$5:$AA$496,14,)/VLOOKUP($D130,$C$5:$AA$496,4,))*$F130)) -> 981397.8992 | R130: =IF(VLOOKUP($D130,$C$5:$AA$496,16,)=0,0,((VLOOKUP($D130,$C$5:$AA$496,16,)/VLOOKUP($D130,$C$5:$AA$496,4,))*$F130)) -> 0 | S130: =IF(VLOOKUP($D130,$C$5:$AA$496,17,)=0,0,((VLOOKUP($D130,$C$5:$AA$496,17,)/VLOOKUP($D130,$C$5:$AA$496,4,))*$F130)) -> 142401.2427 | U130: =IF(VLOOKUP($D130,$C$5:$AA$496,19,)=0,0,((VLOOKUP($D130,$C$5:$AA$496,19,)/VLOOKUP($D130,$C$5:$AA$496,4,))*$F130)) -> 117216.9132 | W130: =IF(VLOOKUP($D130,$C$5:$AA$496,21,)=0,0,((VLOOKUP($D130,$C$5:$AA$496,21,)/VLOOKUP($D130,$C$5:$AA$496,4,))*$F130)) -> 43328.98285 | Y130: =IF(VLOOKUP($D130,$C$5:$AA$496,23,)=0,0,((VLOOKUP($D130,$C$5:$AA$496,23,)/VLOOKUP($D130,$C$5:$AA$496,4,))*$F130)) -> 0 | AA130: =IF(VLOOKUP($D130,$C$5:$AA$496,25,)=0,0,((VLOOKUP($D130,$C$5:$AA$496,25,)/VLOOKUP($D130,$C$5:$AA$496,4,))*$F130)) -> 0 | AB130: =SUM(H130:AA130) -> 2075025.429 | AC130: =IF(ABS(AB130-F130)<1,"ok","err") -> ok
A131: Prepayments (13-Month Average) | C131: PREPAY | D131: TPIS | F131: 518555.7369 | H131: =IF(VLOOKUP($D131,$C$5:$AA$496,6,)=0,0,((VLOOKUP($D131,$C$5:$AA$496,6,)/VLOOKUP($D131,$C$5:$AA$496,4,))*$F131)) -> 0 | I131: =IF(VLOOKUP($D131,$C$5:$AA$496,7,)=0,0,((VLOOKUP($D131,$C$5:$AA$496,7,)/VLOOKUP($D131,$C$5:$AA$496,4,))*$F131)) -> 0 | K131: =IF(VLOOKUP($D131,$C$5:$AA$496,9,)=0,0,((VLOOKUP($D131,$C$5:$AA$496,9,)/VLOOKUP($D131,$C$5:$AA$496,4,))*$F131)) -> 0 | M131: =IF(VLOOKUP($D131,$C$5:$AA$496,11,)=0,0,((VLOOKUP($D131,$C$5:$AA$496,11,)/VLOOKUP($D131,$C$5:$AA$496,4,))*$F131)) -> 67480.86426 | O131: =IF(VLOOKUP($D131,$C$5:$AA$496,13,)=0,0,((VLOOKUP($D131,$C$5:$AA$496,13,)/VLOOKUP($D131,$C$5:$AA$496,4,))*$F131)) -> 130112.7879 | P131: =IF(VLOOKUP($D131,$C$5:$AA$496,14,)=0,0,((VLOOKUP($D131,$C$5:$AA$496,14,)/VLOOKUP($D131,$C$5:$AA$496,4,))*$F131)) -> 245254.59 | R131: =IF(VLOOKUP($D131,$C$5:$AA$496,16,)=0,0,((VLOOKUP($D131,$C$5:$AA$496,16,)/VLOOKUP($D131,$C$5:$AA$496,4,))*$F131)) -> 0 | S131: =IF(VLOOKUP($D131,$C$5:$AA$496,17,)=0,0,((VLOOKUP($D131,$C$5:$AA$496,17,)/VLOOKUP($D131,$C$5:$AA$496,4,))*$F131)) -> 35586.54284 | U131: =IF(VLOOKUP($D131,$C$5:$AA$496,19,)=0,0,((VLOOKUP($D131,$C$5:$AA$496,19,)/VLOOKUP($D131,$C$5:$AA$496,4,))*$F131)) -> 29292.89538 | W131: =IF(VLOOKUP($D131,$C$5:$AA$496,21,)=0,0,((VLOOKUP($D131,$C$5:$AA$496,21,)/VLOOKUP($D131,$C$5:$AA$496,4,))*$F131)) -> 10828.05652 | Y131: =IF(VLOOKUP($D131,$C$5:$AA$496,23,)=0,0,((VLOOKUP($D131,$C$5:$AA$496,23,)/VLOOKUP($D131,$C$5:$AA$496,4,))*$F131)) -> 0 | AA131: =IF(VLOOKUP($D131,$C$5:$AA$496,25,)=0,0,((VLOOKUP($D131,$C$5:$AA$496,25,)/VLOOKUP($D131,$C$5:$AA$496,4,))*$F131)) -> 0 | AB131: =SUM(H131:AA131) -> 518555.7369 | AC131: =IF(ABS(AB131-F131)<1,"ok","err") -> ok
A133: Total Working Capital | C133: TWC | F133: =SUM(F129:F132) -> 3941309.474 | G133: =SUM(G129:G132) -> 0 | H133: 0 | I133: 0 | K133: 0 | M133: 443846.3044 | O133: 862065.3975 | P133: 1845831.718 | R133: 0 | S133: 205616.3345 | U133: 286885.7212 | W133: 65590.24155 | Y133: =SUM(Y129:Y132) -> 231473.7568 | AA133: =SUM(AA129:AA132) -> 0 | AB133: =SUM(H133:AA133) -> 3941309.474 | AC133: =IF(ABS(AB133-F133)<1,"ok","err") -> ok
A135: Deferred Debits & Credits
A136: 1 | C136: DDEB1 | D136: PDIST | F136: 0 | H136: =IF(VLOOKUP($D136,$C$5:$AA$496,6,)=0,0,((VLOOKUP($D136,$C$5:$AA$496,6,)/VLOOKUP($D136,$C$5:$AA$496,4,))*$F136)) -> 0 | I136: =IF(VLOOKUP($D136,$C$5:$AA$496,7,)=0,0,((VLOOKUP($D136,$C$5:$AA$496,7,)/VLOOKUP($D136,$C$5:$AA$496,4,))*$F136)) -> 0 | K136: =IF(VLOOKUP($D136,$C$5:$AA$496,9,)=0,0,((VLOOKUP($D136,$C$5:$AA$496,9,)/VLOOKUP($D136,$C$5:$AA$496,4,))*$F136)) -> 0 | M136: =IF(VLOOKUP($D136,$C$5:$AA$496,11,)=0,0,((VLOOKUP($D136,$C$5:$AA$496,11,)/VLOOKUP($D136,$C$5:$AA$496,4,))*$F136)) -> 0 | O136: =IF(VLOOKUP($D136,$C$5:$AA$496,13,)=0,0,((VLOOKUP($D136,$C$5:$AA$496,13,)/VLOOKUP($D136,$C$5:$AA$496,4,))*$F136)) -> 0 | P136: =IF(VLOOKUP($D136,$C$5:$AA$496,14,)=0,0,((VLOOKUP($D136,$C$5:$AA$496,14,)/VLOOKUP($D136,$C$5:$AA$496,4,))*$F136)) -> 0 | R136: =IF(VLOOKUP($D136,$C$5:$AA$496,16,)=0,0,((VLOOKUP($D136,$C$5:$AA$496,16,)/VLOOKUP($D136,$C$5:$AA$496,4,))*$F136)) -> 0 | S136: =IF(VLOOKUP($D136,$C$5:$AA$496,17,)=0,0,((VLOOKUP($D136,$C$5:$AA$496,17,)/VLOOKUP($D136,$C$5:$AA$496,4,))*$F136)) -> 0 | U136: =IF(VLOOKUP($D136,$C$5:$AA$496,19,)=0,0,((VLOOKUP($D136,$C$5:$AA$496,19,)/VLOOKUP($D136,$C$5:$AA$496,4,))*$F136)) -> 0 | W136: =IF(VLOOKUP($D136,$C$5:$AA$496,21,)=0,0,((VLOOKUP($D136,$C$5:$AA$496,21,)/VLOOKUP($D136,$C$5:$AA$496,4,))*$F136)) -> 0 | Y136: =IF(VLOOKUP($D136,$C$5:$AA$496,23,)=0,0,((VLOOKUP($D136,$C$5:$AA$496,23,)/VLOOKUP($D136,$C$5:$AA$496,4,))*$F136)) -> 0 | AA136: =IF(VLOOKUP($D136,$C$5:$AA$496,25,)=0,0,((VLOOKUP($D136,$C$5:$AA$496,25,)/VLOOKUP($D136,$C$5:$AA$496,4,))*$F136)) -> 0 | AB136: =SUM(H136:AA136) -> 0 | AC136: =IF(ABS(AB136-F136)<1,"ok","err") -> ok
A137: 2 | C137: DDEB2 | D137: PDIST | F137: 0 | H137: =IF(VLOOKUP($D137,$C$5:$AA$496,6,)=0,0,((VLOOKUP($D137,$C$5:$AA$496,6,)/VLOOKUP($D137,$C$5:$AA$496,4,))*$F137)) -> 0 | I137: =IF(VLOOKUP($D137,$C$5:$AA$496,7,)=0,0,((VLOOKUP($D137,$C$5:$AA$496,7,)/VLOOKUP($D137,$C$5:$AA$496,4,))*$F137)) -> 0 | K137: =IF(VLOOKUP($D137,$C$5:$AA$496,9,)=0,0,((VLOOKUP($D137,$C$5:$AA$496,9,)/VLOOKUP($D137,$C$5:$AA$496,4,))*$F137)) -> 0 | M137: =IF(VLOOKUP($D137,$C$5:$AA$496,11,)=0,0,((VLOOKUP($D137,$C$5:$AA$496,11,)/VLOOKUP($D137,$C$5:$AA$496,4,))*$F137)) -> 0 | O137: =IF(VLOOKUP($D137,$C$5:$AA$496,13,)=0,0,((VLOOKUP($D137,$C$5:$AA$496,13,)/VLOOKUP($D137,$C$5:$AA$496,4,))*$F137)) -> 0 | P137: =IF(VLOOKUP($D137,$C$5:$AA$496,14,)=0,0,((VLOOKUP($D137,$C$5:$AA$496,14,)/VLOOKUP($D137,$C$5:$AA$496,4,))*$F137)) -> 0 | R137: =IF(VLOOKUP($D137,$C$5:$AA$496,16,)=0,0,((VLOOKUP($D137,$C$5:$AA$496,16,)/VLOOKUP($D137,$C$5:$AA$496,4,))*$F137)) -> 0 | S137: =IF(VLOOKUP($D137,$C$5:$AA$496,17,)=0,0,((VLOOKUP($D137,$C$5:$AA$496,17,)/VLOOKUP($D137,$C$5:$AA$496,4,))*$F137)) -> 0 | U137: =IF(VLOOKUP($D137,$C$5:$AA$496,19,)=0,0,((VLOOKUP($D137,$C$5:$AA$496,19,)/VLOOKUP($D137,$C$5:$AA$496,4,))*$F137)) -> 0 | W137: =IF(VLOOKUP($D137,$C$5:$AA$496,21,)=0,0,((VLOOKUP($D137,$C$5:$AA$496,21,)/VLOOKUP($D137,$C$5:$AA$496,4,))*$F137)) -> 0 | Y137: =IF(VLOOKUP($D137,$C$5:$AA$496,23,)=0,0,((VLOOKUP($D137,$C$5:$AA$496,23,)/VLOOKUP($D137,$C$5:$AA$496,4,))*$F137)) -> 0 | AA137: =IF(VLOOKUP($D137,$C$5:$AA$496,25,)=0,0,((VLOOKUP($D137,$C$5:$AA$496,25,)/VLOOKUP($D137,$C$5:$AA$496,4,))*$F137)) -> 0 | AB137: =SUM(H137:AA137) -> 0 | AC137: =IF(ABS(AB137-F137)<1,"ok","err") -> ok
A138: 3 | C138: DDEB3 | D138: PDIST | F138: 0 | H138: =IF(VLOOKUP($D138,$C$5:$AA$496,6,)=0,0,((VLOOKUP($D138,$C$5:$AA$496,6,)/VLOOKUP($D138,$C$5:$AA$496,4,))*$F138)) -> 0 | I138: =IF(VLOOKUP($D138,$C$5:$AA$496,7,)=0,0,((VLOOKUP($D138,$C$5:$AA$496,7,)/VLOOKUP($D138,$C$5:$AA$496,4,))*$F138)) -> 0 | K138: =IF(VLOOKUP($D138,$C$5:$AA$496,9,)=0,0,((VLOOKUP($D138,$C$5:$AA$496,9,)/VLOOKUP($D138,$C$5:$AA$496,4,))*$F138)) -> 0 | M138: =IF(VLOOKUP($D138,$C$5:$AA$496,11,)=0,0,((VLOOKUP($D138,$C$5:$AA$496,11,)/VLOOKUP($D138,$C$5:$AA$496,4,))*$F138)) -> 0 | O138: =IF(VLOOKUP($D138,$C$5:$AA$496,13,)=0,0,((VLOOKUP($D138,$C$5:$AA$496,13,)/VLOOKUP($D138,$C$5:$AA$496,4,))*$F138)) -> 0 | P138: =IF(VLOOKUP($D138,$C$5:$AA$496,14,)=0,0,((VLOOKUP($D138,$C$5:$AA$496,14,)/VLOOKUP($D138,$C$5:$AA$496,4,))*$F138)) -> 0 | R138: =IF(VLOOKUP($D138,$C$5:$AA$496,16,)=0,0,((VLOOKUP($D138,$C$5:$AA$496,16,)/VLOOKUP($D138,$C$5:$AA$496,4,))*$F138)) -> 0 | S138: =IF(VLOOKUP($D138,$C$5:$AA$496,17,)=0,0,((VLOOKUP($D138,$C$5:$AA$496,17,)/VLOOKUP($D138,$C$5:$AA$496,4,))*$F138)) -> 0 | U138: =IF(VLOOKUP($D138,$C$5:$AA$496,19,)=0,0,((VLOOKUP($D138,$C$5:$AA$496,19,)/VLOOKUP($D138,$C$5:$AA$496,4,))*$F138)) -> 0 | W138: =IF(VLOOKUP($D138,$C$5:$AA$496,21,)=0,0,((VLOOKUP($D138,$C$5:$AA$496,21,)/VLOOKUP($D138,$C$5:$AA$496,4,))*$F138)) -> 0 | Y138: =IF(VLOOKUP($D138,$C$5:$AA$496,23,)=0,0,((VLOOKUP($D138,$C$5:$AA$496,23,)/VLOOKUP($D138,$C$5:$AA$496,4,))*$F138)) -> 0 | AA138: =IF(VLOOKUP($D138,$C$5:$AA$496,25,)=0,0,((VLOOKUP($D138,$C$5:$AA$496,25,)/VLOOKUP($D138,$C$5:$AA$496,4,))*$F138)) -> 0 | AB138: =SUM(H138:AA138) -> 0 | AC138: =IF(ABS(AB138-F138)<1,"ok","err") -> ok
A139: 4 | C139: DCRED1 | D139: PDIST | F139: 0 | H139: =IF(VLOOKUP($D139,$C$5:$AA$496,6,)=0,0,((VLOOKUP($D139,$C$5:$AA$496,6,)/VLOOKUP($D139,$C$5:$AA$496,4,))*$F139)) -> 0 | I139: =IF(VLOOKUP($D139,$C$5:$AA$496,7,)=0,0,((VLOOKUP($D139,$C$5:$AA$496,7,)/VLOOKUP($D139,$C$5:$AA$496,4,))*$F139)) -> 0 | K139: =IF(VLOOKUP($D139,$C$5:$AA$496,9,)=0,0,((VLOOKUP($D139,$C$5:$AA$496,9,)/VLOOKUP($D139,$C$5:$AA$496,4,))*$F139)) -> 0 | M139: =IF(VLOOKUP($D139,$C$5:$AA$496,11,)=0,0,((VLOOKUP($D139,$C$5:$AA$496,11,)/VLOOKUP($D139,$C$5:$AA$496,4,))*$F139)) -> 0 | O139: =IF(VLOOKUP($D139,$C$5:$AA$496,13,)=0,0,((VLOOKUP($D139,$C$5:$AA$496,13,)/VLOOKUP($D139,$C$5:$AA$496,4,))*$F139)) -> 0 | P139: =IF(VLOOKUP($D139,$C$5:$AA$496,14,)=0,0,((VLOOKUP($D139,$C$5:$AA$496,14,)/VLOOKUP($D139,$C$5:$AA$496,4,))*$F139)) -> 0 | R139: =IF(VLOOKUP($D139,$C$5:$AA$496,16,)=0,0,((VLOOKUP($D139,$C$5:$AA$496,16,)/VLOOKUP($D139,$C$5:$AA$496,4,))*$F139)) -> 0 | S139: =IF(VLOOKUP($D139,$C$5:$AA$496,17,)=0,0,((VLOOKUP($D139,$C$5:$AA$496,17,)/VLOOKUP($D139,$C$5:$AA$496,4,))*$F139)) -> 0 | U139: =IF(VLOOKUP($D139,$C$5:$AA$496,19,)=0,0,((VLOOKUP($D139,$C$5:$AA$496,19,)/VLOOKUP($D139,$C$5:$AA$496,4,))*$F139)) -> 0 | W139: =IF(VLOOKUP($D139,$C$5:$AA$496,21,)=0,0,((VLOOKUP($D139,$C$5:$AA$496,21,)/VLOOKUP($D139,$C$5:$AA$496,4,))*$F139)) -> 0 | Y139: =IF(VLOOKUP($D139,$C$5:$AA$496,23,)=0,0,((VLOOKUP($D139,$C$5:$AA$496,23,)/VLOOKUP($D139,$C$5:$AA$496,4,))*$F139)) -> 0 | AA139: =IF(VLOOKUP($D139,$C$5:$AA$496,25,)=0,0,((VLOOKUP($D139,$C$5:$AA$496,25,)/VLOOKUP($D139,$C$5:$AA$496,4,))*$F139)) -> 0 | AB139: =SUM(H139:AA139) -> 0 | AC139: =IF(ABS(AB139-F139)<1,"ok","err") -> ok
A141: Total Deferred Debits & Credits | F141: 0 | G141: =SUM(G139:G139) -> 0 | H141: =SUM(H136:H139) -> 0 | I141: =SUM(I136:I139) -> 0 | K141: =SUM(K136:K139) -> 0 | M141: =SUM(M136:M139) -> 0 | O141: =SUM(O136:O139) -> 0 | P141: =SUM(P136:P139) -> 0 | R141: =SUM(R136:R139) -> 0 | S141: =SUM(S136:S139) -> 0 | U141: =SUM(U136:U139) -> 0 | W141: =SUM(W136:W139) -> 0 | Y141: =SUM(Y136:Y139) -> 0 | AA141: =SUM(AA136:AA139) -> 0 | AB141: =SUM(H141:AA141) -> 0 | AC141: =IF(ABS(AB141-F141)<1,"ok","err") -> ok
A142: Less: Customer Deposits | C142: CSTDEP | D142: TPIS | F142: 2789538.02 | H142: =IF(VLOOKUP($D142,$C$5:$AA$496,6,)=0,0,((VLOOKUP($D142,$C$5:$AA$496,6,)/VLOOKUP($D142,$C$5:$AA$496,4,))*$F142)) -> 0 | I142: =IF(VLOOKUP($D142,$C$5:$AA$496,7,)=0,0,((VLOOKUP($D142,$C$5:$AA$496,7,)/VLOOKUP($D142,$C$5:$AA$496,4,))*$F142)) -> 0 | K142: =IF(VLOOKUP($D142,$C$5:$AA$496,9,)=0,0,((VLOOKUP($D142,$C$5:$AA$496,9,)/VLOOKUP($D142,$C$5:$AA$496,4,))*$F142)) -> 0 | M142: =IF(VLOOKUP($D142,$C$5:$AA$496,11,)=0,0,((VLOOKUP($D142,$C$5:$AA$496,11,)/VLOOKUP($D142,$C$5:$AA$496,4,))*$F142)) -> 363009.0713 | O142: =IF(VLOOKUP($D142,$C$5:$AA$496,13,)=0,0,((VLOOKUP($D142,$C$5:$AA$496,13,)/VLOOKUP($D142,$C$5:$AA$496,4,))*$F142)) -> 699933.5713 | P142: =IF(VLOOKUP($D142,$C$5:$AA$496,14,)=0,0,((VLOOKUP($D142,$C$5:$AA$496,14,)/VLOOKUP($D142,$C$5:$AA$496,4,))*$F142)) -> 1319331.664 | R142: =IF(VLOOKUP($D142,$C$5:$AA$496,16,)=0,0,((VLOOKUP($D142,$C$5:$AA$496,16,)/VLOOKUP($D142,$C$5:$AA$496,4,))*$F142)) -> 0 | S142: =IF(VLOOKUP($D142,$C$5:$AA$496,17,)=0,0,((VLOOKUP($D142,$C$5:$AA$496,17,)/VLOOKUP($D142,$C$5:$AA$496,4,))*$F142)) -> 191435.5723 | U142: =IF(VLOOKUP($D142,$C$5:$AA$496,19,)=0,0,((VLOOKUP($D142,$C$5:$AA$496,19,)/VLOOKUP($D142,$C$5:$AA$496,4,))*$F142)) -> 157579.291 | W142: =IF(VLOOKUP($D142,$C$5:$AA$496,21,)=0,0,((VLOOKUP($D142,$C$5:$AA$496,21,)/VLOOKUP($D142,$C$5:$AA$496,4,))*$F142)) -> 58248.85002 | Y142: =IF(VLOOKUP($D142,$C$5:$AA$496,23,)=0,0,((VLOOKUP($D142,$C$5:$AA$496,23,)/VLOOKUP($D142,$C$5:$AA$496,4,))*$F142)) -> 0 | AA142: =IF(VLOOKUP($D142,$C$5:$AA$496,25,)=0,0,((VLOOKUP($D142,$C$5:$AA$496,25,)/VLOOKUP($D142,$C$5:$AA$496,4,))*$F142)) -> 0 | AB142: =SUM(H142:AA142) -> 2789538.02 | AC142: =IF(ABS(AB142-F142)<1,"ok","err") -> ok
A144: Net Rate Base | C144: RB | F144: =F126+F133-F142 -> 98260237.53 | H144: =H126+H133-H142 -> 0 | I144: =I126+I133-I142 -> 0 | K144: =K126+K133-K142 -> 0 | M144: =M126+M133-M142 -> 16799694.59 | O144: =O126+O133-O142 -> 23209747.06 | P144: =P126+P133-P142 -> 41307009.08 | R144: =R126+R133-R142 -> 0 | S144: =S126+S133-S142 -> 7350493.175 | U144: =U126+U133-U142 -> 8615410.346 | W144: =W126+W133-W142 -> 746409.5182 | Y144: =Y126+Y133-Y142 -> 231473.7568 | AA144: =AA126+AA133-AA142 -> 0 | AB144: =SUM(H144:AA144) -> 98260237.53 | AC144: =IF(ABS(AB144-F144)<1,"ok","err") -> ok
A146: Operation and Maintenance Expenses
A148: Steam Power Production Operations Expense
A149: 500 | B149: OPERATION SUPV AND ENGINEERING | C149: OM500 | D149: PPROD | F149: 0 | H149: =IF(VLOOKUP($D149,$C$5:$AA$496,6,)=0,0,((VLOOKUP($D149,$C$5:$AA$496,6,)/VLOOKUP($D149,$C$5:$AA$496,4,))*$F149)) -> 0 | I149: =IF(VLOOKUP($D149,$C$5:$AA$496,7,)=0,0,((VLOOKUP($D149,$C$5:$AA$496,7,)/VLOOKUP($D149,$C$5:$AA$496,4,))*$F149)) -> 0 | K149: =IF(VLOOKUP($D149,$C$5:$AA$496,9,)=0,0,((VLOOKUP($D149,$C$5:$AA$496,9,)/VLOOKUP($D149,$C$5:$AA$496,4,))*$F149)) -> 0 | M149: =IF(VLOOKUP($D149,$C$5:$AA$496,11,)=0,0,((VLOOKUP($D149,$C$5:$AA$496,11,)/VLOOKUP($D149,$C$5:$AA$496,4,))*$F149)) -> 0 | O149: =IF(VLOOKUP($D149,$C$5:$AA$496,13,)=0,0,((VLOOKUP($D149,$C$5:$AA$496,13,)/VLOOKUP($D149,$C$5:$AA$496,4,))*$F149)) -> 0 | P149: =IF(VLOOKUP($D149,$C$5:$AA$496,14,)=0,0,((VLOOKUP($D149,$C$5:$AA$496,14,)/VLOOKUP($D149,$C$5:$AA$496,4,))*$F149)) -> 0 | R149: =IF(VLOOKUP($D149,$C$5:$AA$496,16,)=0,0,((VLOOKUP($D149,$C$5:$AA$496,16,)/VLOOKUP($D149,$C$5:$AA$496,4,))*$F149)) -> 0 | S149: =IF(VLOOKUP($D149,$C$5:$AA$496,17,)=0,0,((VLOOKUP($D149,$C$5:$AA$496,17,)/VLOOKUP($D149,$C$5:$AA$496,4,))*$F149)) -> 0 | U149: =IF(VLOOKUP($D149,$C$5:$AA$496,19,)=0,0,((VLOOKUP($D149,$C$5:$AA$496,19,)/VLOOKUP($D149,$C$5:$AA$496,4,))*$F149)) -> 0 | W149: =IF(VLOOKUP($D149,$C$5:$AA$496,21,)=0,0,((VLOOKUP($D149,$C$5:$AA$496,21,)/VLOOKUP($D149,$C$5:$AA$496,4,))*$F149)) -> 0 | Y149: =IF(VLOOKUP($D149,$C$5:$AA$496,23,)=0,0,((VLOOKUP($D149,$C$5:$AA$496,23,)/VLOOKUP($D149,$C$5:$AA$496,4,))*$F149)) -> 0 | AA149: =IF(VLOOKUP($D149,$C$5:$AA$496,25,)=0,0,((VLOOKUP($D149,$C$5:$AA$496,25,)/VLOOKUP($D149,$C$5:$AA$496,4,))*$F149)) -> 0 | AB149: =SUM(H149:AA149) -> 0 | AC149: =IF(ABS(AB149-F149)<1,"ok","err") -> ok
A150: 501 | B150: FUEL | C150: OM501 | D150: F017 | F150: 0 | H150: 0 | I150: 0 | K150: 0 | M150: 0 | O150: 0 | P150: 0 | R150: 0 | S150: 0 | U150: 0 | W150: 0 | Y150: 0 | AA150: 0 | AB150: 0 | AC150: ok
A151: 502 | B151: STEAM EXPENSES | C151: OM502 | D151: F016 | F151: 0 | H151: 0 | I151: 0 | K151: 0 | M151: 0 | O151: 0 | P151: 0 | R151: 0 | S151: 0 | U151: 0 | W151: 0 | Y151: 0 | AA151: 0 | AB151: 0 | AC151: ok
A152: 503 | B152: STEAM FROM OTHER SOURCES | C152: OM503 | D152: F016 | F152: 0 | H152: 0 | I152: 0 | K152: 0 | M152: 0 | O152: 0 | P152: 0 | R152: 0 | S152: 0 | U152: 0 | W152: 0 | Y152: 0 | AA152: 0 | AB152: 0 | AC152: ok
A153: 504 | B153: STEAM TRANSFERRED - CREDIT | C153: OM504 | D153: F016 | F153: 0 | H153: 0 | I153: 0 | K153: 0 | M153: 0 | O153: 0 | P153: 0 | R153: 0 | S153: 0 | U153: 0 | W153: 0 | Y153: 0 | AA153: 0 | AB153: 0 | AC153: ok
A154: 505 | B154: ELECTRIC EXPENSES | C154: OM505 | D154: F016 | F154: 0 | H154: 0 | I154: 0 | K154: 0 | M154: 0 | O154: 0 | P154: 0 | R154: 0 | S154: 0 | U154: 0 | W154: 0 | Y154: 0 | AA154: 0 | AB154: 0 | AC154: ok
A155: 506 | B155: MISC STEAM POWER EXPENSES | C155: OM506 | D155: F016 | F155: 0 | H155: 0 | I155: 0 | K155: 0 | M155: 0 | O155: 0 | P155: 0 | R155: 0 | S155: 0 | U155: 0 | W155: 0 | Y155: 0 | AA155: 0 | AB155: 0 | AC155: ok
A156: 507 | B156: RENTS | C156: OM507 | D156: F016 | F156: 0 | H156: 0 | I156: 0 | K156: 0 | M156: 0 | O156: 0 | P156: 0 | R156: 0 | S156: 0 | U156: 0 | W156: 0 | Y156: 0 | AA156: 0 | AB156: 0 | AC156: ok
A157: 509 | B157: ALLOWANCES | C157: OM509 | D157: F017 | F157: 0 | H157: 0 | I157: 0 | K157: 0 | M157: 0 | O157: 0 | P157: 0 | R157: 0 | S157: 0 | U157: 0 | W157: 0 | Y157: 0 | AA157: 0 | AB157: 0 | AC157: ok
A159: Total Steam Production Operation Expense | C159: OMPO | F159: =SUM(F149:F158) -> 0 | H159: =SUM(H149:H158) -> 0 | I159: =SUM(I149:I158) -> 0 | K159: =SUM(K149:K158) -> 0 | M159: =SUM(M149:M158) -> 0 | O159: =SUM(O149:O158) -> 0 | P159: =SUM(P149:P158) -> 0 | R159: =SUM(R149:R158) -> 0 | S159: =SUM(S149:S158) -> 0 | U159: =SUM(U149:U158) -> 0 | W159: =SUM(W149:W158) -> 0 | Y159: =SUM(Y149:Y158) -> 0 | AA159: =SUM(AA149:AA158) -> 0 | AB159: =SUM(H159:AA159) -> 0 | AC159: =IF(ABS(AB159-F159)<1,"ok","err") -> ok
A161: Steam Power Production Maintenance Expense
A162: 510 | B162: MAINENANCE SUPV AND ENGINEERING | C162: OM510 | D162: F017 | F162: 0 | H162: =IF(VLOOKUP($D162,$C$5:$AA$496,6,)=0,0,((VLOOKUP($D162,$C$5:$AA$496,6,)/VLOOKUP($D162,$C$5:$AA$496,4,))*$F162)) -> 0 | I162: =IF(VLOOKUP($D162,$C$5:$AA$496,7,)=0,0,((VLOOKUP($D162,$C$5:$AA$496,7,)/VLOOKUP($D162,$C$5:$AA$496,4,))*$F162)) -> 0 | K162: =IF(VLOOKUP($D162,$C$5:$AA$496,9,)=0,0,((VLOOKUP($D162,$C$5:$AA$496,9,)/VLOOKUP($D162,$C$5:$AA$496,4,))*$F162)) -> 0 | M162: =IF(VLOOKUP($D162,$C$5:$AA$496,11,)=0,0,((VLOOKUP($D162,$C$5:$AA$496,11,)/VLOOKUP($D162,$C$5:$AA$496,4,))*$F162)) -> 0 | O162: =IF(VLOOKUP($D162,$C$5:$AA$496,13,)=0,0,((VLOOKUP($D162,$C$5:$AA$496,13,)/VLOOKUP($D162,$C$5:$AA$496,4,))*$F162)) -> 0 | P162: =IF(VLOOKUP($D162,$C$5:$AA$496,14,)=0,0,((VLOOKUP($D162,$C$5:$AA$496,14,)/VLOOKUP($D162,$C$5:$AA$496,4,))*$F162)) -> 0 | R162: =IF(VLOOKUP($D162,$C$5:$AA$496,16,)=0,0,((VLOOKUP($D162,$C$5:$AA$496,16,)/VLOOKUP($D162,$C$5:$AA$496,4,))*$F162)) -> 0 | S162: =IF(VLOOKUP($D162,$C$5:$AA$496,17,)=0,0,((VLOOKUP($D162,$C$5:$AA$496,17,)/VLOOKUP($D162,$C$5:$AA$496,4,))*$F162)) -> 0 | U162: =IF(VLOOKUP($D162,$C$5:$AA$496,19,)=0,0,((VLOOKUP($D162,$C$5:$AA$496,19,)/VLOOKUP($D162,$C$5:$AA$496,4,))*$F162)) -> 0 | W162: =IF(VLOOKUP($D162,$C$5:$AA$496,21,)=0,0,((VLOOKUP($D162,$C$5:$AA$496,21,)/VLOOKUP($D162,$C$5:$AA$496,4,))*$F162)) -> 0 | Y162: =IF(VLOOKUP($D162,$C$5:$AA$496,23,)=0,0,((VLOOKUP($D162,$C$5:$AA$496,23,)/VLOOKUP($D162,$C$5:$AA$496,4,))*$F162)) -> 0 | AA162: =IF(VLOOKUP($D162,$C$5:$AA$496,25,)=0,0,((VLOOKUP($D162,$C$5:$AA$496,25,)/VLOOKUP($D162,$C$5:$AA$496,4,))*$F162)) -> 0 | AB162: =SUM(H162:AA162) -> 0 | AC162: =IF(ABS(AB162-F162)<1,"ok","err") -> ok
A163: 511 | B163: MAINTENANCE OF STRUCTURES | C163: OM511 | D163: F016 | F163: 0 | H163: =IF(VLOOKUP($D163,$C$5:$AA$496,6,)=0,0,((VLOOKUP($D163,$C$5:$AA$496,6,)/VLOOKUP($D163,$C$5:$AA$496,4,))*$F163)) -> 0 | I163: =IF(VLOOKUP($D163,$C$5:$AA$496,7,)=0,0,((VLOOKUP($D163,$C$5:$AA$496,7,)/VLOOKUP($D163,$C$5:$AA$496,4,))*$F163)) -> 0 | K163: =IF(VLOOKUP($D163,$C$5:$AA$496,9,)=0,0,((VLOOKUP($D163,$C$5:$AA$496,9,)/VLOOKUP($D163,$C$5:$AA$496,4,))*$F163)) -> 0 | M163: =IF(VLOOKUP($D163,$C$5:$AA$496,11,)=0,0,((VLOOKUP($D163,$C$5:$AA$496,11,)/VLOOKUP($D163,$C$5:$AA$496,4,))*$F163)) -> 0 | O163: =IF(VLOOKUP($D163,$C$5:$AA$496,13,)=0,0,((VLOOKUP($D163,$C$5:$AA$496,13,)/VLOOKUP($D163,$C$5:$AA$496,4,))*$F163)) -> 0 | P163: =IF(VLOOKUP($D163,$C$5:$AA$496,14,)=0,0,((VLOOKUP($D163,$C$5:$AA$496,14,)/VLOOKUP($D163,$C$5:$AA$496,4,))*$F163)) -> 0 | R163: =IF(VLOOKUP($D163,$C$5:$AA$496,16,)=0,0,((VLOOKUP($D163,$C$5:$AA$496,16,)/VLOOKUP($D163,$C$5:$AA$496,4,))*$F163)) -> 0 | S163: =IF(VLOOKUP($D163,$C$5:$AA$496,17,)=0,0,((VLOOKUP($D163,$C$5:$AA$496,17,)/VLOOKUP($D163,$C$5:$AA$496,4,))*$F163)) -> 0 | U163: =IF(VLOOKUP($D163,$C$5:$AA$496,19,)=0,0,((VLOOKUP($D163,$C$5:$AA$496,19,)/VLOOKUP($D163,$C$5:$AA$496,4,))*$F163)) -> 0 | W163: =IF(VLOOKUP($D163,$C$5:$AA$496,21,)=0,0,((VLOOKUP($D163,$C$5:$AA$496,21,)/VLOOKUP($D163,$C$5:$AA$496,4,))*$F163)) -> 0 | Y163: =IF(VLOOKUP($D163,$C$5:$AA$496,23,)=0,0,((VLOOKUP($D163,$C$5:$AA$496,23,)/VLOOKUP($D163,$C$5:$AA$496,4,))*$F163)) -> 0 | AA163: =IF(VLOOKUP($D163,$C$5:$AA$496,25,)=0,0,((VLOOKUP($D163,$C$5:$AA$496,25,)/VLOOKUP($D163,$C$5:$AA$496,4,))*$F163)) -> 0 | AB163: =SUM(H163:AA163) -> 0 | AC163: =IF(ABS(AB163-F163)<1,"ok","err") -> ok
A164: 512 | B164: MAINTENANCE OF BOILER PLANT | C164: OM512 | D164: F017 | F164: 0 | H164: =IF(VLOOKUP($D164,$C$5:$AA$496,6,)=0,0,((VLOOKUP($D164,$C$5:$AA$496,6,)/VLOOKUP($D164,$C$5:$AA$496,4,))*$F164)) -> 0 | I164: =IF(VLOOKUP($D164,$C$5:$AA$496,7,)=0,0,((VLOOKUP($D164,$C$5:$AA$496,7,)/VLOOKUP($D164,$C$5:$AA$496,4,))*$F164)) -> 0 | K164: =IF(VLOOKUP($D164,$C$5:$AA$496,9,)=0,0,((VLOOKUP($D164,$C$5:$AA$496,9,)/VLOOKUP($D164,$C$5:$AA$496,4,))*$F164)) -> 0 | M164: =IF(VLOOKUP($D164,$C$5:$AA$496,11,)=0,0,((VLOOKUP($D164,$C$5:$AA$496,11,)/VLOOKUP($D164,$C$5:$AA$496,4,))*$F164)) -> 0 | O164: =IF(VLOOKUP($D164,$C$5:$AA$496,13,)=0,0,((VLOOKUP($D164,$C$5:$AA$496,13,)/VLOOKUP($D164,$C$5:$AA$496,4,))*$F164)) -> 0 | P164: =IF(VLOOKUP($D164,$C$5:$AA$496,14,)=0,0,((VLOOKUP($D164,$C$5:$AA$496,14,)/VLOOKUP($D164,$C$5:$AA$496,4,))*$F164)) -> 0 | R164: =IF(VLOOKUP($D164,$C$5:$AA$496,16,)=0,0,((VLOOKUP($D164,$C$5:$AA$496,16,)/VLOOKUP($D164,$C$5:$AA$496,4,))*$F164)) -> 0 | S164: =IF(VLOOKUP($D164,$C$5:$AA$496,17,)=0,0,((VLOOKUP($D164,$C$5:$AA$496,17,)/VLOOKUP($D164,$C$5:$AA$496,4,))*$F164)) -> 0 | U164: =IF(VLOOKUP($D164,$C$5:$AA$496,19,)=0,0,((VLOOKUP($D164,$C$5:$AA$496,19,)/VLOOKUP($D164,$C$5:$AA$496,4,))*$F164)) -> 0 | W164: =IF(VLOOKUP($D164,$C$5:$AA$496,21,)=0,0,((VLOOKUP($D164,$C$5:$AA$496,21,)/VLOOKUP($D164,$C$5:$AA$496,4,))*$F164)) -> 0 | Y164: =IF(VLOOKUP($D164,$C$5:$AA$496,23,)=0,0,((VLOOKUP($D164,$C$5:$AA$496,23,)/VLOOKUP($D164,$C$5:$AA$496,4,))*$F164)) -> 0 | AA164: =IF(VLOOKUP($D164,$C$5:$AA$496,25,)=0,0,((VLOOKUP($D164,$C$5:$AA$496,25,)/VLOOKUP($D164,$C$5:$AA$496,4,))*$F164)) -> 0 | AB164: =SUM(H164:AA164) -> 0 | AC164: =IF(ABS(AB164-F164)<1,"ok","err") -> ok
A165: 513 | B165: MAINTENANCE OF ELECTRIC PLANT | C165: OM513 | D165: F017 | F165: 0 | H165: =IF(VLOOKUP($D165,$C$5:$AA$496,6,)=0,0,((VLOOKUP($D165,$C$5:$AA$496,6,)/VLOOKUP($D165,$C$5:$AA$496,4,))*$F165)) -> 0 | I165: =IF(VLOOKUP($D165,$C$5:$AA$496,7,)=0,0,((VLOOKUP($D165,$C$5:$AA$496,7,)/VLOOKUP($D165,$C$5:$AA$496,4,))*$F165)) -> 0 | K165: =IF(VLOOKUP($D165,$C$5:$AA$496,9,)=0,0,((VLOOKUP($D165,$C$5:$AA$496,9,)/VLOOKUP($D165,$C$5:$AA$496,4,))*$F165)) -> 0 | M165: =IF(VLOOKUP($D165,$C$5:$AA$496,11,)=0,0,((VLOOKUP($D165,$C$5:$AA$496,11,)/VLOOKUP($D165,$C$5:$AA$496,4,))*$F165)) -> 0 | O165: =IF(VLOOKUP($D165,$C$5:$AA$496,13,)=0,0,((VLOOKUP($D165,$C$5:$AA$496,13,)/VLOOKUP($D165,$C$5:$AA$496,4,))*$F165)) -> 0 | P165: =IF(VLOOKUP($D165,$C$5:$AA$496,14,)=0,0,((VLOOKUP($D165,$C$5:$AA$496,14,)/VLOOKUP($D165,$C$5:$AA$496,4,))*$F165)) -> 0 | R165: =IF(VLOOKUP($D165,$C$5:$AA$496,16,)=0,0,((VLOOKUP($D165,$C$5:$AA$496,16,)/VLOOKUP($D165,$C$5:$AA$496,4,))*$F165)) -> 0 | S165: =IF(VLOOKUP($D165,$C$5:$AA$496,17,)=0,0,((VLOOKUP($D165,$C$5:$AA$496,17,)/VLOOKUP($D165,$C$5:$AA$496,4,))*$F165)) -> 0 | U165: =IF(VLOOKUP($D165,$C$5:$AA$496,19,)=0,0,((VLOOKUP($D165,$C$5:$AA$496,19,)/VLOOKUP($D165,$C$5:$AA$496,4,))*$F165)) -> 0 | W165: =IF(VLOOKUP($D165,$C$5:$AA$496,21,)=0,0,((VLOOKUP($D165,$C$5:$AA$496,21,)/VLOOKUP($D165,$C$5:$AA$496,4,))*$F165)) -> 0 | Y165: =IF(VLOOKUP($D165,$C$5:$AA$496,23,)=0,0,((VLOOKUP($D165,$C$5:$AA$496,23,)/VLOOKUP($D165,$C$5:$AA$496,4,))*$F165)) -> 0 | AA165: =IF(VLOOKUP($D165,$C$5:$AA$496,25,)=0,0,((VLOOKUP($D165,$C$5:$AA$496,25,)/VLOOKUP($D165,$C$5:$AA$496,4,))*$F165)) -> 0 | AB165: =SUM(H165:AA165) -> 0 | AC165: =IF(ABS(AB165-F165)<1,"ok","err") -> ok
A166: 514 | B166: MAINTENANCE OF MISC STEAM PLANT | C166: OM514 | D166: F016 | F166: 0 | H166: =IF(VLOOKUP($D166,$C$5:$AA$496,6,)=0,0,((VLOOKUP($D166,$C$5:$AA$496,6,)/VLOOKUP($D166,$C$5:$AA$496,4,))*$F166)) -> 0 | I166: =IF(VLOOKUP($D166,$C$5:$AA$496,7,)=0,0,((VLOOKUP($D166,$C$5:$AA$496,7,)/VLOOKUP($D166,$C$5:$AA$496,4,))*$F166)) -> 0 | K166: =IF(VLOOKUP($D166,$C$5:$AA$496,9,)=0,0,((VLOOKUP($D166,$C$5:$AA$496,9,)/VLOOKUP($D166,$C$5:$AA$496,4,))*$F166)) -> 0 | M166: =IF(VLOOKUP($D166,$C$5:$AA$496,11,)=0,0,((VLOOKUP($D166,$C$5:$AA$496,11,)/VLOOKUP($D166,$C$5:$AA$496,4,))*$F166)) -> 0 | O166: =IF(VLOOKUP($D166,$C$5:$AA$496,13,)=0,0,((VLOOKUP($D166,$C$5:$AA$496,13,)/VLOOKUP($D166,$C$5:$AA$496,4,))*$F166)) -> 0 | P166: =IF(VLOOKUP($D166,$C$5:$AA$496,14,)=0,0,((VLOOKUP($D166,$C$5:$AA$496,14,)/VLOOKUP($D166,$C$5:$AA$496,4,))*$F166)) -> 0 | R166: =IF(VLOOKUP($D166,$C$5:$AA$496,16,)=0,0,((VLOOKUP($D166,$C$5:$AA$496,16,)/VLOOKUP($D166,$C$5:$AA$496,4,))*$F166)) -> 0 | S166: =IF(VLOOKUP($D166,$C$5:$AA$496,17,)=0,0,((VLOOKUP($D166,$C$5:$AA$496,17,)/VLOOKUP($D166,$C$5:$AA$496,4,))*$F166)) -> 0 | U166: =IF(VLOOKUP($D166,$C$5:$AA$496,19,)=0,0,((VLOOKUP($D166,$C$5:$AA$496,19,)/VLOOKUP($D166,$C$5:$AA$496,4,))*$F166)) -> 0 | W166: =IF(VLOOKUP($D166,$C$5:$AA$496,21,)=0,0,((VLOOKUP($D166,$C$5:$AA$496,21,)/VLOOKUP($D166,$C$5:$AA$496,4,))*$F166)) -> 0 | Y166: =IF(VLOOKUP($D166,$C$5:$AA$496,23,)=0,0,((VLOOKUP($D166,$C$5:$AA$496,23,)/VLOOKUP($D166,$C$5:$AA$496,4,))*$F166)) -> 0 | AA166: =IF(VLOOKUP($D166,$C$5:$AA$496,25,)=0,0,((VLOOKUP($D166,$C$5:$AA$496,25,)/VLOOKUP($D166,$C$5:$AA$496,4,))*$F166)) -> 0 | AB166: =SUM(H166:AA166) -> 0 | AC166: =IF(ABS(AB166-F166)<1,"ok","err") -> ok
A168: Total Steam Production Maintenance Expense | C168: OMPM | F168: =SUM(F162:F167) -> 0 | H168: =SUM(H162:H167) -> 0 | I168: =SUM(I162:I167) -> 0 | K168: =SUM(K162:K167) -> 0 | M168: =SUM(M162:M167) -> 0 | O168: =SUM(O162:O167) -> 0 | P168: =SUM(P162:P167) -> 0 | R168: =SUM(R162:R167) -> 0 | S168: =SUM(S162:S167) -> 0 | U168: =SUM(U162:U167) -> 0 | W168: =SUM(W162:W167) -> 0 | Y168: =SUM(Y162:Y167) -> 0 | AA168: =SUM(AA162:AA167) -> 0 | AB168: =SUM(H168:AA168) -> 0 | AC168: =IF(ABS(AB168-F168)<1,"ok","err") -> ok
A170: Total Steam Production Operation and Maintenance Expenses | C170: OMP | F170: =F159+F168 -> 0 | H170: =H159+H168 -> 0 | I170: =I159+I168 -> 0 | K170: =K159+K168 -> 0 | M170: =M159+M168 -> 0 | O170: =O159+O168 -> 0 | P170: =P159+P168 -> 0 | R170: =R159+R168 -> 0 | S170: =S159+S168 -> 0 | U170: =U159+U168 -> 0 | W170: =W159+W168 -> 0 | Y170: =Y159+Y168 -> 0 | AA170: =AA159+AA168 -> 0 | AB170: =SUM(H170:AA170) -> 0 | AC170: =IF(ABS(AB170-F170)<1,"ok","err") -> ok
A172: Operation and Maintenance Expenses (Continued)
A174: Purchased Power
A175: 555 | B175: PURCHASED POWER | C175: OM555 | D175: OMPP | F175: 50688769.06 | H175: =IF(VLOOKUP($D175,$C$5:$AA$496,6,)=0,0,((VLOOKUP($D175,$C$5:$AA$496,6,)/VLOOKUP($D175,$C$5:$AA$496,4,))*$F175)) -> 16693796 | I175: =IF(VLOOKUP($D175,$C$5:$AA$496,7,)=0,0,((VLOOKUP($D175,$C$5:$AA$496,7,)/VLOOKUP($D175,$C$5:$AA$496,4,))*$F175)) -> 33994973.06 | K175: =IF(VLOOKUP($D175,$C$5:$AA$496,9,)=0,0,((VLOOKUP($D175,$C$5:$AA$496,9,)/VLOOKUP($D175,$C$5:$AA$496,4,))*$F175)) -> 0 | M175: =IF(VLOOKUP($D175,$C$5:$AA$496,11,)=0,0,((VLOOKUP($D175,$C$5:$AA$496,11,)/VLOOKUP($D175,$C$5:$AA$496,4,))*$F175)) -> 0 | O175: =IF(VLOOKUP($D175,$C$5:$AA$496,13,)=0,0,((VLOOKUP($D175,$C$5:$AA$496,13,)/VLOOKUP($D175,$C$5:$AA$496,4,))*$F175)) -> 0 | P175: =IF(VLOOKUP($D175,$C$5:$AA$496,14,)=0,0,((VLOOKUP($D175,$C$5:$AA$496,14,)/VLOOKUP($D175,$C$5:$AA$496,4,))*$F175)) -> 0 | R175: =IF(VLOOKUP($D175,$C$5:$AA$496,16,)=0,0,((VLOOKUP($D175,$C$5:$AA$496,16,)/VLOOKUP($D175,$C$5:$AA$496,4,))*$F175)) -> 0 | S175: =IF(VLOOKUP($D175,$C$5:$AA$496,17,)=0,0,((VLOOKUP($D175,$C$5:$AA$496,17,)/VLOOKUP($D175,$C$5:$AA$496,4,))*$F175)) -> 0 | U175: =IF(VLOOKUP($D175,$C$5:$AA$496,19,)=0,0,((VLOOKUP($D175,$C$5:$AA$496,19,)/VLOOKUP($D175,$C$5:$AA$496,4,))*$F175)) -> 0 | W175: =IF(VLOOKUP($D175,$C$5:$AA$496,21,)=0,0,((VLOOKUP($D175,$C$5:$AA$496,21,)/VLOOKUP($D175,$C$5:$AA$496,4,))*$F175)) -> 0 | Y175: =IF(VLOOKUP($D175,$C$5:$AA$496,23,)=0,0,((VLOOKUP($D175,$C$5:$AA$496,23,)/VLOOKUP($D175,$C$5:$AA$496,4,))*$F175)) -> 0 | AA175: =IF(VLOOKUP($D175,$C$5:$AA$496,25,)=0,0,((VLOOKUP($D175,$C$5:$AA$496,25,)/VLOOKUP($D175,$C$5:$AA$496,4,))*$F175)) -> 0 | AB175: =SUM(H175:AA175) -> 50688769.06 | AC175: =IF(ABS(AB175-F175)<1,"ok","err") -> ok
A176: 556 | B176: SYSTEM CONTROL & LOAD DISPATCHING | C176: OM556 | D176: OMPP | F176: 0 | H176: =IF(VLOOKUP($D176,$C$5:$AA$496,6,)=0,0,((VLOOKUP($D176,$C$5:$AA$496,6,)/VLOOKUP($D176,$C$5:$AA$496,4,))*$F176)) -> 0 | I176: =IF(VLOOKUP($D176,$C$5:$AA$496,7,)=0,0,((VLOOKUP($D176,$C$5:$AA$496,7,)/VLOOKUP($D176,$C$5:$AA$496,4,))*$F176)) -> 0 | K176: =IF(VLOOKUP($D176,$C$5:$AA$496,9,)=0,0,((VLOOKUP($D176,$C$5:$AA$496,9,)/VLOOKUP($D176,$C$5:$AA$496,4,))*$F176)) -> 0 | M176: =IF(VLOOKUP($D176,$C$5:$AA$496,11,)=0,0,((VLOOKUP($D176,$C$5:$AA$496,11,)/VLOOKUP($D176,$C$5:$AA$496,4,))*$F176)) -> 0 | O176: =IF(VLOOKUP($D176,$C$5:$AA$496,13,)=0,0,((VLOOKUP($D176,$C$5:$AA$496,13,)/VLOOKUP($D176,$C$5:$AA$496,4,))*$F176)) -> 0 | P176: =IF(VLOOKUP($D176,$C$5:$AA$496,14,)=0,0,((VLOOKUP($D176,$C$5:$AA$496,14,)/VLOOKUP($D176,$C$5:$AA$496,4,))*$F176)) -> 0 | R176: =IF(VLOOKUP($D176,$C$5:$AA$496,16,)=0,0,((VLOOKUP($D176,$C$5:$AA$496,16,)/VLOOKUP($D176,$C$5:$AA$496,4,))*$F176)) -> 0 | S176: =IF(VLOOKUP($D176,$C$5:$AA$496,17,)=0,0,((VLOOKUP($D176,$C$5:$AA$496,17,)/VLOOKUP($D176,$C$5:$AA$496,4,))*$F176)) -> 0 | U176: =IF(VLOOKUP($D176,$C$5:$AA$496,19,)=0,0,((VLOOKUP($D176,$C$5:$AA$496,19,)/VLOOKUP($D176,$C$5:$AA$496,4,))*$F176)) -> 0 | W176: =IF(VLOOKUP($D176,$C$5:$AA$496,21,)=0,0,((VLOOKUP($D176,$C$5:$AA$496,21,)/VLOOKUP($D176,$C$5:$AA$496,4,))*$F176)) -> 0 | Y176: =IF(VLOOKUP($D176,$C$5:$AA$496,23,)=0,0,((VLOOKUP($D176,$C$5:$AA$496,23,)/VLOOKUP($D176,$C$5:$AA$496,4,))*$F176)) -> 0 | AA176: =IF(VLOOKUP($D176,$C$5:$AA$496,25,)=0,0,((VLOOKUP($D176,$C$5:$AA$496,25,)/VLOOKUP($D176,$C$5:$AA$496,4,))*$F176)) -> 0 | AB176: =SUM(H176:AA176) -> 0 | AC176: =IF(ABS(AB176-F176)<1,"ok","err") -> ok
A177: 557 | B177: OTHER EXPENSES | C177: OM557 | D177: OMPP | F177: 0 | H177: =IF(VLOOKUP($D177,$C$5:$AA$496,6,)=0,0,((VLOOKUP($D177,$C$5:$AA$496,6,)/VLOOKUP($D177,$C$5:$AA$496,4,))*$F177)) -> 0 | I177: =IF(VLOOKUP($D177,$C$5:$AA$496,7,)=0,0,((VLOOKUP($D177,$C$5:$AA$496,7,)/VLOOKUP($D177,$C$5:$AA$496,4,))*$F177)) -> 0 | K177: =IF(VLOOKUP($D177,$C$5:$AA$496,9,)=0,0,((VLOOKUP($D177,$C$5:$AA$496,9,)/VLOOKUP($D177,$C$5:$AA$496,4,))*$F177)) -> 0 | M177: =IF(VLOOKUP($D177,$C$5:$AA$496,11,)=0,0,((VLOOKUP($D177,$C$5:$AA$496,11,)/VLOOKUP($D177,$C$5:$AA$496,4,))*$F177)) -> 0 | O177: =IF(VLOOKUP($D177,$C$5:$AA$496,13,)=0,0,((VLOOKUP($D177,$C$5:$AA$496,13,)/VLOOKUP($D177,$C$5:$AA$496,4,))*$F177)) -> 0 | P177: =IF(VLOOKUP($D177,$C$5:$AA$496,14,)=0,0,((VLOOKUP($D177,$C$5:$AA$496,14,)/VLOOKUP($D177,$C$5:$AA$496,4,))*$F177)) -> 0 | R177: =IF(VLOOKUP($D177,$C$5:$AA$496,16,)=0,0,((VLOOKUP($D177,$C$5:$AA$496,16,)/VLOOKUP($D177,$C$5:$AA$496,4,))*$F177)) -> 0 | S177: =IF(VLOOKUP($D177,$C$5:$AA$496,17,)=0,0,((VLOOKUP($D177,$C$5:$AA$496,17,)/VLOOKUP($D177,$C$5:$AA$496,4,))*$F177)) -> 0 | U177: =IF(VLOOKUP($D177,$C$5:$AA$496,19,)=0,0,((VLOOKUP($D177,$C$5:$AA$496,19,)/VLOOKUP($D177,$C$5:$AA$496,4,))*$F177)) -> 0 | W177: =IF(VLOOKUP($D177,$C$5:$AA$496,21,)=0,0,((VLOOKUP($D177,$C$5:$AA$496,21,)/VLOOKUP($D177,$C$5:$AA$496,4,))*$F177)) -> 0 | Y177: =IF(VLOOKUP($D177,$C$5:$AA$496,23,)=0,0,((VLOOKUP($D177,$C$5:$AA$496,23,)/VLOOKUP($D177,$C$5:$AA$496,4,))*$F177)) -> 0 | AA177: =IF(VLOOKUP($D177,$C$5:$AA$496,25,)=0,0,((VLOOKUP($D177,$C$5:$AA$496,25,)/VLOOKUP($D177,$C$5:$AA$496,4,))*$F177)) -> 0 | AB177: =SUM(H177:AA177) -> 0 | AC177: =IF(ABS(AB177-F177)<1,"ok","err") -> ok
A178: 559 | B178: RENEWABLE ENERGY CR EXP | C178: OM559 | D178: OMPP | F178: 0 | H178: =IF(VLOOKUP($D178,$C$5:$AA$496,6,)=0,0,((VLOOKUP($D178,$C$5:$AA$496,6,)/VLOOKUP($D178,$C$5:$AA$496,4,))*$F178)) -> 0 | I178: =IF(VLOOKUP($D178,$C$5:$AA$496,7,)=0,0,((VLOOKUP($D178,$C$5:$AA$496,7,)/VLOOKUP($D178,$C$5:$AA$496,4,))*$F178)) -> 0 | K178: =IF(VLOOKUP($D178,$C$5:$AA$496,9,)=0,0,((VLOOKUP($D178,$C$5:$AA$496,9,)/VLOOKUP($D178,$C$5:$AA$496,4,))*$F178)) -> 0 | M178: =IF(VLOOKUP($D178,$C$5:$AA$496,11,)=0,0,((VLOOKUP($D178,$C$5:$AA$496,11,)/VLOOKUP($D178,$C$5:$AA$496,4,))*$F178)) -> 0 | O178: =IF(VLOOKUP($D178,$C$5:$AA$496,13,)=0,0,((VLOOKUP($D178,$C$5:$AA$496,13,)/VLOOKUP($D178,$C$5:$AA$496,4,))*$F178)) -> 0 | P178: =IF(VLOOKUP($D178,$C$5:$AA$496,14,)=0,0,((VLOOKUP($D178,$C$5:$AA$496,14,)/VLOOKUP($D178,$C$5:$AA$496,4,))*$F178)) -> 0 | R178: =IF(VLOOKUP($D178,$C$5:$AA$496,16,)=0,0,((VLOOKUP($D178,$C$5:$AA$496,16,)/VLOOKUP($D178,$C$5:$AA$496,4,))*$F178)) -> 0 | S178: =IF(VLOOKUP($D178,$C$5:$AA$496,17,)=0,0,((VLOOKUP($D178,$C$5:$AA$496,17,)/VLOOKUP($D178,$C$5:$AA$496,4,))*$F178)) -> 0 | U178: =IF(VLOOKUP($D178,$C$5:$AA$496,19,)=0,0,((VLOOKUP($D178,$C$5:$AA$496,19,)/VLOOKUP($D178,$C$5:$AA$496,4,))*$F178)) -> 0 | W178: =IF(VLOOKUP($D178,$C$5:$AA$496,21,)=0,0,((VLOOKUP($D178,$C$5:$AA$496,21,)/VLOOKUP($D178,$C$5:$AA$496,4,))*$F178)) -> 0 | Y178: =IF(VLOOKUP($D178,$C$5:$AA$496,23,)=0,0,((VLOOKUP($D178,$C$5:$AA$496,23,)/VLOOKUP($D178,$C$5:$AA$496,4,))*$F178)) -> 0 | AA178: =IF(VLOOKUP($D178,$C$5:$AA$496,25,)=0,0,((VLOOKUP($D178,$C$5:$AA$496,25,)/VLOOKUP($D178,$C$5:$AA$496,4,))*$F178)) -> 0 | AB178: =SUM(H178:AA178) -> 0 | AC178: =IF(ABS(AB178-F178)<1,"ok","err") -> ok
A180: Total Purchased Power | C180: TPP | F180: =SUM(F175:F179) -> 50688769.06 | H180: =SUM(H175:H179) -> 16693796 | I180: =SUM(I175:I179) -> 33994973.06 | K180: 0 | M180: 0 | O180: 0 | P180: 0 | R180: 0 | S180: 0 | U180: 0 | W180: 0 | Y180: 0 | AA180: 0 | AB180: =SUM(H180:AA180) -> 50688769.06 | AC180: =IF(ABS(AB180-F180)<1,"ok","err") -> ok
A182: Transmission Expenses
A183: 560 | B183: OPERATION SUPERVISION AND ENG | C183: OM560 | D183: PTRAN | F183: 0 | H183: =IF((VLOOKUP($D183,$C$5:$AA$496,6,)=0),0,((VLOOKUP($D183,$C$5:$AA$496,6,)/VLOOKUP($D183,$C$5:$AA$496,4,))*$F183)) -> 0 | I183: =IF((VLOOKUP($D183,$C$5:$AA$496,7,)=0),0,((VLOOKUP($D183,$C$5:$AA$496,7,)/VLOOKUP($D183,$C$5:$AA$496,4,))*$F183)) -> 0 | K183: =IF((VLOOKUP($D183,$C$5:$AA$496,9,)=0),0,((VLOOKUP($D183,$C$5:$AA$496,9,)/VLOOKUP($D183,$C$5:$AA$496,4,))*$F183)) -> 0 | M183: =IF((VLOOKUP($D183,$C$5:$AA$496,11,)=0),0,((VLOOKUP($D183,$C$5:$AA$496,11,)/VLOOKUP($D183,$C$5:$AA$496,4,))*$F183)) -> 0 | O183: =IF((VLOOKUP($D183,$C$5:$AA$496,13,)=0),0,((VLOOKUP($D183,$C$5:$AA$496,13,)/VLOOKUP($D183,$C$5:$AA$496,4,))*$F183)) -> 0 | P183: =IF((VLOOKUP($D183,$C$5:$AA$496,14,)=0),0,((VLOOKUP($D183,$C$5:$AA$496,14,)/VLOOKUP($D183,$C$5:$AA$496,4,))*$F183)) -> 0 | R183: =IF((VLOOKUP($D183,$C$5:$AA$496,16,)=0),0,((VLOOKUP($D183,$C$5:$AA$496,16,)/VLOOKUP($D183,$C$5:$AA$496,4,))*$F183)) -> 0 | S183: =IF((VLOOKUP($D183,$C$5:$AA$496,17,)=0),0,((VLOOKUP($D183,$C$5:$AA$496,17,)/VLOOKUP($D183,$C$5:$AA$496,4,))*$F183)) -> 0 | U183: =IF((VLOOKUP($D183,$C$5:$AA$496,19,)=0),0,((VLOOKUP($D183,$C$5:$AA$496,19,)/VLOOKUP($D183,$C$5:$AA$496,4,))*$F183)) -> 0 | W183: =IF((VLOOKUP($D183,$C$5:$AA$496,21,)=0),0,((VLOOKUP($D183,$C$5:$AA$496,21,)/VLOOKUP($D183,$C$5:$AA$496,4,))*$F183)) -> 0 | Y183: =IF((VLOOKUP($D183,$C$5:$AA$496,23,)=0),0,((VLOOKUP($D183,$C$5:$AA$496,23,)/VLOOKUP($D183,$C$5:$AA$496,4,))*$F183)) -> 0 | AA183: =IF((VLOOKUP($D183,$C$5:$AA$496,25,)=0),0,((VLOOKUP($D183,$C$5:$AA$496,25,)/VLOOKUP($D183,$C$5:$AA$496,4,))*$F183)) -> 0 | AB183: =SUM(H183:AA183) -> 0 | AC183: =IF(ABS(AB183-F183)<1,"ok","err") -> ok
A184: 561 | B184: LOAD DISPATCHING | C184: OM561 | D184: PTRAN | F184: 0 | H184: 0 | I184: 0 | K184: 0 | M184: 0 | O184: 0 | P184: 0 | R184: 0 | S184: 0 | U184: 0 | W184: 0 | Y184: 0 | AA184: 0 | AB184: 0 | AC184: ok
A185: 562 | B185: STATION EXPENSES | C185: OM562 | D185: PTRAN | F185: 0 | H185: 0 | I185: 0 | K185: 0 | M185: 0 | O185: 0 | P185: 0 | R185: 0 | S185: 0 | U185: 0 | W185: 0 | Y185: 0 | AA185: 0 | AB185: 0 | AC185: ok
A186: 563 | B186: OVERHEAD LINE EXPENSES | C186: OM563 | D186: PTRAN | F186: 0 | H186: 0 | I186: 0 | K186: 0 | M186: 0 | O186: 0 | P186: 0 | R186: 0 | S186: 0 | U186: 0 | W186: 0 | Y186: 0 | AA186: 0 | AB186: 0 | AC186: ok
A187: 564 | B187: UNDERGROUND LINE EXPENSES | C187: OM564 | D187: PTRAN | F187: 0 | H187: 0 | I187: 0 | K187: 0 | M187: 0 | O187: 0 | P187: 0 | R187: 0 | S187: 0 | U187: 0 | W187: 0 | Y187: 0 | AA187: 0 | AB187: =SUM(H187:AA187) -> 0 | AC187: =IF(ABS(AB187-F187)<1,"ok","err") -> ok
A188: 565 | B188: TRANSMISION OF ELEC BY OTHERS | C188: OM565 | D188: PTRAN | F188: 0 | H188: 0 | I188: 0 | K188: 0 | M188: 0 | O188: 0 | P188: 0 | R188: 0 | S188: 0 | U188: 0 | W188: 0 | Y188: 0 | AA188: 0 | AB188: =SUM(H188:AA188) -> 0 | AC188: =IF(ABS(AB188-F188)<1,"ok","err") -> ok
A189: 566 | B189: MISC. TRANSMISSION EXPENSES | C189: OM566 | D189: PTRAN | F189: 0 | H189: 0 | I189: 0 | K189: 0 | M189: 0 | O189: 0 | P189: 0 | R189: 0 | S189: 0 | U189: 0 | W189: 0 | Y189: 0 | AA189: 0 | AB189: =SUM(H189:AA189) -> 0 | AC189: =IF(ABS(AB189-F189)<1,"ok","err") -> ok
A190: 567 | B190: RENTS | C190: OM567 | D190: PTRAN | F190: 0 | H190: 0 | I190: 0 | K190: 0 | M190: 0 | O190: 0 | P190: 0 | R190: 0 | S190: 0 | U190: 0 | W190: 0 | Y190: 0 | AA190: 0 | AB190: =SUM(H190:AA190) -> 0 | AC190: =IF(ABS(AB190-F190)<1,"ok","err") -> ok
A191: 568 | B191: MAINTENANCE SUPERVISION AND ENG | C191: OM568 | D191: PTRAN | F191: 0 | H191: 0 | I191: 0 | K191: 0 | M191: 0 | O191: 0 | P191: 0 | R191: 0 | S191: 0 | U191: 0 | W191: 0 | Y191: 0 | AA191: 0 | AB191: =SUM(H191:AA191) -> 0 | AC191: =IF(ABS(AB191-F191)<1,"ok","err") -> ok
A192: 569 | B192: MAINTENANCE OF STRUCTURES | C192: OM569 | D192: PTRAN | F192: 0 | H192: 0 | I192: 0 | K192: 0 | M192: 0 | O192: 0 | P192: 0 | R192: 0 | S192: 0 | U192: 0 | W192: 0 | Y192: 0 | AA192: 0 | AB192: 0 | AC192: ok
A193: 570 | B193: MAINT OF STATION EQUIPMENT | C193: OM570 | D193: PTRAN | F193: 0 | H193: 0 | I193: 0 | K193: 0 | M193: 0 | O193: 0 | P193: 0 | R193: 0 | S193: 0 | U193: 0 | W193: 0 | Y193: 0 | AA193: 0 | AB193: 0 | AC193: ok
A194: 571 | B194: MAINT OF OVERHEAD LINES | C194: OM571 | D194: PTRAN | F194: 0 | H194: 0 | I194: 0 | K194: 0 | M194: 0 | O194: 0 | P194: 0 | R194: 0 | S194: 0 | U194: 0 | W194: 0 | Y194: 0 | AA194: 0 | AB194: 0 | AC194: ok
A195: 572 | B195: MAINT OF UNDERGROUND LINES | C195: OM572 | D195: PTRAN | F195: 0 | H195: 0 | I195: 0 | K195: 0 | M195: 0 | O195: 0 | P195: 0 | R195: 0 | S195: 0 | U195: 0 | W195: 0 | Y195: 0 | AA195: 0 | AB195: =SUM(H195:AA195) -> 0 | AC195: =IF(ABS(AB195-F195)<1,"ok","err") -> ok
A196: 573 | B196: MAINT MISC | C196: OM573 | D196: PTRAN | F196: 0 | H196: 0 | I196: 0 | K196: 0 | M196: 0 | O196: 0 | P196: 0 | R196: 0 | S196: 0 | U196: 0 | W196: 0 | Y196: 0 | AA196: 0 | AB196: =SUM(H196:AA196) -> 0 | AC196: =IF(ABS(AB196-F196)<1,"ok","err") -> ok
A197: 574 | B197: MAINT OF TRANS PLANT | C197: OM574 | D197: PTRAN | F197: 0 | H197: 0 | I197: 0 | K197: 0 | M197: 0 | O197: 0 | P197: 0 | R197: 0 | S197: 0 | U197: 0 | W197: 0 | Y197: 0 | AA197: 0 | AB197: 0 | AC197: ok
A199: Total Transmission Expenses | F199: =SUM(F183:F197) -> 0 | G199: =SUM(G183:G197) -> 0 | H199: 0 | I199: 0 | K199: 0 | M199: 0 | O199: 0 | P199: 0 | R199: 0 | S199: 0 | U199: 0 | W199: 0 | Y199: 0 | AA199: 0 | AB199: =SUM(H199:AA199) -> 0 | AC199: =IF(ABS(AB199-F199)<1,"ok","err") -> ok
A201: Distribution Operation Expense
A202: 580 | B202: OPERATION SUPERVISION AND ENGI | C202: OM580 | D202: PDIST | F202: 538684.46 | H202: =IF(VLOOKUP($D202,$C$5:$AA$496,6,)=0,0,((VLOOKUP($D202,$C$5:$AA$496,6,)/VLOOKUP($D202,$C$5:$AA$496,4,))*$F202)) -> 0 | I202: =IF(VLOOKUP($D202,$C$5:$AA$496,7,)=0,0,((VLOOKUP($D202,$C$5:$AA$496,7,)/VLOOKUP($D202,$C$5:$AA$496,4,))*$F202)) -> 0 | K202: =IF(VLOOKUP($D202,$C$5:$AA$496,9,)=0,0,((VLOOKUP($D202,$C$5:$AA$496,9,)/VLOOKUP($D202,$C$5:$AA$496,4,))*$F202)) -> 0 | M202: =IF(VLOOKUP($D202,$C$5:$AA$496,11,)=0,0,((VLOOKUP($D202,$C$5:$AA$496,11,)/VLOOKUP($D202,$C$5:$AA$496,4,))*$F202)) -> 70100.26182 | O202: =IF(VLOOKUP($D202,$C$5:$AA$496,13,)=0,0,((VLOOKUP($D202,$C$5:$AA$496,13,)/VLOOKUP($D202,$C$5:$AA$496,4,))*$F202)) -> 135163.3622 | P202: =IF(VLOOKUP($D202,$C$5:$AA$496,14,)=0,0,((VLOOKUP($D202,$C$5:$AA$496,14,)/VLOOKUP($D202,$C$5:$AA$496,4,))*$F202)) -> 254774.6114 | R202: =IF(VLOOKUP($D202,$C$5:$AA$496,16,)=0,0,((VLOOKUP($D202,$C$5:$AA$496,16,)/VLOOKUP($D202,$C$5:$AA$496,4,))*$F202)) -> 0 | S202: =IF(VLOOKUP($D202,$C$5:$AA$496,17,)=0,0,((VLOOKUP($D202,$C$5:$AA$496,17,)/VLOOKUP($D202,$C$5:$AA$496,4,))*$F202)) -> 36967.9019 | U202: =IF(VLOOKUP($D202,$C$5:$AA$496,19,)=0,0,((VLOOKUP($D202,$C$5:$AA$496,19,)/VLOOKUP($D202,$C$5:$AA$496,4,))*$F202)) -> 30429.9546 | W202: =IF(VLOOKUP($D202,$C$5:$AA$496,21,)=0,0,((VLOOKUP($D202,$C$5:$AA$496,21,)/VLOOKUP($D202,$C$5:$AA$496,4,))*$F202)) -> 11248.36804 | Y202: =IF(VLOOKUP($D202,$C$5:$AA$496,23,)=0,0,((VLOOKUP($D202,$C$5:$AA$496,23,)/VLOOKUP($D202,$C$5:$AA$496,4,))*$F202)) -> 0 | AA202: =IF(VLOOKUP($D202,$C$5:$AA$496,25,)=0,0,((VLOOKUP($D202,$C$5:$AA$496,25,)/VLOOKUP($D202,$C$5:$AA$496,4,))*$F202)) -> 0 | AB202: =SUM(H202:AA202) -> 538684.46 | AC202: =IF(ABS(AB202-F202)<1,"ok","err") -> ok
A203: 581 | B203: LOAD DISPATCHING | C203: OM581 | D203: P362 | F203: 1260.15 | H203: 0 | I203: 0 | K203: 0 | M203: 1260.15 | O203: 0 | P203: 0 | R203: 0 | S203: 0 | U203: 0 | W203: 0 | Y203: 0 | AA203: 0 | AB203: 1260.15 | AC203: ok
A204: 582 | B204: STATION EXPENSES | C204: OM582 | D204: P362 | F204: 229230 | H204: 0 | I204: 0 | K204: 0 | M204: 229230 | O204: 0 | P204: 0 | R204: 0 | S204: 0 | U204: 0 | W204: 0 | Y204: 0 | AA204: 0 | AB204: 229230 | AC204: ok
A205: 583 | B205: OVERHEAD LINE EXPENSES | C205: OM583 | D205: P365 | F205: 671944.97 | H205: 0 | I205: 0 | K205: 0 | M205: 0 | O205: 85709.80101 | P205: 586235.169 | R205: 0 | S205: 0 | U205: 0 | W205: 0 | Y205: 0 | AA205: 0 | AB205: 671944.97 | AC205: ok
A206: 584 | B206: UNDERGROUND LINE EXPENSES | C206: OM584 | D206: P367 | F206: 244674.47 | H206: 0 | I206: 0 | K206: 0 | M206: 0 | O206: 215148.2435 | P206: 29526.22649 | R206: 0 | S206: 0 | U206: 0 | W206: 0 | Y206: 0 | AA206: 0 | AB206: 244674.47 | AC206: ok
A207: 585 | B207: STREET LIGHTING EXPENSE | C207: OM585 | D207: P371 | F207: 4105.69 | H207: 0 | I207: 0 | K207: 0 | M207: 0 | O207: 0 | P207: 0 | R207: 0 | S207: 0 | U207: 0 | W207: 4105.69 | Y207: 0 | AA207: 0 | AB207: 4105.69 | AC207: ok
A208: 586 | B208: METER EXPENSES | C208: OM586 | D208: P370 | F208: 613011.15 | H208: 0 | I208: 0 | K208: 0 | M208: 0 | O208: 0 | P208: 0 | R208: 0 | S208: 0 | U208: 613011.15 | W208: 0 | Y208: 0 | AA208: 0 | AB208: 613011.15 | AC208: ok
A209: 586 | B209: METER EXPENSES - LOAD MANAGEMENT | C209: OM586x | D209: F012 | F209: 0 | H209: 0 | I209: 0 | K209: 0 | M209: 0 | O209: 0 | P209: 0 | R209: 0 | S209: 0 | U209: 0 | W209: 0 | Y209: 0 | AA209: 0 | AB209: 0 | AC209: ok
A210: 587 | B210: CUSTOMER INSTALLATIONS EXPENSE | C210: OM587 | D210: P369 | F210: 12142.37 | H210: 0 | I210: 0 | K210: 0 | M210: 0 | O210: 0 | P210: 0 | R210: 0 | S210: 12142.37 | U210: 0 | W210: 0 | Y210: 0 | AA210: 0 | AB210: 12142.37 | AC210: ok
A211: 588 | B211: MISCELLANEOUS DISTRIBUTION EXP | C211: OM588 | D211: PDIST | F211: 993391.61 | H211: 0 | I211: 0 | K211: 0 | M211: 129272.3609 | O211: 249255.6589 | P211: 469831.5623 | R211: 0 | S211: 68172.75477 | U211: 56116.08249 | W211: 20743.19062 | Y211: 0 | AA211: 0 | AB211: 993391.61 | AC211: ok
A212: 588 | B212: MISC DISTR EXP -- MAPPING | C212: OM588x | D212: F015 | F212: 0 | H212: 0 | I212: 0 | K212: 0 | M212: 0 | O212: 0 | P212: 0 | R212: 0 | S212: 0 | U212: 0 | W212: 0 | Y212: 0 | AA212: 0 | AB212: 0 | AC212: ok
A213: 589 | B213: RENTS | C213: OM589 | D213: PDIST | F213: 0 | H213: 0 | I213: 0 | K213: 0 | M213: 0 | O213: 0 | P213: 0 | R213: 0 | S213: 0 | U213: 0 | W213: 0 | Y213: 0 | AA213: 0 | AB213: 0 | AC213: ok
A215: Total Distribution Operation Expense | C215: OMDO | F215: =SUM(F202:F214) -> 3308444.87 | G215: =SUM(G202:G214) -> 0 | H215: 0 | I215: 0 | K215: 0 | M215: 429862.7728 | O215: 685277.0657 | P215: 1340367.569 | R215: 0 | S215: 117283.0267 | U215: 699557.1871 | W215: 36097.24867 | Y215: 0 | AA215: 0 | AB215: =SUM(H215:AA215) -> 3308444.87 | AC215: =IF(ABS(AB215-F215)<1,"ok","err") -> ok
A217: Operation and Maintenance Expenses (Continued)
A219: Distribution Maintenance Expense
A220: 590 | B220: MAINTENANCE SUPERVISION AND EN | C220: OM590 | D220: PDIST | F220: 58696.47 | H220: =IF(VLOOKUP($D220,$C$5:$AA$496,6,)=0,0,((VLOOKUP($D220,$C$5:$AA$496,6,)/VLOOKUP($D220,$C$5:$AA$496,4,))*$F220)) -> 0 | I220: =IF(VLOOKUP($D220,$C$5:$AA$496,7,)=0,0,((VLOOKUP($D220,$C$5:$AA$496,7,)/VLOOKUP($D220,$C$5:$AA$496,4,))*$F220)) -> 0 | K220: =IF(VLOOKUP($D220,$C$5:$AA$496,9,)=0,0,((VLOOKUP($D220,$C$5:$AA$496,9,)/VLOOKUP($D220,$C$5:$AA$496,4,))*$F220)) -> 0 | M220: =IF(VLOOKUP($D220,$C$5:$AA$496,11,)=0,0,((VLOOKUP($D220,$C$5:$AA$496,11,)/VLOOKUP($D220,$C$5:$AA$496,4,))*$F220)) -> 7638.308176 | O220: =IF(VLOOKUP($D220,$C$5:$AA$496,13,)=0,0,((VLOOKUP($D220,$C$5:$AA$496,13,)/VLOOKUP($D220,$C$5:$AA$496,4,))*$F220)) -> 14727.75405 | P220: =IF(VLOOKUP($D220,$C$5:$AA$496,14,)=0,0,((VLOOKUP($D220,$C$5:$AA$496,14,)/VLOOKUP($D220,$C$5:$AA$496,4,))*$F220)) -> 27760.90911 | R220: =IF(VLOOKUP($D220,$C$5:$AA$496,16,)=0,0,((VLOOKUP($D220,$C$5:$AA$496,16,)/VLOOKUP($D220,$C$5:$AA$496,4,))*$F220)) -> 0 | S220: =IF(VLOOKUP($D220,$C$5:$AA$496,17,)=0,0,((VLOOKUP($D220,$C$5:$AA$496,17,)/VLOOKUP($D220,$C$5:$AA$496,4,))*$F220)) -> 4028.119439 | U220: =IF(VLOOKUP($D220,$C$5:$AA$496,19,)=0,0,((VLOOKUP($D220,$C$5:$AA$496,19,)/VLOOKUP($D220,$C$5:$AA$496,4,))*$F220)) -> 3315.727573 | W220: =IF(VLOOKUP($D220,$C$5:$AA$496,21,)=0,0,((VLOOKUP($D220,$C$5:$AA$496,21,)/VLOOKUP($D220,$C$5:$AA$496,4,))*$F220)) -> 1225.65165 | Y220: =IF(VLOOKUP($D220,$C$5:$AA$496,23,)=0,0,((VLOOKUP($D220,$C$5:$AA$496,23,)/VLOOKUP($D220,$C$5:$AA$496,4,))*$F220)) -> 0 | AA220: =IF(VLOOKUP($D220,$C$5:$AA$496,25,)=0,0,((VLOOKUP($D220,$C$5:$AA$496,25,)/VLOOKUP($D220,$C$5:$AA$496,4,))*$F220)) -> 0 | AB220: =SUM(H220:AA220) -> 58696.47 | AC220: =IF(ABS(AB220-F220)<1,"ok","err") -> ok
A221: 592 | B221: MAINTENANCE OF STATION EQUIPME | C221: OM592 | D221: P362 | F221: 103113.9 | H221: 0 | I221: 0 | K221: 0 | M221: 103113.9 | O221: 0 | P221: 0 | R221: 0 | S221: 0 | U221: 0 | W221: 0 | Y221: 0 | AA221: 0 | AB221: 103113.9 | AC221: ok
A222: 593 | B222: MAINTENANCE OF OVERHEAD LINES | C222: OM593 | D222: P365 | F222: 2221599.34 | H222: 0 | I222: 0 | K222: 0 | M222: 0 | O222: 283375.6421 | P222: 1938223.698 | R222: 0 | S222: 0 | U222: 0 | W222: 0 | Y222: 0 | AA222: 0 | AB222: 2221599.34 | AC222: ok
A223: 594 | B223: MAINTENANCE OF UNDERGROUND LIN | C223: OM594 | D223: P367 | F223: 117856.76 | H223: 0 | I223: 0 | K223: 0 | M223: 0 | O223: 103634.3305 | P223: 14222.42946 | R223: 0 | S223: 0 | U223: 0 | W223: 0 | Y223: 0 | AA223: 0 | AB223: 117856.76 | AC223: ok
A224: 595 | B224: MAINTENANCE OF LINE TRANSFORME | C224: OM595 | D224: P368 | F224: 1065 | H224: 0 | I224: 0 | K224: 0 | M224: 0 | O224: 508.9786518 | P224: 556.0213482 | R224: 0 | S224: 0 | U224: 0 | W224: 0 | Y224: 0 | AA224: 0 | AB224: 1065 | AC224: ok
A225: 596 | B225: MAINTENANCE OF ST LIGHTS & SIG SYSTEMS | C225: OM596 | D225: P373 | F225: 18940.75 | H225: 0 | I225: 0 | K225: 0 | M225: 0 | O225: 0 | P225: 0 | R225: 0 | S225: 0 | U225: 0 | W225: 18940.75 | Y225: 0 | AA225: 0 | AB225: 18940.75 | AC225: ok
A226: 597 | B226: MAINTENANCE OF METERS | C226: OM597 | D226: P370 | F226: 57459.19 | H226: 0 | I226: 0 | K226: 0 | M226: 0 | O226: 0 | P226: 0 | R226: 0 | S226: 0 | U226: 57459.19 | W226: 0 | Y226: 0 | AA226: 0 | AB226: 57459.19 | AC226: ok
A227: 598 | B227: MAINTENANCE OF MISC DISTR PLANT | C227: OM598 | D227: PDIST | F227: 342947.02 | H227: 0 | I227: 0 | K227: 0 | M227: 44628.49345 | O227: 86050.13832 | P227: 162199.2098 | R227: 0 | S227: 23535.17269 | U227: 19372.86672 | W227: 7161.139009 | Y227: 0 | AA227: 0 | AB227: 342947.02 | AC227: ok
A229: Total Distribution Maintenance Expense | C229: OMDM | F229: =SUM(F220:F228) -> 2921678.43 | G229: 0 | H229: 0 | I229: 0 | K229: 0 | M229: 155380.7016 | O229: =SUM(O220:O228) -> 488296.8437 | P229: 2142962.268 | R229: 0 | S229: 27563.29213 | U229: 80147.7843 | W229: 27327.54066 | Y229: 0 | AA229: 0 | AB229: =SUM(H229:AA229) -> 2921678.43 | AC229: =IF(ABS(AB229-F229)<1,"ok","err") -> ok
A231: Total Distribution Operation and Maintenance Expenses | F231: =F215+F229 -> 6230123.3 | G231: =G215+G229 -> 0 | H231: =H215+H229 -> 0 | I231: =I215+I229 -> 0 | K231: =K215+K229 -> 0 | M231: =M215+M229 -> 585243.4744 | O231: =O215+O229 -> 1173573.909 | P231: =P215+P229 -> 3483329.837 | R231: =R215+R229 -> 0 | S231: =S215+S229 -> 144846.3188 | U231: =U215+U229 -> 779704.9714 | W231: =W215+W229 -> 63424.78933 | Y231: =Y215+Y229 -> 0 | AA231: =AA215+AA229 -> 0 | AB231: =SUM(H231:AA231) -> 6230123.3 | AC231: =IF(ABS(AB231-F231)<1,"ok","err") -> ok
A233: Transmission and Distribution Expenses | F233: =F231+F199 -> 6230123.3 | G233: =G231+G199 -> 0 | H233: =H231+H199 -> 0 | I233: =I231+I199 -> 0 | K233: =K231+K199 -> 0 | M233: =M231+M199 -> 585243.4744 | O233: =O231+O199 -> 1173573.909 | P233: =P231+P199 -> 3483329.837 | R233: =R231+R199 -> 0 | S233: =S231+S199 -> 144846.3188 | U233: =U231+U199 -> 779704.9714 | W233: =W231+W199 -> 63424.78933 | Y233: =Y231+Y199 -> 0 | AA233: =AA231+AA199 -> 0 | AB233: =SUM(H233:AA233) -> 6230123.3 | AC233: =IF(ABS(AB233-F233)<1,"ok","err") -> ok
A235: Steam Production, Transmission and Distribution Expenses | F235: =F170+F199+F231 -> 6230123.3 | H235: =H170+H199+H231 -> 0 | I235: =I170+I199+I231 -> 0 | K235: =K170+K199+K231 -> 0 | M235: =M170+M199+M231 -> 585243.4744 | O235: =O170+O199+O231 -> 1173573.909 | P235: =P170+P199+P231 -> 3483329.837 | R235: =R170+R199+R231 -> 0 | S235: =S170+S199+S231 -> 144846.3188 | U235: =U170+U199+U231 -> 779704.9714 | W235: =W170+W199+W231 -> 63424.78933 | Y235: =Y170+Y199+Y231 -> 0 | AA235: =AA170+AA199+AA231 -> 0 | AB235: =SUM(H235:AA235) -> 6230123.3 | AC235: =IF(ABS(AB235-F235)<1,"ok","err") -> ok
A237: Production, Purchased Power, Trans and Distr Expenses | C237: OMSUB | F237: =F231+F199+F180+F170 -> 56918892.36 | H237: =H231+H199+H180+H170 -> 16693796 | I237: =I231+I199+I180+I170 -> 33994973.06 | K237: =K231+K199+K180+K170 -> 0 | M237: =M231+M199+M180+M170 -> 585243.4744 | O237: =O231+O199+O180+O170 -> 1173573.909 | P237: =P231+P199+P180+P170 -> 3483329.837 | R237: =R231+R199+R180+R170 -> 0 | S237: =S231+S199+S180+S170 -> 144846.3188 | U237: =U231+U199+U180+U170 -> 779704.9714 | W237: =W231+W199+W180+W170 -> 63424.78933 | Y237: =Y231+Y199+Y180+Y170 -> 0 | AA237: =AA231+AA199+AA180+AA170 -> 0 | AB237: =SUM(H237:AA237) -> 56918892.36 | AC237: =IF(ABS(AB237-F237)<1,"ok","err") -> ok
A239: Customer Accounts Expense
A240: 901 | B240: SUPERVISION/CUSTOMER ACCTS | C240: OM901 | D240: F009 | F240: 98759.48 | H240: =IF(VLOOKUP($D240,$C$5:$AA$496,6,)=0,0,((VLOOKUP($D240,$C$5:$AA$496,6,)/VLOOKUP($D240,$C$5:$AA$496,4,))*$F240)) -> 0 | I240: =IF(VLOOKUP($D240,$C$5:$AA$496,7,)=0,0,((VLOOKUP($D240,$C$5:$AA$496,7,)/VLOOKUP($D240,$C$5:$AA$496,4,))*$F240)) -> 0 | K240: =IF(VLOOKUP($D240,$C$5:$AA$496,9,)=0,0,((VLOOKUP($D240,$C$5:$AA$496,9,)/VLOOKUP($D240,$C$5:$AA$496,4,))*$F240)) -> 0 | M240: =IF(VLOOKUP($D240,$C$5:$AA$496,11,)=0,0,((VLOOKUP($D240,$C$5:$AA$496,11,)/VLOOKUP($D240,$C$5:$AA$496,4,))*$F240)) -> 0 | O240: =IF(VLOOKUP($D240,$C$5:$AA$496,13,)=0,0,((VLOOKUP($D240,$C$5:$AA$496,13,)/VLOOKUP($D240,$C$5:$AA$496,4,))*$F240)) -> 0 | P240: =IF(VLOOKUP($D240,$C$5:$AA$496,14,)=0,0,((VLOOKUP($D240,$C$5:$AA$496,14,)/VLOOKUP($D240,$C$5:$AA$496,4,))*$F240)) -> 0 | R240: =IF(VLOOKUP($D240,$C$5:$AA$496,16,)=0,0,((VLOOKUP($D240,$C$5:$AA$496,16,)/VLOOKUP($D240,$C$5:$AA$496,4,))*$F240)) -> 0 | S240: =IF(VLOOKUP($D240,$C$5:$AA$496,17,)=0,0,((VLOOKUP($D240,$C$5:$AA$496,17,)/VLOOKUP($D240,$C$5:$AA$496,4,))*$F240)) -> 0 | U240: =IF(VLOOKUP($D240,$C$5:$AA$496,19,)=0,0,((VLOOKUP($D240,$C$5:$AA$496,19,)/VLOOKUP($D240,$C$5:$AA$496,4,))*$F240)) -> 0 | W240: =IF(VLOOKUP($D240,$C$5:$AA$496,21,)=0,0,((VLOOKUP($D240,$C$5:$AA$496,21,)/VLOOKUP($D240,$C$5:$AA$496,4,))*$F240)) -> 0 | Y240: =IF(VLOOKUP($D240,$C$5:$AA$496,23,)=0,0,((VLOOKUP($D240,$C$5:$AA$496,23,)/VLOOKUP($D240,$C$5:$AA$496,4,))*$F240)) -> 98759.48 | AA240: =IF(VLOOKUP($D240,$C$5:$AA$496,25,)=0,0,((VLOOKUP($D240,$C$5:$AA$496,25,)/VLOOKUP($D240,$C$5:$AA$496,4,))*$F240)) -> 0 | AB240: =SUM(H240:AA240) -> 98759.48 | AC240: =IF(ABS(AB240-F240)<1,"ok","err") -> ok
A241: 902 | B241: METER READING EXPENSES | C241: OM902 | D241: F009 | F241: 2222.54 | H241: =IF(VLOOKUP($D241,$C$5:$AA$496,6,)=0,0,((VLOOKUP($D241,$C$5:$AA$496,6,)/VLOOKUP($D241,$C$5:$AA$496,4,))*$F241)) -> 0 | I241: =IF(VLOOKUP($D241,$C$5:$AA$496,7,)=0,0,((VLOOKUP($D241,$C$5:$AA$496,7,)/VLOOKUP($D241,$C$5:$AA$496,4,))*$F241)) -> 0 | K241: =IF(VLOOKUP($D241,$C$5:$AA$496,9,)=0,0,((VLOOKUP($D241,$C$5:$AA$496,9,)/VLOOKUP($D241,$C$5:$AA$496,4,))*$F241)) -> 0 | M241: =IF(VLOOKUP($D241,$C$5:$AA$496,11,)=0,0,((VLOOKUP($D241,$C$5:$AA$496,11,)/VLOOKUP($D241,$C$5:$AA$496,4,))*$F241)) -> 0 | O241: =IF(VLOOKUP($D241,$C$5:$AA$496,13,)=0,0,((VLOOKUP($D241,$C$5:$AA$496,13,)/VLOOKUP($D241,$C$5:$AA$496,4,))*$F241)) -> 0 | P241: =IF(VLOOKUP($D241,$C$5:$AA$496,14,)=0,0,((VLOOKUP($D241,$C$5:$AA$496,14,)/VLOOKUP($D241,$C$5:$AA$496,4,))*$F241)) -> 0 | R241: =IF(VLOOKUP($D241,$C$5:$AA$496,16,)=0,0,((VLOOKUP($D241,$C$5:$AA$496,16,)/VLOOKUP($D241,$C$5:$AA$496,4,))*$F241)) -> 0 | S241: =IF(VLOOKUP($D241,$C$5:$AA$496,17,)=0,0,((VLOOKUP($D241,$C$5:$AA$496,17,)/VLOOKUP($D241,$C$5:$AA$496,4,))*$F241)) -> 0 | U241: =IF(VLOOKUP($D241,$C$5:$AA$496,19,)=0,0,((VLOOKUP($D241,$C$5:$AA$496,19,)/VLOOKUP($D241,$C$5:$AA$496,4,))*$F241)) -> 0 | W241: =IF(VLOOKUP($D241,$C$5:$AA$496,21,)=0,0,((VLOOKUP($D241,$C$5:$AA$496,21,)/VLOOKUP($D241,$C$5:$AA$496,4,))*$F241)) -> 0 | Y241: =IF(VLOOKUP($D241,$C$5:$AA$496,23,)=0,0,((VLOOKUP($D241,$C$5:$AA$496,23,)/VLOOKUP($D241,$C$5:$AA$496,4,))*$F241)) -> 2222.54 | AA241: =IF(VLOOKUP($D241,$C$5:$AA$496,25,)=0,0,((VLOOKUP($D241,$C$5:$AA$496,25,)/VLOOKUP($D241,$C$5:$AA$496,4,))*$F241)) -> 0 | AB241: =SUM(H241:AA241) -> 2222.54 | AC241: =IF(ABS(AB241-F241)<1,"ok","err") -> ok
A242: 903 | B242: RECORDS AND COLLECTION | C242: OM903 | D242: F009 | F242: 915996.24 | H242: =IF(VLOOKUP($D242,$C$5:$AA$496,6,)=0,0,((VLOOKUP($D242,$C$5:$AA$496,6,)/VLOOKUP($D242,$C$5:$AA$496,4,))*$F242)) -> 0 | I242: =IF(VLOOKUP($D242,$C$5:$AA$496,7,)=0,0,((VLOOKUP($D242,$C$5:$AA$496,7,)/VLOOKUP($D242,$C$5:$AA$496,4,))*$F242)) -> 0 | K242: =IF(VLOOKUP($D242,$C$5:$AA$496,9,)=0,0,((VLOOKUP($D242,$C$5:$AA$496,9,)/VLOOKUP($D242,$C$5:$AA$496,4,))*$F242)) -> 0 | M242: =IF(VLOOKUP($D242,$C$5:$AA$496,11,)=0,0,((VLOOKUP($D242,$C$5:$AA$496,11,)/VLOOKUP($D242,$C$5:$AA$496,4,))*$F242)) -> 0 | O242: =IF(VLOOKUP($D242,$C$5:$AA$496,13,)=0,0,((VLOOKUP($D242,$C$5:$AA$496,13,)/VLOOKUP($D242,$C$5:$AA$496,4,))*$F242)) -> 0 | P242: =IF(VLOOKUP($D242,$C$5:$AA$496,14,)=0,0,((VLOOKUP($D242,$C$5:$AA$496,14,)/VLOOKUP($D242,$C$5:$AA$496,4,))*$F242)) -> 0 | R242: =IF(VLOOKUP($D242,$C$5:$AA$496,16,)=0,0,((VLOOKUP($D242,$C$5:$AA$496,16,)/VLOOKUP($D242,$C$5:$AA$496,4,))*$F242)) -> 0 | S242: =IF(VLOOKUP($D242,$C$5:$AA$496,17,)=0,0,((VLOOKUP($D242,$C$5:$AA$496,17,)/VLOOKUP($D242,$C$5:$AA$496,4,))*$F242)) -> 0 | U242: =IF(VLOOKUP($D242,$C$5:$AA$496,19,)=0,0,((VLOOKUP($D242,$C$5:$AA$496,19,)/VLOOKUP($D242,$C$5:$AA$496,4,))*$F242)) -> 0 | W242: =IF(VLOOKUP($D242,$C$5:$AA$496,21,)=0,0,((VLOOKUP($D242,$C$5:$AA$496,21,)/VLOOKUP($D242,$C$5:$AA$496,4,))*$F242)) -> 0 | Y242: =IF(VLOOKUP($D242,$C$5:$AA$496,23,)=0,0,((VLOOKUP($D242,$C$5:$AA$496,23,)/VLOOKUP($D242,$C$5:$AA$496,4,))*$F242)) -> 915996.24 | AA242: =IF(VLOOKUP($D242,$C$5:$AA$496,25,)=0,0,((VLOOKUP($D242,$C$5:$AA$496,25,)/VLOOKUP($D242,$C$5:$AA$496,4,))*$F242)) -> 0 | AB242: =SUM(H242:AA242) -> 915996.24 | AC242: =IF(ABS(AB242-F242)<1,"ok","err") -> ok
A243: 904 | B243: UNCOLLECTIBLE ACCOUNTS | C243: OM904 | D243: F009 | F243: 256805.18 | H243: =IF(VLOOKUP($D243,$C$5:$AA$496,6,)=0,0,((VLOOKUP($D243,$C$5:$AA$496,6,)/VLOOKUP($D243,$C$5:$AA$496,4,))*$F243)) -> 0 | I243: =IF(VLOOKUP($D243,$C$5:$AA$496,7,)=0,0,((VLOOKUP($D243,$C$5:$AA$496,7,)/VLOOKUP($D243,$C$5:$AA$496,4,))*$F243)) -> 0 | K243: =IF(VLOOKUP($D243,$C$5:$AA$496,9,)=0,0,((VLOOKUP($D243,$C$5:$AA$496,9,)/VLOOKUP($D243,$C$5:$AA$496,4,))*$F243)) -> 0 | M243: =IF(VLOOKUP($D243,$C$5:$AA$496,11,)=0,0,((VLOOKUP($D243,$C$5:$AA$496,11,)/VLOOKUP($D243,$C$5:$AA$496,4,))*$F243)) -> 0 | O243: =IF(VLOOKUP($D243,$C$5:$AA$496,13,)=0,0,((VLOOKUP($D243,$C$5:$AA$496,13,)/VLOOKUP($D243,$C$5:$AA$496,4,))*$F243)) -> 0 | P243: =IF(VLOOKUP($D243,$C$5:$AA$496,14,)=0,0,((VLOOKUP($D243,$C$5:$AA$496,14,)/VLOOKUP($D243,$C$5:$AA$496,4,))*$F243)) -> 0 | R243: =IF(VLOOKUP($D243,$C$5:$AA$496,16,)=0,0,((VLOOKUP($D243,$C$5:$AA$496,16,)/VLOOKUP($D243,$C$5:$AA$496,4,))*$F243)) -> 0 | S243: =IF(VLOOKUP($D243,$C$5:$AA$496,17,)=0,0,((VLOOKUP($D243,$C$5:$AA$496,17,)/VLOOKUP($D243,$C$5:$AA$496,4,))*$F243)) -> 0 | U243: =IF(VLOOKUP($D243,$C$5:$AA$496,19,)=0,0,((VLOOKUP($D243,$C$5:$AA$496,19,)/VLOOKUP($D243,$C$5:$AA$496,4,))*$F243)) -> 0 | W243: =IF(VLOOKUP($D243,$C$5:$AA$496,21,)=0,0,((VLOOKUP($D243,$C$5:$AA$496,21,)/VLOOKUP($D243,$C$5:$AA$496,4,))*$F243)) -> 0 | Y243: =IF(VLOOKUP($D243,$C$5:$AA$496,23,)=0,0,((VLOOKUP($D243,$C$5:$AA$496,23,)/VLOOKUP($D243,$C$5:$AA$496,4,))*$F243)) -> 256805.18 | AA243: =IF(VLOOKUP($D243,$C$5:$AA$496,25,)=0,0,((VLOOKUP($D243,$C$5:$AA$496,25,)/VLOOKUP($D243,$C$5:$AA$496,4,))*$F243)) -> 0 | AB243: =SUM(H243:AA243) -> 256805.18 | AC243: =IF(ABS(AB243-F243)<1,"ok","err") -> ok
A244: 905 | B244: MISC CUST ACCOUNTS | C244: OM903 | D244: F009 | F244: 0 | H244: =IF(VLOOKUP($D244,$C$5:$AA$496,6,)=0,0,((VLOOKUP($D244,$C$5:$AA$496,6,)/VLOOKUP($D244,$C$5:$AA$496,4,))*$F244)) -> 0 | I244: =IF(VLOOKUP($D244,$C$5:$AA$496,7,)=0,0,((VLOOKUP($D244,$C$5:$AA$496,7,)/VLOOKUP($D244,$C$5:$AA$496,4,))*$F244)) -> 0 | K244: =IF(VLOOKUP($D244,$C$5:$AA$496,9,)=0,0,((VLOOKUP($D244,$C$5:$AA$496,9,)/VLOOKUP($D244,$C$5:$AA$496,4,))*$F244)) -> 0 | M244: =IF(VLOOKUP($D244,$C$5:$AA$496,11,)=0,0,((VLOOKUP($D244,$C$5:$AA$496,11,)/VLOOKUP($D244,$C$5:$AA$496,4,))*$F244)) -> 0 | O244: =IF(VLOOKUP($D244,$C$5:$AA$496,13,)=0,0,((VLOOKUP($D244,$C$5:$AA$496,13,)/VLOOKUP($D244,$C$5:$AA$496,4,))*$F244)) -> 0 | P244: =IF(VLOOKUP($D244,$C$5:$AA$496,14,)=0,0,((VLOOKUP($D244,$C$5:$AA$496,14,)/VLOOKUP($D244,$C$5:$AA$496,4,))*$F244)) -> 0 | R244: =IF(VLOOKUP($D244,$C$5:$AA$496,16,)=0,0,((VLOOKUP($D244,$C$5:$AA$496,16,)/VLOOKUP($D244,$C$5:$AA$496,4,))*$F244)) -> 0 | S244: =IF(VLOOKUP($D244,$C$5:$AA$496,17,)=0,0,((VLOOKUP($D244,$C$5:$AA$496,17,)/VLOOKUP($D244,$C$5:$AA$496,4,))*$F244)) -> 0 | U244: =IF(VLOOKUP($D244,$C$5:$AA$496,19,)=0,0,((VLOOKUP($D244,$C$5:$AA$496,19,)/VLOOKUP($D244,$C$5:$AA$496,4,))*$F244)) -> 0 | W244: =IF(VLOOKUP($D244,$C$5:$AA$496,21,)=0,0,((VLOOKUP($D244,$C$5:$AA$496,21,)/VLOOKUP($D244,$C$5:$AA$496,4,))*$F244)) -> 0 | Y244: =IF(VLOOKUP($D244,$C$5:$AA$496,23,)=0,0,((VLOOKUP($D244,$C$5:$AA$496,23,)/VLOOKUP($D244,$C$5:$AA$496,4,))*$F244)) -> 0 | AA244: =IF(VLOOKUP($D244,$C$5:$AA$496,25,)=0,0,((VLOOKUP($D244,$C$5:$AA$496,25,)/VLOOKUP($D244,$C$5:$AA$496,4,))*$F244)) -> 0 | AB244: =SUM(H244:AA244) -> 0 | AC244: =IF(ABS(AB244-F244)<1,"ok","err") -> ok
A246: Total Customer Accounts Expense | C246: OMCA | F246: =SUM(F240:F245) -> 1273783.44 | G246: =SUM(G240:G245) -> 0 | H246: 0 | I246: 0 | K246: 0 | M246: 0 | O246: 0 | P246: 0 | R246: 0 | S246: 0 | U246: 0 | W246: 0 | Y246: =SUM(Y240:Y245) -> 1273783.44 | AA246: =SUM(AA240:AA245) -> 0 | AB246: =SUM(H246:AA246) -> 1273783.44 | AC246: =IF(ABS(AB246-F246)<1,"ok","err") -> ok
A248: Customer Service Expense
A249: 907 | B249: SUPERVISION | C249: OM907 | D249: F010 | F249: 0 | H249: =IF(VLOOKUP($D249,$C$5:$AA$496,6,)=0,0,((VLOOKUP($D249,$C$5:$AA$496,6,)/VLOOKUP($D249,$C$5:$AA$496,4,))*$F249)) -> 0 | I249: =IF(VLOOKUP($D249,$C$5:$AA$496,7,)=0,0,((VLOOKUP($D249,$C$5:$AA$496,7,)/VLOOKUP($D249,$C$5:$AA$496,4,))*$F249)) -> 0 | K249: =IF(VLOOKUP($D249,$C$5:$AA$496,9,)=0,0,((VLOOKUP($D249,$C$5:$AA$496,9,)/VLOOKUP($D249,$C$5:$AA$496,4,))*$F249)) -> 0 | M249: =IF(VLOOKUP($D249,$C$5:$AA$496,11,)=0,0,((VLOOKUP($D249,$C$5:$AA$496,11,)/VLOOKUP($D249,$C$5:$AA$496,4,))*$F249)) -> 0 | O249: =IF(VLOOKUP($D249,$C$5:$AA$496,13,)=0,0,((VLOOKUP($D249,$C$5:$AA$496,13,)/VLOOKUP($D249,$C$5:$AA$496,4,))*$F249)) -> 0 | P249: =IF(VLOOKUP($D249,$C$5:$AA$496,14,)=0,0,((VLOOKUP($D249,$C$5:$AA$496,14,)/VLOOKUP($D249,$C$5:$AA$496,4,))*$F249)) -> 0 | R249: =IF(VLOOKUP($D249,$C$5:$AA$496,16,)=0,0,((VLOOKUP($D249,$C$5:$AA$496,16,)/VLOOKUP($D249,$C$5:$AA$496,4,))*$F249)) -> 0 | S249: =IF(VLOOKUP($D249,$C$5:$AA$496,17,)=0,0,((VLOOKUP($D249,$C$5:$AA$496,17,)/VLOOKUP($D249,$C$5:$AA$496,4,))*$F249)) -> 0 | U249: =IF(VLOOKUP($D249,$C$5:$AA$496,19,)=0,0,((VLOOKUP($D249,$C$5:$AA$496,19,)/VLOOKUP($D249,$C$5:$AA$496,4,))*$F249)) -> 0 | W249: =IF(VLOOKUP($D249,$C$5:$AA$496,21,)=0,0,((VLOOKUP($D249,$C$5:$AA$496,21,)/VLOOKUP($D249,$C$5:$AA$496,4,))*$F249)) -> 0 | Y249: =IF(VLOOKUP($D249,$C$5:$AA$496,23,)=0,0,((VLOOKUP($D249,$C$5:$AA$496,23,)/VLOOKUP($D249,$C$5:$AA$496,4,))*$F249)) -> 0 | AA249: =IF(VLOOKUP($D249,$C$5:$AA$496,25,)=0,0,((VLOOKUP($D249,$C$5:$AA$496,25,)/VLOOKUP($D249,$C$5:$AA$496,4,))*$F249)) -> 0 | AB249: =SUM(H249:AA249) -> 0 | AC249: =IF(ABS(AB249-F249)<1,"ok","err") -> ok
A250: 908 | B250: CUSTOMER ASSISTANCE EXPENSES | C250: OM908 | D250: F010 | F250: 599.76 | H250: 0 | I250: 0 | K250: 0 | M250: 0 | O250: 0 | P250: 0 | R250: 0 | S250: 0 | U250: 0 | W250: 0 | Y250: 599.76 | AA250: 0 | AB250: 599.76 | AC250: ok
A251: 908 | B251: CUSTOMER ASSISTANCE EXP-LOAD MGMT | C251: OM908x | D251: F012 | F251: 0 | H251: 0 | I251: 0 | K251: 0 | M251: 0 | O251: 0 | P251: 0 | R251: 0 | S251: 0 | U251: 0 | W251: 0 | Y251: 0 | AA251: 0 | AB251: 0 | AC251: ok
A252: 909 | B252: INFORMATIONAL AND INSTRUCTIONA | C252: OM909 | D252: F010 | F252: 0 | H252: 0 | I252: 0 | K252: 0 | M252: 0 | O252: 0 | P252: 0 | R252: 0 | S252: 0 | U252: 0 | W252: 0 | Y252: 0 | AA252: 0 | AB252: 0 | AC252: ok
A253: 909 | B253: INFORM AND INSTRUC -LOAD MGMT | C253: OM909x | D253: F012 | F253: 0 | H253: 0 | I253: 0 | K253: 0 | M253: 0 | O253: 0 | P253: 0 | R253: 0 | S253: 0 | U253: 0 | W253: 0 | Y253: 0 | AA253: 0 | AB253: 0 | AC253: ok
A254: 910 | B254: MISCELLANEOUS CUSTOMER SERVICE | C254: OM910 | D254: F010 | F254: 40006.87 | H254: 0 | I254: 0 | K254: 0 | M254: 0 | O254: 0 | P254: 0 | R254: 0 | S254: 0 | U254: 0 | W254: 0 | Y254: 40006.87 | AA254: 0 | AB254: 40006.87 | AC254: ok
A255: 911 | B255: SUPERVISION | C255: OM911 | D255: F010 | F255: 0 | H255: 0 | I255: 0 | K255: 0 | M255: 0 | O255: 0 | P255: 0 | R255: 0 | S255: 0 | U255: 0 | W255: 0 | Y255: 0 | AA255: 0 | AB255: =SUM(H255:AA255) -> 0 | AC255: =IF(ABS(AB255-F255)<1,"ok","err") -> ok
... 174 more rows

Sheet Alloc & Returns
AH1: =IF(COUNTIF(AH4:AH534,"err"),"err","ok") -> ok
D2: Allocation | E2: Total | F2: ='Summary of Returns'!B10 -> R - Residential | G2: ='Summary of Returns'!B11 -> C-1 Small Commercial Single Phase | H2: ='Summary of Returns'!B12 -> C-3 Small Commercial Three Phase | I2: ='Summary of Returns'!B13 -> D - Commercial and Industrial Demand < 3,000 kW | J2: ='Summary of Returns'!B14 -> D - Commercial and Industrial - DIRECT SERVED | K2: ='Summary of Returns'!B15 -> I-E - Large Commercial Existing | L2: ='Summary of Returns'!B16 -> OL - Outdoor Lighting | M2: N/A | N2: N/A | O2: N/A | P2: N/A | Q2: N/A | R2: N/A | S2: N/A | T2: N/A | U2: N/A | V2: N/A | W2: N/A | X2: N/A | Y2: N/A | Z2: N/A | AA2: N/A | AB2: N/A | AC2: N/A | AD2: N/A | AE2: N/A | AF2: N/A
A3: Description | C3: Name | D3: Vector | E3: System | F3: ='Summary of Returns'!C10 -> R | G3: ='Summary of Returns'!C11 -> C1 | H3: ='Summary of Returns'!C12 -> C3 | I3: ='Summary of Returns'!C13 -> D | J3: ='Summary of Returns'!C14 -> D | K3: ='Summary of Returns'!C15 -> I-E | L3: ='Summary of Returns'!C16 -> OL | M3: ='Summary of Returns'!C17 -> 0 | N3: ='Summary of Returns'!C18 -> 0 | O3: ='Summary of Returns'!C19 -> 0 | AG3: Total Check | AH3: Status
A5: Plant in Service
A7: Production & Purchase Power
A8: Demand | C8: PLPPD | D8: PPDA | E8: ='Func & Classif'!H82 -> 0 | F8: =IF(VLOOKUP($D8,$C$5:$AU$500,3,)=0,0,(VLOOKUP($D8,$C$5:$AU$500,4,)/VLOOKUP($D8,$C$5:$AU$500,3,))*$E8) -> 0 | G8: =IF(VLOOKUP($D8,$C$5:$AU$500,3,)=0,0,(VLOOKUP($D8,$C$5:$AU$500,5,)/VLOOKUP($D8,$C$5:$AU$500,3,))*$E8) -> 0 | H8: =IF(VLOOKUP($D8,$C$5:$AU$500,3,)=0,0,(VLOOKUP($D8,$C$5:$AU$500,6,)/VLOOKUP($D8,$C$5:$AU$500,3,))*$E8) -> 0 | I8: =IF(VLOOKUP($D8,$C$5:$AU$500,3,)=0,0,(VLOOKUP($D8,$C$5:$AU$500,7,)/VLOOKUP($D8,$C$5:$AU$500,3,))*$E8) -> 0 | J8: =IF(VLOOKUP($D8,$C$5:$AU$500,3,)=0,0,(VLOOKUP($D8,$C$5:$AU$500,8,)/VLOOKUP($D8,$C$5:$AU$500,3,))*$E8) -> 0 | K8: =IF(VLOOKUP($D8,$C$5:$AU$500,3,)=0,0,(VLOOKUP($D8,$C$5:$AU$500,9,)/VLOOKUP($D8,$C$5:$AU$500,3,))*$E8) -> 0 | L8: =IF(VLOOKUP($D8,$C$5:$AU$500,3,)=0,0,(VLOOKUP($D8,$C$5:$AU$500,10,)/VLOOKUP($D8,$C$5:$AU$500,3,))*$E8) -> 0 | M8: =IF(VLOOKUP($D8,$C$5:$AU$500,3,)=0,0,(VLOOKUP($D8,$C$5:$AU$500,11,)/VLOOKUP($D8,$C$5:$AU$500,3,))*$E8) -> 0 | N8: =IF(VLOOKUP($D8,$C$5:$AU$500,3,)=0,0,(VLOOKUP($D8,$C$5:$AU$500,12,)/VLOOKUP($D8,$C$5:$AU$500,3,))*$E8) -> 0 | O8: =IF(VLOOKUP($D8,$C$5:$AU$500,3,)=0,0,(VLOOKUP($D8,$C$5:$AU$500,13,)/VLOOKUP($D8,$C$5:$AU$500,3,))*$E8) -> 0 | P8: =IF(VLOOKUP($D8,$C$5:$AU$500,3,)=0,0,(VLOOKUP($D8,$C$5:$AU$500,14,)/VLOOKUP($D8,$C$5:$AU$500,3,))*$E8) -> 0 | Q8: =IF(VLOOKUP($D8,$C$5:$AU$500,3,)=0,0,(VLOOKUP($D8,$C$5:$AU$500,15,)/VLOOKUP($D8,$C$5:$AU$500,3,))*$E8) -> 0 | R8: =IF(VLOOKUP($D8,$C$5:$AU$500,3,)=0,0,(VLOOKUP($D8,$C$5:$AU$500,16,)/VLOOKUP($D8,$C$5:$AU$500,3,))*$E8) -> 0 | S8: =IF(VLOOKUP($D8,$C$5:$AU$500,3,)=0,0,(VLOOKUP($D8,$C$5:$AU$500,17,)/VLOOKUP($D8,$C$5:$AU$500,3,))*$E8) -> 0 | T8: =IF(VLOOKUP($D8,$C$5:$AU$500,3,)=0,0,(VLOOKUP($D8,$C$5:$AU$500,18,)/VLOOKUP($D8,$C$5:$AU$500,3,))*$E8) -> 0 | U8: =IF(VLOOKUP($D8,$C$5:$AU$500,3,)=0,0,(VLOOKUP($D8,$C$5:$AU$500,19,)/VLOOKUP($D8,$C$5:$AU$500,3,))*$E8) -> 0 | V8: =IF(VLOOKUP($D8,$C$5:$AU$500,3,)=0,0,(VLOOKUP($D8,$C$5:$AU$500,20,)/VLOOKUP($D8,$C$5:$AU$500,3,))*$E8) -> 0 | W8: =IF(VLOOKUP($D8,$C$5:$AU$500,3,)=0,0,(VLOOKUP($D8,$C$5:$AU$500,21,)/VLOOKUP($D8,$C$5:$AU$500,3,))*$E8) -> 0 | X8: =IF(VLOOKUP($D8,$C$5:$AU$500,3,)=0,0,(VLOOKUP($D8,$C$5:$AU$500,22,)/VLOOKUP($D8,$C$5:$AU$500,3,))*$E8) -> 0 | Y8: =IF(VLOOKUP($D8,$C$5:$AU$500,3,)=0,0,(VLOOKUP($D8,$C$5:$AU$500,23,)/VLOOKUP($D8,$C$5:$AU$500,3,))*$E8) -> 0 | Z8: =IF(VLOOKUP($D8,$C$5:$AU$500,3,)=0,0,(VLOOKUP($D8,$C$5:$AU$500,24,)/VLOOKUP($D8,$C$5:$AU$500,3,))*$E8) -> 0 | AA8: =IF(VLOOKUP($D8,$C$5:$AU$500,3,)=0,0,(VLOOKUP($D8,$C$5:$AU$500,25,)/VLOOKUP($D8,$C$5:$AU$500,3,))*$E8) -> 0 | AB8: =IF(VLOOKUP($D8,$C$5:$AU$500,3,)=0,0,(VLOOKUP($D8,$C$5:$AU$500,26,)/VLOOKUP($D8,$C$5:$AU$500,3,))*$E8) -> 0 | AC8: =IF(VLOOKUP($D8,$C$5:$AU$500,3,)=0,0,(VLOOKUP($D8,$C$5:$AU$500,27,)/VLOOKUP($D8,$C$5:$AU$500,3,))*$E8) -> 0 | AD8: =IF(VLOOKUP($D8,$C$5:$AU$500,3,)=0,0,(VLOOKUP($D8,$C$5:$AU$500,28,)/VLOOKUP($D8,$C$5:$AU$500,3,))*$E8) -> 0 | AE8: =IF(VLOOKUP($D8,$C$5:$AU$500,3,)=0,0,(VLOOKUP($D8,$C$5:$AU$500,29,)/VLOOKUP($D8,$C$5:$AU$500,3,))*$E8) -> 0 | AF8: =IF(VLOOKUP($D8,$C$5:$AU$500,3,)=0,0,(VLOOKUP($D8,$C$5:$AU$500,30,)/VLOOKUP($D8,$C$5:$AU$500,3,))*$E8) -> 0 | AG8: =SUM(F8:AF8) -> 0 | AH8: =IF(ABS(E8-AG8)<0.01,"ok","err") -> ok
A9: Energy | C9: PLPPE | D9: PPEA | E9: ='Func & Classif'!I82 -> 0 | F9: =IF(VLOOKUP($D9,$C$5:$AU$500,3,)=0,0,(VLOOKUP($D9,$C$5:$AU$500,4,)/VLOOKUP($D9,$C$5:$AU$500,3,))*$E9) -> 0 | G9: =IF(VLOOKUP($D9,$C$5:$AU$500,3,)=0,0,(VLOOKUP($D9,$C$5:$AU$500,5,)/VLOOKUP($D9,$C$5:$AU$500,3,))*$E9) -> 0 | H9: =IF(VLOOKUP($D9,$C$5:$AU$500,3,)=0,0,(VLOOKUP($D9,$C$5:$AU$500,6,)/VLOOKUP($D9,$C$5:$AU$500,3,))*$E9) -> 0 | I9: =IF(VLOOKUP($D9,$C$5:$AU$500,3,)=0,0,(VLOOKUP($D9,$C$5:$AU$500,7,)/VLOOKUP($D9,$C$5:$AU$500,3,))*$E9) -> 0 | J9: =IF(VLOOKUP($D9,$C$5:$AU$500,3,)=0,0,(VLOOKUP($D9,$C$5:$AU$500,8,)/VLOOKUP($D9,$C$5:$AU$500,3,))*$E9) -> 0 | K9: =IF(VLOOKUP($D9,$C$5:$AU$500,3,)=0,0,(VLOOKUP($D9,$C$5:$AU$500,9,)/VLOOKUP($D9,$C$5:$AU$500,3,))*$E9) -> 0 | L9: =IF(VLOOKUP($D9,$C$5:$AU$500,3,)=0,0,(VLOOKUP($D9,$C$5:$AU$500,10,)/VLOOKUP($D9,$C$5:$AU$500,3,))*$E9) -> 0 | M9: =IF(VLOOKUP($D9,$C$5:$AU$500,3,)=0,0,(VLOOKUP($D9,$C$5:$AU$500,11,)/VLOOKUP($D9,$C$5:$AU$500,3,))*$E9) -> 0 | N9: =IF(VLOOKUP($D9,$C$5:$AU$500,3,)=0,0,(VLOOKUP($D9,$C$5:$AU$500,12,)/VLOOKUP($D9,$C$5:$AU$500,3,))*$E9) -> 0 | O9: =IF(VLOOKUP($D9,$C$5:$AU$500,3,)=0,0,(VLOOKUP($D9,$C$5:$AU$500,13,)/VLOOKUP($D9,$C$5:$AU$500,3,))*$E9) -> 0 | P9: =IF(VLOOKUP($D9,$C$5:$AU$500,3,)=0,0,(VLOOKUP($D9,$C$5:$AU$500,14,)/VLOOKUP($D9,$C$5:$AU$500,3,))*$E9) -> 0 | Q9: =IF(VLOOKUP($D9,$C$5:$AU$500,3,)=0,0,(VLOOKUP($D9,$C$5:$AU$500,15,)/VLOOKUP($D9,$C$5:$AU$500,3,))*$E9) -> 0 | R9: =IF(VLOOKUP($D9,$C$5:$AU$500,3,)=0,0,(VLOOKUP($D9,$C$5:$AU$500,16,)/VLOOKUP($D9,$C$5:$AU$500,3,))*$E9) -> 0 | S9: =IF(VLOOKUP($D9,$C$5:$AU$500,3,)=0,0,(VLOOKUP($D9,$C$5:$AU$500,17,)/VLOOKUP($D9,$C$5:$AU$500,3,))*$E9) -> 0 | T9: =IF(VLOOKUP($D9,$C$5:$AU$500,3,)=0,0,(VLOOKUP($D9,$C$5:$AU$500,18,)/VLOOKUP($D9,$C$5:$AU$500,3,))*$E9) -> 0 | U9: =IF(VLOOKUP($D9,$C$5:$AU$500,3,)=0,0,(VLOOKUP($D9,$C$5:$AU$500,19,)/VLOOKUP($D9,$C$5:$AU$500,3,))*$E9) -> 0 | V9: =IF(VLOOKUP($D9,$C$5:$AU$500,3,)=0,0,(VLOOKUP($D9,$C$5:$AU$500,20,)/VLOOKUP($D9,$C$5:$AU$500,3,))*$E9) -> 0 | W9: =IF(VLOOKUP($D9,$C$5:$AU$500,3,)=0,0,(VLOOKUP($D9,$C$5:$AU$500,21,)/VLOOKUP($D9,$C$5:$AU$500,3,))*$E9) -> 0 | X9: =IF(VLOOKUP($D9,$C$5:$AU$500,3,)=0,0,(VLOOKUP($D9,$C$5:$AU$500,22,)/VLOOKUP($D9,$C$5:$AU$500,3,))*$E9) -> 0 | Y9: =IF(VLOOKUP($D9,$C$5:$AU$500,3,)=0,0,(VLOOKUP($D9,$C$5:$AU$500,23,)/VLOOKUP($D9,$C$5:$AU$500,3,))*$E9) -> 0 | Z9: =IF(VLOOKUP($D9,$C$5:$AU$500,3,)=0,0,(VLOOKUP($D9,$C$5:$AU$500,24,)/VLOOKUP($D9,$C$5:$AU$500,3,))*$E9) -> 0 | AA9: =IF(VLOOKUP($D9,$C$5:$AU$500,3,)=0,0,(VLOOKUP($D9,$C$5:$AU$500,25,)/VLOOKUP($D9,$C$5:$AU$500,3,))*$E9) -> 0 | AB9: =IF(VLOOKUP($D9,$C$5:$AU$500,3,)=0,0,(VLOOKUP($D9,$C$5:$AU$500,26,)/VLOOKUP($D9,$C$5:$AU$500,3,))*$E9) -> 0 | AC9: =IF(VLOOKUP($D9,$C$5:$AU$500,3,)=0,0,(VLOOKUP($D9,$C$5:$AU$500,27,)/VLOOKUP($D9,$C$5:$AU$500,3,))*$E9) -> 0 | AD9: =IF(VLOOKUP($D9,$C$5:$AU$500,3,)=0,0,(VLOOKUP($D9,$C$5:$AU$500,28,)/VLOOKUP($D9,$C$5:$AU$500,3,))*$E9) -> 0 | AE9: =IF(VLOOKUP($D9,$C$5:$AU$500,3,)=0,0,(VLOOKUP($D9,$C$5:$AU$500,29,)/VLOOKUP($D9,$C$5:$AU$500,3,))*$E9) -> 0 | AF9: =IF(VLOOKUP($D9,$C$5:$AU$500,3,)=0,0,(VLOOKUP($D9,$C$5:$AU$500,30,)/VLOOKUP($D9,$C$5:$AU$500,3,))*$E9) -> 0 | AG9: =SUM(F9:AF9) -> 0 | AH9: =IF(ABS(E9-AG9)<0.01,"ok","err") -> ok
A10: Total Purchase Power | C10: PLPPT | E10: =E8+E9 -> 0 | F10: 0 | G10: 0 | H10: 0 | I10: 0 | J10: 0 | K10: 0 | L10: 0 | M10: 0 | N10: 0 | O10: 0 | P10: 0 | Q10: 0 | R10: 0 | S10: 0 | T10: 0 | U10: =U8+U9 -> 0 | V10: 0 | W10: 0 | X10: 0 | Y10: 0 | Z10: 0 | AA10: 0 | AB10: 0 | AC10: 0 | AD10: 0 | AE10: 0 | AF10: 0 | AG10: =SUM(F10:AF10) -> 0 | AH10: =IF(ABS(E10-AG10)<0.01,"ok","err") -> ok
A12: Transmission
A13: Demand | C13: PLTD | D13: TA1 | E13: ='Func & Classif'!K82 -> 0 | F13: =IF(VLOOKUP($D13,$C$5:$AU$500,3,)=0,0,(VLOOKUP($D13,$C$5:$AU$500,4,)/VLOOKUP($D13,$C$5:$AU$500,3,))*$E13) -> 0 | G13: =IF(VLOOKUP($D13,$C$5:$AU$500,3,)=0,0,(VLOOKUP($D13,$C$5:$AU$500,5,)/VLOOKUP($D13,$C$5:$AU$500,3,))*$E13) -> 0 | H13: =IF(VLOOKUP($D13,$C$5:$AU$500,3,)=0,0,(VLOOKUP($D13,$C$5:$AU$500,6,)/VLOOKUP($D13,$C$5:$AU$500,3,))*$E13) -> 0 | I13: =IF(VLOOKUP($D13,$C$5:$AU$500,3,)=0,0,(VLOOKUP($D13,$C$5:$AU$500,7,)/VLOOKUP($D13,$C$5:$AU$500,3,))*$E13) -> 0 | J13: =IF(VLOOKUP($D13,$C$5:$AU$500,3,)=0,0,(VLOOKUP($D13,$C$5:$AU$500,8,)/VLOOKUP($D13,$C$5:$AU$500,3,))*$E13) -> 0 | K13: =IF(VLOOKUP($D13,$C$5:$AU$500,3,)=0,0,(VLOOKUP($D13,$C$5:$AU$500,9,)/VLOOKUP($D13,$C$5:$AU$500,3,))*$E13) -> 0 | L13: =IF(VLOOKUP($D13,$C$5:$AU$500,3,)=0,0,(VLOOKUP($D13,$C$5:$AU$500,10,)/VLOOKUP($D13,$C$5:$AU$500,3,))*$E13) -> 0 | M13: =IF(VLOOKUP($D13,$C$5:$AU$500,3,)=0,0,(VLOOKUP($D13,$C$5:$AU$500,11,)/VLOOKUP($D13,$C$5:$AU$500,3,))*$E13) -> 0 | N13: =IF(VLOOKUP($D13,$C$5:$AU$500,3,)=0,0,(VLOOKUP($D13,$C$5:$AU$500,12,)/VLOOKUP($D13,$C$5:$AU$500,3,))*$E13) -> 0 | O13: =IF(VLOOKUP($D13,$C$5:$AU$500,3,)=0,0,(VLOOKUP($D13,$C$5:$AU$500,13,)/VLOOKUP($D13,$C$5:$AU$500,3,))*$E13) -> 0 | P13: =IF(VLOOKUP($D13,$C$5:$AU$500,3,)=0,0,(VLOOKUP($D13,$C$5:$AU$500,14,)/VLOOKUP($D13,$C$5:$AU$500,3,))*$E13) -> 0 | Q13: =IF(VLOOKUP($D13,$C$5:$AU$500,3,)=0,0,(VLOOKUP($D13,$C$5:$AU$500,15,)/VLOOKUP($D13,$C$5:$AU$500,3,))*$E13) -> 0 | R13: =IF(VLOOKUP($D13,$C$5:$AU$500,3,)=0,0,(VLOOKUP($D13,$C$5:$AU$500,16,)/VLOOKUP($D13,$C$5:$AU$500,3,))*$E13) -> 0 | S13: =IF(VLOOKUP($D13,$C$5:$AU$500,3,)=0,0,(VLOOKUP($D13,$C$5:$AU$500,17,)/VLOOKUP($D13,$C$5:$AU$500,3,))*$E13) -> 0 | T13: =IF(VLOOKUP($D13,$C$5:$AU$500,3,)=0,0,(VLOOKUP($D13,$C$5:$AU$500,18,)/VLOOKUP($D13,$C$5:$AU$500,3,))*$E13) -> 0 | U13: =IF(VLOOKUP($D13,$C$5:$AU$500,3,)=0,0,(VLOOKUP($D13,$C$5:$AU$500,19,)/VLOOKUP($D13,$C$5:$AU$500,3,))*$E13) -> 0 | V13: =IF(VLOOKUP($D13,$C$5:$AU$500,3,)=0,0,(VLOOKUP($D13,$C$5:$AU$500,20,)/VLOOKUP($D13,$C$5:$AU$500,3,))*$E13) -> 0 | W13: =IF(VLOOKUP($D13,$C$5:$AU$500,3,)=0,0,(VLOOKUP($D13,$C$5:$AU$500,21,)/VLOOKUP($D13,$C$5:$AU$500,3,))*$E13) -> 0 | X13: =IF(VLOOKUP($D13,$C$5:$AU$500,3,)=0,0,(VLOOKUP($D13,$C$5:$AU$500,22,)/VLOOKUP($D13,$C$5:$AU$500,3,))*$E13) -> 0 | Y13: =IF(VLOOKUP($D13,$C$5:$AU$500,3,)=0,0,(VLOOKUP($D13,$C$5:$AU$500,23,)/VLOOKUP($D13,$C$5:$AU$500,3,))*$E13) -> 0 | Z13: =IF(VLOOKUP($D13,$C$5:$AU$500,3,)=0,0,(VLOOKUP($D13,$C$5:$AU$500,24,)/VLOOKUP($D13,$C$5:$AU$500,3,))*$E13) -> 0 | AA13: =IF(VLOOKUP($D13,$C$5:$AU$500,3,)=0,0,(VLOOKUP($D13,$C$5:$AU$500,25,)/VLOOKUP($D13,$C$5:$AU$500,3,))*$E13) -> 0 | AB13: =IF(VLOOKUP($D13,$C$5:$AU$500,3,)=0,0,(VLOOKUP($D13,$C$5:$AU$500,26,)/VLOOKUP($D13,$C$5:$AU$500,3,))*$E13) -> 0 | AC13: =IF(VLOOKUP($D13,$C$5:$AU$500,3,)=0,0,(VLOOKUP($D13,$C$5:$AU$500,27,)/VLOOKUP($D13,$C$5:$AU$500,3,))*$E13) -> 0 | AD13: =IF(VLOOKUP($D13,$C$5:$AU$500,3,)=0,0,(VLOOKUP($D13,$C$5:$AU$500,28,)/VLOOKUP($D13,$C$5:$AU$500,3,))*$E13) -> 0 | AE13: =IF(VLOOKUP($D13,$C$5:$AU$500,3,)=0,0,(VLOOKUP($D13,$C$5:$AU$500,29,)/VLOOKUP($D13,$C$5:$AU$500,3,))*$E13) -> 0 | AF13: =IF(VLOOKUP($D13,$C$5:$AU$500,3,)=0,0,(VLOOKUP($D13,$C$5:$AU$500,30,)/VLOOKUP($D13,$C$5:$AU$500,3,))*$E13) -> 0 | AG13: =SUM(F13:AF13) -> 0 | AH13: =IF(ABS(E13-AG13)<0.01,"ok","err") -> ok
A15: Station Equipment
A16: Demand | C16: PLSED | D16: SA1 | E16: ='Func & Classif'!M82 -> 21825686.11 | F16: =IF(VLOOKUP($D16,$C$5:$AU$500,3,)=0,0,(VLOOKUP($D16,$C$5:$AU$500,4,)/VLOOKUP($D16,$C$5:$AU$500,3,))*$E16) -> 13925363.41 | G16: =IF(VLOOKUP($D16,$C$5:$AU$500,3,)=0,0,(VLOOKUP($D16,$C$5:$AU$500,5,)/VLOOKUP($D16,$C$5:$AU$500,3,))*$E16) -> 1090061.44 | H16: =IF(VLOOKUP($D16,$C$5:$AU$500,3,)=0,0,(VLOOKUP($D16,$C$5:$AU$500,6,)/VLOOKUP($D16,$C$5:$AU$500,3,))*$E16) -> 384350.9002 | I16: =IF(VLOOKUP($D16,$C$5:$AU$500,3,)=0,0,(VLOOKUP($D16,$C$5:$AU$500,7,)/VLOOKUP($D16,$C$5:$AU$500,3,))*$E16) -> 5645466.267 | J16: =IF(VLOOKUP($D16,$C$5:$AU$500,3,)=0,0,(VLOOKUP($D16,$C$5:$AU$500,8,)/VLOOKUP($D16,$C$5:$AU$500,3,))*$E16) -> 58191.50886 | K16: =IF(VLOOKUP($D16,$C$5:$AU$500,3,)=0,0,(VLOOKUP($D16,$C$5:$AU$500,9,)/VLOOKUP($D16,$C$5:$AU$500,3,))*$E16) -> 556796.2776 | L16: =IF(VLOOKUP($D16,$C$5:$AU$500,3,)=0,0,(VLOOKUP($D16,$C$5:$AU$500,10,)/VLOOKUP($D16,$C$5:$AU$500,3,))*$E16) -> 165456.3053 | M16: =IF(VLOOKUP($D16,$C$5:$AU$500,3,)=0,0,(VLOOKUP($D16,$C$5:$AU$500,11,)/VLOOKUP($D16,$C$5:$AU$500,3,))*$E16) -> 0 | N16: =IF(VLOOKUP($D16,$C$5:$AU$500,3,)=0,0,(VLOOKUP($D16,$C$5:$AU$500,12,)/VLOOKUP($D16,$C$5:$AU$500,3,))*$E16) -> 0 | O16: =IF(VLOOKUP($D16,$C$5:$AU$500,3,)=0,0,(VLOOKUP($D16,$C$5:$AU$500,13,)/VLOOKUP($D16,$C$5:$AU$500,3,))*$E16) -> 0 | P16: =IF(VLOOKUP($D16,$C$5:$AU$500,3,)=0,0,(VLOOKUP($D16,$C$5:$AU$500,14,)/VLOOKUP($D16,$C$5:$AU$500,3,))*$E16) -> 0 | Q16: =IF(VLOOKUP($D16,$C$5:$AU$500,3,)=0,0,(VLOOKUP($D16,$C$5:$AU$500,15,)/VLOOKUP($D16,$C$5:$AU$500,3,))*$E16) -> 0 | R16: =IF(VLOOKUP($D16,$C$5:$AU$500,3,)=0,0,(VLOOKUP($D16,$C$5:$AU$500,16,)/VLOOKUP($D16,$C$5:$AU$500,3,))*$E16) -> 0 | S16: =IF(VLOOKUP($D16,$C$5:$AU$500,3,)=0,0,(VLOOKUP($D16,$C$5:$AU$500,17,)/VLOOKUP($D16,$C$5:$AU$500,3,))*$E16) -> 0 | T16: =IF(VLOOKUP($D16,$C$5:$AU$500,3,)=0,0,(VLOOKUP($D16,$C$5:$AU$500,18,)/VLOOKUP($D16,$C$5:$AU$500,3,))*$E16) -> 0 | U16: =IF(VLOOKUP($D16,$C$5:$AU$500,3,)=0,0,(VLOOKUP($D16,$C$5:$AU$500,19,)/VLOOKUP($D16,$C$5:$AU$500,3,))*$E16) -> 0 | V16: =IF(VLOOKUP($D16,$C$5:$AU$500,3,)=0,0,(VLOOKUP($D16,$C$5:$AU$500,20,)/VLOOKUP($D16,$C$5:$AU$500,3,))*$E16) -> 0 | W16: =IF(VLOOKUP($D16,$C$5:$AU$500,3,)=0,0,(VLOOKUP($D16,$C$5:$AU$500,21,)/VLOOKUP($D16,$C$5:$AU$500,3,))*$E16) -> 0 | X16: =IF(VLOOKUP($D16,$C$5:$AU$500,3,)=0,0,(VLOOKUP($D16,$C$5:$AU$500,22,)/VLOOKUP($D16,$C$5:$AU$500,3,))*$E16) -> 0 | Y16: =IF(VLOOKUP($D16,$C$5:$AU$500,3,)=0,0,(VLOOKUP($D16,$C$5:$AU$500,23,)/VLOOKUP($D16,$C$5:$AU$500,3,))*$E16) -> 0 | Z16: =IF(VLOOKUP($D16,$C$5:$AU$500,3,)=0,0,(VLOOKUP($D16,$C$5:$AU$500,24,)/VLOOKUP($D16,$C$5:$AU$500,3,))*$E16) -> 0 | AA16: =IF(VLOOKUP($D16,$C$5:$AU$500,3,)=0,0,(VLOOKUP($D16,$C$5:$AU$500,25,)/VLOOKUP($D16,$C$5:$AU$500,3,))*$E16) -> 0 | AB16: =IF(VLOOKUP($D16,$C$5:$AU$500,3,)=0,0,(VLOOKUP($D16,$C$5:$AU$500,26,)/VLOOKUP($D16,$C$5:$AU$500,3,))*$E16) -> 0 | AC16: =IF(VLOOKUP($D16,$C$5:$AU$500,3,)=0,0,(VLOOKUP($D16,$C$5:$AU$500,27,)/VLOOKUP($D16,$C$5:$AU$500,3,))*$E16) -> 0 | AD16: =IF(VLOOKUP($D16,$C$5:$AU$500,3,)=0,0,(VLOOKUP($D16,$C$5:$AU$500,28,)/VLOOKUP($D16,$C$5:$AU$500,3,))*$E16) -> 0 | AE16: =IF(VLOOKUP($D16,$C$5:$AU$500,3,)=0,0,(VLOOKUP($D16,$C$5:$AU$500,29,)/VLOOKUP($D16,$C$5:$AU$500,3,))*$E16) -> 0 | AF16: =IF(VLOOKUP($D16,$C$5:$AU$500,3,)=0,0,(VLOOKUP($D16,$C$5:$AU$500,30,)/VLOOKUP($D16,$C$5:$AU$500,3,))*$E16) -> 0 | AG16: =SUM(F16:AF16) -> 21825686.11 | AH16: =IF(ABS(E16-AG16)<0.01,"ok","err") -> ok
A18: Primary & Secondary Distribution Plant
A19: Demand | C19: PLDPD | D19: DA1 | E19: ='Func & Classif'!O82 -> 42083054.21 | F19: =IF(VLOOKUP($D19,$C$5:$AU$500,3,)=0,0,(VLOOKUP($D19,$C$5:$AU$500,4,)/VLOOKUP($D19,$C$5:$AU$500,3,))*$E19) -> 26644867.32 | G19: =IF(VLOOKUP($D19,$C$5:$AU$500,3,)=0,0,(VLOOKUP($D19,$C$5:$AU$500,5,)/VLOOKUP($D19,$C$5:$AU$500,3,))*$E19) -> 597656.6511 | H19: =IF(VLOOKUP($D19,$C$5:$AU$500,3,)=0,0,(VLOOKUP($D19,$C$5:$AU$500,6,)/VLOOKUP($D19,$C$5:$AU$500,3,))*$E19) -> 1011464.164 | I19: =IF(VLOOKUP($D19,$C$5:$AU$500,3,)=0,0,(VLOOKUP($D19,$C$5:$AU$500,7,)/VLOOKUP($D19,$C$5:$AU$500,3,))*$E19) -> 12433420.43 | J19: =IF(VLOOKUP($D19,$C$5:$AU$500,3,)=0,0,(VLOOKUP($D19,$C$5:$AU$500,8,)/VLOOKUP($D19,$C$5:$AU$500,3,))*$E19) -> 112110.1487 | K19: =IF(VLOOKUP($D19,$C$5:$AU$500,3,)=0,0,(VLOOKUP($D19,$C$5:$AU$500,9,)/VLOOKUP($D19,$C$5:$AU$500,3,))*$E19) -> 1072708.281 | L19: =IF(VLOOKUP($D19,$C$5:$AU$500,3,)=0,0,(VLOOKUP($D19,$C$5:$AU$500,10,)/VLOOKUP($D19,$C$5:$AU$500,3,))*$E19) -> 210827.2116 | M19: =IF(VLOOKUP($D19,$C$5:$AU$500,3,)=0,0,(VLOOKUP($D19,$C$5:$AU$500,11,)/VLOOKUP($D19,$C$5:$AU$500,3,))*$E19) -> 0 | N19: =IF(VLOOKUP($D19,$C$5:$AU$500,3,)=0,0,(VLOOKUP($D19,$C$5:$AU$500,12,)/VLOOKUP($D19,$C$5:$AU$500,3,))*$E19) -> 0 | O19: =IF(VLOOKUP($D19,$C$5:$AU$500,3,)=0,0,(VLOOKUP($D19,$C$5:$AU$500,13,)/VLOOKUP($D19,$C$5:$AU$500,3,))*$E19) -> 0 | P19: =IF(VLOOKUP($D19,$C$5:$AU$500,3,)=0,0,(VLOOKUP($D19,$C$5:$AU$500,14,)/VLOOKUP($D19,$C$5:$AU$500,3,))*$E19) -> 0 | Q19: =IF(VLOOKUP($D19,$C$5:$AU$500,3,)=0,0,(VLOOKUP($D19,$C$5:$AU$500,15,)/VLOOKUP($D19,$C$5:$AU$500,3,))*$E19) -> 0 | R19: =IF(VLOOKUP($D19,$C$5:$AU$500,3,)=0,0,(VLOOKUP($D19,$C$5:$AU$500,16,)/VLOOKUP($D19,$C$5:$AU$500,3,))*$E19) -> 0 | S19: =IF(VLOOKUP($D19,$C$5:$AU$500,3,)=0,0,(VLOOKUP($D19,$C$5:$AU$500,17,)/VLOOKUP($D19,$C$5:$AU$500,3,))*$E19) -> 0 | T19: =IF(VLOOKUP($D19,$C$5:$AU$500,3,)=0,0,(VLOOKUP($D19,$C$5:$AU$500,18,)/VLOOKUP($D19,$C$5:$AU$500,3,))*$E19) -> 0 | U19: =IF(VLOOKUP($D19,$C$5:$AU$500,3,)=0,0,(VLOOKUP($D19,$C$5:$AU$500,19,)/VLOOKUP($D19,$C$5:$AU$500,3,))*$E19) -> 0 | V19: =IF(VLOOKUP($D19,$C$5:$AU$500,3,)=0,0,(VLOOKUP($D19,$C$5:$AU$500,20,)/VLOOKUP($D19,$C$5:$AU$500,3,))*$E19) -> 0 | W19: =IF(VLOOKUP($D19,$C$5:$AU$500,3,)=0,0,(VLOOKUP($D19,$C$5:$AU$500,21,)/VLOOKUP($D19,$C$5:$AU$500,3,))*$E19) -> 0 | X19: =IF(VLOOKUP($D19,$C$5:$AU$500,3,)=0,0,(VLOOKUP($D19,$C$5:$AU$500,22,)/VLOOKUP($D19,$C$5:$AU$500,3,))*$E19) -> 0 | Y19: =IF(VLOOKUP($D19,$C$5:$AU$500,3,)=0,0,(VLOOKUP($D19,$C$5:$AU$500,23,)/VLOOKUP($D19,$C$5:$AU$500,3,))*$E19) -> 0 | Z19: =IF(VLOOKUP($D19,$C$5:$AU$500,3,)=0,0,(VLOOKUP($D19,$C$5:$AU$500,24,)/VLOOKUP($D19,$C$5:$AU$500,3,))*$E19) -> 0 | AA19: =IF(VLOOKUP($D19,$C$5:$AU$500,3,)=0,0,(VLOOKUP($D19,$C$5:$AU$500,25,)/VLOOKUP($D19,$C$5:$AU$500,3,))*$E19) -> 0 | AB19: =IF(VLOOKUP($D19,$C$5:$AU$500,3,)=0,0,(VLOOKUP($D19,$C$5:$AU$500,26,)/VLOOKUP($D19,$C$5:$AU$500,3,))*$E19) -> 0 | AC19: =IF(VLOOKUP($D19,$C$5:$AU$500,3,)=0,0,(VLOOKUP($D19,$C$5:$AU$500,27,)/VLOOKUP($D19,$C$5:$AU$500,3,))*$E19) -> 0 | AD19: =IF(VLOOKUP($D19,$C$5:$AU$500,3,)=0,0,(VLOOKUP($D19,$C$5:$AU$500,28,)/VLOOKUP($D19,$C$5:$AU$500,3,))*$E19) -> 0 | AE19: =IF(VLOOKUP($D19,$C$5:$AU$500,3,)=0,0,(VLOOKUP($D19,$C$5:$AU$500,29,)/VLOOKUP($D19,$C$5:$AU$500,3,))*$E19) -> 0 | AF19: =IF(VLOOKUP($D19,$C$5:$AU$500,3,)=0,0,(VLOOKUP($D19,$C$5:$AU$500,30,)/VLOOKUP($D19,$C$5:$AU$500,3,))*$E19) -> 0 | AG19: =SUM(F19:AF19) -> 42083054.21 | AH19: =IF(ABS(E19-AG19)<0.01,"ok","err") -> ok
A20: Customer | C20: PLDPC | D20: C01 | E20: ='Func & Classif'!P82 -> 79323964.75 | F20: =IF(VLOOKUP($D20,$C$5:$AU$500,3,)=0,0,(VLOOKUP($D20,$C$5:$AU$500,4,)/VLOOKUP($D20,$C$5:$AU$500,3,))*$E20) -> 67094251.83 | G20: =IF(VLOOKUP($D20,$C$5:$AU$500,3,)=0,0,(VLOOKUP($D20,$C$5:$AU$500,5,)/VLOOKUP($D20,$C$5:$AU$500,3,))*$E20) -> 9077904.334 | H20: =IF(VLOOKUP($D20,$C$5:$AU$500,3,)=0,0,(VLOOKUP($D20,$C$5:$AU$500,6,)/VLOOKUP($D20,$C$5:$AU$500,3,))*$E20) -> 1286874.772 | I20: =IF(VLOOKUP($D20,$C$5:$AU$500,3,)=0,0,(VLOOKUP($D20,$C$5:$AU$500,7,)/VLOOKUP($D20,$C$5:$AU$500,3,))*$E20) -> 1628074.892 | J20: =IF(VLOOKUP($D20,$C$5:$AU$500,3,)=0,0,(VLOOKUP($D20,$C$5:$AU$500,8,)/VLOOKUP($D20,$C$5:$AU$500,3,))*$E20) -> 2641.54931 | K20: =IF(VLOOKUP($D20,$C$5:$AU$500,3,)=0,0,(VLOOKUP($D20,$C$5:$AU$500,9,)/VLOOKUP($D20,$C$5:$AU$500,3,))*$E20) -> 2641.54931 | L20: =IF(VLOOKUP($D20,$C$5:$AU$500,3,)=0,0,(VLOOKUP($D20,$C$5:$AU$500,10,)/VLOOKUP($D20,$C$5:$AU$500,3,))*$E20) -> 231575.8229 | M20: =IF(VLOOKUP($D20,$C$5:$AU$500,3,)=0,0,(VLOOKUP($D20,$C$5:$AU$500,11,)/VLOOKUP($D20,$C$5:$AU$500,3,))*$E20) -> 0 | N20: =IF(VLOOKUP($D20,$C$5:$AU$500,3,)=0,0,(VLOOKUP($D20,$C$5:$AU$500,12,)/VLOOKUP($D20,$C$5:$AU$500,3,))*$E20) -> 0 | O20: =IF(VLOOKUP($D20,$C$5:$AU$500,3,)=0,0,(VLOOKUP($D20,$C$5:$AU$500,13,)/VLOOKUP($D20,$C$5:$AU$500,3,))*$E20) -> 0 | P20: =IF(VLOOKUP($D20,$C$5:$AU$500,3,)=0,0,(VLOOKUP($D20,$C$5:$AU$500,14,)/VLOOKUP($D20,$C$5:$AU$500,3,))*$E20) -> 0 | Q20: =IF(VLOOKUP($D20,$C$5:$AU$500,3,)=0,0,(VLOOKUP($D20,$C$5:$AU$500,15,)/VLOOKUP($D20,$C$5:$AU$500,3,))*$E20) -> 0 | R20: =IF(VLOOKUP($D20,$C$5:$AU$500,3,)=0,0,(VLOOKUP($D20,$C$5:$AU$500,16,)/VLOOKUP($D20,$C$5:$AU$500,3,))*$E20) -> 0 | S20: =IF(VLOOKUP($D20,$C$5:$AU$500,3,)=0,0,(VLOOKUP($D20,$C$5:$AU$500,17,)/VLOOKUP($D20,$C$5:$AU$500,3,))*$E20) -> 0 | T20: =IF(VLOOKUP($D20,$C$5:$AU$500,3,)=0,0,(VLOOKUP($D20,$C$5:$AU$500,18,)/VLOOKUP($D20,$C$5:$AU$500,3,))*$E20) -> 0 | U20: =IF(VLOOKUP($D20,$C$5:$AU$500,3,)=0,0,(VLOOKUP($D20,$C$5:$AU$500,19,)/VLOOKUP($D20,$C$5:$AU$500,3,))*$E20) -> 0 | V20: =IF(VLOOKUP($D20,$C$5:$AU$500,3,)=0,0,(VLOOKUP($D20,$C$5:$AU$500,20,)/VLOOKUP($D20,$C$5:$AU$500,3,))*$E20) -> 0 | W20: =IF(VLOOKUP($D20,$C$5:$AU$500,3,)=0,0,(VLOOKUP($D20,$C$5:$AU$500,21,)/VLOOKUP($D20,$C$5:$AU$500,3,))*$E20) -> 0 | X20: =IF(VLOOKUP($D20,$C$5:$AU$500,3,)=0,0,(VLOOKUP($D20,$C$5:$AU$500,22,)/VLOOKUP($D20,$C$5:$AU$500,3,))*$E20) -> 0 | Y20: =IF(VLOOKUP($D20,$C$5:$AU$500,3,)=0,0,(VLOOKUP($D20,$C$5:$AU$500,23,)/VLOOKUP($D20,$C$5:$AU$500,3,))*$E20) -> 0 | Z20: =IF(VLOOKUP($D20,$C$5:$AU$500,3,)=0,0,(VLOOKUP($D20,$C$5:$AU$500,24,)/VLOOKUP($D20,$C$5:$AU$500,3,))*$E20) -> 0 | AA20: =IF(VLOOKUP($D20,$C$5:$AU$500,3,)=0,0,(VLOOKUP($D20,$C$5:$AU$500,25,)/VLOOKUP($D20,$C$5:$AU$500,3,))*$E20) -> 0 | AB20: =IF(VLOOKUP($D20,$C$5:$AU$500,3,)=0,0,(VLOOKUP($D20,$C$5:$AU$500,26,)/VLOOKUP($D20,$C$5:$AU$500,3,))*$E20) -> 0 | AC20: =IF(VLOOKUP($D20,$C$5:$AU$500,3,)=0,0,(VLOOKUP($D20,$C$5:$AU$500,27,)/VLOOKUP($D20,$C$5:$AU$500,3,))*$E20) -> 0 | AD20: =IF(VLOOKUP($D20,$C$5:$AU$500,3,)=0,0,(VLOOKUP($D20,$C$5:$AU$500,28,)/VLOOKUP($D20,$C$5:$AU$500,3,))*$E20) -> 0 | AE20: =IF(VLOOKUP($D20,$C$5:$AU$500,3,)=0,0,(VLOOKUP($D20,$C$5:$AU$500,29,)/VLOOKUP($D20,$C$5:$AU$500,3,))*$E20) -> 0 | AF20: =IF(VLOOKUP($D20,$C$5:$AU$500,3,)=0,0,(VLOOKUP($D20,$C$5:$AU$500,30,)/VLOOKUP($D20,$C$5:$AU$500,3,))*$E20) -> 0 | AG20: =SUM(F20:AF20) -> 79323964.75 | AH20: =IF(ABS(E20-AG20)<0.01,"ok","err") -> ok
A21: Total Primary Distribution Plant | C21: PLD | E21: =E19+E20 -> 121407019 | F21: 93739119.15 | G21: 9675560.985 | H21: 2298338.936 | I21: 14061495.32 | J21: 114751.698 | K21: 1075349.831 | L21: 442403.0344 | M21: 0 | N21: 0 | O21: 0 | P21: 0 | Q21: 0 | R21: 0 | S21: 0 | T21: 0 | U21: =U19+U20 -> 0 | V21: 0 | W21: 0 | X21: 0 | Y21: 0 | Z21: 0 | AA21: 0 | AB21: 0 | AC21: 0 | AD21: 0 | AE21: 0 | AF21: 0 | AG21: =SUM(F21:AF21) -> 121407019 | AH21: =IF(ABS(E21-AG21)<0.01,"ok","err") -> ok
A23: Customer Services
A24: Demand | C24: PLCSD | D24: CSA | E24: ='Func & Classif'!R82 -> 0 | F24: =IF(VLOOKUP($D24,$C$5:$AU$500,3,)=0,0,(VLOOKUP($D24,$C$5:$AU$500,4,)/VLOOKUP($D24,$C$5:$AU$500,3,))*$E24) -> 0 | G24: =IF(VLOOKUP($D24,$C$5:$AU$500,3,)=0,0,(VLOOKUP($D24,$C$5:$AU$500,5,)/VLOOKUP($D24,$C$5:$AU$500,3,))*$E24) -> 0 | H24: =IF(VLOOKUP($D24,$C$5:$AU$500,3,)=0,0,(VLOOKUP($D24,$C$5:$AU$500,6,)/VLOOKUP($D24,$C$5:$AU$500,3,))*$E24) -> 0 | I24: =IF(VLOOKUP($D24,$C$5:$AU$500,3,)=0,0,(VLOOKUP($D24,$C$5:$AU$500,7,)/VLOOKUP($D24,$C$5:$AU$500,3,))*$E24) -> 0 | J24: =IF(VLOOKUP($D24,$C$5:$AU$500,3,)=0,0,(VLOOKUP($D24,$C$5:$AU$500,8,)/VLOOKUP($D24,$C$5:$AU$500,3,))*$E24) -> 0 | K24: =IF(VLOOKUP($D24,$C$5:$AU$500,3,)=0,0,(VLOOKUP($D24,$C$5:$AU$500,9,)/VLOOKUP($D24,$C$5:$AU$500,3,))*$E24) -> 0 | L24: =IF(VLOOKUP($D24,$C$5:$AU$500,3,)=0,0,(VLOOKUP($D24,$C$5:$AU$500,10,)/VLOOKUP($D24,$C$5:$AU$500,3,))*$E24) -> 0 | M24: =IF(VLOOKUP($D24,$C$5:$AU$500,3,)=0,0,(VLOOKUP($D24,$C$5:$AU$500,11,)/VLOOKUP($D24,$C$5:$AU$500,3,))*$E24) -> 0 | N24: =IF(VLOOKUP($D24,$C$5:$AU$500,3,)=0,0,(VLOOKUP($D24,$C$5:$AU$500,12,)/VLOOKUP($D24,$C$5:$AU$500,3,))*$E24) -> 0 | O24: =IF(VLOOKUP($D24,$C$5:$AU$500,3,)=0,0,(VLOOKUP($D24,$C$5:$AU$500,13,)/VLOOKUP($D24,$C$5:$AU$500,3,))*$E24) -> 0 | P24: =IF(VLOOKUP($D24,$C$5:$AU$500,3,)=0,0,(VLOOKUP($D24,$C$5:$AU$500,14,)/VLOOKUP($D24,$C$5:$AU$500,3,))*$E24) -> 0 | Q24: =IF(VLOOKUP($D24,$C$5:$AU$500,3,)=0,0,(VLOOKUP($D24,$C$5:$AU$500,15,)/VLOOKUP($D24,$C$5:$AU$500,3,))*$E24) -> 0 | R24: =IF(VLOOKUP($D24,$C$5:$AU$500,3,)=0,0,(VLOOKUP($D24,$C$5:$AU$500,16,)/VLOOKUP($D24,$C$5:$AU$500,3,))*$E24) -> 0 | S24: =IF(VLOOKUP($D24,$C$5:$AU$500,3,)=0,0,(VLOOKUP($D24,$C$5:$AU$500,17,)/VLOOKUP($D24,$C$5:$AU$500,3,))*$E24) -> 0 | T24: =IF(VLOOKUP($D24,$C$5:$AU$500,3,)=0,0,(VLOOKUP($D24,$C$5:$AU$500,18,)/VLOOKUP($D24,$C$5:$AU$500,3,))*$E24) -> 0 | U24: =IF(VLOOKUP($D24,$C$5:$AU$500,3,)=0,0,(VLOOKUP($D24,$C$5:$AU$500,19,)/VLOOKUP($D24,$C$5:$AU$500,3,))*$E24) -> 0 | V24: =IF(VLOOKUP($D24,$C$5:$AU$500,3,)=0,0,(VLOOKUP($D24,$C$5:$AU$500,20,)/VLOOKUP($D24,$C$5:$AU$500,3,))*$E24) -> 0 | W24: =IF(VLOOKUP($D24,$C$5:$AU$500,3,)=0,0,(VLOOKUP($D24,$C$5:$AU$500,21,)/VLOOKUP($D24,$C$5:$AU$500,3,))*$E24) -> 0 | X24: =IF(VLOOKUP($D24,$C$5:$AU$500,3,)=0,0,(VLOOKUP($D24,$C$5:$AU$500,22,)/VLOOKUP($D24,$C$5:$AU$500,3,))*$E24) -> 0 | Y24: =IF(VLOOKUP($D24,$C$5:$AU$500,3,)=0,0,(VLOOKUP($D24,$C$5:$AU$500,23,)/VLOOKUP($D24,$C$5:$AU$500,3,))*$E24) -> 0 | Z24: =IF(VLOOKUP($D24,$C$5:$AU$500,3,)=0,0,(VLOOKUP($D24,$C$5:$AU$500,24,)/VLOOKUP($D24,$C$5:$AU$500,3,))*$E24) -> 0 | AA24: =IF(VLOOKUP($D24,$C$5:$AU$500,3,)=0,0,(VLOOKUP($D24,$C$5:$AU$500,25,)/VLOOKUP($D24,$C$5:$AU$500,3,))*$E24) -> 0 | AB24: =IF(VLOOKUP($D24,$C$5:$AU$500,3,)=0,0,(VLOOKUP($D24,$C$5:$AU$500,26,)/VLOOKUP($D24,$C$5:$AU$500,3,))*$E24) -> 0 | AC24: =IF(VLOOKUP($D24,$C$5:$AU$500,3,)=0,0,(VLOOKUP($D24,$C$5:$AU$500,27,)/VLOOKUP($D24,$C$5:$AU$500,3,))*$E24) -> 0 | AD24: =IF(VLOOKUP($D24,$C$5:$AU$500,3,)=0,0,(VLOOKUP($D24,$C$5:$AU$500,28,)/VLOOKUP($D24,$C$5:$AU$500,3,))*$E24) -> 0 | AE24: =IF(VLOOKUP($D24,$C$5:$AU$500,3,)=0,0,(VLOOKUP($D24,$C$5:$AU$500,29,)/VLOOKUP($D24,$C$5:$AU$500,3,))*$E24) -> 0 | AF24: =IF(VLOOKUP($D24,$C$5:$AU$500,3,)=0,0,(VLOOKUP($D24,$C$5:$AU$500,30,)/VLOOKUP($D24,$C$5:$AU$500,3,))*$E24) -> 0 | AG24: =SUM(F24:AF24) -> 0 | AH24: =IF(ABS(E24-AG24)<0.01,"ok","err") -> ok
A25: Customer | C25: PLCSC | D25: SERV | E25: ='Func & Classif'!S82 -> 11509940.22 | F25: =IF(VLOOKUP($D25,$C$5:$AU$500,3,)=0,0,(VLOOKUP($D25,$C$5:$AU$500,4,)/VLOOKUP($D25,$C$5:$AU$500,3,))*$E25) -> 9214168.475 | G25: =IF(VLOOKUP($D25,$C$5:$AU$500,3,)=0,0,(VLOOKUP($D25,$C$5:$AU$500,5,)/VLOOKUP($D25,$C$5:$AU$500,3,))*$E25) -> 1424781.879 | H25: =IF(VLOOKUP($D25,$C$5:$AU$500,3,)=0,0,(VLOOKUP($D25,$C$5:$AU$500,6,)/VLOOKUP($D25,$C$5:$AU$500,3,))*$E25) -> 252469.5939 | I25: =IF(VLOOKUP($D25,$C$5:$AU$500,3,)=0,0,(VLOOKUP($D25,$C$5:$AU$500,7,)/VLOOKUP($D25,$C$5:$AU$500,3,))*$E25) -> 479113.5262 | J25: =IF(VLOOKUP($D25,$C$5:$AU$500,3,)=0,0,(VLOOKUP($D25,$C$5:$AU$500,8,)/VLOOKUP($D25,$C$5:$AU$500,3,))*$E25) -> 1554.722097 | K25: =IF(VLOOKUP($D25,$C$5:$AU$500,3,)=0,0,(VLOOKUP($D25,$C$5:$AU$500,9,)/VLOOKUP($D25,$C$5:$AU$500,3,))*$E25) -> 1554.722097 | L25: =IF(VLOOKUP($D25,$C$5:$AU$500,3,)=0,0,(VLOOKUP($D25,$C$5:$AU$500,10,)/VLOOKUP($D25,$C$5:$AU$500,3,))*$E25) -> 136297.3038 | M25: =IF(VLOOKUP($D25,$C$5:$AU$500,3,)=0,0,(VLOOKUP($D25,$C$5:$AU$500,11,)/VLOOKUP($D25,$C$5:$AU$500,3,))*$E25) -> 0 | N25: =IF(VLOOKUP($D25,$C$5:$AU$500,3,)=0,0,(VLOOKUP($D25,$C$5:$AU$500,12,)/VLOOKUP($D25,$C$5:$AU$500,3,))*$E25) -> 0 | O25: =IF(VLOOKUP($D25,$C$5:$AU$500,3,)=0,0,(VLOOKUP($D25,$C$5:$AU$500,13,)/VLOOKUP($D25,$C$5:$AU$500,3,))*$E25) -> 0 | P25: =IF(VLOOKUP($D25,$C$5:$AU$500,3,)=0,0,(VLOOKUP($D25,$C$5:$AU$500,14,)/VLOOKUP($D25,$C$5:$AU$500,3,))*$E25) -> 0 | Q25: =IF(VLOOKUP($D25,$C$5:$AU$500,3,)=0,0,(VLOOKUP($D25,$C$5:$AU$500,15,)/VLOOKUP($D25,$C$5:$AU$500,3,))*$E25) -> 0 | R25: =IF(VLOOKUP($D25,$C$5:$AU$500,3,)=0,0,(VLOOKUP($D25,$C$5:$AU$500,16,)/VLOOKUP($D25,$C$5:$AU$500,3,))*$E25) -> 0 | S25: =IF(VLOOKUP($D25,$C$5:$AU$500,3,)=0,0,(VLOOKUP($D25,$C$5:$AU$500,17,)/VLOOKUP($D25,$C$5:$AU$500,3,))*$E25) -> 0 | T25: =IF(VLOOKUP($D25,$C$5:$AU$500,3,)=0,0,(VLOOKUP($D25,$C$5:$AU$500,18,)/VLOOKUP($D25,$C$5:$AU$500,3,))*$E25) -> 0 | U25: =IF(VLOOKUP($D25,$C$5:$AU$500,3,)=0,0,(VLOOKUP($D25,$C$5:$AU$500,19,)/VLOOKUP($D25,$C$5:$AU$500,3,))*$E25) -> 0 | V25: =IF(VLOOKUP($D25,$C$5:$AU$500,3,)=0,0,(VLOOKUP($D25,$C$5:$AU$500,20,)/VLOOKUP($D25,$C$5:$AU$500,3,))*$E25) -> 0 | W25: =IF(VLOOKUP($D25,$C$5:$AU$500,3,)=0,0,(VLOOKUP($D25,$C$5:$AU$500,21,)/VLOOKUP($D25,$C$5:$AU$500,3,))*$E25) -> 0 | X25: =IF(VLOOKUP($D25,$C$5:$AU$500,3,)=0,0,(VLOOKUP($D25,$C$5:$AU$500,22,)/VLOOKUP($D25,$C$5:$AU$500,3,))*$E25) -> 0 | Y25: =IF(VLOOKUP($D25,$C$5:$AU$500,3,)=0,0,(VLOOKUP($D25,$C$5:$AU$500,23,)/VLOOKUP($D25,$C$5:$AU$500,3,))*$E25) -> 0 | Z25: =IF(VLOOKUP($D25,$C$5:$AU$500,3,)=0,0,(VLOOKUP($D25,$C$5:$AU$500,24,)/VLOOKUP($D25,$C$5:$AU$500,3,))*$E25) -> 0 | AA25: =IF(VLOOKUP($D25,$C$5:$AU$500,3,)=0,0,(VLOOKUP($D25,$C$5:$AU$500,25,)/VLOOKUP($D25,$C$5:$AU$500,3,))*$E25) -> 0 | AB25: =IF(VLOOKUP($D25,$C$5:$AU$500,3,)=0,0,(VLOOKUP($D25,$C$5:$AU$500,26,)/VLOOKUP($D25,$C$5:$AU$500,3,))*$E25) -> 0 | AC25: =IF(VLOOKUP($D25,$C$5:$AU$500,3,)=0,0,(VLOOKUP($D25,$C$5:$AU$500,27,)/VLOOKUP($D25,$C$5:$AU$500,3,))*$E25) -> 0 | AD25: =IF(VLOOKUP($D25,$C$5:$AU$500,3,)=0,0,(VLOOKUP($D25,$C$5:$AU$500,28,)/VLOOKUP($D25,$C$5:$AU$500,3,))*$E25) -> 0 | AE25: =IF(VLOOKUP($D25,$C$5:$AU$500,3,)=0,0,(VLOOKUP($D25,$C$5:$AU$500,29,)/VLOOKUP($D25,$C$5:$AU$500,3,))*$E25) -> 0 | AF25: =IF(VLOOKUP($D25,$C$5:$AU$500,3,)=0,0,(VLOOKUP($D25,$C$5:$AU$500,30,)/VLOOKUP($D25,$C$5:$AU$500,3,))*$E25) -> 0 | AG25: =SUM(F25:AF25) -> 11509940.22 | AH25: =IF(ABS(E25-AG25)<0.01,"ok","err") -> ok
A26: Total Customer Services | E26: =E24+E25 -> 11509940.22 | F26: 9214168.475 | G26: 1424781.879 | H26: 252469.5939 | I26: 479113.5262 | J26: 1554.722097 | K26: 1554.722097 | L26: 136297.3038 | M26: 0 | N26: 0 | O26: 0 | P26: 0 | Q26: 0 | R26: 0 | S26: 0 | T26: 0 | U26: =U24+U25 -> 0 | V26: 0 | W26: 0 | X26: 0 | Y26: 0 | Z26: 0 | AA26: 0 | AB26: 0 | AC26: 0 | AD26: 0 | AE26: 0 | AF26: 0 | AG26: =SUM(F26:AF26) -> 11509940.22 | AH26: =IF(ABS(E26-AG26)<0.01,"ok","err") -> ok
A28: Meters
A29: Customer | C29: PLMC | D29: C03 | E29: ='Func & Classif'!U82 -> 9474353.166 | F29: =IF(VLOOKUP($D29,$C$5:$AU$500,3,)=0,0,(VLOOKUP($D29,$C$5:$AU$500,4,)/VLOOKUP($D29,$C$5:$AU$500,3,))*$E29) -> 5478639.154 | G29: =IF(VLOOKUP($D29,$C$5:$AU$500,3,)=0,0,(VLOOKUP($D29,$C$5:$AU$500,5,)/VLOOKUP($D29,$C$5:$AU$500,3,))*$E29) -> 1630781.083 | H29: =IF(VLOOKUP($D29,$C$5:$AU$500,3,)=0,0,(VLOOKUP($D29,$C$5:$AU$500,6,)/VLOOKUP($D29,$C$5:$AU$500,3,))*$E29) -> 580046.4155 | I29: =IF(VLOOKUP($D29,$C$5:$AU$500,3,)=0,0,(VLOOKUP($D29,$C$5:$AU$500,7,)/VLOOKUP($D29,$C$5:$AU$500,3,))*$E29) -> 1382595.377 | J29: =IF(VLOOKUP($D29,$C$5:$AU$500,3,)=0,0,(VLOOKUP($D29,$C$5:$AU$500,8,)/VLOOKUP($D29,$C$5:$AU$500,3,))*$E29) -> 4486.518259 | K29: =IF(VLOOKUP($D29,$C$5:$AU$500,3,)=0,0,(VLOOKUP($D29,$C$5:$AU$500,9,)/VLOOKUP($D29,$C$5:$AU$500,3,))*$E29) -> 4486.518259 | L29: =IF(VLOOKUP($D29,$C$5:$AU$500,3,)=0,0,(VLOOKUP($D29,$C$5:$AU$500,10,)/VLOOKUP($D29,$C$5:$AU$500,3,))*$E29) -> 393318.1007 | M29: =IF(VLOOKUP($D29,$C$5:$AU$500,3,)=0,0,(VLOOKUP($D29,$C$5:$AU$500,11,)/VLOOKUP($D29,$C$5:$AU$500,3,))*$E29) -> 0 | N29: =IF(VLOOKUP($D29,$C$5:$AU$500,3,)=0,0,(VLOOKUP($D29,$C$5:$AU$500,12,)/VLOOKUP($D29,$C$5:$AU$500,3,))*$E29) -> 0 | O29: =IF(VLOOKUP($D29,$C$5:$AU$500,3,)=0,0,(VLOOKUP($D29,$C$5:$AU$500,13,)/VLOOKUP($D29,$C$5:$AU$500,3,))*$E29) -> 0 | P29: =IF(VLOOKUP($D29,$C$5:$AU$500,3,)=0,0,(VLOOKUP($D29,$C$5:$AU$500,14,)/VLOOKUP($D29,$C$5:$AU$500,3,))*$E29) -> 0 | Q29: =IF(VLOOKUP($D29,$C$5:$AU$500,3,)=0,0,(VLOOKUP($D29,$C$5:$AU$500,15,)/VLOOKUP($D29,$C$5:$AU$500,3,))*$E29) -> 0 | R29: =IF(VLOOKUP($D29,$C$5:$AU$500,3,)=0,0,(VLOOKUP($D29,$C$5:$AU$500,16,)/VLOOKUP($D29,$C$5:$AU$500,3,))*$E29) -> 0 | S29: =IF(VLOOKUP($D29,$C$5:$AU$500,3,)=0,0,(VLOOKUP($D29,$C$5:$AU$500,17,)/VLOOKUP($D29,$C$5:$AU$500,3,))*$E29) -> 0 | T29: =IF(VLOOKUP($D29,$C$5:$AU$500,3,)=0,0,(VLOOKUP($D29,$C$5:$AU$500,18,)/VLOOKUP($D29,$C$5:$AU$500,3,))*$E29) -> 0 | U29: =IF(VLOOKUP($D29,$C$5:$AU$500,3,)=0,0,(VLOOKUP($D29,$C$5:$AU$500,19,)/VLOOKUP($D29,$C$5:$AU$500,3,))*$E29) -> 0 | V29: =IF(VLOOKUP($D29,$C$5:$AU$500,3,)=0,0,(VLOOKUP($D29,$C$5:$AU$500,20,)/VLOOKUP($D29,$C$5:$AU$500,3,))*$E29) -> 0 | W29: =IF(VLOOKUP($D29,$C$5:$AU$500,3,)=0,0,(VLOOKUP($D29,$C$5:$AU$500,21,)/VLOOKUP($D29,$C$5:$AU$500,3,))*$E29) -> 0 | X29: =IF(VLOOKUP($D29,$C$5:$AU$500,3,)=0,0,(VLOOKUP($D29,$C$5:$AU$500,22,)/VLOOKUP($D29,$C$5:$AU$500,3,))*$E29) -> 0 | Y29: =IF(VLOOKUP($D29,$C$5:$AU$500,3,)=0,0,(VLOOKUP($D29,$C$5:$AU$500,23,)/VLOOKUP($D29,$C$5:$AU$500,3,))*$E29) -> 0 | Z29: =IF(VLOOKUP($D29,$C$5:$AU$500,3,)=0,0,(VLOOKUP($D29,$C$5:$AU$500,24,)/VLOOKUP($D29,$C$5:$AU$500,3,))*$E29) -> 0 | AA29: =IF(VLOOKUP($D29,$C$5:$AU$500,3,)=0,0,(VLOOKUP($D29,$C$5:$AU$500,25,)/VLOOKUP($D29,$C$5:$AU$500,3,))*$E29) -> 0 | AB29: =IF(VLOOKUP($D29,$C$5:$AU$500,3,)=0,0,(VLOOKUP($D29,$C$5:$AU$500,26,)/VLOOKUP($D29,$C$5:$AU$500,3,))*$E29) -> 0 | AC29: =IF(VLOOKUP($D29,$C$5:$AU$500,3,)=0,0,(VLOOKUP($D29,$C$5:$AU$500,27,)/VLOOKUP($D29,$C$5:$AU$500,3,))*$E29) -> 0 | AD29: =IF(VLOOKUP($D29,$C$5:$AU$500,3,)=0,0,(VLOOKUP($D29,$C$5:$AU$500,28,)/VLOOKUP($D29,$C$5:$AU$500,3,))*$E29) -> 0 | AE29: =IF(VLOOKUP($D29,$C$5:$AU$500,3,)=0,0,(VLOOKUP($D29,$C$5:$AU$500,29,)/VLOOKUP($D29,$C$5:$AU$500,3,))*$E29) -> 0 | AF29: =IF(VLOOKUP($D29,$C$5:$AU$500,3,)=0,0,(VLOOKUP($D29,$C$5:$AU$500,30,)/VLOOKUP($D29,$C$5:$AU$500,3,))*$E29) -> 0 | AG29: =SUM(F29:AF29) -> 9474353.166 | AH29: =IF(ABS(E29-AG29)<0.01,"ok","err") -> ok
A31: Lighting Systems
A32: Customer | C32: PLLSC | D32: C04 | E32: ='Func & Classif'!W82 -> 3502174.511 | F32: =IF(VLOOKUP($D32,$C$5:$AU$500,3,)=0,0,(VLOOKUP($D32,$C$5:$AU$500,4,)/VLOOKUP($D32,$C$5:$AU$500,3,))*$E32) -> 0 | G32: =IF(VLOOKUP($D32,$C$5:$AU$500,3,)=0,0,(VLOOKUP($D32,$C$5:$AU$500,5,)/VLOOKUP($D32,$C$5:$AU$500,3,))*$E32) -> 0 | H32: =IF(VLOOKUP($D32,$C$5:$AU$500,3,)=0,0,(VLOOKUP($D32,$C$5:$AU$500,6,)/VLOOKUP($D32,$C$5:$AU$500,3,))*$E32) -> 0 | I32: =IF(VLOOKUP($D32,$C$5:$AU$500,3,)=0,0,(VLOOKUP($D32,$C$5:$AU$500,7,)/VLOOKUP($D32,$C$5:$AU$500,3,))*$E32) -> 0 | J32: =IF(VLOOKUP($D32,$C$5:$AU$500,3,)=0,0,(VLOOKUP($D32,$C$5:$AU$500,8,)/VLOOKUP($D32,$C$5:$AU$500,3,))*$E32) -> 0 | K32: =IF(VLOOKUP($D32,$C$5:$AU$500,3,)=0,0,(VLOOKUP($D32,$C$5:$AU$500,9,)/VLOOKUP($D32,$C$5:$AU$500,3,))*$E32) -> 0 | L32: =IF(VLOOKUP($D32,$C$5:$AU$500,3,)=0,0,(VLOOKUP($D32,$C$5:$AU$500,10,)/VLOOKUP($D32,$C$5:$AU$500,3,))*$E32) -> 3502174.511 | M32: =IF(VLOOKUP($D32,$C$5:$AU$500,3,)=0,0,(VLOOKUP($D32,$C$5:$AU$500,11,)/VLOOKUP($D32,$C$5:$AU$500,3,))*$E32) -> 0 | N32: =IF(VLOOKUP($D32,$C$5:$AU$500,3,)=0,0,(VLOOKUP($D32,$C$5:$AU$500,12,)/VLOOKUP($D32,$C$5:$AU$500,3,))*$E32) -> 0 | O32: =IF(VLOOKUP($D32,$C$5:$AU$500,3,)=0,0,(VLOOKUP($D32,$C$5:$AU$500,13,)/VLOOKUP($D32,$C$5:$AU$500,3,))*$E32) -> 0 | P32: =IF(VLOOKUP($D32,$C$5:$AU$500,3,)=0,0,(VLOOKUP($D32,$C$5:$AU$500,14,)/VLOOKUP($D32,$C$5:$AU$500,3,))*$E32) -> 0 | Q32: =IF(VLOOKUP($D32,$C$5:$AU$500,3,)=0,0,(VLOOKUP($D32,$C$5:$AU$500,15,)/VLOOKUP($D32,$C$5:$AU$500,3,))*$E32) -> 0 | R32: =IF(VLOOKUP($D32,$C$5:$AU$500,3,)=0,0,(VLOOKUP($D32,$C$5:$AU$500,16,)/VLOOKUP($D32,$C$5:$AU$500,3,))*$E32) -> 0 | S32: =IF(VLOOKUP($D32,$C$5:$AU$500,3,)=0,0,(VLOOKUP($D32,$C$5:$AU$500,17,)/VLOOKUP($D32,$C$5:$AU$500,3,))*$E32) -> 0 | T32: =IF(VLOOKUP($D32,$C$5:$AU$500,3,)=0,0,(VLOOKUP($D32,$C$5:$AU$500,18,)/VLOOKUP($D32,$C$5:$AU$500,3,))*$E32) -> 0 | U32: =IF(VLOOKUP($D32,$C$5:$AU$500,3,)=0,0,(VLOOKUP($D32,$C$5:$AU$500,19,)/VLOOKUP($D32,$C$5:$AU$500,3,))*$E32) -> 0 | V32: =IF(VLOOKUP($D32,$C$5:$AU$500,3,)=0,0,(VLOOKUP($D32,$C$5:$AU$500,20,)/VLOOKUP($D32,$C$5:$AU$500,3,))*$E32) -> 0 | W32: =IF(VLOOKUP($D32,$C$5:$AU$500,3,)=0,0,(VLOOKUP($D32,$C$5:$AU$500,21,)/VLOOKUP($D32,$C$5:$AU$500,3,))*$E32) -> 0 | X32: =IF(VLOOKUP($D32,$C$5:$AU$500,3,)=0,0,(VLOOKUP($D32,$C$5:$AU$500,22,)/VLOOKUP($D32,$C$5:$AU$500,3,))*$E32) -> 0 | Y32: =IF(VLOOKUP($D32,$C$5:$AU$500,3,)=0,0,(VLOOKUP($D32,$C$5:$AU$500,23,)/VLOOKUP($D32,$C$5:$AU$500,3,))*$E32) -> 0 | Z32: =IF(VLOOKUP($D32,$C$5:$AU$500,3,)=0,0,(VLOOKUP($D32,$C$5:$AU$500,24,)/VLOOKUP($D32,$C$5:$AU$500,3,))*$E32) -> 0 | AA32: =IF(VLOOKUP($D32,$C$5:$AU$500,3,)=0,0,(VLOOKUP($D32,$C$5:$AU$500,25,)/VLOOKUP($D32,$C$5:$AU$500,3,))*$E32) -> 0 | AB32: =IF(VLOOKUP($D32,$C$5:$AU$500,3,)=0,0,(VLOOKUP($D32,$C$5:$AU$500,26,)/VLOOKUP($D32,$C$5:$AU$500,3,))*$E32) -> 0 | AC32: =IF(VLOOKUP($D32,$C$5:$AU$500,3,)=0,0,(VLOOKUP($D32,$C$5:$AU$500,27,)/VLOOKUP($D32,$C$5:$AU$500,3,))*$E32) -> 0 | AD32: =IF(VLOOKUP($D32,$C$5:$AU$500,3,)=0,0,(VLOOKUP($D32,$C$5:$AU$500,28,)/VLOOKUP($D32,$C$5:$AU$500,3,))*$E32) -> 0 | AE32: =IF(VLOOKUP($D32,$C$5:$AU$500,3,)=0,0,(VLOOKUP($D32,$C$5:$AU$500,29,)/VLOOKUP($D32,$C$5:$AU$500,3,))*$E32) -> 0 | AF32: =IF(VLOOKUP($D32,$C$5:$AU$500,3,)=0,0,(VLOOKUP($D32,$C$5:$AU$500,30,)/VLOOKUP($D32,$C$5:$AU$500,3,))*$E32) -> 0 | AG32: =SUM(F32:AF32) -> 3502174.511 | AH32: =IF(ABS(E32-AG32)<0.01,"ok","err") -> ok
A34: Meter Reading, Billing and Customer Service
A35: Customer | C35: PLMRBC | D35: C05 | E35: ='Func & Classif'!Y82 -> 0 | F35: =IF(VLOOKUP($D35,$C$5:$AU$500,3,)=0,0,(VLOOKUP($D35,$C$5:$AU$500,4,)/VLOOKUP($D35,$C$5:$AU$500,3,))*$E35) -> 0 | G35: =IF(VLOOKUP($D35,$C$5:$AU$500,3,)=0,0,(VLOOKUP($D35,$C$5:$AU$500,5,)/VLOOKUP($D35,$C$5:$AU$500,3,))*$E35) -> 0 | H35: =IF(VLOOKUP($D35,$C$5:$AU$500,3,)=0,0,(VLOOKUP($D35,$C$5:$AU$500,6,)/VLOOKUP($D35,$C$5:$AU$500,3,))*$E35) -> 0 | I35: =IF(VLOOKUP($D35,$C$5:$AU$500,3,)=0,0,(VLOOKUP($D35,$C$5:$AU$500,7,)/VLOOKUP($D35,$C$5:$AU$500,3,))*$E35) -> 0 | J35: =IF(VLOOKUP($D35,$C$5:$AU$500,3,)=0,0,(VLOOKUP($D35,$C$5:$AU$500,8,)/VLOOKUP($D35,$C$5:$AU$500,3,))*$E35) -> 0 | K35: =IF(VLOOKUP($D35,$C$5:$AU$500,3,)=0,0,(VLOOKUP($D35,$C$5:$AU$500,9,)/VLOOKUP($D35,$C$5:$AU$500,3,))*$E35) -> 0 | L35: =IF(VLOOKUP($D35,$C$5:$AU$500,3,)=0,0,(VLOOKUP($D35,$C$5:$AU$500,10,)/VLOOKUP($D35,$C$5:$AU$500,3,))*$E35) -> 0 | M35: =IF(VLOOKUP($D35,$C$5:$AU$500,3,)=0,0,(VLOOKUP($D35,$C$5:$AU$500,11,)/VLOOKUP($D35,$C$5:$AU$500,3,))*$E35) -> 0 | N35: =IF(VLOOKUP($D35,$C$5:$AU$500,3,)=0,0,(VLOOKUP($D35,$C$5:$AU$500,12,)/VLOOKUP($D35,$C$5:$AU$500,3,))*$E35) -> 0 | O35: =IF(VLOOKUP($D35,$C$5:$AU$500,3,)=0,0,(VLOOKUP($D35,$C$5:$AU$500,13,)/VLOOKUP($D35,$C$5:$AU$500,3,))*$E35) -> 0 | P35: =IF(VLOOKUP($D35,$C$5:$AU$500,3,)=0,0,(VLOOKUP($D35,$C$5:$AU$500,14,)/VLOOKUP($D35,$C$5:$AU$500,3,))*$E35) -> 0 | Q35: =IF(VLOOKUP($D35,$C$5:$AU$500,3,)=0,0,(VLOOKUP($D35,$C$5:$AU$500,15,)/VLOOKUP($D35,$C$5:$AU$500,3,))*$E35) -> 0 | R35: =IF(VLOOKUP($D35,$C$5:$AU$500,3,)=0,0,(VLOOKUP($D35,$C$5:$AU$500,16,)/VLOOKUP($D35,$C$5:$AU$500,3,))*$E35) -> 0 | S35: =IF(VLOOKUP($D35,$C$5:$AU$500,3,)=0,0,(VLOOKUP($D35,$C$5:$AU$500,17,)/VLOOKUP($D35,$C$5:$AU$500,3,))*$E35) -> 0 | T35: =IF(VLOOKUP($D35,$C$5:$AU$500,3,)=0,0,(VLOOKUP($D35,$C$5:$AU$500,18,)/VLOOKUP($D35,$C$5:$AU$500,3,))*$E35) -> 0 | U35: =IF(VLOOKUP($D35,$C$5:$AU$500,3,)=0,0,(VLOOKUP($D35,$C$5:$AU$500,19,)/VLOOKUP($D35,$C$5:$AU$500,3,))*$E35) -> 0 | V35: =IF(VLOOKUP($D35,$C$5:$AU$500,3,)=0,0,(VLOOKUP($D35,$C$5:$AU$500,20,)/VLOOKUP($D35,$C$5:$AU$500,3,))*$E35) -> 0 | W35: =IF(VLOOKUP($D35,$C$5:$AU$500,3,)=0,0,(VLOOKUP($D35,$C$5:$AU$500,21,)/VLOOKUP($D35,$C$5:$AU$500,3,))*$E35) -> 0 | X35: =IF(VLOOKUP($D35,$C$5:$AU$500,3,)=0,0,(VLOOKUP($D35,$C$5:$AU$500,22,)/VLOOKUP($D35,$C$5:$AU$500,3,))*$E35) -> 0 | Y35: =IF(VLOOKUP($D35,$C$5:$AU$500,3,)=0,0,(VLOOKUP($D35,$C$5:$AU$500,23,)/VLOOKUP($D35,$C$5:$AU$500,3,))*$E35) -> 0 | Z35: =IF(VLOOKUP($D35,$C$5:$AU$500,3,)=0,0,(VLOOKUP($D35,$C$5:$AU$500,24,)/VLOOKUP($D35,$C$5:$AU$500,3,))*$E35) -> 0 | AA35: =IF(VLOOKUP($D35,$C$5:$AU$500,3,)=0,0,(VLOOKUP($D35,$C$5:$AU$500,25,)/VLOOKUP($D35,$C$5:$AU$500,3,))*$E35) -> 0 | AB35: =IF(VLOOKUP($D35,$C$5:$AU$500,3,)=0,0,(VLOOKUP($D35,$C$5:$AU$500,26,)/VLOOKUP($D35,$C$5:$AU$500,3,))*$E35) -> 0 | AC35: =IF(VLOOKUP($D35,$C$5:$AU$500,3,)=0,0,(VLOOKUP($D35,$C$5:$AU$500,27,)/VLOOKUP($D35,$C$5:$AU$500,3,))*$E35) -> 0 | AD35: =IF(VLOOKUP($D35,$C$5:$AU$500,3,)=0,0,(VLOOKUP($D35,$C$5:$AU$500,28,)/VLOOKUP($D35,$C$5:$AU$500,3,))*$E35) -> 0 | AE35: =IF(VLOOKUP($D35,$C$5:$AU$500,3,)=0,0,(VLOOKUP($D35,$C$5:$AU$500,29,)/VLOOKUP($D35,$C$5:$AU$500,3,))*$E35) -> 0 | AF35: =IF(VLOOKUP($D35,$C$5:$AU$500,3,)=0,0,(VLOOKUP($D35,$C$5:$AU$500,30,)/VLOOKUP($D35,$C$5:$AU$500,3,))*$E35) -> 0 | AG35: =SUM(F35:AF35) -> 0 | AH35: =IF(ABS(E35-AG35)<0.01,"ok","err") -> ok
A37: Load Management
A38: Customer | C38: PLCSC | D38: C06 | E38: ='Func & Classif'!AA82 -> 0 | F38: =IF(VLOOKUP($D38,$C$5:$AU$500,3,)=0,0,(VLOOKUP($D38,$C$5:$AU$500,4,)/VLOOKUP($D38,$C$5:$AU$500,3,))*$E38) -> 0 | G38: =IF(VLOOKUP($D38,$C$5:$AU$500,3,)=0,0,(VLOOKUP($D38,$C$5:$AU$500,5,)/VLOOKUP($D38,$C$5:$AU$500,3,))*$E38) -> 0 | H38: =IF(VLOOKUP($D38,$C$5:$AU$500,3,)=0,0,(VLOOKUP($D38,$C$5:$AU$500,6,)/VLOOKUP($D38,$C$5:$AU$500,3,))*$E38) -> 0 | I38: =IF(VLOOKUP($D38,$C$5:$AU$500,3,)=0,0,(VLOOKUP($D38,$C$5:$AU$500,7,)/VLOOKUP($D38,$C$5:$AU$500,3,))*$E38) -> 0 | J38: =IF(VLOOKUP($D38,$C$5:$AU$500,3,)=0,0,(VLOOKUP($D38,$C$5:$AU$500,8,)/VLOOKUP($D38,$C$5:$AU$500,3,))*$E38) -> 0 | K38: =IF(VLOOKUP($D38,$C$5:$AU$500,3,)=0,0,(VLOOKUP($D38,$C$5:$AU$500,9,)/VLOOKUP($D38,$C$5:$AU$500,3,))*$E38) -> 0 | L38: =IF(VLOOKUP($D38,$C$5:$AU$500,3,)=0,0,(VLOOKUP($D38,$C$5:$AU$500,10,)/VLOOKUP($D38,$C$5:$AU$500,3,))*$E38) -> 0 | M38: =IF(VLOOKUP($D38,$C$5:$AU$500,3,)=0,0,(VLOOKUP($D38,$C$5:$AU$500,11,)/VLOOKUP($D38,$C$5:$AU$500,3,))*$E38) -> 0 | N38: =IF(VLOOKUP($D38,$C$5:$AU$500,3,)=0,0,(VLOOKUP($D38,$C$5:$AU$500,12,)/VLOOKUP($D38,$C$5:$AU$500,3,))*$E38) -> 0 | O38: =IF(VLOOKUP($D38,$C$5:$AU$500,3,)=0,0,(VLOOKUP($D38,$C$5:$AU$500,13,)/VLOOKUP($D38,$C$5:$AU$500,3,))*$E38) -> 0 | P38: =IF(VLOOKUP($D38,$C$5:$AU$500,3,)=0,0,(VLOOKUP($D38,$C$5:$AU$500,14,)/VLOOKUP($D38,$C$5:$AU$500,3,))*$E38) -> 0 | Q38: =IF(VLOOKUP($D38,$C$5:$AU$500,3,)=0,0,(VLOOKUP($D38,$C$5:$AU$500,15,)/VLOOKUP($D38,$C$5:$AU$500,3,))*$E38) -> 0 | R38: =IF(VLOOKUP($D38,$C$5:$AU$500,3,)=0,0,(VLOOKUP($D38,$C$5:$AU$500,16,)/VLOOKUP($D38,$C$5:$AU$500,3,))*$E38) -> 0 | S38: =IF(VLOOKUP($D38,$C$5:$AU$500,3,)=0,0,(VLOOKUP($D38,$C$5:$AU$500,17,)/VLOOKUP($D38,$C$5:$AU$500,3,))*$E38) -> 0 | T38: =IF(VLOOKUP($D38,$C$5:$AU$500,3,)=0,0,(VLOOKUP($D38,$C$5:$AU$500,18,)/VLOOKUP($D38,$C$5:$AU$500,3,))*$E38) -> 0 | U38: =IF(VLOOKUP($D38,$C$5:$AU$500,3,)=0,0,(VLOOKUP($D38,$C$5:$AU$500,19,)/VLOOKUP($D38,$C$5:$AU$500,3,))*$E38) -> 0 | V38: =IF(VLOOKUP($D38,$C$5:$AU$500,3,)=0,0,(VLOOKUP($D38,$C$5:$AU$500,20,)/VLOOKUP($D38,$C$5:$AU$500,3,))*$E38) -> 0 | W38: =IF(VLOOKUP($D38,$C$5:$AU$500,3,)=0,0,(VLOOKUP($D38,$C$5:$AU$500,21,)/VLOOKUP($D38,$C$5:$AU$500,3,))*$E38) -> 0 | X38: =IF(VLOOKUP($D38,$C$5:$AU$500,3,)=0,0,(VLOOKUP($D38,$C$5:$AU$500,22,)/VLOOKUP($D38,$C$5:$AU$500,3,))*$E38) -> 0 | Y38: =IF(VLOOKUP($D38,$C$5:$AU$500,3,)=0,0,(VLOOKUP($D38,$C$5:$AU$500,23,)/VLOOKUP($D38,$C$5:$AU$500,3,))*$E38) -> 0 | Z38: =IF(VLOOKUP($D38,$C$5:$AU$500,3,)=0,0,(VLOOKUP($D38,$C$5:$AU$500,24,)/VLOOKUP($D38,$C$5:$AU$500,3,))*$E38) -> 0 | AA38: =IF(VLOOKUP($D38,$C$5:$AU$500,3,)=0,0,(VLOOKUP($D38,$C$5:$AU$500,25,)/VLOOKUP($D38,$C$5:$AU$500,3,))*$E38) -> 0 | AB38: =IF(VLOOKUP($D38,$C$5:$AU$500,3,)=0,0,(VLOOKUP($D38,$C$5:$AU$500,26,)/VLOOKUP($D38,$C$5:$AU$500,3,))*$E38) -> 0 | AC38: =IF(VLOOKUP($D38,$C$5:$AU$500,3,)=0,0,(VLOOKUP($D38,$C$5:$AU$500,27,)/VLOOKUP($D38,$C$5:$AU$500,3,))*$E38) -> 0 | AD38: =IF(VLOOKUP($D38,$C$5:$AU$500,3,)=0,0,(VLOOKUP($D38,$C$5:$AU$500,28,)/VLOOKUP($D38,$C$5:$AU$500,3,))*$E38) -> 0 | AE38: =IF(VLOOKUP($D38,$C$5:$AU$500,3,)=0,0,(VLOOKUP($D38,$C$5:$AU$500,29,)/VLOOKUP($D38,$C$5:$AU$500,3,))*$E38) -> 0 | AF38: =IF(VLOOKUP($D38,$C$5:$AU$500,3,)=0,0,(VLOOKUP($D38,$C$5:$AU$500,30,)/VLOOKUP($D38,$C$5:$AU$500,3,))*$E38) -> 0 | AG38: =SUM(F38:AF38) -> 0 | AH38: =IF(ABS(E38-AG38)<0.01,"ok","err") -> ok
A40: Total | C40: PLT | E40: =E10+E13+E16+E21+E26+E29+E32+E35+E38 -> 167719173 | F40: =F10+F13+F16+F21+F26+F29+F32+F35+F38 -> 122357290.2 | G40: 13821185.39 | H40: 3515205.846 | I40: 21568670.49 | J40: 178984.4472 | K40: 1638187.349 | L40: 4639649.256 | M40: 0 | N40: 0 | O40: 0 | P40: 0 | Q40: 0 | R40: 0 | S40: =S10+S16+S21+S26+S29+S32+S35+S38 -> 0 | T40: 0 | U40: 0 | V40: 0 | W40: 0 | X40: 0 | Y40: 0 | Z40: 0 | AA40: 0 | AB40: 0 | AC40: 0 | AD40: 0 | AE40: 0 | AF40: 0 | AG40: =SUM(F40:AF40) -> 167719173 | AH40: =IF(ABS(E40-AG40)<0.01,"ok","err") -> ok
A44: Net Utility Plant
A46: Production & Purchase Power
A47: Demand | C47: NPPPD | D47: PPDA | E47: ='Func & Classif'!H126 -> 0 | F47: =IF(VLOOKUP($D47,$C$5:$AU$500,3,)=0,0,(VLOOKUP($D47,$C$5:$AU$500,4,)/VLOOKUP($D47,$C$5:$AU$500,3,))*$E47) -> 0 | G47: =IF(VLOOKUP($D47,$C$5:$AU$500,3,)=0,0,(VLOOKUP($D47,$C$5:$AU$500,5,)/VLOOKUP($D47,$C$5:$AU$500,3,))*$E47) -> 0 | H47: =IF(VLOOKUP($D47,$C$5:$AU$500,3,)=0,0,(VLOOKUP($D47,$C$5:$AU$500,6,)/VLOOKUP($D47,$C$5:$AU$500,3,))*$E47) -> 0 | I47: =IF(VLOOKUP($D47,$C$5:$AU$500,3,)=0,0,(VLOOKUP($D47,$C$5:$AU$500,7,)/VLOOKUP($D47,$C$5:$AU$500,3,))*$E47) -> 0 | J47: =IF(VLOOKUP($D47,$C$5:$AU$500,3,)=0,0,(VLOOKUP($D47,$C$5:$AU$500,8,)/VLOOKUP($D47,$C$5:$AU$500,3,))*$E47) -> 0 | K47: =IF(VLOOKUP($D47,$C$5:$AU$500,3,)=0,0,(VLOOKUP($D47,$C$5:$AU$500,9,)/VLOOKUP($D47,$C$5:$AU$500,3,))*$E47) -> 0 | L47: =IF(VLOOKUP($D47,$C$5:$AU$500,3,)=0,0,(VLOOKUP($D47,$C$5:$AU$500,10,)/VLOOKUP($D47,$C$5:$AU$500,3,))*$E47) -> 0 | M47: =IF(VLOOKUP($D47,$C$5:$AU$500,3,)=0,0,(VLOOKUP($D47,$C$5:$AU$500,11,)/VLOOKUP($D47,$C$5:$AU$500,3,))*$E47) -> 0 | N47: =IF(VLOOKUP($D47,$C$5:$AU$500,3,)=0,0,(VLOOKUP($D47,$C$5:$AU$500,12,)/VLOOKUP($D47,$C$5:$AU$500,3,))*$E47) -> 0 | O47: =IF(VLOOKUP($D47,$C$5:$AU$500,3,)=0,0,(VLOOKUP($D47,$C$5:$AU$500,13,)/VLOOKUP($D47,$C$5:$AU$500,3,))*$E47) -> 0 | P47: =IF(VLOOKUP($D47,$C$5:$AU$500,3,)=0,0,(VLOOKUP($D47,$C$5:$AU$500,14,)/VLOOKUP($D47,$C$5:$AU$500,3,))*$E47) -> 0 | Q47: =IF(VLOOKUP($D47,$C$5:$AU$500,3,)=0,0,(VLOOKUP($D47,$C$5:$AU$500,15,)/VLOOKUP($D47,$C$5:$AU$500,3,))*$E47) -> 0 | R47: =IF(VLOOKUP($D47,$C$5:$AU$500,3,)=0,0,(VLOOKUP($D47,$C$5:$AU$500,16,)/VLOOKUP($D47,$C$5:$AU$500,3,))*$E47) -> 0 | S47: =IF(VLOOKUP($D47,$C$5:$AU$500,3,)=0,0,(VLOOKUP($D47,$C$5:$AU$500,17,)/VLOOKUP($D47,$C$5:$AU$500,3,))*$E47) -> 0 | T47: =IF(VLOOKUP($D47,$C$5:$AU$500,3,)=0,0,(VLOOKUP($D47,$C$5:$AU$500,18,)/VLOOKUP($D47,$C$5:$AU$500,3,))*$E47) -> 0 | U47: =IF(VLOOKUP($D47,$C$5:$AU$500,3,)=0,0,(VLOOKUP($D47,$C$5:$AU$500,19,)/VLOOKUP($D47,$C$5:$AU$500,3,))*$E47) -> 0 | V47: =IF(VLOOKUP($D47,$C$5:$AU$500,3,)=0,0,(VLOOKUP($D47,$C$5:$AU$500,20,)/VLOOKUP($D47,$C$5:$AU$500,3,))*$E47) -> 0 | W47: =IF(VLOOKUP($D47,$C$5:$AU$500,3,)=0,0,(VLOOKUP($D47,$C$5:$AU$500,21,)/VLOOKUP($D47,$C$5:$AU$500,3,))*$E47) -> 0 | X47: =IF(VLOOKUP($D47,$C$5:$AU$500,3,)=0,0,(VLOOKUP($D47,$C$5:$AU$500,22,)/VLOOKUP($D47,$C$5:$AU$500,3,))*$E47) -> 0 | Y47: =IF(VLOOKUP($D47,$C$5:$AU$500,3,)=0,0,(VLOOKUP($D47,$C$5:$AU$500,23,)/VLOOKUP($D47,$C$5:$AU$500,3,))*$E47) -> 0 | Z47: =IF(VLOOKUP($D47,$C$5:$AU$500,3,)=0,0,(VLOOKUP($D47,$C$5:$AU$500,24,)/VLOOKUP($D47,$C$5:$AU$500,3,))*$E47) -> 0 | AA47: =IF(VLOOKUP($D47,$C$5:$AU$500,3,)=0,0,(VLOOKUP($D47,$C$5:$AU$500,25,)/VLOOKUP($D47,$C$5:$AU$500,3,))*$E47) -> 0 | AB47: =IF(VLOOKUP($D47,$C$5:$AU$500,3,)=0,0,(VLOOKUP($D47,$C$5:$AU$500,26,)/VLOOKUP($D47,$C$5:$AU$500,3,))*$E47) -> 0 | AC47: =IF(VLOOKUP($D47,$C$5:$AU$500,3,)=0,0,(VLOOKUP($D47,$C$5:$AU$500,27,)/VLOOKUP($D47,$C$5:$AU$500,3,))*$E47) -> 0 | AD47: =IF(VLOOKUP($D47,$C$5:$AU$500,3,)=0,0,(VLOOKUP($D47,$C$5:$AU$500,28,)/VLOOKUP($D47,$C$5:$AU$500,3,))*$E47) -> 0 | AE47: =IF(VLOOKUP($D47,$C$5:$AU$500,3,)=0,0,(VLOOKUP($D47,$C$5:$AU$500,29,)/VLOOKUP($D47,$C$5:$AU$500,3,))*$E47) -> 0 | AF47: =IF(VLOOKUP($D47,$C$5:$AU$500,3,)=0,0,(VLOOKUP($D47,$C$5:$AU$500,30,)/VLOOKUP($D47,$C$5:$AU$500,3,))*$E47) -> 0 | AG47: =SUM(F47:AF47) -> 0 | AH47: =IF(ABS(E47-AG47)<0.01,"ok","err") -> ok
A48: Energy | C48: NPPPE | D48: PPEA | E48: ='Func & Classif'!I126 -> 0 | F48: =IF(VLOOKUP($D48,$C$5:$AU$500,3,)=0,0,(VLOOKUP($D48,$C$5:$AU$500,4,)/VLOOKUP($D48,$C$5:$AU$500,3,))*$E48) -> 0 | G48: =IF(VLOOKUP($D48,$C$5:$AU$500,3,)=0,0,(VLOOKUP($D48,$C$5:$AU$500,5,)/VLOOKUP($D48,$C$5:$AU$500,3,))*$E48) -> 0 | H48: =IF(VLOOKUP($D48,$C$5:$AU$500,3,)=0,0,(VLOOKUP($D48,$C$5:$AU$500,6,)/VLOOKUP($D48,$C$5:$AU$500,3,))*$E48) -> 0 | I48: =IF(VLOOKUP($D48,$C$5:$AU$500,3,)=0,0,(VLOOKUP($D48,$C$5:$AU$500,7,)/VLOOKUP($D48,$C$5:$AU$500,3,))*$E48) -> 0 | J48: =IF(VLOOKUP($D48,$C$5:$AU$500,3,)=0,0,(VLOOKUP($D48,$C$5:$AU$500,8,)/VLOOKUP($D48,$C$5:$AU$500,3,))*$E48) -> 0 | K48: =IF(VLOOKUP($D48,$C$5:$AU$500,3,)=0,0,(VLOOKUP($D48,$C$5:$AU$500,9,)/VLOOKUP($D48,$C$5:$AU$500,3,))*$E48) -> 0 | L48: =IF(VLOOKUP($D48,$C$5:$AU$500,3,)=0,0,(VLOOKUP($D48,$C$5:$AU$500,10,)/VLOOKUP($D48,$C$5:$AU$500,3,))*$E48) -> 0 | M48: =IF(VLOOKUP($D48,$C$5:$AU$500,3,)=0,0,(VLOOKUP($D48,$C$5:$AU$500,11,)/VLOOKUP($D48,$C$5:$AU$500,3,))*$E48) -> 0 | N48: =IF(VLOOKUP($D48,$C$5:$AU$500,3,)=0,0,(VLOOKUP($D48,$C$5:$AU$500,12,)/VLOOKUP($D48,$C$5:$AU$500,3,))*$E48) -> 0 | O48: =IF(VLOOKUP($D48,$C$5:$AU$500,3,)=0,0,(VLOOKUP($D48,$C$5:$AU$500,13,)/VLOOKUP($D48,$C$5:$AU$500,3,))*$E48) -> 0 | P48: =IF(VLOOKUP($D48,$C$5:$AU$500,3,)=0,0,(VLOOKUP($D48,$C$5:$AU$500,14,)/VLOOKUP($D48,$C$5:$AU$500,3,))*$E48) -> 0 | Q48: =IF(VLOOKUP($D48,$C$5:$AU$500,3,)=0,0,(VLOOKUP($D48,$C$5:$AU$500,15,)/VLOOKUP($D48,$C$5:$AU$500,3,))*$E48) -> 0 | R48: =IF(VLOOKUP($D48,$C$5:$AU$500,3,)=0,0,(VLOOKUP($D48,$C$5:$AU$500,16,)/VLOOKUP($D48,$C$5:$AU$500,3,))*$E48) -> 0 | S48: =IF(VLOOKUP($D48,$C$5:$AU$500,3,)=0,0,(VLOOKUP($D48,$C$5:$AU$500,17,)/VLOOKUP($D48,$C$5:$AU$500,3,))*$E48) -> 0 | T48: =IF(VLOOKUP($D48,$C$5:$AU$500,3,)=0,0,(VLOOKUP($D48,$C$5:$AU$500,18,)/VLOOKUP($D48,$C$5:$AU$500,3,))*$E48) -> 0 | U48: =IF(VLOOKUP($D48,$C$5:$AU$500,3,)=0,0,(VLOOKUP($D48,$C$5:$AU$500,19,)/VLOOKUP($D48,$C$5:$AU$500,3,))*$E48) -> 0 | V48: =IF(VLOOKUP($D48,$C$5:$AU$500,3,)=0,0,(VLOOKUP($D48,$C$5:$AU$500,20,)/VLOOKUP($D48,$C$5:$AU$500,3,))*$E48) -> 0 | W48: =IF(VLOOKUP($D48,$C$5:$AU$500,3,)=0,0,(VLOOKUP($D48,$C$5:$AU$500,21,)/VLOOKUP($D48,$C$5:$AU$500,3,))*$E48) -> 0 | X48: =IF(VLOOKUP($D48,$C$5:$AU$500,3,)=0,0,(VLOOKUP($D48,$C$5:$AU$500,22,)/VLOOKUP($D48,$C$5:$AU$500,3,))*$E48) -> 0 | Y48: =IF(VLOOKUP($D48,$C$5:$AU$500,3,)=0,0,(VLOOKUP($D48,$C$5:$AU$500,23,)/VLOOKUP($D48,$C$5:$AU$500,3,))*$E48) -> 0 | Z48: =IF(VLOOKUP($D48,$C$5:$AU$500,3,)=0,0,(VLOOKUP($D48,$C$5:$AU$500,24,)/VLOOKUP($D48,$C$5:$AU$500,3,))*$E48) -> 0 | AA48: =IF(VLOOKUP($D48,$C$5:$AU$500,3,)=0,0,(VLOOKUP($D48,$C$5:$AU$500,25,)/VLOOKUP($D48,$C$5:$AU$500,3,))*$E48) -> 0 | AB48: =IF(VLOOKUP($D48,$C$5:$AU$500,3,)=0,0,(VLOOKUP($D48,$C$5:$AU$500,26,)/VLOOKUP($D48,$C$5:$AU$500,3,))*$E48) -> 0 | AC48: =IF(VLOOKUP($D48,$C$5:$AU$500,3,)=0,0,(VLOOKUP($D48,$C$5:$AU$500,27,)/VLOOKUP($D48,$C$5:$AU$500,3,))*$E48) -> 0 | AD48: =IF(VLOOKUP($D48,$C$5:$AU$500,3,)=0,0,(VLOOKUP($D48,$C$5:$AU$500,28,)/VLOOKUP($D48,$C$5:$AU$500,3,))*$E48) -> 0 | AE48: =IF(VLOOKUP($D48,$C$5:$AU$500,3,)=0,0,(VLOOKUP($D48,$C$5:$AU$500,29,)/VLOOKUP($D48,$C$5:$AU$500,3,))*$E48) -> 0 | AF48: =IF(VLOOKUP($D48,$C$5:$AU$500,3,)=0,0,(VLOOKUP($D48,$C$5:$AU$500,30,)/VLOOKUP($D48,$C$5:$AU$500,3,))*$E48) -> 0 | AG48: =SUM(F48:AF48) -> 0 | AH48: =IF(ABS(E48-AG48)<0.01,"ok","err") -> ok
A49: Total Purchase Power | C49: NPPPT | E49: =E47+E48 -> 0 | F49: 0 | G49: 0 | H49: 0 | I49: 0 | J49: 0 | K49: 0 | L49: 0 | M49: 0 | N49: 0 | O49: 0 | P49: 0 | Q49: 0 | R49: 0 | S49: 0 | T49: 0 | U49: =U47+U48 -> 0 | V49: 0 | W49: 0 | X49: 0 | Y49: 0 | Z49: 0 | AA49: 0 | AB49: 0 | AC49: 0 | AD49: 0 | AE49: 0 | AF49: 0 | AG49: =SUM(F49:AF49) -> 0 | AH49: =IF(ABS(E49-AG49)<0.01,"ok","err") -> ok
A51: Transmission
A52: Demand | C52: NPTD | D52: TA1 | E52: ='Func & Classif'!K126 -> 0 | F52: =IF(VLOOKUP($D52,$C$5:$AU$500,3,)=0,0,(VLOOKUP($D52,$C$5:$AU$500,4,)/VLOOKUP($D52,$C$5:$AU$500,3,))*$E52) -> 0 | G52: =IF(VLOOKUP($D52,$C$5:$AU$500,3,)=0,0,(VLOOKUP($D52,$C$5:$AU$500,5,)/VLOOKUP($D52,$C$5:$AU$500,3,))*$E52) -> 0 | H52: =IF(VLOOKUP($D52,$C$5:$AU$500,3,)=0,0,(VLOOKUP($D52,$C$5:$AU$500,6,)/VLOOKUP($D52,$C$5:$AU$500,3,))*$E52) -> 0 | I52: =IF(VLOOKUP($D52,$C$5:$AU$500,3,)=0,0,(VLOOKUP($D52,$C$5:$AU$500,7,)/VLOOKUP($D52,$C$5:$AU$500,3,))*$E52) -> 0 | J52: =IF(VLOOKUP($D52,$C$5:$AU$500,3,)=0,0,(VLOOKUP($D52,$C$5:$AU$500,8,)/VLOOKUP($D52,$C$5:$AU$500,3,))*$E52) -> 0 | K52: =IF(VLOOKUP($D52,$C$5:$AU$500,3,)=0,0,(VLOOKUP($D52,$C$5:$AU$500,9,)/VLOOKUP($D52,$C$5:$AU$500,3,))*$E52) -> 0 | L52: =IF(VLOOKUP($D52,$C$5:$AU$500,3,)=0,0,(VLOOKUP($D52,$C$5:$AU$500,10,)/VLOOKUP($D52,$C$5:$AU$500,3,))*$E52) -> 0 | M52: =IF(VLOOKUP($D52,$C$5:$AU$500,3,)=0,0,(VLOOKUP($D52,$C$5:$AU$500,11,)/VLOOKUP($D52,$C$5:$AU$500,3,))*$E52) -> 0 | N52: =IF(VLOOKUP($D52,$C$5:$AU$500,3,)=0,0,(VLOOKUP($D52,$C$5:$AU$500,12,)/VLOOKUP($D52,$C$5:$AU$500,3,))*$E52) -> 0 | O52: =IF(VLOOKUP($D52,$C$5:$AU$500,3,)=0,0,(VLOOKUP($D52,$C$5:$AU$500,13,)/VLOOKUP($D52,$C$5:$AU$500,3,))*$E52) -> 0 | P52: =IF(VLOOKUP($D52,$C$5:$AU$500,3,)=0,0,(VLOOKUP($D52,$C$5:$AU$500,14,)/VLOOKUP($D52,$C$5:$AU$500,3,))*$E52) -> 0 | Q52: =IF(VLOOKUP($D52,$C$5:$AU$500,3,)=0,0,(VLOOKUP($D52,$C$5:$AU$500,15,)/VLOOKUP($D52,$C$5:$AU$500,3,))*$E52) -> 0 | R52: =IF(VLOOKUP($D52,$C$5:$AU$500,3,)=0,0,(VLOOKUP($D52,$C$5:$AU$500,16,)/VLOOKUP($D52,$C$5:$AU$500,3,))*$E52) -> 0 | S52: =IF(VLOOKUP($D52,$C$5:$AU$500,3,)=0,0,(VLOOKUP($D52,$C$5:$AU$500,17,)/VLOOKUP($D52,$C$5:$AU$500,3,))*$E52) -> 0 | T52: =IF(VLOOKUP($D52,$C$5:$AU$500,3,)=0,0,(VLOOKUP($D52,$C$5:$AU$500,18,)/VLOOKUP($D52,$C$5:$AU$500,3,))*$E52) -> 0 | U52: =IF(VLOOKUP($D52,$C$5:$AU$500,3,)=0,0,(VLOOKUP($D52,$C$5:$AU$500,19,)/VLOOKUP($D52,$C$5:$AU$500,3,))*$E52) -> 0 | V52: =IF(VLOOKUP($D52,$C$5:$AU$500,3,)=0,0,(VLOOKUP($D52,$C$5:$AU$500,20,)/VLOOKUP($D52,$C$5:$AU$500,3,))*$E52) -> 0 | W52: =IF(VLOOKUP($D52,$C$5:$AU$500,3,)=0,0,(VLOOKUP($D52,$C$5:$AU$500,21,)/VLOOKUP($D52,$C$5:$AU$500,3,))*$E52) -> 0 | X52: =IF(VLOOKUP($D52,$C$5:$AU$500,3,)=0,0,(VLOOKUP($D52,$C$5:$AU$500,22,)/VLOOKUP($D52,$C$5:$AU$500,3,))*$E52) -> 0 | Y52: =IF(VLOOKUP($D52,$C$5:$AU$500,3,)=0,0,(VLOOKUP($D52,$C$5:$AU$500,23,)/VLOOKUP($D52,$C$5:$AU$500,3,))*$E52) -> 0 | Z52: =IF(VLOOKUP($D52,$C$5:$AU$500,3,)=0,0,(VLOOKUP($D52,$C$5:$AU$500,24,)/VLOOKUP($D52,$C$5:$AU$500,3,))*$E52) -> 0 | AA52: =IF(VLOOKUP($D52,$C$5:$AU$500,3,)=0,0,(VLOOKUP($D52,$C$5:$AU$500,25,)/VLOOKUP($D52,$C$5:$AU$500,3,))*$E52) -> 0 | AB52: =IF(VLOOKUP($D52,$C$5:$AU$500,3,)=0,0,(VLOOKUP($D52,$C$5:$AU$500,26,)/VLOOKUP($D52,$C$5:$AU$500,3,))*$E52) -> 0 | AC52: =IF(VLOOKUP($D52,$C$5:$AU$500,3,)=0,0,(VLOOKUP($D52,$C$5:$AU$500,27,)/VLOOKUP($D52,$C$5:$AU$500,3,))*$E52) -> 0 | AD52: =IF(VLOOKUP($D52,$C$5:$AU$500,3,)=0,0,(VLOOKUP($D52,$C$5:$AU$500,28,)/VLOOKUP($D52,$C$5:$AU$500,3,))*$E52) -> 0 | AE52: =IF(VLOOKUP($D52,$C$5:$AU$500,3,)=0,0,(VLOOKUP($D52,$C$5:$AU$500,29,)/VLOOKUP($D52,$C$5:$AU$500,3,))*$E52) -> 0 | AF52: =IF(VLOOKUP($D52,$C$5:$AU$500,3,)=0,0,(VLOOKUP($D52,$C$5:$AU$500,30,)/VLOOKUP($D52,$C$5:$AU$500,3,))*$E52) -> 0 | AG52: =SUM(F52:AF52) -> 0 | AH52: =IF(ABS(E52-AG52)<0.01,"ok","err") -> ok
A54: Station Equipment
A55: Demand | C55: NPSED | D55: SA1 | E55: ='Func & Classif'!M126 -> 16718857.36 | F55: =IF(VLOOKUP($D55,$C$5:$AU$500,3,)=0,0,(VLOOKUP($D55,$C$5:$AU$500,4,)/VLOOKUP($D55,$C$5:$AU$500,3,))*$E55) -> 10667071.97 | G55: =IF(VLOOKUP($D55,$C$5:$AU$500,3,)=0,0,(VLOOKUP($D55,$C$5:$AU$500,5,)/VLOOKUP($D55,$C$5:$AU$500,3,))*$E55) -> 835006.1314 | H55: =IF(VLOOKUP($D55,$C$5:$AU$500,3,)=0,0,(VLOOKUP($D55,$C$5:$AU$500,6,)/VLOOKUP($D55,$C$5:$AU$500,3,))*$E55) -> 294419.513 | I55: =IF(VLOOKUP($D55,$C$5:$AU$500,3,)=0,0,(VLOOKUP($D55,$C$5:$AU$500,7,)/VLOOKUP($D55,$C$5:$AU$500,3,))*$E55) -> 4324525.917 | J55: =IF(VLOOKUP($D55,$C$5:$AU$500,3,)=0,0,(VLOOKUP($D55,$C$5:$AU$500,8,)/VLOOKUP($D55,$C$5:$AU$500,3,))*$E55) -> 44575.71374 | K55: =IF(VLOOKUP($D55,$C$5:$AU$500,3,)=0,0,(VLOOKUP($D55,$C$5:$AU$500,9,)/VLOOKUP($D55,$C$5:$AU$500,3,))*$E55) -> 426515.6888 | L55: =IF(VLOOKUP($D55,$C$5:$AU$500,3,)=0,0,(VLOOKUP($D55,$C$5:$AU$500,10,)/VLOOKUP($D55,$C$5:$AU$500,3,))*$E55) -> 126742.4242 | M55: =IF(VLOOKUP($D55,$C$5:$AU$500,3,)=0,0,(VLOOKUP($D55,$C$5:$AU$500,11,)/VLOOKUP($D55,$C$5:$AU$500,3,))*$E55) -> 0 | N55: =IF(VLOOKUP($D55,$C$5:$AU$500,3,)=0,0,(VLOOKUP($D55,$C$5:$AU$500,12,)/VLOOKUP($D55,$C$5:$AU$500,3,))*$E55) -> 0 | O55: =IF(VLOOKUP($D55,$C$5:$AU$500,3,)=0,0,(VLOOKUP($D55,$C$5:$AU$500,13,)/VLOOKUP($D55,$C$5:$AU$500,3,))*$E55) -> 0 | P55: =IF(VLOOKUP($D55,$C$5:$AU$500,3,)=0,0,(VLOOKUP($D55,$C$5:$AU$500,14,)/VLOOKUP($D55,$C$5:$AU$500,3,))*$E55) -> 0 | Q55: =IF(VLOOKUP($D55,$C$5:$AU$500,3,)=0,0,(VLOOKUP($D55,$C$5:$AU$500,15,)/VLOOKUP($D55,$C$5:$AU$500,3,))*$E55) -> 0 | R55: =IF(VLOOKUP($D55,$C$5:$AU$500,3,)=0,0,(VLOOKUP($D55,$C$5:$AU$500,16,)/VLOOKUP($D55,$C$5:$AU$500,3,))*$E55) -> 0 | S55: =IF(VLOOKUP($D55,$C$5:$AU$500,3,)=0,0,(VLOOKUP($D55,$C$5:$AU$500,17,)/VLOOKUP($D55,$C$5:$AU$500,3,))*$E55) -> 0 | T55: =IF(VLOOKUP($D55,$C$5:$AU$500,3,)=0,0,(VLOOKUP($D55,$C$5:$AU$500,18,)/VLOOKUP($D55,$C$5:$AU$500,3,))*$E55) -> 0 | U55: =IF(VLOOKUP($D55,$C$5:$AU$500,3,)=0,0,(VLOOKUP($D55,$C$5:$AU$500,19,)/VLOOKUP($D55,$C$5:$AU$500,3,))*$E55) -> 0 | V55: =IF(VLOOKUP($D55,$C$5:$AU$500,3,)=0,0,(VLOOKUP($D55,$C$5:$AU$500,20,)/VLOOKUP($D55,$C$5:$AU$500,3,))*$E55) -> 0 | W55: =IF(VLOOKUP($D55,$C$5:$AU$500,3,)=0,0,(VLOOKUP($D55,$C$5:$AU$500,21,)/VLOOKUP($D55,$C$5:$AU$500,3,))*$E55) -> 0 | X55: =IF(VLOOKUP($D55,$C$5:$AU$500,3,)=0,0,(VLOOKUP($D55,$C$5:$AU$500,22,)/VLOOKUP($D55,$C$5:$AU$500,3,))*$E55) -> 0 | Y55: =IF(VLOOKUP($D55,$C$5:$AU$500,3,)=0,0,(VLOOKUP($D55,$C$5:$AU$500,23,)/VLOOKUP($D55,$C$5:$AU$500,3,))*$E55) -> 0 | Z55: =IF(VLOOKUP($D55,$C$5:$AU$500,3,)=0,0,(VLOOKUP($D55,$C$5:$AU$500,24,)/VLOOKUP($D55,$C$5:$AU$500,3,))*$E55) -> 0 | AA55: =IF(VLOOKUP($D55,$C$5:$AU$500,3,)=0,0,(VLOOKUP($D55,$C$5:$AU$500,25,)/VLOOKUP($D55,$C$5:$AU$500,3,))*$E55) -> 0 | AB55: =IF(VLOOKUP($D55,$C$5:$AU$500,3,)=0,0,(VLOOKUP($D55,$C$5:$AU$500,26,)/VLOOKUP($D55,$C$5:$AU$500,3,))*$E55) -> 0 | AC55: =IF(VLOOKUP($D55,$C$5:$AU$500,3,)=0,0,(VLOOKUP($D55,$C$5:$AU$500,27,)/VLOOKUP($D55,$C$5:$AU$500,3,))*$E55) -> 0 | AD55: =IF(VLOOKUP($D55,$C$5:$AU$500,3,)=0,0,(VLOOKUP($D55,$C$5:$AU$500,28,)/VLOOKUP($D55,$C$5:$AU$500,3,))*$E55) -> 0 | AE55: =IF(VLOOKUP($D55,$C$5:$AU$500,3,)=0,0,(VLOOKUP($D55,$C$5:$AU$500,29,)/VLOOKUP($D55,$C$5:$AU$500,3,))*$E55) -> 0 | AF55: =IF(VLOOKUP($D55,$C$5:$AU$500,3,)=0,0,(VLOOKUP($D55,$C$5:$AU$500,30,)/VLOOKUP($D55,$C$5:$AU$500,3,))*$E55) -> 0 | AG55: =SUM(F55:AF55) -> 16718857.36 | AH55: =IF(ABS(E55-AG55)<0.01,"ok","err") -> ok
A57: Primary Distribution Plant
A58: Demand | C58: NPDPD | D58: DA1 | E58: ='Func & Classif'!O126 -> 23047615.23 | F58: =IF(VLOOKUP($D58,$C$5:$AU$500,3,)=0,0,(VLOOKUP($D58,$C$5:$AU$500,4,)/VLOOKUP($D58,$C$5:$AU$500,3,))*$E58) -> 14592587.48 | G58: =IF(VLOOKUP($D58,$C$5:$AU$500,3,)=0,0,(VLOOKUP($D58,$C$5:$AU$500,5,)/VLOOKUP($D58,$C$5:$AU$500,3,))*$E58) -> 327318.461 | H58: =IF(VLOOKUP($D58,$C$5:$AU$500,3,)=0,0,(VLOOKUP($D58,$C$5:$AU$500,6,)/VLOOKUP($D58,$C$5:$AU$500,3,))*$E58) -> 553948.3128 | I58: =IF(VLOOKUP($D58,$C$5:$AU$500,3,)=0,0,(VLOOKUP($D58,$C$5:$AU$500,7,)/VLOOKUP($D58,$C$5:$AU$500,3,))*$E58) -> 6809408.1 | J58: =IF(VLOOKUP($D58,$C$5:$AU$500,3,)=0,0,(VLOOKUP($D58,$C$5:$AU$500,8,)/VLOOKUP($D58,$C$5:$AU$500,3,))*$E58) -> 61399.33566 | K58: =IF(VLOOKUP($D58,$C$5:$AU$500,3,)=0,0,(VLOOKUP($D58,$C$5:$AU$500,9,)/VLOOKUP($D58,$C$5:$AU$500,3,))*$E58) -> 587489.8625 | L58: =IF(VLOOKUP($D58,$C$5:$AU$500,3,)=0,0,(VLOOKUP($D58,$C$5:$AU$500,10,)/VLOOKUP($D58,$C$5:$AU$500,3,))*$E58) -> 115463.6835 | M58: =IF(VLOOKUP($D58,$C$5:$AU$500,3,)=0,0,(VLOOKUP($D58,$C$5:$AU$500,11,)/VLOOKUP($D58,$C$5:$AU$500,3,))*$E58) -> 0 | N58: =IF(VLOOKUP($D58,$C$5:$AU$500,3,)=0,0,(VLOOKUP($D58,$C$5:$AU$500,12,)/VLOOKUP($D58,$C$5:$AU$500,3,))*$E58) -> 0 | O58: =IF(VLOOKUP($D58,$C$5:$AU$500,3,)=0,0,(VLOOKUP($D58,$C$5:$AU$500,13,)/VLOOKUP($D58,$C$5:$AU$500,3,))*$E58) -> 0 | P58: =IF(VLOOKUP($D58,$C$5:$AU$500,3,)=0,0,(VLOOKUP($D58,$C$5:$AU$500,14,)/VLOOKUP($D58,$C$5:$AU$500,3,))*$E58) -> 0 | Q58: =IF(VLOOKUP($D58,$C$5:$AU$500,3,)=0,0,(VLOOKUP($D58,$C$5:$AU$500,15,)/VLOOKUP($D58,$C$5:$AU$500,3,))*$E58) -> 0 | R58: =IF(VLOOKUP($D58,$C$5:$AU$500,3,)=0,0,(VLOOKUP($D58,$C$5:$AU$500,16,)/VLOOKUP($D58,$C$5:$AU$500,3,))*$E58) -> 0 | S58: =IF(VLOOKUP($D58,$C$5:$AU$500,3,)=0,0,(VLOOKUP($D58,$C$5:$AU$500,17,)/VLOOKUP($D58,$C$5:$AU$500,3,))*$E58) -> 0 | T58: =IF(VLOOKUP($D58,$C$5:$AU$500,3,)=0,0,(VLOOKUP($D58,$C$5:$AU$500,18,)/VLOOKUP($D58,$C$5:$AU$500,3,))*$E58) -> 0 | U58: =IF(VLOOKUP($D58,$C$5:$AU$500,3,)=0,0,(VLOOKUP($D58,$C$5:$AU$500,19,)/VLOOKUP($D58,$C$5:$AU$500,3,))*$E58) -> 0 | V58: =IF(VLOOKUP($D58,$C$5:$AU$500,3,)=0,0,(VLOOKUP($D58,$C$5:$AU$500,20,)/VLOOKUP($D58,$C$5:$AU$500,3,))*$E58) -> 0 | W58: =IF(VLOOKUP($D58,$C$5:$AU$500,3,)=0,0,(VLOOKUP($D58,$C$5:$AU$500,21,)/VLOOKUP($D58,$C$5:$AU$500,3,))*$E58) -> 0 | X58: =IF(VLOOKUP($D58,$C$5:$AU$500,3,)=0,0,(VLOOKUP($D58,$C$5:$AU$500,22,)/VLOOKUP($D58,$C$5:$AU$500,3,))*$E58) -> 0 | Y58: =IF(VLOOKUP($D58,$C$5:$AU$500,3,)=0,0,(VLOOKUP($D58,$C$5:$AU$500,23,)/VLOOKUP($D58,$C$5:$AU$500,3,))*$E58) -> 0 | Z58: =IF(VLOOKUP($D58,$C$5:$AU$500,3,)=0,0,(VLOOKUP($D58,$C$5:$AU$500,24,)/VLOOKUP($D58,$C$5:$AU$500,3,))*$E58) -> 0 | AA58: =IF(VLOOKUP($D58,$C$5:$AU$500,3,)=0,0,(VLOOKUP($D58,$C$5:$AU$500,25,)/VLOOKUP($D58,$C$5:$AU$500,3,))*$E58) -> 0 | AB58: =IF(VLOOKUP($D58,$C$5:$AU$500,3,)=0,0,(VLOOKUP($D58,$C$5:$AU$500,26,)/VLOOKUP($D58,$C$5:$AU$500,3,))*$E58) -> 0 | AC58: =IF(VLOOKUP($D58,$C$5:$AU$500,3,)=0,0,(VLOOKUP($D58,$C$5:$AU$500,27,)/VLOOKUP($D58,$C$5:$AU$500,3,))*$E58) -> 0 | AD58: =IF(VLOOKUP($D58,$C$5:$AU$500,3,)=0,0,(VLOOKUP($D58,$C$5:$AU$500,28,)/VLOOKUP($D58,$C$5:$AU$500,3,))*$E58) -> 0 | AE58: =IF(VLOOKUP($D58,$C$5:$AU$500,3,)=0,0,(VLOOKUP($D58,$C$5:$AU$500,29,)/VLOOKUP($D58,$C$5:$AU$500,3,))*$E58) -> 0 | AF58: =IF(VLOOKUP($D58,$C$5:$AU$500,3,)=0,0,(VLOOKUP($D58,$C$5:$AU$500,30,)/VLOOKUP($D58,$C$5:$AU$500,3,))*$E58) -> 0 | AG58: =SUM(F58:AF58) -> 23047615.23 | AH58: =IF(ABS(E58-AG58)<0.01,"ok","err") -> ok
A59: Customer | C59: NPDPC | D59: C01 | E59: ='Func & Classif'!P126 -> 40780509.03 | F59: =IF(VLOOKUP($D59,$C$5:$AU$500,3,)=0,0,(VLOOKUP($D59,$C$5:$AU$500,4,)/VLOOKUP($D59,$C$5:$AU$500,3,))*$E59) -> 34493204.56 | G59: =IF(VLOOKUP($D59,$C$5:$AU$500,3,)=0,0,(VLOOKUP($D59,$C$5:$AU$500,5,)/VLOOKUP($D59,$C$5:$AU$500,3,))*$E59) -> 4666957.341 | H59: =IF(VLOOKUP($D59,$C$5:$AU$500,3,)=0,0,(VLOOKUP($D59,$C$5:$AU$500,6,)/VLOOKUP($D59,$C$5:$AU$500,3,))*$E59) -> 661583.2735 | I59: =IF(VLOOKUP($D59,$C$5:$AU$500,3,)=0,0,(VLOOKUP($D59,$C$5:$AU$500,7,)/VLOOKUP($D59,$C$5:$AU$500,3,))*$E59) -> 836994.5075 | J59: =IF(VLOOKUP($D59,$C$5:$AU$500,3,)=0,0,(VLOOKUP($D59,$C$5:$AU$500,8,)/VLOOKUP($D59,$C$5:$AU$500,3,))*$E59) -> 1358.022457 | K59: =IF(VLOOKUP($D59,$C$5:$AU$500,3,)=0,0,(VLOOKUP($D59,$C$5:$AU$500,9,)/VLOOKUP($D59,$C$5:$AU$500,3,))*$E59) -> 1358.022457 | L59: =IF(VLOOKUP($D59,$C$5:$AU$500,3,)=0,0,(VLOOKUP($D59,$C$5:$AU$500,10,)/VLOOKUP($D59,$C$5:$AU$500,3,))*$E59) -> 119053.302 | M59: =IF(VLOOKUP($D59,$C$5:$AU$500,3,)=0,0,(VLOOKUP($D59,$C$5:$AU$500,11,)/VLOOKUP($D59,$C$5:$AU$500,3,))*$E59) -> 0 | N59: =IF(VLOOKUP($D59,$C$5:$AU$500,3,)=0,0,(VLOOKUP($D59,$C$5:$AU$500,12,)/VLOOKUP($D59,$C$5:$AU$500,3,))*$E59) -> 0 | O59: =IF(VLOOKUP($D59,$C$5:$AU$500,3,)=0,0,(VLOOKUP($D59,$C$5:$AU$500,13,)/VLOOKUP($D59,$C$5:$AU$500,3,))*$E59) -> 0 | P59: =IF(VLOOKUP($D59,$C$5:$AU$500,3,)=0,0,(VLOOKUP($D59,$C$5:$AU$500,14,)/VLOOKUP($D59,$C$5:$AU$500,3,))*$E59) -> 0 | Q59: =IF(VLOOKUP($D59,$C$5:$AU$500,3,)=0,0,(VLOOKUP($D59,$C$5:$AU$500,15,)/VLOOKUP($D59,$C$5:$AU$500,3,))*$E59) -> 0 | R59: =IF(VLOOKUP($D59,$C$5:$AU$500,3,)=0,0,(VLOOKUP($D59,$C$5:$AU$500,16,)/VLOOKUP($D59,$C$5:$AU$500,3,))*$E59) -> 0 | S59: =IF(VLOOKUP($D59,$C$5:$AU$500,3,)=0,0,(VLOOKUP($D59,$C$5:$AU$500,17,)/VLOOKUP($D59,$C$5:$AU$500,3,))*$E59) -> 0 | T59: =IF(VLOOKUP($D59,$C$5:$AU$500,3,)=0,0,(VLOOKUP($D59,$C$5:$AU$500,18,)/VLOOKUP($D59,$C$5:$AU$500,3,))*$E59) -> 0 | U59: =IF(VLOOKUP($D59,$C$5:$AU$500,3,)=0,0,(VLOOKUP($D59,$C$5:$AU$500,19,)/VLOOKUP($D59,$C$5:$AU$500,3,))*$E59) -> 0 | V59: =IF(VLOOKUP($D59,$C$5:$AU$500,3,)=0,0,(VLOOKUP($D59,$C$5:$AU$500,20,)/VLOOKUP($D59,$C$5:$AU$500,3,))*$E59) -> 0 | W59: =IF(VLOOKUP($D59,$C$5:$AU$500,3,)=0,0,(VLOOKUP($D59,$C$5:$AU$500,21,)/VLOOKUP($D59,$C$5:$AU$500,3,))*$E59) -> 0 | X59: =IF(VLOOKUP($D59,$C$5:$AU$500,3,)=0,0,(VLOOKUP($D59,$C$5:$AU$500,22,)/VLOOKUP($D59,$C$5:$AU$500,3,))*$E59) -> 0 | Y59: =IF(VLOOKUP($D59,$C$5:$AU$500,3,)=0,0,(VLOOKUP($D59,$C$5:$AU$500,23,)/VLOOKUP($D59,$C$5:$AU$500,3,))*$E59) -> 0 | Z59: =IF(VLOOKUP($D59,$C$5:$AU$500,3,)=0,0,(VLOOKUP($D59,$C$5:$AU$500,24,)/VLOOKUP($D59,$C$5:$AU$500,3,))*$E59) -> 0 | AA59: =IF(VLOOKUP($D59,$C$5:$AU$500,3,)=0,0,(VLOOKUP($D59,$C$5:$AU$500,25,)/VLOOKUP($D59,$C$5:$AU$500,3,))*$E59) -> 0 | AB59: =IF(VLOOKUP($D59,$C$5:$AU$500,3,)=0,0,(VLOOKUP($D59,$C$5:$AU$500,26,)/VLOOKUP($D59,$C$5:$AU$500,3,))*$E59) -> 0 | AC59: =IF(VLOOKUP($D59,$C$5:$AU$500,3,)=0,0,(VLOOKUP($D59,$C$5:$AU$500,27,)/VLOOKUP($D59,$C$5:$AU$500,3,))*$E59) -> 0 | AD59: =IF(VLOOKUP($D59,$C$5:$AU$500,3,)=0,0,(VLOOKUP($D59,$C$5:$AU$500,28,)/VLOOKUP($D59,$C$5:$AU$500,3,))*$E59) -> 0 | AE59: =IF(VLOOKUP($D59,$C$5:$AU$500,3,)=0,0,(VLOOKUP($D59,$C$5:$AU$500,29,)/VLOOKUP($D59,$C$5:$AU$500,3,))*$E59) -> 0 | AF59: =IF(VLOOKUP($D59,$C$5:$AU$500,3,)=0,0,(VLOOKUP($D59,$C$5:$AU$500,30,)/VLOOKUP($D59,$C$5:$AU$500,3,))*$E59) -> 0 | AG59: =SUM(F59:AF59) -> 40780509.03 | AH59: =IF(ABS(E59-AG59)<0.01,"ok","err") -> ok
A60: Total Primary Distribution Plant | E60: =E58+E59 -> 63828124.26 | F60: 49085792.04 | G60: 4994275.802 | H60: 1215531.586 | I60: 7646402.608 | J60: 62757.35811 | K60: 588847.885 | L60: 234516.9856 | M60: 0 | N60: 0 | O60: 0 | P60: 0 | Q60: 0 | R60: 0 | S60: 0 | T60: 0 | U60: =U58+U59 -> 0 | V60: 0 | W60: 0 | X60: 0 | Y60: 0 | Z60: 0 | AA60: 0 | AB60: 0 | AC60: 0 | AD60: 0 | AE60: 0 | AF60: 0 | AG60: =SUM(F60:AF60) -> 63828124.26 | AH60: =IF(ABS(E60-AG60)<0.01,"ok","err") -> ok
A62: Customer Services
A63: Demand | C63: NPCSD | D63: CSA | E63: ='Func & Classif'!R126 -> 0 | F63: =IF(VLOOKUP($D63,$C$5:$AU$500,3,)=0,0,(VLOOKUP($D63,$C$5:$AU$500,4,)/VLOOKUP($D63,$C$5:$AU$500,3,))*$E63) -> 0 | G63: =IF(VLOOKUP($D63,$C$5:$AU$500,3,)=0,0,(VLOOKUP($D63,$C$5:$AU$500,5,)/VLOOKUP($D63,$C$5:$AU$500,3,))*$E63) -> 0 | H63: =IF(VLOOKUP($D63,$C$5:$AU$500,3,)=0,0,(VLOOKUP($D63,$C$5:$AU$500,6,)/VLOOKUP($D63,$C$5:$AU$500,3,))*$E63) -> 0 | I63: =IF(VLOOKUP($D63,$C$5:$AU$500,3,)=0,0,(VLOOKUP($D63,$C$5:$AU$500,7,)/VLOOKUP($D63,$C$5:$AU$500,3,))*$E63) -> 0 | J63: =IF(VLOOKUP($D63,$C$5:$AU$500,3,)=0,0,(VLOOKUP($D63,$C$5:$AU$500,8,)/VLOOKUP($D63,$C$5:$AU$500,3,))*$E63) -> 0 | K63: =IF(VLOOKUP($D63,$C$5:$AU$500,3,)=0,0,(VLOOKUP($D63,$C$5:$AU$500,9,)/VLOOKUP($D63,$C$5:$AU$500,3,))*$E63) -> 0 | L63: =IF(VLOOKUP($D63,$C$5:$AU$500,3,)=0,0,(VLOOKUP($D63,$C$5:$AU$500,10,)/VLOOKUP($D63,$C$5:$AU$500,3,))*$E63) -> 0 | M63: =IF(VLOOKUP($D63,$C$5:$AU$500,3,)=0,0,(VLOOKUP($D63,$C$5:$AU$500,11,)/VLOOKUP($D63,$C$5:$AU$500,3,))*$E63) -> 0 | N63: =IF(VLOOKUP($D63,$C$5:$AU$500,3,)=0,0,(VLOOKUP($D63,$C$5:$AU$500,12,)/VLOOKUP($D63,$C$5:$AU$500,3,))*$E63) -> 0 | O63: =IF(VLOOKUP($D63,$C$5:$AU$500,3,)=0,0,(VLOOKUP($D63,$C$5:$AU$500,13,)/VLOOKUP($D63,$C$5:$AU$500,3,))*$E63) -> 0 | P63: =IF(VLOOKUP($D63,$C$5:$AU$500,3,)=0,0,(VLOOKUP($D63,$C$5:$AU$500,14,)/VLOOKUP($D63,$C$5:$AU$500,3,))*$E63) -> 0 | Q63: =IF(VLOOKUP($D63,$C$5:$AU$500,3,)=0,0,(VLOOKUP($D63,$C$5:$AU$500,15,)/VLOOKUP($D63,$C$5:$AU$500,3,))*$E63) -> 0 | R63: =IF(VLOOKUP($D63,$C$5:$AU$500,3,)=0,0,(VLOOKUP($D63,$C$5:$AU$500,16,)/VLOOKUP($D63,$C$5:$AU$500,3,))*$E63) -> 0 | S63: =IF(VLOOKUP($D63,$C$5:$AU$500,3,)=0,0,(VLOOKUP($D63,$C$5:$AU$500,17,)/VLOOKUP($D63,$C$5:$AU$500,3,))*$E63) -> 0 | T63: =IF(VLOOKUP($D63,$C$5:$AU$500,3,)=0,0,(VLOOKUP($D63,$C$5:$AU$500,18,)/VLOOKUP($D63,$C$5:$AU$500,3,))*$E63) -> 0 | U63: =IF(VLOOKUP($D63,$C$5:$AU$500,3,)=0,0,(VLOOKUP($D63,$C$5:$AU$500,19,)/VLOOKUP($D63,$C$5:$AU$500,3,))*$E63) -> 0 | V63: =IF(VLOOKUP($D63,$C$5:$AU$500,3,)=0,0,(VLOOKUP($D63,$C$5:$AU$500,20,)/VLOOKUP($D63,$C$5:$AU$500,3,))*$E63) -> 0 | W63: =IF(VLOOKUP($D63,$C$5:$AU$500,3,)=0,0,(VLOOKUP($D63,$C$5:$AU$500,21,)/VLOOKUP($D63,$C$5:$AU$500,3,))*$E63) -> 0 | X63: =IF(VLOOKUP($D63,$C$5:$AU$500,3,)=0,0,(VLOOKUP($D63,$C$5:$AU$500,22,)/VLOOKUP($D63,$C$5:$AU$500,3,))*$E63) -> 0 | Y63: =IF(VLOOKUP($D63,$C$5:$AU$500,3,)=0,0,(VLOOKUP($D63,$C$5:$AU$500,23,)/VLOOKUP($D63,$C$5:$AU$500,3,))*$E63) -> 0 | Z63: =IF(VLOOKUP($D63,$C$5:$AU$500,3,)=0,0,(VLOOKUP($D63,$C$5:$AU$500,24,)/VLOOKUP($D63,$C$5:$AU$500,3,))*$E63) -> 0 | AA63: =IF(VLOOKUP($D63,$C$5:$AU$500,3,)=0,0,(VLOOKUP($D63,$C$5:$AU$500,25,)/VLOOKUP($D63,$C$5:$AU$500,3,))*$E63) -> 0 | AB63: =IF(VLOOKUP($D63,$C$5:$AU$500,3,)=0,0,(VLOOKUP($D63,$C$5:$AU$500,26,)/VLOOKUP($D63,$C$5:$AU$500,3,))*$E63) -> 0 | AC63: =IF(VLOOKUP($D63,$C$5:$AU$500,3,)=0,0,(VLOOKUP($D63,$C$5:$AU$500,27,)/VLOOKUP($D63,$C$5:$AU$500,3,))*$E63) -> 0 | AD63: =IF(VLOOKUP($D63,$C$5:$AU$500,3,)=0,0,(VLOOKUP($D63,$C$5:$AU$500,28,)/VLOOKUP($D63,$C$5:$AU$500,3,))*$E63) -> 0 | AE63: =IF(VLOOKUP($D63,$C$5:$AU$500,3,)=0,0,(VLOOKUP($D63,$C$5:$AU$500,29,)/VLOOKUP($D63,$C$5:$AU$500,3,))*$E63) -> 0 | AF63: =IF(VLOOKUP($D63,$C$5:$AU$500,3,)=0,0,(VLOOKUP($D63,$C$5:$AU$500,30,)/VLOOKUP($D63,$C$5:$AU$500,3,))*$E63) -> 0 | AG63: =SUM(F63:AF63) -> 0 | AH63: =IF(ABS(E63-AG63)<0.01,"ok","err") -> ok
A64: Customer | C64: NPCSC | D64: SERV | E64: ='Func & Classif'!S126 -> 7336312.412 | F64: =IF(VLOOKUP($D64,$C$5:$AU$500,3,)=0,0,(VLOOKUP($D64,$C$5:$AU$500,4,)/VLOOKUP($D64,$C$5:$AU$500,3,))*$E64) -> 5873012.131 | G64: =IF(VLOOKUP($D64,$C$5:$AU$500,3,)=0,0,(VLOOKUP($D64,$C$5:$AU$500,5,)/VLOOKUP($D64,$C$5:$AU$500,3,))*$E64) -> 908140.6839 | H64: =IF(VLOOKUP($D64,$C$5:$AU$500,3,)=0,0,(VLOOKUP($D64,$C$5:$AU$500,6,)/VLOOKUP($D64,$C$5:$AU$500,3,))*$E64) -> 160921.4105 | I64: =IF(VLOOKUP($D64,$C$5:$AU$500,3,)=0,0,(VLOOKUP($D64,$C$5:$AU$500,7,)/VLOOKUP($D64,$C$5:$AU$500,3,))*$E64) -> 305381.8214 | J64: =IF(VLOOKUP($D64,$C$5:$AU$500,3,)=0,0,(VLOOKUP($D64,$C$5:$AU$500,8,)/VLOOKUP($D64,$C$5:$AU$500,3,))*$E64) -> 990.9631847 | K64: =IF(VLOOKUP($D64,$C$5:$AU$500,3,)=0,0,(VLOOKUP($D64,$C$5:$AU$500,9,)/VLOOKUP($D64,$C$5:$AU$500,3,))*$E64) -> 990.9631847 | L64: =IF(VLOOKUP($D64,$C$5:$AU$500,3,)=0,0,(VLOOKUP($D64,$C$5:$AU$500,10,)/VLOOKUP($D64,$C$5:$AU$500,3,))*$E64) -> 86874.43919 | M64: =IF(VLOOKUP($D64,$C$5:$AU$500,3,)=0,0,(VLOOKUP($D64,$C$5:$AU$500,11,)/VLOOKUP($D64,$C$5:$AU$500,3,))*$E64) -> 0 | N64: =IF(VLOOKUP($D64,$C$5:$AU$500,3,)=0,0,(VLOOKUP($D64,$C$5:$AU$500,12,)/VLOOKUP($D64,$C$5:$AU$500,3,))*$E64) -> 0 | O64: =IF(VLOOKUP($D64,$C$5:$AU$500,3,)=0,0,(VLOOKUP($D64,$C$5:$AU$500,13,)/VLOOKUP($D64,$C$5:$AU$500,3,))*$E64) -> 0 | P64: =IF(VLOOKUP($D64,$C$5:$AU$500,3,)=0,0,(VLOOKUP($D64,$C$5:$AU$500,14,)/VLOOKUP($D64,$C$5:$AU$500,3,))*$E64) -> 0 | Q64: =IF(VLOOKUP($D64,$C$5:$AU$500,3,)=0,0,(VLOOKUP($D64,$C$5:$AU$500,15,)/VLOOKUP($D64,$C$5:$AU$500,3,))*$E64) -> 0 | R64: =IF(VLOOKUP($D64,$C$5:$AU$500,3,)=0,0,(VLOOKUP($D64,$C$5:$AU$500,16,)/VLOOKUP($D64,$C$5:$AU$500,3,))*$E64) -> 0 | S64: =IF(VLOOKUP($D64,$C$5:$AU$500,3,)=0,0,(VLOOKUP($D64,$C$5:$AU$500,17,)/VLOOKUP($D64,$C$5:$AU$500,3,))*$E64) -> 0 | T64: =IF(VLOOKUP($D64,$C$5:$AU$500,3,)=0,0,(VLOOKUP($D64,$C$5:$AU$500,18,)/VLOOKUP($D64,$C$5:$AU$500,3,))*$E64) -> 0 | U64: =IF(VLOOKUP($D64,$C$5:$AU$500,3,)=0,0,(VLOOKUP($D64,$C$5:$AU$500,19,)/VLOOKUP($D64,$C$5:$AU$500,3,))*$E64) -> 0 | V64: =IF(VLOOKUP($D64,$C$5:$AU$500,3,)=0,0,(VLOOKUP($D64,$C$5:$AU$500,20,)/VLOOKUP($D64,$C$5:$AU$500,3,))*$E64) -> 0 | W64: =IF(VLOOKUP($D64,$C$5:$AU$500,3,)=0,0,(VLOOKUP($D64,$C$5:$AU$500,21,)/VLOOKUP($D64,$C$5:$AU$500,3,))*$E64) -> 0 | X64: =IF(VLOOKUP($D64,$C$5:$AU$500,3,)=0,0,(VLOOKUP($D64,$C$5:$AU$500,22,)/VLOOKUP($D64,$C$5:$AU$500,3,))*$E64) -> 0 | Y64: =IF(VLOOKUP($D64,$C$5:$AU$500,3,)=0,0,(VLOOKUP($D64,$C$5:$AU$500,23,)/VLOOKUP($D64,$C$5:$AU$500,3,))*$E64) -> 0 | Z64: =IF(VLOOKUP($D64,$C$5:$AU$500,3,)=0,0,(VLOOKUP($D64,$C$5:$AU$500,24,)/VLOOKUP($D64,$C$5:$AU$500,3,))*$E64) -> 0 | AA64: =IF(VLOOKUP($D64,$C$5:$AU$500,3,)=0,0,(VLOOKUP($D64,$C$5:$AU$500,25,)/VLOOKUP($D64,$C$5:$AU$500,3,))*$E64) -> 0 | AB64: =IF(VLOOKUP($D64,$C$5:$AU$500,3,)=0,0,(VLOOKUP($D64,$C$5:$AU$500,26,)/VLOOKUP($D64,$C$5:$AU$500,3,))*$E64) -> 0 | AC64: =IF(VLOOKUP($D64,$C$5:$AU$500,3,)=0,0,(VLOOKUP($D64,$C$5:$AU$500,27,)/VLOOKUP($D64,$C$5:$AU$500,3,))*$E64) -> 0 | AD64: =IF(VLOOKUP($D64,$C$5:$AU$500,3,)=0,0,(VLOOKUP($D64,$C$5:$AU$500,28,)/VLOOKUP($D64,$C$5:$AU$500,3,))*$E64) -> 0 | AE64: =IF(VLOOKUP($D64,$C$5:$AU$500,3,)=0,0,(VLOOKUP($D64,$C$5:$AU$500,29,)/VLOOKUP($D64,$C$5:$AU$500,3,))*$E64) -> 0 | AF64: =IF(VLOOKUP($D64,$C$5:$AU$500,3,)=0,0,(VLOOKUP($D64,$C$5:$AU$500,30,)/VLOOKUP($D64,$C$5:$AU$500,3,))*$E64) -> 0 | AG64: =SUM(F64:AF64) -> 7336312.412 | AH64: =IF(ABS(E64-AG64)<0.01,"ok","err") -> ok
A65: Total Customer Services | E65: =E63+E64 -> 7336312.412 | F65: 5873012.131 | G65: 908140.6839 | H65: 160921.4105 | I65: 305381.8214 | J65: 990.9631847 | K65: 990.9631847 | L65: 86874.43919 | M65: 0 | N65: 0 | O65: 0 | P65: 0 | Q65: 0 | R65: 0 | S65: 0 | T65: 0 | U65: =U63+U64 -> 0 | V65: 0 | W65: 0 | X65: 0 | Y65: 0 | Z65: 0 | AA65: 0 | AB65: 0 | AC65: 0 | AD65: 0 | AE65: 0 | AF65: 0 | AG65: =SUM(F65:AF65) -> 7336312.412 | AH65: =IF(ABS(E65-AG65)<0.01,"ok","err") -> ok
A67: Meters
A68: Customer | C68: NPMC | D68: C03 | E68: ='Func & Classif'!U126 -> 8486103.916 | F68: =IF(VLOOKUP($D68,$C$5:$AU$500,3,)=0,0,(VLOOKUP($D68,$C$5:$AU$500,4,)/VLOOKUP($D68,$C$5:$AU$500,3,))*$E68) -> 4907174.175 | G68: =IF(VLOOKUP($D68,$C$5:$AU$500,3,)=0,0,(VLOOKUP($D68,$C$5:$AU$500,5,)/VLOOKUP($D68,$C$5:$AU$500,3,))*$E68) -> 1460677.842 | H68: =IF(VLOOKUP($D68,$C$5:$AU$500,3,)=0,0,(VLOOKUP($D68,$C$5:$AU$500,6,)/VLOOKUP($D68,$C$5:$AU$500,3,))*$E68) -> 519543.0307 | I68: =IF(VLOOKUP($D68,$C$5:$AU$500,3,)=0,0,(VLOOKUP($D68,$C$5:$AU$500,7,)/VLOOKUP($D68,$C$5:$AU$500,3,))*$E68) -> 1238379.849 | J68: =IF(VLOOKUP($D68,$C$5:$AU$500,3,)=0,0,(VLOOKUP($D68,$C$5:$AU$500,8,)/VLOOKUP($D68,$C$5:$AU$500,3,))*$E68) -> 4018.539261 | K68: =IF(VLOOKUP($D68,$C$5:$AU$500,3,)=0,0,(VLOOKUP($D68,$C$5:$AU$500,9,)/VLOOKUP($D68,$C$5:$AU$500,3,))*$E68) -> 4018.539261 | L68: =IF(VLOOKUP($D68,$C$5:$AU$500,3,)=0,0,(VLOOKUP($D68,$C$5:$AU$500,10,)/VLOOKUP($D68,$C$5:$AU$500,3,))*$E68) -> 352291.9419 | M68: =IF(VLOOKUP($D68,$C$5:$AU$500,3,)=0,0,(VLOOKUP($D68,$C$5:$AU$500,11,)/VLOOKUP($D68,$C$5:$AU$500,3,))*$E68) -> 0 | N68: =IF(VLOOKUP($D68,$C$5:$AU$500,3,)=0,0,(VLOOKUP($D68,$C$5:$AU$500,12,)/VLOOKUP($D68,$C$5:$AU$500,3,))*$E68) -> 0 | O68: =IF(VLOOKUP($D68,$C$5:$AU$500,3,)=0,0,(VLOOKUP($D68,$C$5:$AU$500,13,)/VLOOKUP($D68,$C$5:$AU$500,3,))*$E68) -> 0 | P68: =IF(VLOOKUP($D68,$C$5:$AU$500,3,)=0,0,(VLOOKUP($D68,$C$5:$AU$500,14,)/VLOOKUP($D68,$C$5:$AU$500,3,))*$E68) -> 0 | Q68: =IF(VLOOKUP($D68,$C$5:$AU$500,3,)=0,0,(VLOOKUP($D68,$C$5:$AU$500,15,)/VLOOKUP($D68,$C$5:$AU$500,3,))*$E68) -> 0 | R68: =IF(VLOOKUP($D68,$C$5:$AU$500,3,)=0,0,(VLOOKUP($D68,$C$5:$AU$500,16,)/VLOOKUP($D68,$C$5:$AU$500,3,))*$E68) -> 0 | S68: =IF(VLOOKUP($D68,$C$5:$AU$500,3,)=0,0,(VLOOKUP($D68,$C$5:$AU$500,17,)/VLOOKUP($D68,$C$5:$AU$500,3,))*$E68) -> 0 | T68: =IF(VLOOKUP($D68,$C$5:$AU$500,3,)=0,0,(VLOOKUP($D68,$C$5:$AU$500,18,)/VLOOKUP($D68,$C$5:$AU$500,3,))*$E68) -> 0 | U68: =IF(VLOOKUP($D68,$C$5:$AU$500,3,)=0,0,(VLOOKUP($D68,$C$5:$AU$500,19,)/VLOOKUP($D68,$C$5:$AU$500,3,))*$E68) -> 0 | V68: =IF(VLOOKUP($D68,$C$5:$AU$500,3,)=0,0,(VLOOKUP($D68,$C$5:$AU$500,20,)/VLOOKUP($D68,$C$5:$AU$500,3,))*$E68) -> 0 | W68: =IF(VLOOKUP($D68,$C$5:$AU$500,3,)=0,0,(VLOOKUP($D68,$C$5:$AU$500,21,)/VLOOKUP($D68,$C$5:$AU$500,3,))*$E68) -> 0 | X68: =IF(VLOOKUP($D68,$C$5:$AU$500,3,)=0,0,(VLOOKUP($D68,$C$5:$AU$500,22,)/VLOOKUP($D68,$C$5:$AU$500,3,))*$E68) -> 0 | Y68: =IF(VLOOKUP($D68,$C$5:$AU$500,3,)=0,0,(VLOOKUP($D68,$C$5:$AU$500,23,)/VLOOKUP($D68,$C$5:$AU$500,3,))*$E68) -> 0 | Z68: =IF(VLOOKUP($D68,$C$5:$AU$500,3,)=0,0,(VLOOKUP($D68,$C$5:$AU$500,24,)/VLOOKUP($D68,$C$5:$AU$500,3,))*$E68) -> 0 | AA68: =IF(VLOOKUP($D68,$C$5:$AU$500,3,)=0,0,(VLOOKUP($D68,$C$5:$AU$500,25,)/VLOOKUP($D68,$C$5:$AU$500,3,))*$E68) -> 0 | AB68: =IF(VLOOKUP($D68,$C$5:$AU$500,3,)=0,0,(VLOOKUP($D68,$C$5:$AU$500,26,)/VLOOKUP($D68,$C$5:$AU$500,3,))*$E68) -> 0 | AC68: =IF(VLOOKUP($D68,$C$5:$AU$500,3,)=0,0,(VLOOKUP($D68,$C$5:$AU$500,27,)/VLOOKUP($D68,$C$5:$AU$500,3,))*$E68) -> 0 | AD68: =IF(VLOOKUP($D68,$C$5:$AU$500,3,)=0,0,(VLOOKUP($D68,$C$5:$AU$500,28,)/VLOOKUP($D68,$C$5:$AU$500,3,))*$E68) -> 0 | AE68: =IF(VLOOKUP($D68,$C$5:$AU$500,3,)=0,0,(VLOOKUP($D68,$C$5:$AU$500,29,)/VLOOKUP($D68,$C$5:$AU$500,3,))*$E68) -> 0 | AF68: =IF(VLOOKUP($D68,$C$5:$AU$500,3,)=0,0,(VLOOKUP($D68,$C$5:$AU$500,30,)/VLOOKUP($D68,$C$5:$AU$500,3,))*$E68) -> 0 | AG68: =SUM(F68:AF68) -> 8486103.916 | AH68: =IF(ABS(E68-AG68)<0.01,"ok","err") -> ok
A70: Lighting Systems
A71: Customer | C71: NPLSC | D71: C04 | E71: ='Func & Classif'!W126 -> 739068.1267 | F71: =IF(VLOOKUP($D71,$C$5:$AU$500,3,)=0,0,(VLOOKUP($D71,$C$5:$AU$500,4,)/VLOOKUP($D71,$C$5:$AU$500,3,))*$E71) -> 0 | G71: =IF(VLOOKUP($D71,$C$5:$AU$500,3,)=0,0,(VLOOKUP($D71,$C$5:$AU$500,5,)/VLOOKUP($D71,$C$5:$AU$500,3,))*$E71) -> 0 | H71: =IF(VLOOKUP($D71,$C$5:$AU$500,3,)=0,0,(VLOOKUP($D71,$C$5:$AU$500,6,)/VLOOKUP($D71,$C$5:$AU$500,3,))*$E71) -> 0 | I71: =IF(VLOOKUP($D71,$C$5:$AU$500,3,)=0,0,(VLOOKUP($D71,$C$5:$AU$500,7,)/VLOOKUP($D71,$C$5:$AU$500,3,))*$E71) -> 0 | J71: =IF(VLOOKUP($D71,$C$5:$AU$500,3,)=0,0,(VLOOKUP($D71,$C$5:$AU$500,8,)/VLOOKUP($D71,$C$5:$AU$500,3,))*$E71) -> 0 | K71: =IF(VLOOKUP($D71,$C$5:$AU$500,3,)=0,0,(VLOOKUP($D71,$C$5:$AU$500,9,)/VLOOKUP($D71,$C$5:$AU$500,3,))*$E71) -> 0 | L71: =IF(VLOOKUP($D71,$C$5:$AU$500,3,)=0,0,(VLOOKUP($D71,$C$5:$AU$500,10,)/VLOOKUP($D71,$C$5:$AU$500,3,))*$E71) -> 739068.1267 | M71: =IF(VLOOKUP($D71,$C$5:$AU$500,3,)=0,0,(VLOOKUP($D71,$C$5:$AU$500,11,)/VLOOKUP($D71,$C$5:$AU$500,3,))*$E71) -> 0 | N71: =IF(VLOOKUP($D71,$C$5:$AU$500,3,)=0,0,(VLOOKUP($D71,$C$5:$AU$500,12,)/VLOOKUP($D71,$C$5:$AU$500,3,))*$E71) -> 0 | O71: =IF(VLOOKUP($D71,$C$5:$AU$500,3,)=0,0,(VLOOKUP($D71,$C$5:$AU$500,13,)/VLOOKUP($D71,$C$5:$AU$500,3,))*$E71) -> 0 | P71: =IF(VLOOKUP($D71,$C$5:$AU$500,3,)=0,0,(VLOOKUP($D71,$C$5:$AU$500,14,)/VLOOKUP($D71,$C$5:$AU$500,3,))*$E71) -> 0 | Q71: =IF(VLOOKUP($D71,$C$5:$AU$500,3,)=0,0,(VLOOKUP($D71,$C$5:$AU$500,15,)/VLOOKUP($D71,$C$5:$AU$500,3,))*$E71) -> 0 | R71: =IF(VLOOKUP($D71,$C$5:$AU$500,3,)=0,0,(VLOOKUP($D71,$C$5:$AU$500,16,)/VLOOKUP($D71,$C$5:$AU$500,3,))*$E71) -> 0 | S71: =IF(VLOOKUP($D71,$C$5:$AU$500,3,)=0,0,(VLOOKUP($D71,$C$5:$AU$500,17,)/VLOOKUP($D71,$C$5:$AU$500,3,))*$E71) -> 0 | T71: =IF(VLOOKUP($D71,$C$5:$AU$500,3,)=0,0,(VLOOKUP($D71,$C$5:$AU$500,18,)/VLOOKUP($D71,$C$5:$AU$500,3,))*$E71) -> 0 | U71: =IF(VLOOKUP($D71,$C$5:$AU$500,3,)=0,0,(VLOOKUP($D71,$C$5:$AU$500,19,)/VLOOKUP($D71,$C$5:$AU$500,3,))*$E71) -> 0 | V71: =IF(VLOOKUP($D71,$C$5:$AU$500,3,)=0,0,(VLOOKUP($D71,$C$5:$AU$500,20,)/VLOOKUP($D71,$C$5:$AU$500,3,))*$E71) -> 0 | W71: =IF(VLOOKUP($D71,$C$5:$AU$500,3,)=0,0,(VLOOKUP($D71,$C$5:$AU$500,21,)/VLOOKUP($D71,$C$5:$AU$500,3,))*$E71) -> 0 | X71: =IF(VLOOKUP($D71,$C$5:$AU$500,3,)=0,0,(VLOOKUP($D71,$C$5:$AU$500,22,)/VLOOKUP($D71,$C$5:$AU$500,3,))*$E71) -> 0 | Y71: =IF(VLOOKUP($D71,$C$5:$AU$500,3,)=0,0,(VLOOKUP($D71,$C$5:$AU$500,23,)/VLOOKUP($D71,$C$5:$AU$500,3,))*$E71) -> 0 | Z71: =IF(VLOOKUP($D71,$C$5:$AU$500,3,)=0,0,(VLOOKUP($D71,$C$5:$AU$500,24,)/VLOOKUP($D71,$C$5:$AU$500,3,))*$E71) -> 0 | AA71: =IF(VLOOKUP($D71,$C$5:$AU$500,3,)=0,0,(VLOOKUP($D71,$C$5:$AU$500,25,)/VLOOKUP($D71,$C$5:$AU$500,3,))*$E71) -> 0 | AB71: =IF(VLOOKUP($D71,$C$5:$AU$500,3,)=0,0,(VLOOKUP($D71,$C$5:$AU$500,26,)/VLOOKUP($D71,$C$5:$AU$500,3,))*$E71) -> 0 | AC71: =IF(VLOOKUP($D71,$C$5:$AU$500,3,)=0,0,(VLOOKUP($D71,$C$5:$AU$500,27,)/VLOOKUP($D71,$C$5:$AU$500,3,))*$E71) -> 0 | AD71: =IF(VLOOKUP($D71,$C$5:$AU$500,3,)=0,0,(VLOOKUP($D71,$C$5:$AU$500,28,)/VLOOKUP($D71,$C$5:$AU$500,3,))*$E71) -> 0 | AE71: =IF(VLOOKUP($D71,$C$5:$AU$500,3,)=0,0,(VLOOKUP($D71,$C$5:$AU$500,29,)/VLOOKUP($D71,$C$5:$AU$500,3,))*$E71) -> 0 | AF71: =IF(VLOOKUP($D71,$C$5:$AU$500,3,)=0,0,(VLOOKUP($D71,$C$5:$AU$500,30,)/VLOOKUP($D71,$C$5:$AU$500,3,))*$E71) -> 0 | AG71: =SUM(F71:AF71) -> 739068.1267 | AH71: =IF(ABS(E71-AG71)<0.01,"ok","err") -> ok
A73: Meter Reading, Billing and Customer Service
A74: Customer | C74: NPMRBC | D74: C05 | E74: ='Func & Classif'!Y126 -> 0 | F74: =IF(VLOOKUP($D74,$C$5:$AU$500,3,)=0,0,(VLOOKUP($D74,$C$5:$AU$500,4,)/VLOOKUP($D74,$C$5:$AU$500,3,))*$E74) -> 0 | G74: =IF(VLOOKUP($D74,$C$5:$AU$500,3,)=0,0,(VLOOKUP($D74,$C$5:$AU$500,5,)/VLOOKUP($D74,$C$5:$AU$500,3,))*$E74) -> 0 | H74: =IF(VLOOKUP($D74,$C$5:$AU$500,3,)=0,0,(VLOOKUP($D74,$C$5:$AU$500,6,)/VLOOKUP($D74,$C$5:$AU$500,3,))*$E74) -> 0 | I74: =IF(VLOOKUP($D74,$C$5:$AU$500,3,)=0,0,(VLOOKUP($D74,$C$5:$AU$500,7,)/VLOOKUP($D74,$C$5:$AU$500,3,))*$E74) -> 0 | J74: =IF(VLOOKUP($D74,$C$5:$AU$500,3,)=0,0,(VLOOKUP($D74,$C$5:$AU$500,8,)/VLOOKUP($D74,$C$5:$AU$500,3,))*$E74) -> 0 | K74: =IF(VLOOKUP($D74,$C$5:$AU$500,3,)=0,0,(VLOOKUP($D74,$C$5:$AU$500,9,)/VLOOKUP($D74,$C$5:$AU$500,3,))*$E74) -> 0 | L74: =IF(VLOOKUP($D74,$C$5:$AU$500,3,)=0,0,(VLOOKUP($D74,$C$5:$AU$500,10,)/VLOOKUP($D74,$C$5:$AU$500,3,))*$E74) -> 0 | M74: =IF(VLOOKUP($D74,$C$5:$AU$500,3,)=0,0,(VLOOKUP($D74,$C$5:$AU$500,11,)/VLOOKUP($D74,$C$5:$AU$500,3,))*$E74) -> 0 | N74: =IF(VLOOKUP($D74,$C$5:$AU$500,3,)=0,0,(VLOOKUP($D74,$C$5:$AU$500,12,)/VLOOKUP($D74,$C$5:$AU$500,3,))*$E74) -> 0 | O74: =IF(VLOOKUP($D74,$C$5:$AU$500,3,)=0,0,(VLOOKUP($D74,$C$5:$AU$500,13,)/VLOOKUP($D74,$C$5:$AU$500,3,))*$E74) -> 0 | P74: =IF(VLOOKUP($D74,$C$5:$AU$500,3,)=0,0,(VLOOKUP($D74,$C$5:$AU$500,14,)/VLOOKUP($D74,$C$5:$AU$500,3,))*$E74) -> 0 | Q74: =IF(VLOOKUP($D74,$C$5:$AU$500,3,)=0,0,(VLOOKUP($D74,$C$5:$AU$500,15,)/VLOOKUP($D74,$C$5:$AU$500,3,))*$E74) -> 0 | R74: =IF(VLOOKUP($D74,$C$5:$AU$500,3,)=0,0,(VLOOKUP($D74,$C$5:$AU$500,16,)/VLOOKUP($D74,$C$5:$AU$500,3,))*$E74) -> 0 | S74: =IF(VLOOKUP($D74,$C$5:$AU$500,3,)=0,0,(VLOOKUP($D74,$C$5:$AU$500,17,)/VLOOKUP($D74,$C$5:$AU$500,3,))*$E74) -> 0 | T74: =IF(VLOOKUP($D74,$C$5:$AU$500,3,)=0,0,(VLOOKUP($D74,$C$5:$AU$500,18,)/VLOOKUP($D74,$C$5:$AU$500,3,))*$E74) -> 0 | U74: =IF(VLOOKUP($D74,$C$5:$AU$500,3,)=0,0,(VLOOKUP($D74,$C$5:$AU$500,19,)/VLOOKUP($D74,$C$5:$AU$500,3,))*$E74) -> 0 | V74: =IF(VLOOKUP($D74,$C$5:$AU$500,3,)=0,0,(VLOOKUP($D74,$C$5:$AU$500,20,)/VLOOKUP($D74,$C$5:$AU$500,3,))*$E74) -> 0 | W74: =IF(VLOOKUP($D74,$C$5:$AU$500,3,)=0,0,(VLOOKUP($D74,$C$5:$AU$500,21,)/VLOOKUP($D74,$C$5:$AU$500,3,))*$E74) -> 0 | X74: =IF(VLOOKUP($D74,$C$5:$AU$500,3,)=0,0,(VLOOKUP($D74,$C$5:$AU$500,22,)/VLOOKUP($D74,$C$5:$AU$500,3,))*$E74) -> 0 | Y74: =IF(VLOOKUP($D74,$C$5:$AU$500,3,)=0,0,(VLOOKUP($D74,$C$5:$AU$500,23,)/VLOOKUP($D74,$C$5:$AU$500,3,))*$E74) -> 0 | Z74: =IF(VLOOKUP($D74,$C$5:$AU$500,3,)=0,0,(VLOOKUP($D74,$C$5:$AU$500,24,)/VLOOKUP($D74,$C$5:$AU$500,3,))*$E74) -> 0 | AA74: =IF(VLOOKUP($D74,$C$5:$AU$500,3,)=0,0,(VLOOKUP($D74,$C$5:$AU$500,25,)/VLOOKUP($D74,$C$5:$AU$500,3,))*$E74) -> 0 | AB74: =IF(VLOOKUP($D74,$C$5:$AU$500,3,)=0,0,(VLOOKUP($D74,$C$5:$AU$500,26,)/VLOOKUP($D74,$C$5:$AU$500,3,))*$E74) -> 0 | AC74: =IF(VLOOKUP($D74,$C$5:$AU$500,3,)=0,0,(VLOOKUP($D74,$C$5:$AU$500,27,)/VLOOKUP($D74,$C$5:$AU$500,3,))*$E74) -> 0 | AD74: =IF(VLOOKUP($D74,$C$5:$AU$500,3,)=0,0,(VLOOKUP($D74,$C$5:$AU$500,28,)/VLOOKUP($D74,$C$5:$AU$500,3,))*$E74) -> 0 | AE74: =IF(VLOOKUP($D74,$C$5:$AU$500,3,)=0,0,(VLOOKUP($D74,$C$5:$AU$500,29,)/VLOOKUP($D74,$C$5:$AU$500,3,))*$E74) -> 0 | AF74: =IF(VLOOKUP($D74,$C$5:$AU$500,3,)=0,0,(VLOOKUP($D74,$C$5:$AU$500,30,)/VLOOKUP($D74,$C$5:$AU$500,3,))*$E74) -> 0 | AG74: =SUM(F74:AF74) -> 0 | AH74: =IF(ABS(E74-AG74)<0.01,"ok","err") -> ok
A76: Load Management
A77: Customer | C77: NPCSC | D77: C06 | E77: ='Func & Classif'!AA126 -> 0 | F77: =IF(VLOOKUP($D77,$C$5:$AU$500,3,)=0,0,(VLOOKUP($D77,$C$5:$AU$500,4,)/VLOOKUP($D77,$C$5:$AU$500,3,))*$E77) -> 0 | G77: =IF(VLOOKUP($D77,$C$5:$AU$500,3,)=0,0,(VLOOKUP($D77,$C$5:$AU$500,5,)/VLOOKUP($D77,$C$5:$AU$500,3,))*$E77) -> 0 | H77: =IF(VLOOKUP($D77,$C$5:$AU$500,3,)=0,0,(VLOOKUP($D77,$C$5:$AU$500,6,)/VLOOKUP($D77,$C$5:$AU$500,3,))*$E77) -> 0 | I77: =IF(VLOOKUP($D77,$C$5:$AU$500,3,)=0,0,(VLOOKUP($D77,$C$5:$AU$500,7,)/VLOOKUP($D77,$C$5:$AU$500,3,))*$E77) -> 0 | J77: =IF(VLOOKUP($D77,$C$5:$AU$500,3,)=0,0,(VLOOKUP($D77,$C$5:$AU$500,8,)/VLOOKUP($D77,$C$5:$AU$500,3,))*$E77) -> 0 | K77: =IF(VLOOKUP($D77,$C$5:$AU$500,3,)=0,0,(VLOOKUP($D77,$C$5:$AU$500,9,)/VLOOKUP($D77,$C$5:$AU$500,3,))*$E77) -> 0 | L77: =IF(VLOOKUP($D77,$C$5:$AU$500,3,)=0,0,(VLOOKUP($D77,$C$5:$AU$500,10,)/VLOOKUP($D77,$C$5:$AU$500,3,))*$E77) -> 0 | M77: =IF(VLOOKUP($D77,$C$5:$AU$500,3,)=0,0,(VLOOKUP($D77,$C$5:$AU$500,11,)/VLOOKUP($D77,$C$5:$AU$500,3,))*$E77) -> 0 | N77: =IF(VLOOKUP($D77,$C$5:$AU$500,3,)=0,0,(VLOOKUP($D77,$C$5:$AU$500,12,)/VLOOKUP($D77,$C$5:$AU$500,3,))*$E77) -> 0 | O77: =IF(VLOOKUP($D77,$C$5:$AU$500,3,)=0,0,(VLOOKUP($D77,$C$5:$AU$500,13,)/VLOOKUP($D77,$C$5:$AU$500,3,))*$E77) -> 0 | P77: =IF(VLOOKUP($D77,$C$5:$AU$500,3,)=0,0,(VLOOKUP($D77,$C$5:$AU$500,14,)/VLOOKUP($D77,$C$5:$AU$500,3,))*$E77) -> 0 | Q77: =IF(VLOOKUP($D77,$C$5:$AU$500,3,)=0,0,(VLOOKUP($D77,$C$5:$AU$500,15,)/VLOOKUP($D77,$C$5:$AU$500,3,))*$E77) -> 0 | R77: =IF(VLOOKUP($D77,$C$5:$AU$500,3,)=0,0,(VLOOKUP($D77,$C$5:$AU$500,16,)/VLOOKUP($D77,$C$5:$AU$500,3,))*$E77) -> 0 | S77: =IF(VLOOKUP($D77,$C$5:$AU$500,3,)=0,0,(VLOOKUP($D77,$C$5:$AU$500,17,)/VLOOKUP($D77,$C$5:$AU$500,3,))*$E77) -> 0 | T77: =IF(VLOOKUP($D77,$C$5:$AU$500,3,)=0,0,(VLOOKUP($D77,$C$5:$AU$500,18,)/VLOOKUP($D77,$C$5:$AU$500,3,))*$E77) -> 0 | U77: =IF(VLOOKUP($D77,$C$5:$AU$500,3,)=0,0,(VLOOKUP($D77,$C$5:$AU$500,19,)/VLOOKUP($D77,$C$5:$AU$500,3,))*$E77) -> 0 | V77: =IF(VLOOKUP($D77,$C$5:$AU$500,3,)=0,0,(VLOOKUP($D77,$C$5:$AU$500,20,)/VLOOKUP($D77,$C$5:$AU$500,3,))*$E77) -> 0 | W77: =IF(VLOOKUP($D77,$C$5:$AU$500,3,)=0,0,(VLOOKUP($D77,$C$5:$AU$500,21,)/VLOOKUP($D77,$C$5:$AU$500,3,))*$E77) -> 0 | X77: =IF(VLOOKUP($D77,$C$5:$AU$500,3,)=0,0,(VLOOKUP($D77,$C$5:$AU$500,22,)/VLOOKUP($D77,$C$5:$AU$500,3,))*$E77) -> 0 | Y77: =IF(VLOOKUP($D77,$C$5:$AU$500,3,)=0,0,(VLOOKUP($D77,$C$5:$AU$500,23,)/VLOOKUP($D77,$C$5:$AU$500,3,))*$E77) -> 0 | Z77: =IF(VLOOKUP($D77,$C$5:$AU$500,3,)=0,0,(VLOOKUP($D77,$C$5:$AU$500,24,)/VLOOKUP($D77,$C$5:$AU$500,3,))*$E77) -> 0 | AA77: =IF(VLOOKUP($D77,$C$5:$AU$500,3,)=0,0,(VLOOKUP($D77,$C$5:$AU$500,25,)/VLOOKUP($D77,$C$5:$AU$500,3,))*$E77) -> 0 | AB77: =IF(VLOOKUP($D77,$C$5:$AU$500,3,)=0,0,(VLOOKUP($D77,$C$5:$AU$500,26,)/VLOOKUP($D77,$C$5:$AU$500,3,))*$E77) -> 0 | AC77: =IF(VLOOKUP($D77,$C$5:$AU$500,3,)=0,0,(VLOOKUP($D77,$C$5:$AU$500,27,)/VLOOKUP($D77,$C$5:$AU$500,3,))*$E77) -> 0 | AD77: =IF(VLOOKUP($D77,$C$5:$AU$500,3,)=0,0,(VLOOKUP($D77,$C$5:$AU$500,28,)/VLOOKUP($D77,$C$5:$AU$500,3,))*$E77) -> 0 | AE77: =IF(VLOOKUP($D77,$C$5:$AU$500,3,)=0,0,(VLOOKUP($D77,$C$5:$AU$500,29,)/VLOOKUP($D77,$C$5:$AU$500,3,))*$E77) -> 0 | AF77: =IF(VLOOKUP($D77,$C$5:$AU$500,3,)=0,0,(VLOOKUP($D77,$C$5:$AU$500,30,)/VLOOKUP($D77,$C$5:$AU$500,3,))*$E77) -> 0 | AG77: =SUM(F77:AF77) -> 0 | AH77: =IF(ABS(E77-AG77)<0.01,"ok","err") -> ok
A79: Total | C79: NPT | E79: =E49+E52+E55+E60+E65+E68+E71+E74+E77 -> 97108466.08 | F79: =F49+F52+F55+F60+F65+F68+F71+F74+F77 -> 70533050.32 | G79: 8198100.459 | H79: 2190415.541 | I79: 13514690.2 | J79: 112342.5743 | K79: 1020373.076 | L79: 1539493.918 | M79: 0 | N79: 0 | O79: 0 | P79: 0 | Q79: 0 | R79: 0 | S79: =S49+S55+S60+S65+S68+S71+S74+S77 -> 0 | T79: 0 | U79: 0 | V79: 0 | W79: 0 | X79: 0 | Y79: 0 | Z79: 0 | AA79: 0 | AB79: 0 | AC79: 0 | AD79: 0 | AE79: 0 | AF79: 0 | AG79: =SUM(F79:AF79) -> 97108466.08 | AH79: =IF(ABS(E79-AG79)<0.01,"ok","err") -> ok
F80: =F79/E79 -> 0.7263326584
A82: Net Cost Rate Base
A84: Production & Purchase Power
A85: Demand | C85: RBPPD | D85: PPDA | E85: ='Func & Classif'!H144 -> 0 | F85: =IF(VLOOKUP($D85,$C$5:$AU$500,3,)=0,0,(VLOOKUP($D85,$C$5:$AU$500,4,)/VLOOKUP($D85,$C$5:$AU$500,3,))*$E85) -> 0 | G85: =IF(VLOOKUP($D85,$C$5:$AU$500,3,)=0,0,(VLOOKUP($D85,$C$5:$AU$500,5,)/VLOOKUP($D85,$C$5:$AU$500,3,))*$E85) -> 0 | H85: =IF(VLOOKUP($D85,$C$5:$AU$500,3,)=0,0,(VLOOKUP($D85,$C$5:$AU$500,6,)/VLOOKUP($D85,$C$5:$AU$500,3,))*$E85) -> 0 | I85: =IF(VLOOKUP($D85,$C$5:$AU$500,3,)=0,0,(VLOOKUP($D85,$C$5:$AU$500,7,)/VLOOKUP($D85,$C$5:$AU$500,3,))*$E85) -> 0 | J85: =IF(VLOOKUP($D85,$C$5:$AU$500,3,)=0,0,(VLOOKUP($D85,$C$5:$AU$500,8,)/VLOOKUP($D85,$C$5:$AU$500,3,))*$E85) -> 0 | K85: =IF(VLOOKUP($D85,$C$5:$AU$500,3,)=0,0,(VLOOKUP($D85,$C$5:$AU$500,9,)/VLOOKUP($D85,$C$5:$AU$500,3,))*$E85) -> 0 | L85: =IF(VLOOKUP($D85,$C$5:$AU$500,3,)=0,0,(VLOOKUP($D85,$C$5:$AU$500,10,)/VLOOKUP($D85,$C$5:$AU$500,3,))*$E85) -> 0 | M85: =IF(VLOOKUP($D85,$C$5:$AU$500,3,)=0,0,(VLOOKUP($D85,$C$5:$AU$500,11,)/VLOOKUP($D85,$C$5:$AU$500,3,))*$E85) -> 0 | N85: =IF(VLOOKUP($D85,$C$5:$AU$500,3,)=0,0,(VLOOKUP($D85,$C$5:$AU$500,12,)/VLOOKUP($D85,$C$5:$AU$500,3,))*$E85) -> 0 | O85: =IF(VLOOKUP($D85,$C$5:$AU$500,3,)=0,0,(VLOOKUP($D85,$C$5:$AU$500,13,)/VLOOKUP($D85,$C$5:$AU$500,3,))*$E85) -> 0 | P85: =IF(VLOOKUP($D85,$C$5:$AU$500,3,)=0,0,(VLOOKUP($D85,$C$5:$AU$500,14,)/VLOOKUP($D85,$C$5:$AU$500,3,))*$E85) -> 0 | Q85: =IF(VLOOKUP($D85,$C$5:$AU$500,3,)=0,0,(VLOOKUP($D85,$C$5:$AU$500,15,)/VLOOKUP($D85,$C$5:$AU$500,3,))*$E85) -> 0 | R85: =IF(VLOOKUP($D85,$C$5:$AU$500,3,)=0,0,(VLOOKUP($D85,$C$5:$AU$500,16,)/VLOOKUP($D85,$C$5:$AU$500,3,))*$E85) -> 0 | S85: =IF(VLOOKUP($D85,$C$5:$AU$500,3,)=0,0,(VLOOKUP($D85,$C$5:$AU$500,17,)/VLOOKUP($D85,$C$5:$AU$500,3,))*$E85) -> 0 | T85: =IF(VLOOKUP($D85,$C$5:$AU$500,3,)=0,0,(VLOOKUP($D85,$C$5:$AU$500,18,)/VLOOKUP($D85,$C$5:$AU$500,3,))*$E85) -> 0 | U85: =IF(VLOOKUP($D85,$C$5:$AU$500,3,)=0,0,(VLOOKUP($D85,$C$5:$AU$500,19,)/VLOOKUP($D85,$C$5:$AU$500,3,))*$E85) -> 0 | V85: =IF(VLOOKUP($D85,$C$5:$AU$500,3,)=0,0,(VLOOKUP($D85,$C$5:$AU$500,20,)/VLOOKUP($D85,$C$5:$AU$500,3,))*$E85) -> 0 | W85: =IF(VLOOKUP($D85,$C$5:$AU$500,3,)=0,0,(VLOOKUP($D85,$C$5:$AU$500,21,)/VLOOKUP($D85,$C$5:$AU$500,3,))*$E85) -> 0 | X85: =IF(VLOOKUP($D85,$C$5:$AU$500,3,)=0,0,(VLOOKUP($D85,$C$5:$AU$500,22,)/VLOOKUP($D85,$C$5:$AU$500,3,))*$E85) -> 0 | Y85: =IF(VLOOKUP($D85,$C$5:$AU$500,3,)=0,0,(VLOOKUP($D85,$C$5:$AU$500,23,)/VLOOKUP($D85,$C$5:$AU$500,3,))*$E85) -> 0 | Z85: =IF(VLOOKUP($D85,$C$5:$AU$500,3,)=0,0,(VLOOKUP($D85,$C$5:$AU$500,24,)/VLOOKUP($D85,$C$5:$AU$500,3,))*$E85) -> 0 | AA85: =IF(VLOOKUP($D85,$C$5:$AU$500,3,)=0,0,(VLOOKUP($D85,$C$5:$AU$500,25,)/VLOOKUP($D85,$C$5:$AU$500,3,))*$E85) -> 0 | AB85: =IF(VLOOKUP($D85,$C$5:$AU$500,3,)=0,0,(VLOOKUP($D85,$C$5:$AU$500,26,)/VLOOKUP($D85,$C$5:$AU$500,3,))*$E85) -> 0 | AC85: =IF(VLOOKUP($D85,$C$5:$AU$500,3,)=0,0,(VLOOKUP($D85,$C$5:$AU$500,27,)/VLOOKUP($D85,$C$5:$AU$500,3,))*$E85) -> 0 | AD85: =IF(VLOOKUP($D85,$C$5:$AU$500,3,)=0,0,(VLOOKUP($D85,$C$5:$AU$500,28,)/VLOOKUP($D85,$C$5:$AU$500,3,))*$E85) -> 0 | AE85: =IF(VLOOKUP($D85,$C$5:$AU$500,3,)=0,0,(VLOOKUP($D85,$C$5:$AU$500,29,)/VLOOKUP($D85,$C$5:$AU$500,3,))*$E85) -> 0 | AF85: =IF(VLOOKUP($D85,$C$5:$AU$500,3,)=0,0,(VLOOKUP($D85,$C$5:$AU$500,30,)/VLOOKUP($D85,$C$5:$AU$500,3,))*$E85) -> 0 | AG85: =SUM(F85:AF85) -> 0 | AH85: =IF(ABS(E85-AG85)<0.01,"ok","err") -> ok
A86: Energy | C86: RBPPE | D86: PPEA | E86: ='Func & Classif'!I144 -> 0 | F86: =IF(VLOOKUP($D86,$C$5:$AU$500,3,)=0,0,(VLOOKUP($D86,$C$5:$AU$500,4,)/VLOOKUP($D86,$C$5:$AU$500,3,))*$E86) -> 0 | G86: =IF(VLOOKUP($D86,$C$5:$AU$500,3,)=0,0,(VLOOKUP($D86,$C$5:$AU$500,5,)/VLOOKUP($D86,$C$5:$AU$500,3,))*$E86) -> 0 | H86: =IF(VLOOKUP($D86,$C$5:$AU$500,3,)=0,0,(VLOOKUP($D86,$C$5:$AU$500,6,)/VLOOKUP($D86,$C$5:$AU$500,3,))*$E86) -> 0 | I86: =IF(VLOOKUP($D86,$C$5:$AU$500,3,)=0,0,(VLOOKUP($D86,$C$5:$AU$500,7,)/VLOOKUP($D86,$C$5:$AU$500,3,))*$E86) -> 0 | J86: =IF(VLOOKUP($D86,$C$5:$AU$500,3,)=0,0,(VLOOKUP($D86,$C$5:$AU$500,8,)/VLOOKUP($D86,$C$5:$AU$500,3,))*$E86) -> 0 | K86: =IF(VLOOKUP($D86,$C$5:$AU$500,3,)=0,0,(VLOOKUP($D86,$C$5:$AU$500,9,)/VLOOKUP($D86,$C$5:$AU$500,3,))*$E86) -> 0 | L86: =IF(VLOOKUP($D86,$C$5:$AU$500,3,)=0,0,(VLOOKUP($D86,$C$5:$AU$500,10,)/VLOOKUP($D86,$C$5:$AU$500,3,))*$E86) -> 0 | M86: =IF(VLOOKUP($D86,$C$5:$AU$500,3,)=0,0,(VLOOKUP($D86,$C$5:$AU$500,11,)/VLOOKUP($D86,$C$5:$AU$500,3,))*$E86) -> 0 | N86: =IF(VLOOKUP($D86,$C$5:$AU$500,3,)=0,0,(VLOOKUP($D86,$C$5:$AU$500,12,)/VLOOKUP($D86,$C$5:$AU$500,3,))*$E86) -> 0 | O86: =IF(VLOOKUP($D86,$C$5:$AU$500,3,)=0,0,(VLOOKUP($D86,$C$5:$AU$500,13,)/VLOOKUP($D86,$C$5:$AU$500,3,))*$E86) -> 0 | P86: =IF(VLOOKUP($D86,$C$5:$AU$500,3,)=0,0,(VLOOKUP($D86,$C$5:$AU$500,14,)/VLOOKUP($D86,$C$5:$AU$500,3,))*$E86) -> 0 | Q86: =IF(VLOOKUP($D86,$C$5:$AU$500,3,)=0,0,(VLOOKUP($D86,$C$5:$AU$500,15,)/VLOOKUP($D86,$C$5:$AU$500,3,))*$E86) -> 0 | R86: =IF(VLOOKUP($D86,$C$5:$AU$500,3,)=0,0,(VLOOKUP($D86,$C$5:$AU$500,16,)/VLOOKUP($D86,$C$5:$AU$500,3,))*$E86) -> 0 | S86: =IF(VLOOKUP($D86,$C$5:$AU$500,3,)=0,0,(VLOOKUP($D86,$C$5:$AU$500,17,)/VLOOKUP($D86,$C$5:$AU$500,3,))*$E86) -> 0 | T86: =IF(VLOOKUP($D86,$C$5:$AU$500,3,)=0,0,(VLOOKUP($D86,$C$5:$AU$500,18,)/VLOOKUP($D86,$C$5:$AU$500,3,))*$E86) -> 0 | U86: =IF(VLOOKUP($D86,$C$5:$AU$500,3,)=0,0,(VLOOKUP($D86,$C$5:$AU$500,19,)/VLOOKUP($D86,$C$5:$AU$500,3,))*$E86) -> 0 | V86: =IF(VLOOKUP($D86,$C$5:$AU$500,3,)=0,0,(VLOOKUP($D86,$C$5:$AU$500,20,)/VLOOKUP($D86,$C$5:$AU$500,3,))*$E86) -> 0 | W86: =IF(VLOOKUP($D86,$C$5:$AU$500,3,)=0,0,(VLOOKUP($D86,$C$5:$AU$500,21,)/VLOOKUP($D86,$C$5:$AU$500,3,))*$E86) -> 0 | X86: =IF(VLOOKUP($D86,$C$5:$AU$500,3,)=0,0,(VLOOKUP($D86,$C$5:$AU$500,22,)/VLOOKUP($D86,$C$5:$AU$500,3,))*$E86) -> 0 | Y86: =IF(VLOOKUP($D86,$C$5:$AU$500,3,)=0,0,(VLOOKUP($D86,$C$5:$AU$500,23,)/VLOOKUP($D86,$C$5:$AU$500,3,))*$E86) -> 0 | Z86: =IF(VLOOKUP($D86,$C$5:$AU$500,3,)=0,0,(VLOOKUP($D86,$C$5:$AU$500,24,)/VLOOKUP($D86,$C$5:$AU$500,3,))*$E86) -> 0 | AA86: =IF(VLOOKUP($D86,$C$5:$AU$500,3,)=0,0,(VLOOKUP($D86,$C$5:$AU$500,25,)/VLOOKUP($D86,$C$5:$AU$500,3,))*$E86) -> 0 | AB86: =IF(VLOOKUP($D86,$C$5:$AU$500,3,)=0,0,(VLOOKUP($D86,$C$5:$AU$500,26,)/VLOOKUP($D86,$C$5:$AU$500,3,))*$E86) -> 0 | AC86: =IF(VLOOKUP($D86,$C$5:$AU$500,3,)=0,0,(VLOOKUP($D86,$C$5:$AU$500,27,)/VLOOKUP($D86,$C$5:$AU$500,3,))*$E86) -> 0 | AD86: =IF(VLOOKUP($D86,$C$5:$AU$500,3,)=0,0,(VLOOKUP($D86,$C$5:$AU$500,28,)/VLOOKUP($D86,$C$5:$AU$500,3,))*$E86) -> 0 | AE86: =IF(VLOOKUP($D86,$C$5:$AU$500,3,)=0,0,(VLOOKUP($D86,$C$5:$AU$500,29,)/VLOOKUP($D86,$C$5:$AU$500,3,))*$E86) -> 0 | AF86: =IF(VLOOKUP($D86,$C$5:$AU$500,3,)=0,0,(VLOOKUP($D86,$C$5:$AU$500,30,)/VLOOKUP($D86,$C$5:$AU$500,3,))*$E86) -> 0 | AG86: =SUM(F86:AF86) -> 0 | AH86: =IF(ABS(E86-AG86)<0.01,"ok","err") -> ok
A87: Total Purchase Power | C87: RBPPT | E87: =E85+E86 -> 0 | F87: 0 | G87: 0 | H87: 0 | I87: 0 | J87: 0 | K87: 0 | L87: 0 | M87: 0 | N87: 0 | O87: 0 | P87: 0 | Q87: 0 | R87: 0 | S87: 0 | T87: 0 | U87: =U85+U86 -> 0 | V87: 0 | W87: 0 | X87: 0 | Y87: 0 | Z87: 0 | AA87: 0 | AB87: 0 | AC87: 0 | AD87: 0 | AE87: 0 | AF87: 0 | AG87: =SUM(F87:AF87) -> 0 | AH87: =IF(ABS(E87-AG87)<0.01,"ok","err") -> ok
A89: Transmission
A90: Demand | C90: RBTD | D90: TA1 | E90: ='Func & Classif'!K144 -> 0 | F90: =IF(VLOOKUP($D90,$C$5:$AU$500,3,)=0,0,(VLOOKUP($D90,$C$5:$AU$500,4,)/VLOOKUP($D90,$C$5:$AU$500,3,))*$E90) -> 0 | G90: =IF(VLOOKUP($D90,$C$5:$AU$500,3,)=0,0,(VLOOKUP($D90,$C$5:$AU$500,5,)/VLOOKUP($D90,$C$5:$AU$500,3,))*$E90) -> 0 | H90: =IF(VLOOKUP($D90,$C$5:$AU$500,3,)=0,0,(VLOOKUP($D90,$C$5:$AU$500,6,)/VLOOKUP($D90,$C$5:$AU$500,3,))*$E90) -> 0 | I90: =IF(VLOOKUP($D90,$C$5:$AU$500,3,)=0,0,(VLOOKUP($D90,$C$5:$AU$500,7,)/VLOOKUP($D90,$C$5:$AU$500,3,))*$E90) -> 0 | J90: =IF(VLOOKUP($D90,$C$5:$AU$500,3,)=0,0,(VLOOKUP($D90,$C$5:$AU$500,8,)/VLOOKUP($D90,$C$5:$AU$500,3,))*$E90) -> 0 | K90: =IF(VLOOKUP($D90,$C$5:$AU$500,3,)=0,0,(VLOOKUP($D90,$C$5:$AU$500,9,)/VLOOKUP($D90,$C$5:$AU$500,3,))*$E90) -> 0 | L90: =IF(VLOOKUP($D90,$C$5:$AU$500,3,)=0,0,(VLOOKUP($D90,$C$5:$AU$500,10,)/VLOOKUP($D90,$C$5:$AU$500,3,))*$E90) -> 0 | M90: =IF(VLOOKUP($D90,$C$5:$AU$500,3,)=0,0,(VLOOKUP($D90,$C$5:$AU$500,11,)/VLOOKUP($D90,$C$5:$AU$500,3,))*$E90) -> 0 | N90: =IF(VLOOKUP($D90,$C$5:$AU$500,3,)=0,0,(VLOOKUP($D90,$C$5:$AU$500,12,)/VLOOKUP($D90,$C$5:$AU$500,3,))*$E90) -> 0 | O90: =IF(VLOOKUP($D90,$C$5:$AU$500,3,)=0,0,(VLOOKUP($D90,$C$5:$AU$500,13,)/VLOOKUP($D90,$C$5:$AU$500,3,))*$E90) -> 0 | P90: =IF(VLOOKUP($D90,$C$5:$AU$500,3,)=0,0,(VLOOKUP($D90,$C$5:$AU$500,14,)/VLOOKUP($D90,$C$5:$AU$500,3,))*$E90) -> 0 | Q90: =IF(VLOOKUP($D90,$C$5:$AU$500,3,)=0,0,(VLOOKUP($D90,$C$5:$AU$500,15,)/VLOOKUP($D90,$C$5:$AU$500,3,))*$E90) -> 0 | R90: =IF(VLOOKUP($D90,$C$5:$AU$500,3,)=0,0,(VLOOKUP($D90,$C$5:$AU$500,16,)/VLOOKUP($D90,$C$5:$AU$500,3,))*$E90) -> 0 | S90: =IF(VLOOKUP($D90,$C$5:$AU$500,3,)=0,0,(VLOOKUP($D90,$C$5:$AU$500,17,)/VLOOKUP($D90,$C$5:$AU$500,3,))*$E90) -> 0 | T90: =IF(VLOOKUP($D90,$C$5:$AU$500,3,)=0,0,(VLOOKUP($D90,$C$5:$AU$500,18,)/VLOOKUP($D90,$C$5:$AU$500,3,))*$E90) -> 0 | U90: =IF(VLOOKUP($D90,$C$5:$AU$500,3,)=0,0,(VLOOKUP($D90,$C$5:$AU$500,19,)/VLOOKUP($D90,$C$5:$AU$500,3,))*$E90) -> 0 | V90: =IF(VLOOKUP($D90,$C$5:$AU$500,3,)=0,0,(VLOOKUP($D90,$C$5:$AU$500,20,)/VLOOKUP($D90,$C$5:$AU$500,3,))*$E90) -> 0 | W90: =IF(VLOOKUP($D90,$C$5:$AU$500,3,)=0,0,(VLOOKUP($D90,$C$5:$AU$500,21,)/VLOOKUP($D90,$C$5:$AU$500,3,))*$E90) -> 0 | X90: =IF(VLOOKUP($D90,$C$5:$AU$500,3,)=0,0,(VLOOKUP($D90,$C$5:$AU$500,22,)/VLOOKUP($D90,$C$5:$AU$500,3,))*$E90) -> 0 | Y90: =IF(VLOOKUP($D90,$C$5:$AU$500,3,)=0,0,(VLOOKUP($D90,$C$5:$AU$500,23,)/VLOOKUP($D90,$C$5:$AU$500,3,))*$E90) -> 0 | Z90: =IF(VLOOKUP($D90,$C$5:$AU$500,3,)=0,0,(VLOOKUP($D90,$C$5:$AU$500,24,)/VLOOKUP($D90,$C$5:$AU$500,3,))*$E90) -> 0 | AA90: =IF(VLOOKUP($D90,$C$5:$AU$500,3,)=0,0,(VLOOKUP($D90,$C$5:$AU$500,25,)/VLOOKUP($D90,$C$5:$AU$500,3,))*$E90) -> 0 | AB90: =IF(VLOOKUP($D90,$C$5:$AU$500,3,)=0,0,(VLOOKUP($D90,$C$5:$AU$500,26,)/VLOOKUP($D90,$C$5:$AU$500,3,))*$E90) -> 0 | AC90: =IF(VLOOKUP($D90,$C$5:$AU$500,3,)=0,0,(VLOOKUP($D90,$C$5:$AU$500,27,)/VLOOKUP($D90,$C$5:$AU$500,3,))*$E90) -> 0 | AD90: =IF(VLOOKUP($D90,$C$5:$AU$500,3,)=0,0,(VLOOKUP($D90,$C$5:$AU$500,28,)/VLOOKUP($D90,$C$5:$AU$500,3,))*$E90) -> 0 | AE90: =IF(VLOOKUP($D90,$C$5:$AU$500,3,)=0,0,(VLOOKUP($D90,$C$5:$AU$500,29,)/VLOOKUP($D90,$C$5:$AU$500,3,))*$E90) -> 0 | AF90: =IF(VLOOKUP($D90,$C$5:$AU$500,3,)=0,0,(VLOOKUP($D90,$C$5:$AU$500,30,)/VLOOKUP($D90,$C$5:$AU$500,3,))*$E90) -> 0 | AG90: =SUM(F90:AF90) -> 0 | AH90: =IF(ABS(E90-AG90)<0.01,"ok","err") -> ok
A92: Station Equipment
A93: Demand | C93: RBSED | D93: SA1 | E93: ='Func & Classif'!M144 -> 16799694.59 | F93: =IF(VLOOKUP($D93,$C$5:$AU$500,3,)=0,0,(VLOOKUP($D93,$C$5:$AU$500,4,)/VLOOKUP($D93,$C$5:$AU$500,3,))*$E93) -> 10718648.26 | G93: =IF(VLOOKUP($D93,$C$5:$AU$500,3,)=0,0,(VLOOKUP($D93,$C$5:$AU$500,5,)/VLOOKUP($D93,$C$5:$AU$500,3,))*$E93) -> 839043.4638 | H93: =IF(VLOOKUP($D93,$C$5:$AU$500,3,)=0,0,(VLOOKUP($D93,$C$5:$AU$500,6,)/VLOOKUP($D93,$C$5:$AU$500,3,))*$E93) -> 295843.0588 | I93: =IF(VLOOKUP($D93,$C$5:$AU$500,3,)=0,0,(VLOOKUP($D93,$C$5:$AU$500,7,)/VLOOKUP($D93,$C$5:$AU$500,3,))*$E93) -> 4345435.403 | J93: =IF(VLOOKUP($D93,$C$5:$AU$500,3,)=0,0,(VLOOKUP($D93,$C$5:$AU$500,8,)/VLOOKUP($D93,$C$5:$AU$500,3,))*$E93) -> 44791.24147 | K93: =IF(VLOOKUP($D93,$C$5:$AU$500,3,)=0,0,(VLOOKUP($D93,$C$5:$AU$500,9,)/VLOOKUP($D93,$C$5:$AU$500,3,))*$E93) -> 428577.9319 | L93: =IF(VLOOKUP($D93,$C$5:$AU$500,3,)=0,0,(VLOOKUP($D93,$C$5:$AU$500,10,)/VLOOKUP($D93,$C$5:$AU$500,3,))*$E93) -> 127355.2356 | M93: =IF(VLOOKUP($D93,$C$5:$AU$500,3,)=0,0,(VLOOKUP($D93,$C$5:$AU$500,11,)/VLOOKUP($D93,$C$5:$AU$500,3,))*$E93) -> 0 | N93: =IF(VLOOKUP($D93,$C$5:$AU$500,3,)=0,0,(VLOOKUP($D93,$C$5:$AU$500,12,)/VLOOKUP($D93,$C$5:$AU$500,3,))*$E93) -> 0 | O93: =IF(VLOOKUP($D93,$C$5:$AU$500,3,)=0,0,(VLOOKUP($D93,$C$5:$AU$500,13,)/VLOOKUP($D93,$C$5:$AU$500,3,))*$E93) -> 0 | P93: =IF(VLOOKUP($D93,$C$5:$AU$500,3,)=0,0,(VLOOKUP($D93,$C$5:$AU$500,14,)/VLOOKUP($D93,$C$5:$AU$500,3,))*$E93) -> 0 | Q93: =IF(VLOOKUP($D93,$C$5:$AU$500,3,)=0,0,(VLOOKUP($D93,$C$5:$AU$500,15,)/VLOOKUP($D93,$C$5:$AU$500,3,))*$E93) -> 0 | R93: =IF(VLOOKUP($D93,$C$5:$AU$500,3,)=0,0,(VLOOKUP($D93,$C$5:$AU$500,16,)/VLOOKUP($D93,$C$5:$AU$500,3,))*$E93) -> 0 | S93: =IF(VLOOKUP($D93,$C$5:$AU$500,3,)=0,0,(VLOOKUP($D93,$C$5:$AU$500,17,)/VLOOKUP($D93,$C$5:$AU$500,3,))*$E93) -> 0 | T93: =IF(VLOOKUP($D93,$C$5:$AU$500,3,)=0,0,(VLOOKUP($D93,$C$5:$AU$500,18,)/VLOOKUP($D93,$C$5:$AU$500,3,))*$E93) -> 0 | U93: =IF(VLOOKUP($D93,$C$5:$AU$500,3,)=0,0,(VLOOKUP($D93,$C$5:$AU$500,19,)/VLOOKUP($D93,$C$5:$AU$500,3,))*$E93) -> 0 | V93: =IF(VLOOKUP($D93,$C$5:$AU$500,3,)=0,0,(VLOOKUP($D93,$C$5:$AU$500,20,)/VLOOKUP($D93,$C$5:$AU$500,3,))*$E93) -> 0 | W93: =IF(VLOOKUP($D93,$C$5:$AU$500,3,)=0,0,(VLOOKUP($D93,$C$5:$AU$500,21,)/VLOOKUP($D93,$C$5:$AU$500,3,))*$E93) -> 0 | X93: =IF(VLOOKUP($D93,$C$5:$AU$500,3,)=0,0,(VLOOKUP($D93,$C$5:$AU$500,22,)/VLOOKUP($D93,$C$5:$AU$500,3,))*$E93) -> 0 | Y93: =IF(VLOOKUP($D93,$C$5:$AU$500,3,)=0,0,(VLOOKUP($D93,$C$5:$AU$500,23,)/VLOOKUP($D93,$C$5:$AU$500,3,))*$E93) -> 0 | Z93: =IF(VLOOKUP($D93,$C$5:$AU$500,3,)=0,0,(VLOOKUP($D93,$C$5:$AU$500,24,)/VLOOKUP($D93,$C$5:$AU$500,3,))*$E93) -> 0 | AA93: =IF(VLOOKUP($D93,$C$5:$AU$500,3,)=0,0,(VLOOKUP($D93,$C$5:$AU$500,25,)/VLOOKUP($D93,$C$5:$AU$500,3,))*$E93) -> 0 | AB93: =IF(VLOOKUP($D93,$C$5:$AU$500,3,)=0,0,(VLOOKUP($D93,$C$5:$AU$500,26,)/VLOOKUP($D93,$C$5:$AU$500,3,))*$E93) -> 0 | AC93: =IF(VLOOKUP($D93,$C$5:$AU$500,3,)=0,0,(VLOOKUP($D93,$C$5:$AU$500,27,)/VLOOKUP($D93,$C$5:$AU$500,3,))*$E93) -> 0 | AD93: =IF(VLOOKUP($D93,$C$5:$AU$500,3,)=0,0,(VLOOKUP($D93,$C$5:$AU$500,28,)/VLOOKUP($D93,$C$5:$AU$500,3,))*$E93) -> 0 | AE93: =IF(VLOOKUP($D93,$C$5:$AU$500,3,)=0,0,(VLOOKUP($D93,$C$5:$AU$500,29,)/VLOOKUP($D93,$C$5:$AU$500,3,))*$E93) -> 0 | AF93: =IF(VLOOKUP($D93,$C$5:$AU$500,3,)=0,0,(VLOOKUP($D93,$C$5:$AU$500,30,)/VLOOKUP($D93,$C$5:$AU$500,3,))*$E93) -> 0 | AG93: =SUM(F93:AF93) -> 16799694.59 | AH93: =IF(ABS(E93-AG93)<0.01,"ok","err") -> ok
A95: Primary Distribution Plant
A96: Demand | C96: RBDPD | D96: DA1 | E96: ='Func & Classif'!O144 -> 23209747.06 | F96: =IF(VLOOKUP($D96,$C$5:$AU$500,3,)=0,0,(VLOOKUP($D96,$C$5:$AU$500,4,)/VLOOKUP($D96,$C$5:$AU$500,3,))*$E96) -> 14695241.17 | G96: =IF(VLOOKUP($D96,$C$5:$AU$500,3,)=0,0,(VLOOKUP($D96,$C$5:$AU$500,5,)/VLOOKUP($D96,$C$5:$AU$500,3,))*$E96) -> 329621.0307 | H96: =IF(VLOOKUP($D96,$C$5:$AU$500,3,)=0,0,(VLOOKUP($D96,$C$5:$AU$500,6,)/VLOOKUP($D96,$C$5:$AU$500,3,))*$E96) -> 557845.1434 | I96: =IF(VLOOKUP($D96,$C$5:$AU$500,3,)=0,0,(VLOOKUP($D96,$C$5:$AU$500,7,)/VLOOKUP($D96,$C$5:$AU$500,3,))*$E96) -> 6857309.879 | J96: =IF(VLOOKUP($D96,$C$5:$AU$500,3,)=0,0,(VLOOKUP($D96,$C$5:$AU$500,8,)/VLOOKUP($D96,$C$5:$AU$500,3,))*$E96) -> 61831.25828 | K96: =IF(VLOOKUP($D96,$C$5:$AU$500,3,)=0,0,(VLOOKUP($D96,$C$5:$AU$500,9,)/VLOOKUP($D96,$C$5:$AU$500,3,))*$E96) -> 591622.6461 | L96: =IF(VLOOKUP($D96,$C$5:$AU$500,3,)=0,0,(VLOOKUP($D96,$C$5:$AU$500,10,)/VLOOKUP($D96,$C$5:$AU$500,3,))*$E96) -> 116275.9297 | M96: =IF(VLOOKUP($D96,$C$5:$AU$500,3,)=0,0,(VLOOKUP($D96,$C$5:$AU$500,11,)/VLOOKUP($D96,$C$5:$AU$500,3,))*$E96) -> 0 | N96: =IF(VLOOKUP($D96,$C$5:$AU$500,3,)=0,0,(VLOOKUP($D96,$C$5:$AU$500,12,)/VLOOKUP($D96,$C$5:$AU$500,3,))*$E96) -> 0 | O96: =IF(VLOOKUP($D96,$C$5:$AU$500,3,)=0,0,(VLOOKUP($D96,$C$5:$AU$500,13,)/VLOOKUP($D96,$C$5:$AU$500,3,))*$E96) -> 0 | P96: =IF(VLOOKUP($D96,$C$5:$AU$500,3,)=0,0,(VLOOKUP($D96,$C$5:$AU$500,14,)/VLOOKUP($D96,$C$5:$AU$500,3,))*$E96) -> 0 | Q96: =IF(VLOOKUP($D96,$C$5:$AU$500,3,)=0,0,(VLOOKUP($D96,$C$5:$AU$500,15,)/VLOOKUP($D96,$C$5:$AU$500,3,))*$E96) -> 0 | R96: =IF(VLOOKUP($D96,$C$5:$AU$500,3,)=0,0,(VLOOKUP($D96,$C$5:$AU$500,16,)/VLOOKUP($D96,$C$5:$AU$500,3,))*$E96) -> 0 | S96: =IF(VLOOKUP($D96,$C$5:$AU$500,3,)=0,0,(VLOOKUP($D96,$C$5:$AU$500,17,)/VLOOKUP($D96,$C$5:$AU$500,3,))*$E96) -> 0 | T96: =IF(VLOOKUP($D96,$C$5:$AU$500,3,)=0,0,(VLOOKUP($D96,$C$5:$AU$500,18,)/VLOOKUP($D96,$C$5:$AU$500,3,))*$E96) -> 0 | U96: =IF(VLOOKUP($D96,$C$5:$AU$500,3,)=0,0,(VLOOKUP($D96,$C$5:$AU$500,19,)/VLOOKUP($D96,$C$5:$AU$500,3,))*$E96) -> 0 | V96: =IF(VLOOKUP($D96,$C$5:$AU$500,3,)=0,0,(VLOOKUP($D96,$C$5:$AU$500,20,)/VLOOKUP($D96,$C$5:$AU$500,3,))*$E96) -> 0 | W96: =IF(VLOOKUP($D96,$C$5:$AU$500,3,)=0,0,(VLOOKUP($D96,$C$5:$AU$500,21,)/VLOOKUP($D96,$C$5:$AU$500,3,))*$E96) -> 0 | X96: =IF(VLOOKUP($D96,$C$5:$AU$500,3,)=0,0,(VLOOKUP($D96,$C$5:$AU$500,22,)/VLOOKUP($D96,$C$5:$AU$500,3,))*$E96) -> 0 | Y96: =IF(VLOOKUP($D96,$C$5:$AU$500,3,)=0,0,(VLOOKUP($D96,$C$5:$AU$500,23,)/VLOOKUP($D96,$C$5:$AU$500,3,))*$E96) -> 0 | Z96: =IF(VLOOKUP($D96,$C$5:$AU$500,3,)=0,0,(VLOOKUP($D96,$C$5:$AU$500,24,)/VLOOKUP($D96,$C$5:$AU$500,3,))*$E96) -> 0 | AA96: =IF(VLOOKUP($D96,$C$5:$AU$500,3,)=0,0,(VLOOKUP($D96,$C$5:$AU$500,25,)/VLOOKUP($D96,$C$5:$AU$500,3,))*$E96) -> 0 | AB96: =IF(VLOOKUP($D96,$C$5:$AU$500,3,)=0,0,(VLOOKUP($D96,$C$5:$AU$500,26,)/VLOOKUP($D96,$C$5:$AU$500,3,))*$E96) -> 0 | AC96: =IF(VLOOKUP($D96,$C$5:$AU$500,3,)=0,0,(VLOOKUP($D96,$C$5:$AU$500,27,)/VLOOKUP($D96,$C$5:$AU$500,3,))*$E96) -> 0 | AD96: =IF(VLOOKUP($D96,$C$5:$AU$500,3,)=0,0,(VLOOKUP($D96,$C$5:$AU$500,28,)/VLOOKUP($D96,$C$5:$AU$500,3,))*$E96) -> 0 | AE96: =IF(VLOOKUP($D96,$C$5:$AU$500,3,)=0,0,(VLOOKUP($D96,$C$5:$AU$500,29,)/VLOOKUP($D96,$C$5:$AU$500,3,))*$E96) -> 0 | AF96: =IF(VLOOKUP($D96,$C$5:$AU$500,3,)=0,0,(VLOOKUP($D96,$C$5:$AU$500,30,)/VLOOKUP($D96,$C$5:$AU$500,3,))*$E96) -> 0 | AG96: =SUM(F96:AF96) -> 23209747.06 | AH96: =IF(ABS(E96-AG96)<0.01,"ok","err") -> ok
A97: Customer | C97: RBDPC | D97: C01 | E97: ='Func & Classif'!P144 -> 41307009.08 | F97: =IF(VLOOKUP($D97,$C$5:$AU$500,3,)=0,0,(VLOOKUP($D97,$C$5:$AU$500,4,)/VLOOKUP($D97,$C$5:$AU$500,3,))*$E97) -> 34938531.86 | G97: =IF(VLOOKUP($D97,$C$5:$AU$500,3,)=0,0,(VLOOKUP($D97,$C$5:$AU$500,5,)/VLOOKUP($D97,$C$5:$AU$500,3,))*$E97) -> 4727210.471 | H97: =IF(VLOOKUP($D97,$C$5:$AU$500,3,)=0,0,(VLOOKUP($D97,$C$5:$AU$500,6,)/VLOOKUP($D97,$C$5:$AU$500,3,))*$E97) -> 670124.6978 | I97: =IF(VLOOKUP($D97,$C$5:$AU$500,3,)=0,0,(VLOOKUP($D97,$C$5:$AU$500,7,)/VLOOKUP($D97,$C$5:$AU$500,3,))*$E97) -> 847800.5927 | J97: =IF(VLOOKUP($D97,$C$5:$AU$500,3,)=0,0,(VLOOKUP($D97,$C$5:$AU$500,8,)/VLOOKUP($D97,$C$5:$AU$500,3,))*$E97) -> 1375.555315 | K97: =IF(VLOOKUP($D97,$C$5:$AU$500,3,)=0,0,(VLOOKUP($D97,$C$5:$AU$500,9,)/VLOOKUP($D97,$C$5:$AU$500,3,))*$E97) -> 1375.555315 | L97: =IF(VLOOKUP($D97,$C$5:$AU$500,3,)=0,0,(VLOOKUP($D97,$C$5:$AU$500,10,)/VLOOKUP($D97,$C$5:$AU$500,3,))*$E97) -> 120590.3493 | M97: =IF(VLOOKUP($D97,$C$5:$AU$500,3,)=0,0,(VLOOKUP($D97,$C$5:$AU$500,11,)/VLOOKUP($D97,$C$5:$AU$500,3,))*$E97) -> 0 | N97: =IF(VLOOKUP($D97,$C$5:$AU$500,3,)=0,0,(VLOOKUP($D97,$C$5:$AU$500,12,)/VLOOKUP($D97,$C$5:$AU$500,3,))*$E97) -> 0 | O97: =IF(VLOOKUP($D97,$C$5:$AU$500,3,)=0,0,(VLOOKUP($D97,$C$5:$AU$500,13,)/VLOOKUP($D97,$C$5:$AU$500,3,))*$E97) -> 0 | P97: =IF(VLOOKUP($D97,$C$5:$AU$500,3,)=0,0,(VLOOKUP($D97,$C$5:$AU$500,14,)/VLOOKUP($D97,$C$5:$AU$500,3,))*$E97) -> 0 | Q97: =IF(VLOOKUP($D97,$C$5:$AU$500,3,)=0,0,(VLOOKUP($D97,$C$5:$AU$500,15,)/VLOOKUP($D97,$C$5:$AU$500,3,))*$E97) -> 0 | R97: =IF(VLOOKUP($D97,$C$5:$AU$500,3,)=0,0,(VLOOKUP($D97,$C$5:$AU$500,16,)/VLOOKUP($D97,$C$5:$AU$500,3,))*$E97) -> 0 | S97: =IF(VLOOKUP($D97,$C$5:$AU$500,3,)=0,0,(VLOOKUP($D97,$C$5:$AU$500,17,)/VLOOKUP($D97,$C$5:$AU$500,3,))*$E97) -> 0 | T97: =IF(VLOOKUP($D97,$C$5:$AU$500,3,)=0,0,(VLOOKUP($D97,$C$5:$AU$500,18,)/VLOOKUP($D97,$C$5:$AU$500,3,))*$E97) -> 0 | U97: =IF(VLOOKUP($D97,$C$5:$AU$500,3,)=0,0,(VLOOKUP($D97,$C$5:$AU$500,19,)/VLOOKUP($D97,$C$5:$AU$500,3,))*$E97) -> 0 | V97: =IF(VLOOKUP($D97,$C$5:$AU$500,3,)=0,0,(VLOOKUP($D97,$C$5:$AU$500,20,)/VLOOKUP($D97,$C$5:$AU$500,3,))*$E97) -> 0 | W97: =IF(VLOOKUP($D97,$C$5:$AU$500,3,)=0,0,(VLOOKUP($D97,$C$5:$AU$500,21,)/VLOOKUP($D97,$C$5:$AU$500,3,))*$E97) -> 0 | X97: =IF(VLOOKUP($D97,$C$5:$AU$500,3,)=0,0,(VLOOKUP($D97,$C$5:$AU$500,22,)/VLOOKUP($D97,$C$5:$AU$500,3,))*$E97) -> 0 | Y97: =IF(VLOOKUP($D97,$C$5:$AU$500,3,)=0,0,(VLOOKUP($D97,$C$5:$AU$500,23,)/VLOOKUP($D97,$C$5:$AU$500,3,))*$E97) -> 0 | Z97: =IF(VLOOKUP($D97,$C$5:$AU$500,3,)=0,0,(VLOOKUP($D97,$C$5:$AU$500,24,)/VLOOKUP($D97,$C$5:$AU$500,3,))*$E97) -> 0 | AA97: =IF(VLOOKUP($D97,$C$5:$AU$500,3,)=0,0,(VLOOKUP($D97,$C$5:$AU$500,25,)/VLOOKUP($D97,$C$5:$AU$500,3,))*$E97) -> 0 | AB97: =IF(VLOOKUP($D97,$C$5:$AU$500,3,)=0,0,(VLOOKUP($D97,$C$5:$AU$500,26,)/VLOOKUP($D97,$C$5:$AU$500,3,))*$E97) -> 0 | AC97: =IF(VLOOKUP($D97,$C$5:$AU$500,3,)=0,0,(VLOOKUP($D97,$C$5:$AU$500,27,)/VLOOKUP($D97,$C$5:$AU$500,3,))*$E97) -> 0 | AD97: =IF(VLOOKUP($D97,$C$5:$AU$500,3,)=0,0,(VLOOKUP($D97,$C$5:$AU$500,28,)/VLOOKUP($D97,$C$5:$AU$500,3,))*$E97) -> 0 | AE97: =IF(VLOOKUP($D97,$C$5:$AU$500,3,)=0,0,(VLOOKUP($D97,$C$5:$AU$500,29,)/VLOOKUP($D97,$C$5:$AU$500,3,))*$E97) -> 0 | AF97: =IF(VLOOKUP($D97,$C$5:$AU$500,3,)=0,0,(VLOOKUP($D97,$C$5:$AU$500,30,)/VLOOKUP($D97,$C$5:$AU$500,3,))*$E97) -> 0 | AG97: =SUM(F97:AF97) -> 41307009.08 | AH97: =IF(ABS(E97-AG97)<0.01,"ok","err") -> ok
A98: Total Primary Distribution Plant | E98: =E96+E97 -> 64516756.14 | F98: 49633773.04 | G98: 5056831.502 | H98: 1227969.841 | I98: 7705110.472 | J98: 63206.81359 | K98: 592998.2014 | L98: 236866.2791 | M98: 0 | N98: 0 | O98: 0 | P98: 0 | Q98: 0 | R98: 0 | S98: 0 | T98: 0 | U98: =U96+U97 -> 0 | V98: 0 | W98: 0 | X98: 0 | Y98: 0 | Z98: 0 | AA98: 0 | AB98: 0 | AC98: 0 | AD98: 0 | AE98: 0 | AF98: 0 | AG98: =SUM(F98:AF98) -> 64516756.14 | AH98: =IF(ABS(E98-AG98)<0.01,"ok","err") -> ok
A100: Customer Services
A101: Demand | C101: RBCSD | D101: CSA | E101: ='Func & Classif'!R144 -> 0 | F101: =IF(VLOOKUP($D101,$C$5:$AU$500,3,)=0,0,(VLOOKUP($D101,$C$5:$AU$500,4,)/VLOOKUP($D101,$C$5:$AU$500,3,))*$E101) -> 0 | G101: =IF(VLOOKUP($D101,$C$5:$AU$500,3,)=0,0,(VLOOKUP($D101,$C$5:$AU$500,5,)/VLOOKUP($D101,$C$5:$AU$500,3,))*$E101) -> 0 | H101: =IF(VLOOKUP($D101,$C$5:$AU$500,3,)=0,0,(VLOOKUP($D101,$C$5:$AU$500,6,)/VLOOKUP($D101,$C$5:$AU$500,3,))*$E101) -> 0 | I101: =IF(VLOOKUP($D101,$C$5:$AU$500,3,)=0,0,(VLOOKUP($D101,$C$5:$AU$500,7,)/VLOOKUP($D101,$C$5:$AU$500,3,))*$E101) -> 0 | J101: =IF(VLOOKUP($D101,$C$5:$AU$500,3,)=0,0,(VLOOKUP($D101,$C$5:$AU$500,8,)/VLOOKUP($D101,$C$5:$AU$500,3,))*$E101) -> 0 | K101: =IF(VLOOKUP($D101,$C$5:$AU$500,3,)=0,0,(VLOOKUP($D101,$C$5:$AU$500,9,)/VLOOKUP($D101,$C$5:$AU$500,3,))*$E101) -> 0 | L101: =IF(VLOOKUP($D101,$C$5:$AU$500,3,)=0,0,(VLOOKUP($D101,$C$5:$AU$500,10,)/VLOOKUP($D101,$C$5:$AU$500,3,))*$E101) -> 0 | M101: =IF(VLOOKUP($D101,$C$5:$AU$500,3,)=0,0,(VLOOKUP($D101,$C$5:$AU$500,11,)/VLOOKUP($D101,$C$5:$AU$500,3,))*$E101) -> 0 | N101: =IF(VLOOKUP($D101,$C$5:$AU$500,3,)=0,0,(VLOOKUP($D101,$C$5:$AU$500,12,)/VLOOKUP($D101,$C$5:$AU$500,3,))*$E101) -> 0 | O101: =IF(VLOOKUP($D101,$C$5:$AU$500,3,)=0,0,(VLOOKUP($D101,$C$5:$AU$500,13,)/VLOOKUP($D101,$C$5:$AU$500,3,))*$E101) -> 0 | P101: =IF(VLOOKUP($D101,$C$5:$AU$500,3,)=0,0,(VLOOKUP($D101,$C$5:$AU$500,14,)/VLOOKUP($D101,$C$5:$AU$500,3,))*$E101) -> 0 | Q101: =IF(VLOOKUP($D101,$C$5:$AU$500,3,)=0,0,(VLOOKUP($D101,$C$5:$AU$500,15,)/VLOOKUP($D101,$C$5:$AU$500,3,))*$E101) -> 0 | R101: =IF(VLOOKUP($D101,$C$5:$AU$500,3,)=0,0,(VLOOKUP($D101,$C$5:$AU$500,16,)/VLOOKUP($D101,$C$5:$AU$500,3,))*$E101) -> 0 | S101: =IF(VLOOKUP($D101,$C$5:$AU$500,3,)=0,0,(VLOOKUP($D101,$C$5:$AU$500,17,)/VLOOKUP($D101,$C$5:$AU$500,3,))*$E101) -> 0 | T101: =IF(VLOOKUP($D101,$C$5:$AU$500,3,)=0,0,(VLOOKUP($D101,$C$5:$AU$500,18,)/VLOOKUP($D101,$C$5:$AU$500,3,))*$E101) -> 0 | U101: =IF(VLOOKUP($D101,$C$5:$AU$500,3,)=0,0,(VLOOKUP($D101,$C$5:$AU$500,19,)/VLOOKUP($D101,$C$5:$AU$500,3,))*$E101) -> 0 | V101: =IF(VLOOKUP($D101,$C$5:$AU$500,3,)=0,0,(VLOOKUP($D101,$C$5:$AU$500,20,)/VLOOKUP($D101,$C$5:$AU$500,3,))*$E101) -> 0 | W101: =IF(VLOOKUP($D101,$C$5:$AU$500,3,)=0,0,(VLOOKUP($D101,$C$5:$AU$500,21,)/VLOOKUP($D101,$C$5:$AU$500,3,))*$E101) -> 0 | X101: =IF(VLOOKUP($D101,$C$5:$AU$500,3,)=0,0,(VLOOKUP($D101,$C$5:$AU$500,22,)/VLOOKUP($D101,$C$5:$AU$500,3,))*$E101) -> 0 | Y101: =IF(VLOOKUP($D101,$C$5:$AU$500,3,)=0,0,(VLOOKUP($D101,$C$5:$AU$500,23,)/VLOOKUP($D101,$C$5:$AU$500,3,))*$E101) -> 0 | Z101: =IF(VLOOKUP($D101,$C$5:$AU$500,3,)=0,0,(VLOOKUP($D101,$C$5:$AU$500,24,)/VLOOKUP($D101,$C$5:$AU$500,3,))*$E101) -> 0 | AA101: =IF(VLOOKUP($D101,$C$5:$AU$500,3,)=0,0,(VLOOKUP($D101,$C$5:$AU$500,25,)/VLOOKUP($D101,$C$5:$AU$500,3,))*$E101) -> 0 | AB101: =IF(VLOOKUP($D101,$C$5:$AU$500,3,)=0,0,(VLOOKUP($D101,$C$5:$AU$500,26,)/VLOOKUP($D101,$C$5:$AU$500,3,))*$E101) -> 0 | AC101: =IF(VLOOKUP($D101,$C$5:$AU$500,3,)=0,0,(VLOOKUP($D101,$C$5:$AU$500,27,)/VLOOKUP($D101,$C$5:$AU$500,3,))*$E101) -> 0 | AD101: =IF(VLOOKUP($D101,$C$5:$AU$500,3,)=0,0,(VLOOKUP($D101,$C$5:$AU$500,28,)/VLOOKUP($D101,$C$5:$AU$500,3,))*$E101) -> 0 | AE101: =IF(VLOOKUP($D101,$C$5:$AU$500,3,)=0,0,(VLOOKUP($D101,$C$5:$AU$500,29,)/VLOOKUP($D101,$C$5:$AU$500,3,))*$E101) -> 0 | AF101: =IF(VLOOKUP($D101,$C$5:$AU$500,3,)=0,0,(VLOOKUP($D101,$C$5:$AU$500,30,)/VLOOKUP($D101,$C$5:$AU$500,3,))*$E101) -> 0 | AG101: =SUM(F101:AF101) -> 0 | AH101: =IF(ABS(E101-AG101)<0.01,"ok","err") -> ok
A102: Customer | C102: RBCSC | D102: SERV | E102: ='Func & Classif'!S144 -> 7350493.175 | F102: =IF(VLOOKUP($D102,$C$5:$AU$500,3,)=0,0,(VLOOKUP($D102,$C$5:$AU$500,4,)/VLOOKUP($D102,$C$5:$AU$500,3,))*$E102) -> 5884364.4 | G102: =IF(VLOOKUP($D102,$C$5:$AU$500,3,)=0,0,(VLOOKUP($D102,$C$5:$AU$500,5,)/VLOOKUP($D102,$C$5:$AU$500,3,))*$E102) -> 909896.079 | H102: =IF(VLOOKUP($D102,$C$5:$AU$500,3,)=0,0,(VLOOKUP($D102,$C$5:$AU$500,6,)/VLOOKUP($D102,$C$5:$AU$500,3,))*$E102) -> 161232.4643 | I102: =IF(VLOOKUP($D102,$C$5:$AU$500,3,)=0,0,(VLOOKUP($D102,$C$5:$AU$500,7,)/VLOOKUP($D102,$C$5:$AU$500,3,))*$E102) -> 305972.1108 | J102: =IF(VLOOKUP($D102,$C$5:$AU$500,3,)=0,0,(VLOOKUP($D102,$C$5:$AU$500,8,)/VLOOKUP($D102,$C$5:$AU$500,3,))*$E102) -> 992.878672 | K102: =IF(VLOOKUP($D102,$C$5:$AU$500,3,)=0,0,(VLOOKUP($D102,$C$5:$AU$500,9,)/VLOOKUP($D102,$C$5:$AU$500,3,))*$E102) -> 992.878672 | L102: =IF(VLOOKUP($D102,$C$5:$AU$500,3,)=0,0,(VLOOKUP($D102,$C$5:$AU$500,10,)/VLOOKUP($D102,$C$5:$AU$500,3,))*$E102) -> 87042.36358 | M102: =IF(VLOOKUP($D102,$C$5:$AU$500,3,)=0,0,(VLOOKUP($D102,$C$5:$AU$500,11,)/VLOOKUP($D102,$C$5:$AU$500,3,))*$E102) -> 0 | N102: =IF(VLOOKUP($D102,$C$5:$AU$500,3,)=0,0,(VLOOKUP($D102,$C$5:$AU$500,12,)/VLOOKUP($D102,$C$5:$AU$500,3,))*$E102) -> 0 | O102: =IF(VLOOKUP($D102,$C$5:$AU$500,3,)=0,0,(VLOOKUP($D102,$C$5:$AU$500,13,)/VLOOKUP($D102,$C$5:$AU$500,3,))*$E102) -> 0 | P102: =IF(VLOOKUP($D102,$C$5:$AU$500,3,)=0,0,(VLOOKUP($D102,$C$5:$AU$500,14,)/VLOOKUP($D102,$C$5:$AU$500,3,))*$E102) -> 0 | Q102: =IF(VLOOKUP($D102,$C$5:$AU$500,3,)=0,0,(VLOOKUP($D102,$C$5:$AU$500,15,)/VLOOKUP($D102,$C$5:$AU$500,3,))*$E102) -> 0 | R102: =IF(VLOOKUP($D102,$C$5:$AU$500,3,)=0,0,(VLOOKUP($D102,$C$5:$AU$500,16,)/VLOOKUP($D102,$C$5:$AU$500,3,))*$E102) -> 0 | S102: =IF(VLOOKUP($D102,$C$5:$AU$500,3,)=0,0,(VLOOKUP($D102,$C$5:$AU$500,17,)/VLOOKUP($D102,$C$5:$AU$500,3,))*$E102) -> 0 | T102: =IF(VLOOKUP($D102,$C$5:$AU$500,3,)=0,0,(VLOOKUP($D102,$C$5:$AU$500,18,)/VLOOKUP($D102,$C$5:$AU$500,3,))*$E102) -> 0 | U102: =IF(VLOOKUP($D102,$C$5:$AU$500,3,)=0,0,(VLOOKUP($D102,$C$5:$AU$500,19,)/VLOOKUP($D102,$C$5:$AU$500,3,))*$E102) -> 0 | V102: =IF(VLOOKUP($D102,$C$5:$AU$500,3,)=0,0,(VLOOKUP($D102,$C$5:$AU$500,20,)/VLOOKUP($D102,$C$5:$AU$500,3,))*$E102) -> 0 | W102: =IF(VLOOKUP($D102,$C$5:$AU$500,3,)=0,0,(VLOOKUP($D102,$C$5:$AU$500,21,)/VLOOKUP($D102,$C$5:$AU$500,3,))*$E102) -> 0 | X102: =IF(VLOOKUP($D102,$C$5:$AU$500,3,)=0,0,(VLOOKUP($D102,$C$5:$AU$500,22,)/VLOOKUP($D102,$C$5:$AU$500,3,))*$E102) -> 0 | Y102: =IF(VLOOKUP($D102,$C$5:$AU$500,3,)=0,0,(VLOOKUP($D102,$C$5:$AU$500,23,)/VLOOKUP($D102,$C$5:$AU$500,3,))*$E102) -> 0 | Z102: =IF(VLOOKUP($D102,$C$5:$AU$500,3,)=0,0,(VLOOKUP($D102,$C$5:$AU$500,24,)/VLOOKUP($D102,$C$5:$AU$500,3,))*$E102) -> 0 | AA102: =IF(VLOOKUP($D102,$C$5:$AU$500,3,)=0,0,(VLOOKUP($D102,$C$5:$AU$500,25,)/VLOOKUP($D102,$C$5:$AU$500,3,))*$E102) -> 0 | AB102: =IF(VLOOKUP($D102,$C$5:$AU$500,3,)=0,0,(VLOOKUP($D102,$C$5:$AU$500,26,)/VLOOKUP($D102,$C$5:$AU$500,3,))*$E102) -> 0 | AC102: =IF(VLOOKUP($D102,$C$5:$AU$500,3,)=0,0,(VLOOKUP($D102,$C$5:$AU$500,27,)/VLOOKUP($D102,$C$5:$AU$500,3,))*$E102) -> 0 | AD102: =IF(VLOOKUP($D102,$C$5:$AU$500,3,)=0,0,(VLOOKUP($D102,$C$5:$AU$500,28,)/VLOOKUP($D102,$C$5:$AU$500,3,))*$E102) -> 0 | AE102: =IF(VLOOKUP($D102,$C$5:$AU$500,3,)=0,0,(VLOOKUP($D102,$C$5:$AU$500,29,)/VLOOKUP($D102,$C$5:$AU$500,3,))*$E102) -> 0 | AF102: =IF(VLOOKUP($D102,$C$5:$AU$500,3,)=0,0,(VLOOKUP($D102,$C$5:$AU$500,30,)/VLOOKUP($D102,$C$5:$AU$500,3,))*$E102) -> 0 | AG102: =SUM(F102:AF102) -> 7350493.175 | AH102: =IF(ABS(E102-AG102)<0.01,"ok","err") -> ok
A103: Total Customer Services | E103: =E101+E102 -> 7350493.175 | F103: 5884364.4 | G103: 909896.079 | H103: 161232.4643 | I103: 305972.1108 | J103: 992.878672 | K103: 992.878672 | L103: 87042.36358 | M103: 0 | N103: 0 | O103: 0 | P103: 0 | Q103: 0 | R103: 0 | S103: 0 | T103: 0 | U103: =U101+U102 -> 0 | V103: 0 | W103: 0 | X103: 0 | Y103: 0 | Z103: 0 | AA103: 0 | AB103: 0 | AC103: 0 | AD103: 0 | AE103: 0 | AF103: 0 | AG103: =SUM(F103:AF103) -> 7350493.175 | AH103: =IF(ABS(E103-AG103)<0.01,"ok","err") -> ok
A105: Meters
A106: Customer | C106: RBMC | D106: C03 | E106: ='Func & Classif'!U144 -> 8615410.346 | F106: =IF(VLOOKUP($D106,$C$5:$AU$500,3,)=0,0,(VLOOKUP($D106,$C$5:$AU$500,4,)/VLOOKUP($D106,$C$5:$AU$500,3,))*$E106) -> 4981946.907 | G106: =IF(VLOOKUP($D106,$C$5:$AU$500,3,)=0,0,(VLOOKUP($D106,$C$5:$AU$500,5,)/VLOOKUP($D106,$C$5:$AU$500,3,))*$E106) -> 1482934.821 | H106: =IF(VLOOKUP($D106,$C$5:$AU$500,3,)=0,0,(VLOOKUP($D106,$C$5:$AU$500,6,)/VLOOKUP($D106,$C$5:$AU$500,3,))*$E106) -> 527459.5322 | I106: =IF(VLOOKUP($D106,$C$5:$AU$500,3,)=0,0,(VLOOKUP($D106,$C$5:$AU$500,7,)/VLOOKUP($D106,$C$5:$AU$500,3,))*$E106) -> 1257249.577 | J106: =IF(VLOOKUP($D106,$C$5:$AU$500,3,)=0,0,(VLOOKUP($D106,$C$5:$AU$500,8,)/VLOOKUP($D106,$C$5:$AU$500,3,))*$E106) -> 4079.771479 | K106: =IF(VLOOKUP($D106,$C$5:$AU$500,3,)=0,0,(VLOOKUP($D106,$C$5:$AU$500,9,)/VLOOKUP($D106,$C$5:$AU$500,3,))*$E106) -> 4079.771479 | L106: =IF(VLOOKUP($D106,$C$5:$AU$500,3,)=0,0,(VLOOKUP($D106,$C$5:$AU$500,10,)/VLOOKUP($D106,$C$5:$AU$500,3,))*$E106) -> 357659.9663 | M106: =IF(VLOOKUP($D106,$C$5:$AU$500,3,)=0,0,(VLOOKUP($D106,$C$5:$AU$500,11,)/VLOOKUP($D106,$C$5:$AU$500,3,))*$E106) -> 0 | N106: =IF(VLOOKUP($D106,$C$5:$AU$500,3,)=0,0,(VLOOKUP($D106,$C$5:$AU$500,12,)/VLOOKUP($D106,$C$5:$AU$500,3,))*$E106) -> 0 | O106: =IF(VLOOKUP($D106,$C$5:$AU$500,3,)=0,0,(VLOOKUP($D106,$C$5:$AU$500,13,)/VLOOKUP($D106,$C$5:$AU$500,3,))*$E106) -> 0 | P106: =IF(VLOOKUP($D106,$C$5:$AU$500,3,)=0,0,(VLOOKUP($D106,$C$5:$AU$500,14,)/VLOOKUP($D106,$C$5:$AU$500,3,))*$E106) -> 0 | Q106: =IF(VLOOKUP($D106,$C$5:$AU$500,3,)=0,0,(VLOOKUP($D106,$C$5:$AU$500,15,)/VLOOKUP($D106,$C$5:$AU$500,3,))*$E106) -> 0 | R106: =IF(VLOOKUP($D106,$C$5:$AU$500,3,)=0,0,(VLOOKUP($D106,$C$5:$AU$500,16,)/VLOOKUP($D106,$C$5:$AU$500,3,))*$E106) -> 0 | S106: =IF(VLOOKUP($D106,$C$5:$AU$500,3,)=0,0,(VLOOKUP($D106,$C$5:$AU$500,17,)/VLOOKUP($D106,$C$5:$AU$500,3,))*$E106) -> 0 | T106: =IF(VLOOKUP($D106,$C$5:$AU$500,3,)=0,0,(VLOOKUP($D106,$C$5:$AU$500,18,)/VLOOKUP($D106,$C$5:$AU$500,3,))*$E106) -> 0 | U106: =IF(VLOOKUP($D106,$C$5:$AU$500,3,)=0,0,(VLOOKUP($D106,$C$5:$AU$500,19,)/VLOOKUP($D106,$C$5:$AU$500,3,))*$E106) -> 0 | V106: =IF(VLOOKUP($D106,$C$5:$AU$500,3,)=0,0,(VLOOKUP($D106,$C$5:$AU$500,20,)/VLOOKUP($D106,$C$5:$AU$500,3,))*$E106) -> 0 | W106: =IF(VLOOKUP($D106,$C$5:$AU$500,3,)=0,0,(VLOOKUP($D106,$C$5:$AU$500,21,)/VLOOKUP($D106,$C$5:$AU$500,3,))*$E106) -> 0 | X106: =IF(VLOOKUP($D106,$C$5:$AU$500,3,)=0,0,(VLOOKUP($D106,$C$5:$AU$500,22,)/VLOOKUP($D106,$C$5:$AU$500,3,))*$E106) -> 0 | Y106: =IF(VLOOKUP($D106,$C$5:$AU$500,3,)=0,0,(VLOOKUP($D106,$C$5:$AU$500,23,)/VLOOKUP($D106,$C$5:$AU$500,3,))*$E106) -> 0 | Z106: =IF(VLOOKUP($D106,$C$5:$AU$500,3,)=0,0,(VLOOKUP($D106,$C$5:$AU$500,24,)/VLOOKUP($D106,$C$5:$AU$500,3,))*$E106) -> 0 | AA106: =IF(VLOOKUP($D106,$C$5:$AU$500,3,)=0,0,(VLOOKUP($D106,$C$5:$AU$500,25,)/VLOOKUP($D106,$C$5:$AU$500,3,))*$E106) -> 0 | AB106: =IF(VLOOKUP($D106,$C$5:$AU$500,3,)=0,0,(VLOOKUP($D106,$C$5:$AU$500,26,)/VLOOKUP($D106,$C$5:$AU$500,3,))*$E106) -> 0 | AC106: =IF(VLOOKUP($D106,$C$5:$AU$500,3,)=0,0,(VLOOKUP($D106,$C$5:$AU$500,27,)/VLOOKUP($D106,$C$5:$AU$500,3,))*$E106) -> 0 | AD106: =IF(VLOOKUP($D106,$C$5:$AU$500,3,)=0,0,(VLOOKUP($D106,$C$5:$AU$500,28,)/VLOOKUP($D106,$C$5:$AU$500,3,))*$E106) -> 0 | AE106: =IF(VLOOKUP($D106,$C$5:$AU$500,3,)=0,0,(VLOOKUP($D106,$C$5:$AU$500,29,)/VLOOKUP($D106,$C$5:$AU$500,3,))*$E106) -> 0 | AF106: =IF(VLOOKUP($D106,$C$5:$AU$500,3,)=0,0,(VLOOKUP($D106,$C$5:$AU$500,30,)/VLOOKUP($D106,$C$5:$AU$500,3,))*$E106) -> 0 | AG106: =SUM(F106:AF106) -> 8615410.346 | AH106: =IF(ABS(E106-AG106)<0.01,"ok","err") -> ok
A108: Lighting Systems
A109: Customer | C109: RBLSC | D109: C04 | E109: ='Func & Classif'!W144 -> 746409.5182 | F109: =IF(VLOOKUP($D109,$C$5:$AU$500,3,)=0,0,(VLOOKUP($D109,$C$5:$AU$500,4,)/VLOOKUP($D109,$C$5:$AU$500,3,))*$E109) -> 0 | G109: =IF(VLOOKUP($D109,$C$5:$AU$500,3,)=0,0,(VLOOKUP($D109,$C$5:$AU$500,5,)/VLOOKUP($D109,$C$5:$AU$500,3,))*$E109) -> 0 | H109: =IF(VLOOKUP($D109,$C$5:$AU$500,3,)=0,0,(VLOOKUP($D109,$C$5:$AU$500,6,)/VLOOKUP($D109,$C$5:$AU$500,3,))*$E109) -> 0 | I109: =IF(VLOOKUP($D109,$C$5:$AU$500,3,)=0,0,(VLOOKUP($D109,$C$5:$AU$500,7,)/VLOOKUP($D109,$C$5:$AU$500,3,))*$E109) -> 0 | J109: =IF(VLOOKUP($D109,$C$5:$AU$500,3,)=0,0,(VLOOKUP($D109,$C$5:$AU$500,8,)/VLOOKUP($D109,$C$5:$AU$500,3,))*$E109) -> 0 | K109: =IF(VLOOKUP($D109,$C$5:$AU$500,3,)=0,0,(VLOOKUP($D109,$C$5:$AU$500,9,)/VLOOKUP($D109,$C$5:$AU$500,3,))*$E109) -> 0 | L109: =IF(VLOOKUP($D109,$C$5:$AU$500,3,)=0,0,(VLOOKUP($D109,$C$5:$AU$500,10,)/VLOOKUP($D109,$C$5:$AU$500,3,))*$E109) -> 746409.5182 | M109: =IF(VLOOKUP($D109,$C$5:$AU$500,3,)=0,0,(VLOOKUP($D109,$C$5:$AU$500,11,)/VLOOKUP($D109,$C$5:$AU$500,3,))*$E109) -> 0 | N109: =IF(VLOOKUP($D109,$C$5:$AU$500,3,)=0,0,(VLOOKUP($D109,$C$5:$AU$500,12,)/VLOOKUP($D109,$C$5:$AU$500,3,))*$E109) -> 0 | O109: =IF(VLOOKUP($D109,$C$5:$AU$500,3,)=0,0,(VLOOKUP($D109,$C$5:$AU$500,13,)/VLOOKUP($D109,$C$5:$AU$500,3,))*$E109) -> 0 | P109: =IF(VLOOKUP($D109,$C$5:$AU$500,3,)=0,0,(VLOOKUP($D109,$C$5:$AU$500,14,)/VLOOKUP($D109,$C$5:$AU$500,3,))*$E109) -> 0 | Q109: =IF(VLOOKUP($D109,$C$5:$AU$500,3,)=0,0,(VLOOKUP($D109,$C$5:$AU$500,15,)/VLOOKUP($D109,$C$5:$AU$500,3,))*$E109) -> 0 | R109: =IF(VLOOKUP($D109,$C$5:$AU$500,3,)=0,0,(VLOOKUP($D109,$C$5:$AU$500,16,)/VLOOKUP($D109,$C$5:$AU$500,3,))*$E109) -> 0 | S109: =IF(VLOOKUP($D109,$C$5:$AU$500,3,)=0,0,(VLOOKUP($D109,$C$5:$AU$500,17,)/VLOOKUP($D109,$C$5:$AU$500,3,))*$E109) -> 0 | T109: =IF(VLOOKUP($D109,$C$5:$AU$500,3,)=0,0,(VLOOKUP($D109,$C$5:$AU$500,18,)/VLOOKUP($D109,$C$5:$AU$500,3,))*$E109) -> 0 | U109: =IF(VLOOKUP($D109,$C$5:$AU$500,3,)=0,0,(VLOOKUP($D109,$C$5:$AU$500,19,)/VLOOKUP($D109,$C$5:$AU$500,3,))*$E109) -> 0 | V109: =IF(VLOOKUP($D109,$C$5:$AU$500,3,)=0,0,(VLOOKUP($D109,$C$5:$AU$500,20,)/VLOOKUP($D109,$C$5:$AU$500,3,))*$E109) -> 0 | W109: =IF(VLOOKUP($D109,$C$5:$AU$500,3,)=0,0,(VLOOKUP($D109,$C$5:$AU$500,21,)/VLOOKUP($D109,$C$5:$AU$500,3,))*$E109) -> 0 | X109: =IF(VLOOKUP($D109,$C$5:$AU$500,3,)=0,0,(VLOOKUP($D109,$C$5:$AU$500,22,)/VLOOKUP($D109,$C$5:$AU$500,3,))*$E109) -> 0 | Y109: =IF(VLOOKUP($D109,$C$5:$AU$500,3,)=0,0,(VLOOKUP($D109,$C$5:$AU$500,23,)/VLOOKUP($D109,$C$5:$AU$500,3,))*$E109) -> 0 | Z109: =IF(VLOOKUP($D109,$C$5:$AU$500,3,)=0,0,(VLOOKUP($D109,$C$5:$AU$500,24,)/VLOOKUP($D109,$C$5:$AU$500,3,))*$E109) -> 0 | AA109: =IF(VLOOKUP($D109,$C$5:$AU$500,3,)=0,0,(VLOOKUP($D109,$C$5:$AU$500,25,)/VLOOKUP($D109,$C$5:$AU$500,3,))*$E109) -> 0 | AB109: =IF(VLOOKUP($D109,$C$5:$AU$500,3,)=0,0,(VLOOKUP($D109,$C$5:$AU$500,26,)/VLOOKUP($D109,$C$5:$AU$500,3,))*$E109) -> 0 | AC109: =IF(VLOOKUP($D109,$C$5:$AU$500,3,)=0,0,(VLOOKUP($D109,$C$5:$AU$500,27,)/VLOOKUP($D109,$C$5:$AU$500,3,))*$E109) -> 0 | AD109: =IF(VLOOKUP($D109,$C$5:$AU$500,3,)=0,0,(VLOOKUP($D109,$C$5:$AU$500,28,)/VLOOKUP($D109,$C$5:$AU$500,3,))*$E109) -> 0 | AE109: =IF(VLOOKUP($D109,$C$5:$AU$500,3,)=0,0,(VLOOKUP($D109,$C$5:$AU$500,29,)/VLOOKUP($D109,$C$5:$AU$500,3,))*$E109) -> 0 | AF109: =IF(VLOOKUP($D109,$C$5:$AU$500,3,)=0,0,(VLOOKUP($D109,$C$5:$AU$500,30,)/VLOOKUP($D109,$C$5:$AU$500,3,))*$E109) -> 0 | AG109: =SUM(F109:AF109) -> 746409.5182 | AH109: =IF(ABS(E109-AG109)<0.01,"ok","err") -> ok
A111: Meter Reading, Billing and Customer Service
A112: Customer | C112: RBMRBC | D112: C05 | E112: ='Func & Classif'!Y144 -> 231473.7568 | F112: =IF(VLOOKUP($D112,$C$5:$AU$500,3,)=0,0,(VLOOKUP($D112,$C$5:$AU$500,4,)/VLOOKUP($D112,$C$5:$AU$500,3,))*$E112) -> 195786.4635 | G112: =IF(VLOOKUP($D112,$C$5:$AU$500,3,)=0,0,(VLOOKUP($D112,$C$5:$AU$500,5,)/VLOOKUP($D112,$C$5:$AU$500,3,))*$E112) -> 26490.06043 | H112: =IF(VLOOKUP($D112,$C$5:$AU$500,3,)=0,0,(VLOOKUP($D112,$C$5:$AU$500,6,)/VLOOKUP($D112,$C$5:$AU$500,3,))*$E112) -> 3755.204861 | I112: =IF(VLOOKUP($D112,$C$5:$AU$500,3,)=0,0,(VLOOKUP($D112,$C$5:$AU$500,7,)/VLOOKUP($D112,$C$5:$AU$500,3,))*$E112) -> 4750.854457 | J112: =IF(VLOOKUP($D112,$C$5:$AU$500,3,)=0,0,(VLOOKUP($D112,$C$5:$AU$500,8,)/VLOOKUP($D112,$C$5:$AU$500,3,))*$E112) -> 7.708254932 | K112: =IF(VLOOKUP($D112,$C$5:$AU$500,3,)=0,0,(VLOOKUP($D112,$C$5:$AU$500,9,)/VLOOKUP($D112,$C$5:$AU$500,3,))*$E112) -> 7.708254932 | L112: =IF(VLOOKUP($D112,$C$5:$AU$500,3,)=0,0,(VLOOKUP($D112,$C$5:$AU$500,10,)/VLOOKUP($D112,$C$5:$AU$500,3,))*$E112) -> 675.7570157 | M112: =IF(VLOOKUP($D112,$C$5:$AU$500,3,)=0,0,(VLOOKUP($D112,$C$5:$AU$500,11,)/VLOOKUP($D112,$C$5:$AU$500,3,))*$E112) -> 0 | N112: =IF(VLOOKUP($D112,$C$5:$AU$500,3,)=0,0,(VLOOKUP($D112,$C$5:$AU$500,12,)/VLOOKUP($D112,$C$5:$AU$500,3,))*$E112) -> 0 | O112: =IF(VLOOKUP($D112,$C$5:$AU$500,3,)=0,0,(VLOOKUP($D112,$C$5:$AU$500,13,)/VLOOKUP($D112,$C$5:$AU$500,3,))*$E112) -> 0 | P112: =IF(VLOOKUP($D112,$C$5:$AU$500,3,)=0,0,(VLOOKUP($D112,$C$5:$AU$500,14,)/VLOOKUP($D112,$C$5:$AU$500,3,))*$E112) -> 0 | Q112: =IF(VLOOKUP($D112,$C$5:$AU$500,3,)=0,0,(VLOOKUP($D112,$C$5:$AU$500,15,)/VLOOKUP($D112,$C$5:$AU$500,3,))*$E112) -> 0 | R112: =IF(VLOOKUP($D112,$C$5:$AU$500,3,)=0,0,(VLOOKUP($D112,$C$5:$AU$500,16,)/VLOOKUP($D112,$C$5:$AU$500,3,))*$E112) -> 0 | S112: =IF(VLOOKUP($D112,$C$5:$AU$500,3,)=0,0,(VLOOKUP($D112,$C$5:$AU$500,17,)/VLOOKUP($D112,$C$5:$AU$500,3,))*$E112) -> 0 | T112: =IF(VLOOKUP($D112,$C$5:$AU$500,3,)=0,0,(VLOOKUP($D112,$C$5:$AU$500,18,)/VLOOKUP($D112,$C$5:$AU$500,3,))*$E112) -> 0 | U112: =IF(VLOOKUP($D112,$C$5:$AU$500,3,)=0,0,(VLOOKUP($D112,$C$5:$AU$500,19,)/VLOOKUP($D112,$C$5:$AU$500,3,))*$E112) -> 0 | V112: =IF(VLOOKUP($D112,$C$5:$AU$500,3,)=0,0,(VLOOKUP($D112,$C$5:$AU$500,20,)/VLOOKUP($D112,$C$5:$AU$500,3,))*$E112) -> 0 | W112: =IF(VLOOKUP($D112,$C$5:$AU$500,3,)=0,0,(VLOOKUP($D112,$C$5:$AU$500,21,)/VLOOKUP($D112,$C$5:$AU$500,3,))*$E112) -> 0 | X112: =IF(VLOOKUP($D112,$C$5:$AU$500,3,)=0,0,(VLOOKUP($D112,$C$5:$AU$500,22,)/VLOOKUP($D112,$C$5:$AU$500,3,))*$E112) -> 0 | Y112: =IF(VLOOKUP($D112,$C$5:$AU$500,3,)=0,0,(VLOOKUP($D112,$C$5:$AU$500,23,)/VLOOKUP($D112,$C$5:$AU$500,3,))*$E112) -> 0 | Z112: =IF(VLOOKUP($D112,$C$5:$AU$500,3,)=0,0,(VLOOKUP($D112,$C$5:$AU$500,24,)/VLOOKUP($D112,$C$5:$AU$500,3,))*$E112) -> 0 | AA112: =IF(VLOOKUP($D112,$C$5:$AU$500,3,)=0,0,(VLOOKUP($D112,$C$5:$AU$500,25,)/VLOOKUP($D112,$C$5:$AU$500,3,))*$E112) -> 0 | AB112: =IF(VLOOKUP($D112,$C$5:$AU$500,3,)=0,0,(VLOOKUP($D112,$C$5:$AU$500,26,)/VLOOKUP($D112,$C$5:$AU$500,3,))*$E112) -> 0 | AC112: =IF(VLOOKUP($D112,$C$5:$AU$500,3,)=0,0,(VLOOKUP($D112,$C$5:$AU$500,27,)/VLOOKUP($D112,$C$5:$AU$500,3,))*$E112) -> 0 | AD112: =IF(VLOOKUP($D112,$C$5:$AU$500,3,)=0,0,(VLOOKUP($D112,$C$5:$AU$500,28,)/VLOOKUP($D112,$C$5:$AU$500,3,))*$E112) -> 0 | AE112: =IF(VLOOKUP($D112,$C$5:$AU$500,3,)=0,0,(VLOOKUP($D112,$C$5:$AU$500,29,)/VLOOKUP($D112,$C$5:$AU$500,3,))*$E112) -> 0 | AF112: =IF(VLOOKUP($D112,$C$5:$AU$500,3,)=0,0,(VLOOKUP($D112,$C$5:$AU$500,30,)/VLOOKUP($D112,$C$5:$AU$500,3,))*$E112) -> 0 | AG112: =SUM(F112:AF112) -> 231473.7568 | AH112: =IF(ABS(E112-AG112)<0.01,"ok","err") -> ok
A114: Load Management
A115: Customer | C115: RBCSC | D115: C06 | E115: ='Func & Classif'!AA144 -> 0 | F115: =IF(VLOOKUP($D115,$C$5:$AU$500,3,)=0,0,(VLOOKUP($D115,$C$5:$AU$500,4,)/VLOOKUP($D115,$C$5:$AU$500,3,))*$E115) -> 0 | G115: =IF(VLOOKUP($D115,$C$5:$AU$500,3,)=0,0,(VLOOKUP($D115,$C$5:$AU$500,5,)/VLOOKUP($D115,$C$5:$AU$500,3,))*$E115) -> 0 | H115: =IF(VLOOKUP($D115,$C$5:$AU$500,3,)=0,0,(VLOOKUP($D115,$C$5:$AU$500,6,)/VLOOKUP($D115,$C$5:$AU$500,3,))*$E115) -> 0 | I115: =IF(VLOOKUP($D115,$C$5:$AU$500,3,)=0,0,(VLOOKUP($D115,$C$5:$AU$500,7,)/VLOOKUP($D115,$C$5:$AU$500,3,))*$E115) -> 0 | J115: =IF(VLOOKUP($D115,$C$5:$AU$500,3,)=0,0,(VLOOKUP($D115,$C$5:$AU$500,8,)/VLOOKUP($D115,$C$5:$AU$500,3,))*$E115) -> 0 | K115: =IF(VLOOKUP($D115,$C$5:$AU$500,3,)=0,0,(VLOOKUP($D115,$C$5:$AU$500,9,)/VLOOKUP($D115,$C$5:$AU$500,3,))*$E115) -> 0 | L115: =IF(VLOOKUP($D115,$C$5:$AU$500,3,)=0,0,(VLOOKUP($D115,$C$5:$AU$500,10,)/VLOOKUP($D115,$C$5:$AU$500,3,))*$E115) -> 0 | M115: =IF(VLOOKUP($D115,$C$5:$AU$500,3,)=0,0,(VLOOKUP($D115,$C$5:$AU$500,11,)/VLOOKUP($D115,$C$5:$AU$500,3,))*$E115) -> 0 | N115: =IF(VLOOKUP($D115,$C$5:$AU$500,3,)=0,0,(VLOOKUP($D115,$C$5:$AU$500,12,)/VLOOKUP($D115,$C$5:$AU$500,3,))*$E115) -> 0 | O115: =IF(VLOOKUP($D115,$C$5:$AU$500,3,)=0,0,(VLOOKUP($D115,$C$5:$AU$500,13,)/VLOOKUP($D115,$C$5:$AU$500,3,))*$E115) -> 0 | P115: =IF(VLOOKUP($D115,$C$5:$AU$500,3,)=0,0,(VLOOKUP($D115,$C$5:$AU$500,14,)/VLOOKUP($D115,$C$5:$AU$500,3,))*$E115) -> 0 | Q115: =IF(VLOOKUP($D115,$C$5:$AU$500,3,)=0,0,(VLOOKUP($D115,$C$5:$AU$500,15,)/VLOOKUP($D115,$C$5:$AU$500,3,))*$E115) -> 0 | R115: =IF(VLOOKUP($D115,$C$5:$AU$500,3,)=0,0,(VLOOKUP($D115,$C$5:$AU$500,16,)/VLOOKUP($D115,$C$5:$AU$500,3,))*$E115) -> 0 | S115: =IF(VLOOKUP($D115,$C$5:$AU$500,3,)=0,0,(VLOOKUP($D115,$C$5:$AU$500,17,)/VLOOKUP($D115,$C$5:$AU$500,3,))*$E115) -> 0 | T115: =IF(VLOOKUP($D115,$C$5:$AU$500,3,)=0,0,(VLOOKUP($D115,$C$5:$AU$500,18,)/VLOOKUP($D115,$C$5:$AU$500,3,))*$E115) -> 0 | U115: =IF(VLOOKUP($D115,$C$5:$AU$500,3,)=0,0,(VLOOKUP($D115,$C$5:$AU$500,19,)/VLOOKUP($D115,$C$5:$AU$500,3,))*$E115) -> 0 | V115: =IF(VLOOKUP($D115,$C$5:$AU$500,3,)=0,0,(VLOOKUP($D115,$C$5:$AU$500,20,)/VLOOKUP($D115,$C$5:$AU$500,3,))*$E115) -> 0 | W115: =IF(VLOOKUP($D115,$C$5:$AU$500,3,)=0,0,(VLOOKUP($D115,$C$5:$AU$500,21,)/VLOOKUP($D115,$C$5:$AU$500,3,))*$E115) -> 0 | X115: =IF(VLOOKUP($D115,$C$5:$AU$500,3,)=0,0,(VLOOKUP($D115,$C$5:$AU$500,22,)/VLOOKUP($D115,$C$5:$AU$500,3,))*$E115) -> 0 | Y115: =IF(VLOOKUP($D115,$C$5:$AU$500,3,)=0,0,(VLOOKUP($D115,$C$5:$AU$500,23,)/VLOOKUP($D115,$C$5:$AU$500,3,))*$E115) -> 0 | Z115: =IF(VLOOKUP($D115,$C$5:$AU$500,3,)=0,0,(VLOOKUP($D115,$C$5:$AU$500,24,)/VLOOKUP($D115,$C$5:$AU$500,3,))*$E115) -> 0 | AA115: =IF(VLOOKUP($D115,$C$5:$AU$500,3,)=0,0,(VLOOKUP($D115,$C$5:$AU$500,25,)/VLOOKUP($D115,$C$5:$AU$500,3,))*$E115) -> 0 | AB115: =IF(VLOOKUP($D115,$C$5:$AU$500,3,)=0,0,(VLOOKUP($D115,$C$5:$AU$500,26,)/VLOOKUP($D115,$C$5:$AU$500,3,))*$E115) -> 0 | AC115: =IF(VLOOKUP($D115,$C$5:$AU$500,3,)=0,0,(VLOOKUP($D115,$C$5:$AU$500,27,)/VLOOKUP($D115,$C$5:$AU$500,3,))*$E115) -> 0 | AD115: =IF(VLOOKUP($D115,$C$5:$AU$500,3,)=0,0,(VLOOKUP($D115,$C$5:$AU$500,28,)/VLOOKUP($D115,$C$5:$AU$500,3,))*$E115) -> 0 | AE115: =IF(VLOOKUP($D115,$C$5:$AU$500,3,)=0,0,(VLOOKUP($D115,$C$5:$AU$500,29,)/VLOOKUP($D115,$C$5:$AU$500,3,))*$E115) -> 0 | AF115: =IF(VLOOKUP($D115,$C$5:$AU$500,3,)=0,0,(VLOOKUP($D115,$C$5:$AU$500,30,)/VLOOKUP($D115,$C$5:$AU$500,3,))*$E115) -> 0 | AG115: =SUM(F115:AF115) -> 0 | AH115: =IF(ABS(E115-AG115)<0.01,"ok","err") -> ok
A117: Total | C117: RBT | E117: =E87+E90+E93+E98+E103+E106+E109+E112+E115 -> 98260237.53 | F117: =F87+F90+F93+F98+F103+F106+F109+F112+F115 -> 71414519.06 | G117: 8315195.925 | H117: 2216260.101 | I117: 13618518.42 | J117: 113078.4135 | K117: 1026656.492 | L117: 1556009.12 | M117: 0 | N117: 0 | O117: 0 | P117: 0 | Q117: 0 | R117: 0 | S117: =S87+S93+S98+S103+S106+S109+S112+S115 -> 0 | T117: 0 | U117: 0 | V117: 0 | W117: 0 | X117: 0 | Y117: 0 | Z117: 0 | AA117: 0 | AB117: 0 | AC117: 0 | AD117: 0 | AE117: 0 | AF117: 0 | AG117: =SUM(F117:AF117) -> 98260237.53 | AH117: =IF(ABS(E117-AG117)<0.01,"ok","err") -> ok
E118: =E117/$E117 -> 1 | F118: =F117/$E117 -> 0.7267896034 | G118: =G117/$E117 -> 0.08462421967 | H118: 0.02255500452 | I118: 0.1385964329 | J118: 0.001150805415 | K118: 0.01044834124 | L118: 0.0158355929 | M118: 0
A120: Operation and Maintenance Expenses
A122: Production & Purchase Power
A123: Demand | C123: OMPPD | D123: PPDA | E123: ='Func & Classif'!H285 -> 16693796 | F123: =IF(VLOOKUP($D123,$C$5:$AU$500,3,)=0,0,(VLOOKUP($D123,$C$5:$AU$500,4,)/VLOOKUP($D123,$C$5:$AU$500,3,))*$E123) -> 10649011.25 | G123: =IF(VLOOKUP($D123,$C$5:$AU$500,3,)=0,0,(VLOOKUP($D123,$C$5:$AU$500,5,)/VLOOKUP($D123,$C$5:$AU$500,3,))*$E123) -> 833592.3591 | H123: =IF(VLOOKUP($D123,$C$5:$AU$500,3,)=0,0,(VLOOKUP($D123,$C$5:$AU$500,6,)/VLOOKUP($D123,$C$5:$AU$500,3,))*$E123) -> 293921.0231 | I123: =IF(VLOOKUP($D123,$C$5:$AU$500,3,)=0,0,(VLOOKUP($D123,$C$5:$AU$500,7,)/VLOOKUP($D123,$C$5:$AU$500,3,))*$E123) -> 4317203.941 | J123: =IF(VLOOKUP($D123,$C$5:$AU$500,3,)=0,0,(VLOOKUP($D123,$C$5:$AU$500,8,)/VLOOKUP($D123,$C$5:$AU$500,3,))*$E123) -> 47746.05 | K123: =IF(VLOOKUP($D123,$C$5:$AU$500,3,)=0,0,(VLOOKUP($D123,$C$5:$AU$500,9,)/VLOOKUP($D123,$C$5:$AU$500,3,))*$E123) -> 425793.5431 | L123: =IF(VLOOKUP($D123,$C$5:$AU$500,3,)=0,0,(VLOOKUP($D123,$C$5:$AU$500,10,)/VLOOKUP($D123,$C$5:$AU$500,3,))*$E123) -> 126527.833 | M123: =IF(VLOOKUP($D123,$C$5:$AU$500,3,)=0,0,(VLOOKUP($D123,$C$5:$AU$500,11,)/VLOOKUP($D123,$C$5:$AU$500,3,))*$E123) -> 0 | N123: =IF(VLOOKUP($D123,$C$5:$AU$500,3,)=0,0,(VLOOKUP($D123,$C$5:$AU$500,12,)/VLOOKUP($D123,$C$5:$AU$500,3,))*$E123) -> 0 | O123: =IF(VLOOKUP($D123,$C$5:$AU$500,3,)=0,0,(VLOOKUP($D123,$C$5:$AU$500,13,)/VLOOKUP($D123,$C$5:$AU$500,3,))*$E123) -> 0 | P123: =IF(VLOOKUP($D123,$C$5:$AU$500,3,)=0,0,(VLOOKUP($D123,$C$5:$AU$500,14,)/VLOOKUP($D123,$C$5:$AU$500,3,))*$E123) -> 0 | Q123: =IF(VLOOKUP($D123,$C$5:$AU$500,3,)=0,0,(VLOOKUP($D123,$C$5:$AU$500,15,)/VLOOKUP($D123,$C$5:$AU$500,3,))*$E123) -> 0 | R123: =IF(VLOOKUP($D123,$C$5:$AU$500,3,)=0,0,(VLOOKUP($D123,$C$5:$AU$500,16,)/VLOOKUP($D123,$C$5:$AU$500,3,))*$E123) -> 0 | S123: =IF(VLOOKUP($D123,$C$5:$AU$500,3,)=0,0,(VLOOKUP($D123,$C$5:$AU$500,17,)/VLOOKUP($D123,$C$5:$AU$500,3,))*$E123) -> 0 | T123: =IF(VLOOKUP($D123,$C$5:$AU$500,3,)=0,0,(VLOOKUP($D123,$C$5:$AU$500,18,)/VLOOKUP($D123,$C$5:$AU$500,3,))*$E123) -> 0 | U123: =IF(VLOOKUP($D123,$C$5:$AU$500,3,)=0,0,(VLOOKUP($D123,$C$5:$AU$500,19,)/VLOOKUP($D123,$C$5:$AU$500,3,))*$E123) -> 0 | V123: =IF(VLOOKUP($D123,$C$5:$AU$500,3,)=0,0,(VLOOKUP($D123,$C$5:$AU$500,20,)/VLOOKUP($D123,$C$5:$AU$500,3,))*$E123) -> 0 | W123: =IF(VLOOKUP($D123,$C$5:$AU$500,3,)=0,0,(VLOOKUP($D123,$C$5:$AU$500,21,)/VLOOKUP($D123,$C$5:$AU$500,3,))*$E123) -> 0 | X123: =IF(VLOOKUP($D123,$C$5:$AU$500,3,)=0,0,(VLOOKUP($D123,$C$5:$AU$500,22,)/VLOOKUP($D123,$C$5:$AU$500,3,))*$E123) -> 0 | Y123: =IF(VLOOKUP($D123,$C$5:$AU$500,3,)=0,0,(VLOOKUP($D123,$C$5:$AU$500,23,)/VLOOKUP($D123,$C$5:$AU$500,3,))*$E123) -> 0 | Z123: =IF(VLOOKUP($D123,$C$5:$AU$500,3,)=0,0,(VLOOKUP($D123,$C$5:$AU$500,24,)/VLOOKUP($D123,$C$5:$AU$500,3,))*$E123) -> 0 | AA123: =IF(VLOOKUP($D123,$C$5:$AU$500,3,)=0,0,(VLOOKUP($D123,$C$5:$AU$500,25,)/VLOOKUP($D123,$C$5:$AU$500,3,))*$E123) -> 0 | AB123: =IF(VLOOKUP($D123,$C$5:$AU$500,3,)=0,0,(VLOOKUP($D123,$C$5:$AU$500,26,)/VLOOKUP($D123,$C$5:$AU$500,3,))*$E123) -> 0 | AC123: =IF(VLOOKUP($D123,$C$5:$AU$500,3,)=0,0,(VLOOKUP($D123,$C$5:$AU$500,27,)/VLOOKUP($D123,$C$5:$AU$500,3,))*$E123) -> 0 | AD123: =IF(VLOOKUP($D123,$C$5:$AU$500,3,)=0,0,(VLOOKUP($D123,$C$5:$AU$500,28,)/VLOOKUP($D123,$C$5:$AU$500,3,))*$E123) -> 0 | AE123: =IF(VLOOKUP($D123,$C$5:$AU$500,3,)=0,0,(VLOOKUP($D123,$C$5:$AU$500,29,)/VLOOKUP($D123,$C$5:$AU$500,3,))*$E123) -> 0 | AF123: =IF(VLOOKUP($D123,$C$5:$AU$500,3,)=0,0,(VLOOKUP($D123,$C$5:$AU$500,30,)/VLOOKUP($D123,$C$5:$AU$500,3,))*$E123) -> 0 | AG123: =SUM(F123:AF123) -> 16693796 | AH123: =IF(ABS(E123-AG123)<0.01,"ok","err") -> ok | AI123: =M123/AG123 -> 0
A124: Energy | C124: OMPPE | D124: PPEA | E124: ='Func & Classif'!I285 -> 33994973.06 | F124: =IF(VLOOKUP($D124,$C$5:$AU$500,3,)=0,0,(VLOOKUP($D124,$C$5:$AU$500,4,)/VLOOKUP($D124,$C$5:$AU$500,3,))*$E124) -> 20201351.33 | G124: =IF(VLOOKUP($D124,$C$5:$AU$500,3,)=0,0,(VLOOKUP($D124,$C$5:$AU$500,5,)/VLOOKUP($D124,$C$5:$AU$500,3,))*$E124) -> 1825311.114 | H124: =IF(VLOOKUP($D124,$C$5:$AU$500,3,)=0,0,(VLOOKUP($D124,$C$5:$AU$500,6,)/VLOOKUP($D124,$C$5:$AU$500,3,))*$E124) -> 635690.0462 | I124: =IF(VLOOKUP($D124,$C$5:$AU$500,3,)=0,0,(VLOOKUP($D124,$C$5:$AU$500,7,)/VLOOKUP($D124,$C$5:$AU$500,3,))*$E124) -> 9926040.703 | J124: =IF(VLOOKUP($D124,$C$5:$AU$500,3,)=0,0,(VLOOKUP($D124,$C$5:$AU$500,8,)/VLOOKUP($D124,$C$5:$AU$500,3,))*$E124) -> 18978.72 | K124: =IF(VLOOKUP($D124,$C$5:$AU$500,3,)=0,0,(VLOOKUP($D124,$C$5:$AU$500,9,)/VLOOKUP($D124,$C$5:$AU$500,3,))*$E124) -> 943398.9465 | L124: =IF(VLOOKUP($D124,$C$5:$AU$500,3,)=0,0,(VLOOKUP($D124,$C$5:$AU$500,10,)/VLOOKUP($D124,$C$5:$AU$500,3,))*$E124) -> 444202.1926 | M124: =IF(VLOOKUP($D124,$C$5:$AU$500,3,)=0,0,(VLOOKUP($D124,$C$5:$AU$500,11,)/VLOOKUP($D124,$C$5:$AU$500,3,))*$E124) -> 0 | N124: =IF(VLOOKUP($D124,$C$5:$AU$500,3,)=0,0,(VLOOKUP($D124,$C$5:$AU$500,12,)/VLOOKUP($D124,$C$5:$AU$500,3,))*$E124) -> 0 | O124: =IF(VLOOKUP($D124,$C$5:$AU$500,3,)=0,0,(VLOOKUP($D124,$C$5:$AU$500,13,)/VLOOKUP($D124,$C$5:$AU$500,3,))*$E124) -> 0 | P124: =IF(VLOOKUP($D124,$C$5:$AU$500,3,)=0,0,(VLOOKUP($D124,$C$5:$AU$500,14,)/VLOOKUP($D124,$C$5:$AU$500,3,))*$E124) -> 0 | Q124: =IF(VLOOKUP($D124,$C$5:$AU$500,3,)=0,0,(VLOOKUP($D124,$C$5:$AU$500,15,)/VLOOKUP($D124,$C$5:$AU$500,3,))*$E124) -> 0 | R124: =IF(VLOOKUP($D124,$C$5:$AU$500,3,)=0,0,(VLOOKUP($D124,$C$5:$AU$500,16,)/VLOOKUP($D124,$C$5:$AU$500,3,))*$E124) -> 0 | S124: =IF(VLOOKUP($D124,$C$5:$AU$500,3,)=0,0,(VLOOKUP($D124,$C$5:$AU$500,17,)/VLOOKUP($D124,$C$5:$AU$500,3,))*$E124) -> 0 | T124: =IF(VLOOKUP($D124,$C$5:$AU$500,3,)=0,0,(VLOOKUP($D124,$C$5:$AU$500,18,)/VLOOKUP($D124,$C$5:$AU$500,3,))*$E124) -> 0 | U124: =IF(VLOOKUP($D124,$C$5:$AU$500,3,)=0,0,(VLOOKUP($D124,$C$5:$AU$500,19,)/VLOOKUP($D124,$C$5:$AU$500,3,))*$E124) -> 0 | V124: =IF(VLOOKUP($D124,$C$5:$AU$500,3,)=0,0,(VLOOKUP($D124,$C$5:$AU$500,20,)/VLOOKUP($D124,$C$5:$AU$500,3,))*$E124) -> 0 | W124: =IF(VLOOKUP($D124,$C$5:$AU$500,3,)=0,0,(VLOOKUP($D124,$C$5:$AU$500,21,)/VLOOKUP($D124,$C$5:$AU$500,3,))*$E124) -> 0 | X124: =IF(VLOOKUP($D124,$C$5:$AU$500,3,)=0,0,(VLOOKUP($D124,$C$5:$AU$500,22,)/VLOOKUP($D124,$C$5:$AU$500,3,))*$E124) -> 0 | Y124: =IF(VLOOKUP($D124,$C$5:$AU$500,3,)=0,0,(VLOOKUP($D124,$C$5:$AU$500,23,)/VLOOKUP($D124,$C$5:$AU$500,3,))*$E124) -> 0 | Z124: =IF(VLOOKUP($D124,$C$5:$AU$500,3,)=0,0,(VLOOKUP($D124,$C$5:$AU$500,24,)/VLOOKUP($D124,$C$5:$AU$500,3,))*$E124) -> 0 | AA124: =IF(VLOOKUP($D124,$C$5:$AU$500,3,)=0,0,(VLOOKUP($D124,$C$5:$AU$500,25,)/VLOOKUP($D124,$C$5:$AU$500,3,))*$E124) -> 0 | AB124: =IF(VLOOKUP($D124,$C$5:$AU$500,3,)=0,0,(VLOOKUP($D124,$C$5:$AU$500,26,)/VLOOKUP($D124,$C$5:$AU$500,3,))*$E124) -> 0 | AC124: =IF(VLOOKUP($D124,$C$5:$AU$500,3,)=0,0,(VLOOKUP($D124,$C$5:$AU$500,27,)/VLOOKUP($D124,$C$5:$AU$500,3,))*$E124) -> 0 | AD124: =IF(VLOOKUP($D124,$C$5:$AU$500,3,)=0,0,(VLOOKUP($D124,$C$5:$AU$500,28,)/VLOOKUP($D124,$C$5:$AU$500,3,))*$E124) -> 0 | AE124: =IF(VLOOKUP($D124,$C$5:$AU$500,3,)=0,0,(VLOOKUP($D124,$C$5:$AU$500,29,)/VLOOKUP($D124,$C$5:$AU$500,3,))*$E124) -> 0 | AF124: =IF(VLOOKUP($D124,$C$5:$AU$500,3,)=0,0,(VLOOKUP($D124,$C$5:$AU$500,30,)/VLOOKUP($D124,$C$5:$AU$500,3,))*$E124) -> 0 | AG124: =SUM(F124:AF124) -> 33994973.06 | AH124: =IF(ABS(E124-AG124)<0.01,"ok","err") -> ok | AI124: =M124/AG124 -> 0
A125: Total Purchase Power | C125: OMPPT | E125: =E123+E124 -> 50688769.06 | F125: 30850362.59 | G125: 2658903.473 | H125: 929611.0693 | I125: 14243244.64 | J125: 66724.77 | K125: 1369192.49 | L125: 570730.0256 | M125: 0 | N125: 0 | O125: 0 | P125: 0 | Q125: 0 | R125: 0 | S125: 0 | T125: 0 | U125: =U123+U124 -> 0 | V125: 0 | W125: 0 | X125: 0 | Y125: 0 | Z125: 0 | AA125: 0 | AB125: 0 | AC125: 0 | AD125: 0 | AE125: 0 | AF125: 0 | AG125: =SUM(F125:AF125) -> 50688769.06 | AH125: =IF(ABS(E125-AG125)<0.01,"ok","err") -> ok | AI125: 0
A127: Transmission
A128: Demand | C128: OMTD | D128: TOMA | E128: ='Func & Classif'!K285 -> 0 | F128: =IF(VLOOKUP($D128,$C$5:$AU$500,3,)=0,0,(VLOOKUP($D128,$C$5:$AU$500,4,)/VLOOKUP($D128,$C$5:$AU$500,3,))*$E128) -> 0 | G128: =IF(VLOOKUP($D128,$C$5:$AU$500,3,)=0,0,(VLOOKUP($D128,$C$5:$AU$500,5,)/VLOOKUP($D128,$C$5:$AU$500,3,))*$E128) -> 0 | H128: =IF(VLOOKUP($D128,$C$5:$AU$500,3,)=0,0,(VLOOKUP($D128,$C$5:$AU$500,6,)/VLOOKUP($D128,$C$5:$AU$500,3,))*$E128) -> 0 | I128: =IF(VLOOKUP($D128,$C$5:$AU$500,3,)=0,0,(VLOOKUP($D128,$C$5:$AU$500,7,)/VLOOKUP($D128,$C$5:$AU$500,3,))*$E128) -> 0 | J128: =IF(VLOOKUP($D128,$C$5:$AU$500,3,)=0,0,(VLOOKUP($D128,$C$5:$AU$500,8,)/VLOOKUP($D128,$C$5:$AU$500,3,))*$E128) -> 0 | K128: =IF(VLOOKUP($D128,$C$5:$AU$500,3,)=0,0,(VLOOKUP($D128,$C$5:$AU$500,9,)/VLOOKUP($D128,$C$5:$AU$500,3,))*$E128) -> 0 | L128: =IF(VLOOKUP($D128,$C$5:$AU$500,3,)=0,0,(VLOOKUP($D128,$C$5:$AU$500,10,)/VLOOKUP($D128,$C$5:$AU$500,3,))*$E128) -> 0 | M128: =IF(VLOOKUP($D128,$C$5:$AU$500,3,)=0,0,(VLOOKUP($D128,$C$5:$AU$500,11,)/VLOOKUP($D128,$C$5:$AU$500,3,))*$E128) -> 0 | N128: =IF(VLOOKUP($D128,$C$5:$AU$500,3,)=0,0,(VLOOKUP($D128,$C$5:$AU$500,12,)/VLOOKUP($D128,$C$5:$AU$500,3,))*$E128) -> 0 | O128: =IF(VLOOKUP($D128,$C$5:$AU$500,3,)=0,0,(VLOOKUP($D128,$C$5:$AU$500,13,)/VLOOKUP($D128,$C$5:$AU$500,3,))*$E128) -> 0 | P128: =IF(VLOOKUP($D128,$C$5:$AU$500,3,)=0,0,(VLOOKUP($D128,$C$5:$AU$500,14,)/VLOOKUP($D128,$C$5:$AU$500,3,))*$E128) -> 0 | Q128: =IF(VLOOKUP($D128,$C$5:$AU$500,3,)=0,0,(VLOOKUP($D128,$C$5:$AU$500,15,)/VLOOKUP($D128,$C$5:$AU$500,3,))*$E128) -> 0 | R128: =IF(VLOOKUP($D128,$C$5:$AU$500,3,)=0,0,(VLOOKUP($D128,$C$5:$AU$500,16,)/VLOOKUP($D128,$C$5:$AU$500,3,))*$E128) -> 0 | S128: =IF(VLOOKUP($D128,$C$5:$AU$500,3,)=0,0,(VLOOKUP($D128,$C$5:$AU$500,17,)/VLOOKUP($D128,$C$5:$AU$500,3,))*$E128) -> 0 | T128: =IF(VLOOKUP($D128,$C$5:$AU$500,3,)=0,0,(VLOOKUP($D128,$C$5:$AU$500,18,)/VLOOKUP($D128,$C$5:$AU$500,3,))*$E128) -> 0 | U128: =IF(VLOOKUP($D128,$C$5:$AU$500,3,)=0,0,(VLOOKUP($D128,$C$5:$AU$500,19,)/VLOOKUP($D128,$C$5:$AU$500,3,))*$E128) -> 0 | V128: =IF(VLOOKUP($D128,$C$5:$AU$500,3,)=0,0,(VLOOKUP($D128,$C$5:$AU$500,20,)/VLOOKUP($D128,$C$5:$AU$500,3,))*$E128) -> 0 | W128: =IF(VLOOKUP($D128,$C$5:$AU$500,3,)=0,0,(VLOOKUP($D128,$C$5:$AU$500,21,)/VLOOKUP($D128,$C$5:$AU$500,3,))*$E128) -> 0 | X128: =IF(VLOOKUP($D128,$C$5:$AU$500,3,)=0,0,(VLOOKUP($D128,$C$5:$AU$500,22,)/VLOOKUP($D128,$C$5:$AU$500,3,))*$E128) -> 0 | Y128: =IF(VLOOKUP($D128,$C$5:$AU$500,3,)=0,0,(VLOOKUP($D128,$C$5:$AU$500,23,)/VLOOKUP($D128,$C$5:$AU$500,3,))*$E128) -> 0 | Z128: =IF(VLOOKUP($D128,$C$5:$AU$500,3,)=0,0,(VLOOKUP($D128,$C$5:$AU$500,24,)/VLOOKUP($D128,$C$5:$AU$500,3,))*$E128) -> 0 | AA128: =IF(VLOOKUP($D128,$C$5:$AU$500,3,)=0,0,(VLOOKUP($D128,$C$5:$AU$500,25,)/VLOOKUP($D128,$C$5:$AU$500,3,))*$E128) -> 0 | AB128: =IF(VLOOKUP($D128,$C$5:$AU$500,3,)=0,0,(VLOOKUP($D128,$C$5:$AU$500,26,)/VLOOKUP($D128,$C$5:$AU$500,3,))*$E128) -> 0 | AC128: =IF(VLOOKUP($D128,$C$5:$AU$500,3,)=0,0,(VLOOKUP($D128,$C$5:$AU$500,27,)/VLOOKUP($D128,$C$5:$AU$500,3,))*$E128) -> 0 | AD128: =IF(VLOOKUP($D128,$C$5:$AU$500,3,)=0,0,(VLOOKUP($D128,$C$5:$AU$500,28,)/VLOOKUP($D128,$C$5:$AU$500,3,))*$E128) -> 0 | AE128: =IF(VLOOKUP($D128,$C$5:$AU$500,3,)=0,0,(VLOOKUP($D128,$C$5:$AU$500,29,)/VLOOKUP($D128,$C$5:$AU$500,3,))*$E128) -> 0 | AF128: =IF(VLOOKUP($D128,$C$5:$AU$500,3,)=0,0,(VLOOKUP($D128,$C$5:$AU$500,30,)/VLOOKUP($D128,$C$5:$AU$500,3,))*$E128) -> 0 | AG128: =SUM(F128:AF128) -> 0 | AH128: =IF(ABS(E128-AG128)<0.01,"ok","err") -> ok
A130: Station Equipment
A131: Demand | C131: OMSED | D131: SOMA | E131: ='Func & Classif'!M285 -> 850700.4341 | F131: =IF(VLOOKUP($D131,$C$5:$AU$500,3,)=0,0,(VLOOKUP($D131,$C$5:$AU$500,4,)/VLOOKUP($D131,$C$5:$AU$500,3,))*$E131) -> 542769.315 | G131: =IF(VLOOKUP($D131,$C$5:$AU$500,3,)=0,0,(VLOOKUP($D131,$C$5:$AU$500,5,)/VLOOKUP($D131,$C$5:$AU$500,3,))*$E131) -> 42487.35802 | H131: =IF(VLOOKUP($D131,$C$5:$AU$500,3,)=0,0,(VLOOKUP($D131,$C$5:$AU$500,6,)/VLOOKUP($D131,$C$5:$AU$500,3,))*$E131) -> 14980.85677 | I131: =IF(VLOOKUP($D131,$C$5:$AU$500,3,)=0,0,(VLOOKUP($D131,$C$5:$AU$500,7,)/VLOOKUP($D131,$C$5:$AU$500,3,))*$E131) -> 220043.5111 | J131: =IF(VLOOKUP($D131,$C$5:$AU$500,3,)=0,0,(VLOOKUP($D131,$C$5:$AU$500,8,)/VLOOKUP($D131,$C$5:$AU$500,3,))*$E131) -> 2268.132218 | K131: =IF(VLOOKUP($D131,$C$5:$AU$500,3,)=0,0,(VLOOKUP($D131,$C$5:$AU$500,9,)/VLOOKUP($D131,$C$5:$AU$500,3,))*$E131) -> 21702.26552 | L131: =IF(VLOOKUP($D131,$C$5:$AU$500,3,)=0,0,(VLOOKUP($D131,$C$5:$AU$500,10,)/VLOOKUP($D131,$C$5:$AU$500,3,))*$E131) -> 6448.995463 | M131: =IF(VLOOKUP($D131,$C$5:$AU$500,3,)=0,0,(VLOOKUP($D131,$C$5:$AU$500,11,)/VLOOKUP($D131,$C$5:$AU$500,3,))*$E131) -> 0 | N131: =IF(VLOOKUP($D131,$C$5:$AU$500,3,)=0,0,(VLOOKUP($D131,$C$5:$AU$500,12,)/VLOOKUP($D131,$C$5:$AU$500,3,))*$E131) -> 0 | O131: =IF(VLOOKUP($D131,$C$5:$AU$500,3,)=0,0,(VLOOKUP($D131,$C$5:$AU$500,13,)/VLOOKUP($D131,$C$5:$AU$500,3,))*$E131) -> 0 | P131: =IF(VLOOKUP($D131,$C$5:$AU$500,3,)=0,0,(VLOOKUP($D131,$C$5:$AU$500,14,)/VLOOKUP($D131,$C$5:$AU$500,3,))*$E131) -> 0 | Q131: =IF(VLOOKUP($D131,$C$5:$AU$500,3,)=0,0,(VLOOKUP($D131,$C$5:$AU$500,15,)/VLOOKUP($D131,$C$5:$AU$500,3,))*$E131) -> 0 | R131: =IF(VLOOKUP($D131,$C$5:$AU$500,3,)=0,0,(VLOOKUP($D131,$C$5:$AU$500,16,)/VLOOKUP($D131,$C$5:$AU$500,3,))*$E131) -> 0 | S131: =IF(VLOOKUP($D131,$C$5:$AU$500,3,)=0,0,(VLOOKUP($D131,$C$5:$AU$500,17,)/VLOOKUP($D131,$C$5:$AU$500,3,))*$E131) -> 0 | T131: =IF(VLOOKUP($D131,$C$5:$AU$500,3,)=0,0,(VLOOKUP($D131,$C$5:$AU$500,18,)/VLOOKUP($D131,$C$5:$AU$500,3,))*$E131) -> 0 | U131: =IF(VLOOKUP($D131,$C$5:$AU$500,3,)=0,0,(VLOOKUP($D131,$C$5:$AU$500,19,)/VLOOKUP($D131,$C$5:$AU$500,3,))*$E131) -> 0 | V131: =IF(VLOOKUP($D131,$C$5:$AU$500,3,)=0,0,(VLOOKUP($D131,$C$5:$AU$500,20,)/VLOOKUP($D131,$C$5:$AU$500,3,))*$E131) -> 0 | W131: =IF(VLOOKUP($D131,$C$5:$AU$500,3,)=0,0,(VLOOKUP($D131,$C$5:$AU$500,21,)/VLOOKUP($D131,$C$5:$AU$500,3,))*$E131) -> 0 | X131: =IF(VLOOKUP($D131,$C$5:$AU$500,3,)=0,0,(VLOOKUP($D131,$C$5:$AU$500,22,)/VLOOKUP($D131,$C$5:$AU$500,3,))*$E131) -> 0 | Y131: =IF(VLOOKUP($D131,$C$5:$AU$500,3,)=0,0,(VLOOKUP($D131,$C$5:$AU$500,23,)/VLOOKUP($D131,$C$5:$AU$500,3,))*$E131) -> 0 | Z131: =IF(VLOOKUP($D131,$C$5:$AU$500,3,)=0,0,(VLOOKUP($D131,$C$5:$AU$500,24,)/VLOOKUP($D131,$C$5:$AU$500,3,))*$E131) -> 0 | AA131: =IF(VLOOKUP($D131,$C$5:$AU$500,3,)=0,0,(VLOOKUP($D131,$C$5:$AU$500,25,)/VLOOKUP($D131,$C$5:$AU$500,3,))*$E131) -> 0 | AB131: =IF(VLOOKUP($D131,$C$5:$AU$500,3,)=0,0,(VLOOKUP($D131,$C$5:$AU$500,26,)/VLOOKUP($D131,$C$5:$AU$500,3,))*$E131) -> 0 | AC131: =IF(VLOOKUP($D131,$C$5:$AU$500,3,)=0,0,(VLOOKUP($D131,$C$5:$AU$500,27,)/VLOOKUP($D131,$C$5:$AU$500,3,))*$E131) -> 0 | AD131: =IF(VLOOKUP($D131,$C$5:$AU$500,3,)=0,0,(VLOOKUP($D131,$C$5:$AU$500,28,)/VLOOKUP($D131,$C$5:$AU$500,3,))*$E131) -> 0 | AE131: =IF(VLOOKUP($D131,$C$5:$AU$500,3,)=0,0,(VLOOKUP($D131,$C$5:$AU$500,29,)/VLOOKUP($D131,$C$5:$AU$500,3,))*$E131) -> 0 | AF131: =IF(VLOOKUP($D131,$C$5:$AU$500,3,)=0,0,(VLOOKUP($D131,$C$5:$AU$500,30,)/VLOOKUP($D131,$C$5:$AU$500,3,))*$E131) -> 0 | AG131: =SUM(F131:AF131) -> 850700.4341 | AH131: =IF(ABS(E131-AG131)<0.01,"ok","err") -> ok | AI131: 0
A133: Primary Distribution Plant
A134: Demand | C134: OMDPD | D134: DOM | E134: ='Func & Classif'!O285 -> 1690400.833 | F134: =IF(VLOOKUP($D134,$C$5:$AU$500,3,)=0,0,(VLOOKUP($D134,$C$5:$AU$500,4,)/VLOOKUP($D134,$C$5:$AU$500,3,))*$E134) -> 1070276.546 | G134: =IF(VLOOKUP($D134,$C$5:$AU$500,3,)=0,0,(VLOOKUP($D134,$C$5:$AU$500,5,)/VLOOKUP($D134,$C$5:$AU$500,3,))*$E134) -> 24006.79608 | H134: =IF(VLOOKUP($D134,$C$5:$AU$500,3,)=0,0,(VLOOKUP($D134,$C$5:$AU$500,6,)/VLOOKUP($D134,$C$5:$AU$500,3,))*$E134) -> 40628.70192 | I134: =IF(VLOOKUP($D134,$C$5:$AU$500,3,)=0,0,(VLOOKUP($D134,$C$5:$AU$500,7,)/VLOOKUP($D134,$C$5:$AU$500,3,))*$E134) -> 499428.2057 | J134: =IF(VLOOKUP($D134,$C$5:$AU$500,3,)=0,0,(VLOOKUP($D134,$C$5:$AU$500,8,)/VLOOKUP($D134,$C$5:$AU$500,3,))*$E134) -> 4503.263659 | K134: =IF(VLOOKUP($D134,$C$5:$AU$500,3,)=0,0,(VLOOKUP($D134,$C$5:$AU$500,9,)/VLOOKUP($D134,$C$5:$AU$500,3,))*$E134) -> 43088.76831 | L134: =IF(VLOOKUP($D134,$C$5:$AU$500,3,)=0,0,(VLOOKUP($D134,$C$5:$AU$500,10,)/VLOOKUP($D134,$C$5:$AU$500,3,))*$E134) -> 8468.551077 | M134: =IF(VLOOKUP($D134,$C$5:$AU$500,3,)=0,0,(VLOOKUP($D134,$C$5:$AU$500,11,)/VLOOKUP($D134,$C$5:$AU$500,3,))*$E134) -> 0 | N134: =IF(VLOOKUP($D134,$C$5:$AU$500,3,)=0,0,(VLOOKUP($D134,$C$5:$AU$500,12,)/VLOOKUP($D134,$C$5:$AU$500,3,))*$E134) -> 0 | O134: =IF(VLOOKUP($D134,$C$5:$AU$500,3,)=0,0,(VLOOKUP($D134,$C$5:$AU$500,13,)/VLOOKUP($D134,$C$5:$AU$500,3,))*$E134) -> 0 | P134: =IF(VLOOKUP($D134,$C$5:$AU$500,3,)=0,0,(VLOOKUP($D134,$C$5:$AU$500,14,)/VLOOKUP($D134,$C$5:$AU$500,3,))*$E134) -> 0 | Q134: =IF(VLOOKUP($D134,$C$5:$AU$500,3,)=0,0,(VLOOKUP($D134,$C$5:$AU$500,15,)/VLOOKUP($D134,$C$5:$AU$500,3,))*$E134) -> 0 | R134: =IF(VLOOKUP($D134,$C$5:$AU$500,3,)=0,0,(VLOOKUP($D134,$C$5:$AU$500,16,)/VLOOKUP($D134,$C$5:$AU$500,3,))*$E134) -> 0 | S134: =IF(VLOOKUP($D134,$C$5:$AU$500,3,)=0,0,(VLOOKUP($D134,$C$5:$AU$500,17,)/VLOOKUP($D134,$C$5:$AU$500,3,))*$E134) -> 0 | T134: =IF(VLOOKUP($D134,$C$5:$AU$500,3,)=0,0,(VLOOKUP($D134,$C$5:$AU$500,18,)/VLOOKUP($D134,$C$5:$AU$500,3,))*$E134) -> 0 | U134: =IF(VLOOKUP($D134,$C$5:$AU$500,3,)=0,0,(VLOOKUP($D134,$C$5:$AU$500,19,)/VLOOKUP($D134,$C$5:$AU$500,3,))*$E134) -> 0 | V134: =IF(VLOOKUP($D134,$C$5:$AU$500,3,)=0,0,(VLOOKUP($D134,$C$5:$AU$500,20,)/VLOOKUP($D134,$C$5:$AU$500,3,))*$E134) -> 0 | W134: =IF(VLOOKUP($D134,$C$5:$AU$500,3,)=0,0,(VLOOKUP($D134,$C$5:$AU$500,21,)/VLOOKUP($D134,$C$5:$AU$500,3,))*$E134) -> 0 | X134: =IF(VLOOKUP($D134,$C$5:$AU$500,3,)=0,0,(VLOOKUP($D134,$C$5:$AU$500,22,)/VLOOKUP($D134,$C$5:$AU$500,3,))*$E134) -> 0 | Y134: =IF(VLOOKUP($D134,$C$5:$AU$500,3,)=0,0,(VLOOKUP($D134,$C$5:$AU$500,23,)/VLOOKUP($D134,$C$5:$AU$500,3,))*$E134) -> 0 | Z134: =IF(VLOOKUP($D134,$C$5:$AU$500,3,)=0,0,(VLOOKUP($D134,$C$5:$AU$500,24,)/VLOOKUP($D134,$C$5:$AU$500,3,))*$E134) -> 0 | AA134: =IF(VLOOKUP($D134,$C$5:$AU$500,3,)=0,0,(VLOOKUP($D134,$C$5:$AU$500,25,)/VLOOKUP($D134,$C$5:$AU$500,3,))*$E134) -> 0 | AB134: =IF(VLOOKUP($D134,$C$5:$AU$500,3,)=0,0,(VLOOKUP($D134,$C$5:$AU$500,26,)/VLOOKUP($D134,$C$5:$AU$500,3,))*$E134) -> 0 | AC134: =IF(VLOOKUP($D134,$C$5:$AU$500,3,)=0,0,(VLOOKUP($D134,$C$5:$AU$500,27,)/VLOOKUP($D134,$C$5:$AU$500,3,))*$E134) -> 0 | AD134: =IF(VLOOKUP($D134,$C$5:$AU$500,3,)=0,0,(VLOOKUP($D134,$C$5:$AU$500,28,)/VLOOKUP($D134,$C$5:$AU$500,3,))*$E134) -> 0 | AE134: =IF(VLOOKUP($D134,$C$5:$AU$500,3,)=0,0,(VLOOKUP($D134,$C$5:$AU$500,29,)/VLOOKUP($D134,$C$5:$AU$500,3,))*$E134) -> 0 | AF134: =IF(VLOOKUP($D134,$C$5:$AU$500,3,)=0,0,(VLOOKUP($D134,$C$5:$AU$500,30,)/VLOOKUP($D134,$C$5:$AU$500,3,))*$E134) -> 0 | AG134: =SUM(F134:AF134) -> 1690400.833 | AH134: =IF(ABS(E134-AG134)<0.01,"ok","err") -> ok | AI134: 0
A135: Customer | C135: OMDPC | D135: C01 | E135: ='Func & Classif'!P285 -> 4953433.829 | F135: =IF(VLOOKUP($D135,$C$5:$AU$500,3,)=0,0,(VLOOKUP($D135,$C$5:$AU$500,4,)/VLOOKUP($D135,$C$5:$AU$500,3,))*$E135) -> 4189741.874 | G135: =IF(VLOOKUP($D135,$C$5:$AU$500,3,)=0,0,(VLOOKUP($D135,$C$5:$AU$500,5,)/VLOOKUP($D135,$C$5:$AU$500,3,))*$E135) -> 566875.3266 | H135: =IF(VLOOKUP($D135,$C$5:$AU$500,3,)=0,0,(VLOOKUP($D135,$C$5:$AU$500,6,)/VLOOKUP($D135,$C$5:$AU$500,3,))*$E135) -> 80359.68765 | I135: =IF(VLOOKUP($D135,$C$5:$AU$500,3,)=0,0,(VLOOKUP($D135,$C$5:$AU$500,7,)/VLOOKUP($D135,$C$5:$AU$500,3,))*$E135) -> 101666.1392 | J135: =IF(VLOOKUP($D135,$C$5:$AU$500,3,)=0,0,(VLOOKUP($D135,$C$5:$AU$500,8,)/VLOOKUP($D135,$C$5:$AU$500,3,))*$E135) -> 164.9531734 | K135: =IF(VLOOKUP($D135,$C$5:$AU$500,3,)=0,0,(VLOOKUP($D135,$C$5:$AU$500,9,)/VLOOKUP($D135,$C$5:$AU$500,3,))*$E135) -> 164.9531734 | L135: =IF(VLOOKUP($D135,$C$5:$AU$500,3,)=0,0,(VLOOKUP($D135,$C$5:$AU$500,10,)/VLOOKUP($D135,$C$5:$AU$500,3,))*$E135) -> 14460.89487 | M135: =IF(VLOOKUP($D135,$C$5:$AU$500,3,)=0,0,(VLOOKUP($D135,$C$5:$AU$500,11,)/VLOOKUP($D135,$C$5:$AU$500,3,))*$E135) -> 0 | N135: =IF(VLOOKUP($D135,$C$5:$AU$500,3,)=0,0,(VLOOKUP($D135,$C$5:$AU$500,12,)/VLOOKUP($D135,$C$5:$AU$500,3,))*$E135) -> 0 | O135: =IF(VLOOKUP($D135,$C$5:$AU$500,3,)=0,0,(VLOOKUP($D135,$C$5:$AU$500,13,)/VLOOKUP($D135,$C$5:$AU$500,3,))*$E135) -> 0 | P135: =IF(VLOOKUP($D135,$C$5:$AU$500,3,)=0,0,(VLOOKUP($D135,$C$5:$AU$500,14,)/VLOOKUP($D135,$C$5:$AU$500,3,))*$E135) -> 0 | Q135: =IF(VLOOKUP($D135,$C$5:$AU$500,3,)=0,0,(VLOOKUP($D135,$C$5:$AU$500,15,)/VLOOKUP($D135,$C$5:$AU$500,3,))*$E135) -> 0 | R135: =IF(VLOOKUP($D135,$C$5:$AU$500,3,)=0,0,(VLOOKUP($D135,$C$5:$AU$500,16,)/VLOOKUP($D135,$C$5:$AU$500,3,))*$E135) -> 0 | S135: =IF(VLOOKUP($D135,$C$5:$AU$500,3,)=0,0,(VLOOKUP($D135,$C$5:$AU$500,17,)/VLOOKUP($D135,$C$5:$AU$500,3,))*$E135) -> 0 | T135: =IF(VLOOKUP($D135,$C$5:$AU$500,3,)=0,0,(VLOOKUP($D135,$C$5:$AU$500,18,)/VLOOKUP($D135,$C$5:$AU$500,3,))*$E135) -> 0 | U135: =IF(VLOOKUP($D135,$C$5:$AU$500,3,)=0,0,(VLOOKUP($D135,$C$5:$AU$500,19,)/VLOOKUP($D135,$C$5:$AU$500,3,))*$E135) -> 0 | V135: =IF(VLOOKUP($D135,$C$5:$AU$500,3,)=0,0,(VLOOKUP($D135,$C$5:$AU$500,20,)/VLOOKUP($D135,$C$5:$AU$500,3,))*$E135) -> 0 | W135: =IF(VLOOKUP($D135,$C$5:$AU$500,3,)=0,0,(VLOOKUP($D135,$C$5:$AU$500,21,)/VLOOKUP($D135,$C$5:$AU$500,3,))*$E135) -> 0 | X135: =IF(VLOOKUP($D135,$C$5:$AU$500,3,)=0,0,(VLOOKUP($D135,$C$5:$AU$500,22,)/VLOOKUP($D135,$C$5:$AU$500,3,))*$E135) -> 0 | Y135: =IF(VLOOKUP($D135,$C$5:$AU$500,3,)=0,0,(VLOOKUP($D135,$C$5:$AU$500,23,)/VLOOKUP($D135,$C$5:$AU$500,3,))*$E135) -> 0 | Z135: =IF(VLOOKUP($D135,$C$5:$AU$500,3,)=0,0,(VLOOKUP($D135,$C$5:$AU$500,24,)/VLOOKUP($D135,$C$5:$AU$500,3,))*$E135) -> 0 | AA135: =IF(VLOOKUP($D135,$C$5:$AU$500,3,)=0,0,(VLOOKUP($D135,$C$5:$AU$500,25,)/VLOOKUP($D135,$C$5:$AU$500,3,))*$E135) -> 0 | AB135: =IF(VLOOKUP($D135,$C$5:$AU$500,3,)=0,0,(VLOOKUP($D135,$C$5:$AU$500,26,)/VLOOKUP($D135,$C$5:$AU$500,3,))*$E135) -> 0 | AC135: =IF(VLOOKUP($D135,$C$5:$AU$500,3,)=0,0,(VLOOKUP($D135,$C$5:$AU$500,27,)/VLOOKUP($D135,$C$5:$AU$500,3,))*$E135) -> 0 | AD135: =IF(VLOOKUP($D135,$C$5:$AU$500,3,)=0,0,(VLOOKUP($D135,$C$5:$AU$500,28,)/VLOOKUP($D135,$C$5:$AU$500,3,))*$E135) -> 0 | AE135: =IF(VLOOKUP($D135,$C$5:$AU$500,3,)=0,0,(VLOOKUP($D135,$C$5:$AU$500,29,)/VLOOKUP($D135,$C$5:$AU$500,3,))*$E135) -> 0 | AF135: =IF(VLOOKUP($D135,$C$5:$AU$500,3,)=0,0,(VLOOKUP($D135,$C$5:$AU$500,30,)/VLOOKUP($D135,$C$5:$AU$500,3,))*$E135) -> 0 | AG135: =SUM(F135:AF135) -> 4953433.829 | AH135: =IF(ABS(E135-AG135)<0.01,"ok","err") -> ok | AI135: 0
A136: Total Primary Distribution Plant | E136: =E134+E135 -> 6643834.662 | F136: 5260018.42 | G136: 590882.1226 | H136: 120988.3896 | I136: 601094.345 | J136: 4668.216833 | K136: 43253.72148 | L136: 22929.44595 | M136: 0 | N136: 0 | O136: 0 | P136: 0 | Q136: 0 | R136: 0 | S136: 0 | T136: 0 | U136: =U134+U135 -> 0 | V136: 0 | W136: 0 | X136: 0 | Y136: 0 | Z136: 0 | AA136: 0 | AB136: 0 | AC136: 0 | AD136: 0 | AE136: 0 | AF136: 0 | AG136: =SUM(F136:AF136) -> 6643834.662 | AH136: =IF(ABS(E136-AG136)<0.01,"ok","err") -> ok | AI136: 0
A138: Customer Services
A139: Demand | C139: OMCSD | D139: SERV | E139: ='Func & Classif'!R285 -> 0 | F139: =IF(VLOOKUP($D139,$C$5:$AU$500,3,)=0,0,(VLOOKUP($D139,$C$5:$AU$500,4,)/VLOOKUP($D139,$C$5:$AU$500,3,))*$E139) -> 0 | G139: =IF(VLOOKUP($D139,$C$5:$AU$500,3,)=0,0,(VLOOKUP($D139,$C$5:$AU$500,5,)/VLOOKUP($D139,$C$5:$AU$500,3,))*$E139) -> 0 | H139: =IF(VLOOKUP($D139,$C$5:$AU$500,3,)=0,0,(VLOOKUP($D139,$C$5:$AU$500,6,)/VLOOKUP($D139,$C$5:$AU$500,3,))*$E139) -> 0 | I139: =IF(VLOOKUP($D139,$C$5:$AU$500,3,)=0,0,(VLOOKUP($D139,$C$5:$AU$500,7,)/VLOOKUP($D139,$C$5:$AU$500,3,))*$E139) -> 0 | J139: =IF(VLOOKUP($D139,$C$5:$AU$500,3,)=0,0,(VLOOKUP($D139,$C$5:$AU$500,8,)/VLOOKUP($D139,$C$5:$AU$500,3,))*$E139) -> 0 | K139: =IF(VLOOKUP($D139,$C$5:$AU$500,3,)=0,0,(VLOOKUP($D139,$C$5:$AU$500,9,)/VLOOKUP($D139,$C$5:$AU$500,3,))*$E139) -> 0 | L139: =IF(VLOOKUP($D139,$C$5:$AU$500,3,)=0,0,(VLOOKUP($D139,$C$5:$AU$500,10,)/VLOOKUP($D139,$C$5:$AU$500,3,))*$E139) -> 0 | M139: =IF(VLOOKUP($D139,$C$5:$AU$500,3,)=0,0,(VLOOKUP($D139,$C$5:$AU$500,11,)/VLOOKUP($D139,$C$5:$AU$500,3,))*$E139) -> 0 | N139: =IF(VLOOKUP($D139,$C$5:$AU$500,3,)=0,0,(VLOOKUP($D139,$C$5:$AU$500,12,)/VLOOKUP($D139,$C$5:$AU$500,3,))*$E139) -> 0 | O139: =IF(VLOOKUP($D139,$C$5:$AU$500,3,)=0,0,(VLOOKUP($D139,$C$5:$AU$500,13,)/VLOOKUP($D139,$C$5:$AU$500,3,))*$E139) -> 0 | P139: =IF(VLOOKUP($D139,$C$5:$AU$500,3,)=0,0,(VLOOKUP($D139,$C$5:$AU$500,14,)/VLOOKUP($D139,$C$5:$AU$500,3,))*$E139) -> 0 | Q139: =IF(VLOOKUP($D139,$C$5:$AU$500,3,)=0,0,(VLOOKUP($D139,$C$5:$AU$500,15,)/VLOOKUP($D139,$C$5:$AU$500,3,))*$E139) -> 0 | R139: =IF(VLOOKUP($D139,$C$5:$AU$500,3,)=0,0,(VLOOKUP($D139,$C$5:$AU$500,16,)/VLOOKUP($D139,$C$5:$AU$500,3,))*$E139) -> 0 | S139: =IF(VLOOKUP($D139,$C$5:$AU$500,3,)=0,0,(VLOOKUP($D139,$C$5:$AU$500,17,)/VLOOKUP($D139,$C$5:$AU$500,3,))*$E139) -> 0 | T139: =IF(VLOOKUP($D139,$C$5:$AU$500,3,)=0,0,(VLOOKUP($D139,$C$5:$AU$500,18,)/VLOOKUP($D139,$C$5:$AU$500,3,))*$E139) -> 0 | U139: =IF(VLOOKUP($D139,$C$5:$AU$500,3,)=0,0,(VLOOKUP($D139,$C$5:$AU$500,19,)/VLOOKUP($D139,$C$5:$AU$500,3,))*$E139) -> 0 | V139: =IF(VLOOKUP($D139,$C$5:$AU$500,3,)=0,0,(VLOOKUP($D139,$C$5:$AU$500,20,)/VLOOKUP($D139,$C$5:$AU$500,3,))*$E139) -> 0 | W139: =IF(VLOOKUP($D139,$C$5:$AU$500,3,)=0,0,(VLOOKUP($D139,$C$5:$AU$500,21,)/VLOOKUP($D139,$C$5:$AU$500,3,))*$E139) -> 0 | X139: =IF(VLOOKUP($D139,$C$5:$AU$500,3,)=0,0,(VLOOKUP($D139,$C$5:$AU$500,22,)/VLOOKUP($D139,$C$5:$AU$500,3,))*$E139) -> 0 | Y139: =IF(VLOOKUP($D139,$C$5:$AU$500,3,)=0,0,(VLOOKUP($D139,$C$5:$AU$500,23,)/VLOOKUP($D139,$C$5:$AU$500,3,))*$E139) -> 0 | Z139: =IF(VLOOKUP($D139,$C$5:$AU$500,3,)=0,0,(VLOOKUP($D139,$C$5:$AU$500,24,)/VLOOKUP($D139,$C$5:$AU$500,3,))*$E139) -> 0 | AA139: =IF(VLOOKUP($D139,$C$5:$AU$500,3,)=0,0,(VLOOKUP($D139,$C$5:$AU$500,25,)/VLOOKUP($D139,$C$5:$AU$500,3,))*$E139) -> 0 | AB139: =IF(VLOOKUP($D139,$C$5:$AU$500,3,)=0,0,(VLOOKUP($D139,$C$5:$AU$500,26,)/VLOOKUP($D139,$C$5:$AU$500,3,))*$E139) -> 0 | AC139: =IF(VLOOKUP($D139,$C$5:$AU$500,3,)=0,0,(VLOOKUP($D139,$C$5:$AU$500,27,)/VLOOKUP($D139,$C$5:$AU$500,3,))*$E139) -> 0 | AD139: =IF(VLOOKUP($D139,$C$5:$AU$500,3,)=0,0,(VLOOKUP($D139,$C$5:$AU$500,28,)/VLOOKUP($D139,$C$5:$AU$500,3,))*$E139) -> 0 | AE139: =IF(VLOOKUP($D139,$C$5:$AU$500,3,)=0,0,(VLOOKUP($D139,$C$5:$AU$500,29,)/VLOOKUP($D139,$C$5:$AU$500,3,))*$E139) -> 0 | AF139: =IF(VLOOKUP($D139,$C$5:$AU$500,3,)=0,0,(VLOOKUP($D139,$C$5:$AU$500,30,)/VLOOKUP($D139,$C$5:$AU$500,3,))*$E139) -> 0 | AG139: =SUM(F139:AF139) -> 0 | AH139: =IF(ABS(E139-AG139)<0.01,"ok","err") -> ok
A140: Customer | C140: OMCSC | D140: SERV | E140: ='Func & Classif'!S285 -> 221028.3919 | F140: =IF(VLOOKUP($D140,$C$5:$AU$500,3,)=0,0,(VLOOKUP($D140,$C$5:$AU$500,4,)/VLOOKUP($D140,$C$5:$AU$500,3,))*$E140) -> 176942.0867 | G140: =IF(VLOOKUP($D140,$C$5:$AU$500,3,)=0,0,(VLOOKUP($D140,$C$5:$AU$500,5,)/VLOOKUP($D140,$C$5:$AU$500,3,))*$E140) -> 27360.459 | H140: =IF(VLOOKUP($D140,$C$5:$AU$500,3,)=0,0,(VLOOKUP($D140,$C$5:$AU$500,6,)/VLOOKUP($D140,$C$5:$AU$500,3,))*$E140) -> 4848.239632 | I140: =IF(VLOOKUP($D140,$C$5:$AU$500,3,)=0,0,(VLOOKUP($D140,$C$5:$AU$500,7,)/VLOOKUP($D140,$C$5:$AU$500,3,))*$E140) -> 9200.542332 | J140: =IF(VLOOKUP($D140,$C$5:$AU$500,3,)=0,0,(VLOOKUP($D140,$C$5:$AU$500,8,)/VLOOKUP($D140,$C$5:$AU$500,3,))*$E140) -> 29.85573499 | K140: =IF(VLOOKUP($D140,$C$5:$AU$500,3,)=0,0,(VLOOKUP($D140,$C$5:$AU$500,9,)/VLOOKUP($D140,$C$5:$AU$500,3,))*$E140) -> 29.85573499 | L140: =IF(VLOOKUP($D140,$C$5:$AU$500,3,)=0,0,(VLOOKUP($D140,$C$5:$AU$500,10,)/VLOOKUP($D140,$C$5:$AU$500,3,))*$E140) -> 2617.352767 | M140: =IF(VLOOKUP($D140,$C$5:$AU$500,3,)=0,0,(VLOOKUP($D140,$C$5:$AU$500,11,)/VLOOKUP($D140,$C$5:$AU$500,3,))*$E140) -> 0 | N140: =IF(VLOOKUP($D140,$C$5:$AU$500,3,)=0,0,(VLOOKUP($D140,$C$5:$AU$500,12,)/VLOOKUP($D140,$C$5:$AU$500,3,))*$E140) -> 0 | O140: =IF(VLOOKUP($D140,$C$5:$AU$500,3,)=0,0,(VLOOKUP($D140,$C$5:$AU$500,13,)/VLOOKUP($D140,$C$5:$AU$500,3,))*$E140) -> 0 | P140: =IF(VLOOKUP($D140,$C$5:$AU$500,3,)=0,0,(VLOOKUP($D140,$C$5:$AU$500,14,)/VLOOKUP($D140,$C$5:$AU$500,3,))*$E140) -> 0 | Q140: =IF(VLOOKUP($D140,$C$5:$AU$500,3,)=0,0,(VLOOKUP($D140,$C$5:$AU$500,15,)/VLOOKUP($D140,$C$5:$AU$500,3,))*$E140) -> 0 | R140: =IF(VLOOKUP($D140,$C$5:$AU$500,3,)=0,0,(VLOOKUP($D140,$C$5:$AU$500,16,)/VLOOKUP($D140,$C$5:$AU$500,3,))*$E140) -> 0 | S140: =IF(VLOOKUP($D140,$C$5:$AU$500,3,)=0,0,(VLOOKUP($D140,$C$5:$AU$500,17,)/VLOOKUP($D140,$C$5:$AU$500,3,))*$E140) -> 0 | T140: =IF(VLOOKUP($D140,$C$5:$AU$500,3,)=0,0,(VLOOKUP($D140,$C$5:$AU$500,18,)/VLOOKUP($D140,$C$5:$AU$500,3,))*$E140) -> 0 | U140: =IF(VLOOKUP($D140,$C$5:$AU$500,3,)=0,0,(VLOOKUP($D140,$C$5:$AU$500,19,)/VLOOKUP($D140,$C$5:$AU$500,3,))*$E140) -> 0 | V140: =IF(VLOOKUP($D140,$C$5:$AU$500,3,)=0,0,(VLOOKUP($D140,$C$5:$AU$500,20,)/VLOOKUP($D140,$C$5:$AU$500,3,))*$E140) -> 0 | W140: =IF(VLOOKUP($D140,$C$5:$AU$500,3,)=0,0,(VLOOKUP($D140,$C$5:$AU$500,21,)/VLOOKUP($D140,$C$5:$AU$500,3,))*$E140) -> 0 | X140: =IF(VLOOKUP($D140,$C$5:$AU$500,3,)=0,0,(VLOOKUP($D140,$C$5:$AU$500,22,)/VLOOKUP($D140,$C$5:$AU$500,3,))*$E140) -> 0 | Y140: =IF(VLOOKUP($D140,$C$5:$AU$500,3,)=0,0,(VLOOKUP($D140,$C$5:$AU$500,23,)/VLOOKUP($D140,$C$5:$AU$500,3,))*$E140) -> 0 | Z140: =IF(VLOOKUP($D140,$C$5:$AU$500,3,)=0,0,(VLOOKUP($D140,$C$5:$AU$500,24,)/VLOOKUP($D140,$C$5:$AU$500,3,))*$E140) -> 0 | AA140: =IF(VLOOKUP($D140,$C$5:$AU$500,3,)=0,0,(VLOOKUP($D140,$C$5:$AU$500,25,)/VLOOKUP($D140,$C$5:$AU$500,3,))*$E140) -> 0 | AB140: =IF(VLOOKUP($D140,$C$5:$AU$500,3,)=0,0,(VLOOKUP($D140,$C$5:$AU$500,26,)/VLOOKUP($D140,$C$5:$AU$500,3,))*$E140) -> 0 | AC140: =IF(VLOOKUP($D140,$C$5:$AU$500,3,)=0,0,(VLOOKUP($D140,$C$5:$AU$500,27,)/VLOOKUP($D140,$C$5:$AU$500,3,))*$E140) -> 0 | AD140: =IF(VLOOKUP($D140,$C$5:$AU$500,3,)=0,0,(VLOOKUP($D140,$C$5:$AU$500,28,)/VLOOKUP($D140,$C$5:$AU$500,3,))*$E140) -> 0 | AE140: =IF(VLOOKUP($D140,$C$5:$AU$500,3,)=0,0,(VLOOKUP($D140,$C$5:$AU$500,29,)/VLOOKUP($D140,$C$5:$AU$500,3,))*$E140) -> 0 | AF140: =IF(VLOOKUP($D140,$C$5:$AU$500,3,)=0,0,(VLOOKUP($D140,$C$5:$AU$500,30,)/VLOOKUP($D140,$C$5:$AU$500,3,))*$E140) -> 0 | AG140: =SUM(F140:AF140) -> 221028.3919 | AH140: =IF(ABS(E140-AG140)<0.01,"ok","err") -> ok | AI140: 0
A141: Total Customer Services | E141: =E139+E140 -> 221028.3919 | F141: 176942.0867 | G141: 27360.459 | H141: 4848.239632 | I141: 9200.542332 | J141: 29.85573499 | K141: 29.85573499 | L141: 2617.352767 | M141: 0 | N141: 0 | O141: 0 | P141: 0 | Q141: 0 | R141: 0 | S141: 0 | T141: 0 | U141: =U139+U140 -> 0 | V141: 0 | W141: 0 | X141: 0 | Y141: 0 | Z141: 0 | AA141: 0 | AB141: 0 | AC141: 0 | AD141: 0 | AE141: 0 | AF141: 0 | AG141: =SUM(F141:AF141) -> 221028.3919 | AH141: =IF(ABS(E141-AG141)<0.01,"ok","err") -> ok | AI141: 0
A143: Meters
A144: Customer | C144: OMMC | D144: C03 | E144: ='Func & Classif'!U285 -> 1123007.3 | F144: =IF(VLOOKUP($D144,$C$5:$AU$500,3,)=0,0,(VLOOKUP($D144,$C$5:$AU$500,4,)/VLOOKUP($D144,$C$5:$AU$500,3,))*$E144) -> 649390.165 | G144: =IF(VLOOKUP($D144,$C$5:$AU$500,3,)=0,0,(VLOOKUP($D144,$C$5:$AU$500,5,)/VLOOKUP($D144,$C$5:$AU$500,3,))*$E144) -> 193298.5851 | H144: =IF(VLOOKUP($D144,$C$5:$AU$500,3,)=0,0,(VLOOKUP($D144,$C$5:$AU$500,6,)/VLOOKUP($D144,$C$5:$AU$500,3,))*$E144) -> 68753.64975 | I144: =IF(VLOOKUP($D144,$C$5:$AU$500,3,)=0,0,(VLOOKUP($D144,$C$5:$AU$500,7,)/VLOOKUP($D144,$C$5:$AU$500,3,))*$E144) -> 163880.8132 | J144: =IF(VLOOKUP($D144,$C$5:$AU$500,3,)=0,0,(VLOOKUP($D144,$C$5:$AU$500,8,)/VLOOKUP($D144,$C$5:$AU$500,3,))*$E144) -> 531.7927958 | K144: =IF(VLOOKUP($D144,$C$5:$AU$500,3,)=0,0,(VLOOKUP($D144,$C$5:$AU$500,9,)/VLOOKUP($D144,$C$5:$AU$500,3,))*$E144) -> 531.7927958 | L144: =IF(VLOOKUP($D144,$C$5:$AU$500,3,)=0,0,(VLOOKUP($D144,$C$5:$AU$500,10,)/VLOOKUP($D144,$C$5:$AU$500,3,))*$E144) -> 46620.50176 | M144: =IF(VLOOKUP($D144,$C$5:$AU$500,3,)=0,0,(VLOOKUP($D144,$C$5:$AU$500,11,)/VLOOKUP($D144,$C$5:$AU$500,3,))*$E144) -> 0 | N144: =IF(VLOOKUP($D144,$C$5:$AU$500,3,)=0,0,(VLOOKUP($D144,$C$5:$AU$500,12,)/VLOOKUP($D144,$C$5:$AU$500,3,))*$E144) -> 0 | O144: =IF(VLOOKUP($D144,$C$5:$AU$500,3,)=0,0,(VLOOKUP($D144,$C$5:$AU$500,13,)/VLOOKUP($D144,$C$5:$AU$500,3,))*$E144) -> 0 | P144: =IF(VLOOKUP($D144,$C$5:$AU$500,3,)=0,0,(VLOOKUP($D144,$C$5:$AU$500,14,)/VLOOKUP($D144,$C$5:$AU$500,3,))*$E144) -> 0 | Q144: =IF(VLOOKUP($D144,$C$5:$AU$500,3,)=0,0,(VLOOKUP($D144,$C$5:$AU$500,15,)/VLOOKUP($D144,$C$5:$AU$500,3,))*$E144) -> 0 | R144: =IF(VLOOKUP($D144,$C$5:$AU$500,3,)=0,0,(VLOOKUP($D144,$C$5:$AU$500,16,)/VLOOKUP($D144,$C$5:$AU$500,3,))*$E144) -> 0 | S144: =IF(VLOOKUP($D144,$C$5:$AU$500,3,)=0,0,(VLOOKUP($D144,$C$5:$AU$500,17,)/VLOOKUP($D144,$C$5:$AU$500,3,))*$E144) -> 0 | T144: =IF(VLOOKUP($D144,$C$5:$AU$500,3,)=0,0,(VLOOKUP($D144,$C$5:$AU$500,18,)/VLOOKUP($D144,$C$5:$AU$500,3,))*$E144) -> 0 | U144: =IF(VLOOKUP($D144,$C$5:$AU$500,3,)=0,0,(VLOOKUP($D144,$C$5:$AU$500,19,)/VLOOKUP($D144,$C$5:$AU$500,3,))*$E144) -> 0 | V144: =IF(VLOOKUP($D144,$C$5:$AU$500,3,)=0,0,(VLOOKUP($D144,$C$5:$AU$500,20,)/VLOOKUP($D144,$C$5:$AU$500,3,))*$E144) -> 0 | W144: =IF(VLOOKUP($D144,$C$5:$AU$500,3,)=0,0,(VLOOKUP($D144,$C$5:$AU$500,21,)/VLOOKUP($D144,$C$5:$AU$500,3,))*$E144) -> 0 | X144: =IF(VLOOKUP($D144,$C$5:$AU$500,3,)=0,0,(VLOOKUP($D144,$C$5:$AU$500,22,)/VLOOKUP($D144,$C$5:$AU$500,3,))*$E144) -> 0 | Y144: =IF(VLOOKUP($D144,$C$5:$AU$500,3,)=0,0,(VLOOKUP($D144,$C$5:$AU$500,23,)/VLOOKUP($D144,$C$5:$AU$500,3,))*$E144) -> 0 | Z144: =IF(VLOOKUP($D144,$C$5:$AU$500,3,)=0,0,(VLOOKUP($D144,$C$5:$AU$500,24,)/VLOOKUP($D144,$C$5:$AU$500,3,))*$E144) -> 0 | AA144: =IF(VLOOKUP($D144,$C$5:$AU$500,3,)=0,0,(VLOOKUP($D144,$C$5:$AU$500,25,)/VLOOKUP($D144,$C$5:$AU$500,3,))*$E144) -> 0 | AB144: =IF(VLOOKUP($D144,$C$5:$AU$500,3,)=0,0,(VLOOKUP($D144,$C$5:$AU$500,26,)/VLOOKUP($D144,$C$5:$AU$500,3,))*$E144) -> 0 | AC144: =IF(VLOOKUP($D144,$C$5:$AU$500,3,)=0,0,(VLOOKUP($D144,$C$5:$AU$500,27,)/VLOOKUP($D144,$C$5:$AU$500,3,))*$E144) -> 0 | AD144: =IF(VLOOKUP($D144,$C$5:$AU$500,3,)=0,0,(VLOOKUP($D144,$C$5:$AU$500,28,)/VLOOKUP($D144,$C$5:$AU$500,3,))*$E144) -> 0 | AE144: =IF(VLOOKUP($D144,$C$5:$AU$500,3,)=0,0,(VLOOKUP($D144,$C$5:$AU$500,29,)/VLOOKUP($D144,$C$5:$AU$500,3,))*$E144) -> 0 | AF144: =IF(VLOOKUP($D144,$C$5:$AU$500,3,)=0,0,(VLOOKUP($D144,$C$5:$AU$500,30,)/VLOOKUP($D144,$C$5:$AU$500,3,))*$E144) -> 0 | AG144: =SUM(F144:AF144) -> 1123007.3 | AH144: =IF(ABS(E144-AG144)<0.01,"ok","err") -> ok | AI144: 0
A146: Lighting Systems
A147: Customer | C147: OMLSC | D147: C04 | E147: ='Func & Classif'!W285 -> 91465.61747 | F147: =IF(VLOOKUP($D147,$C$5:$AU$500,3,)=0,0,(VLOOKUP($D147,$C$5:$AU$500,4,)/VLOOKUP($D147,$C$5:$AU$500,3,))*$E147) -> 0 | G147: =IF(VLOOKUP($D147,$C$5:$AU$500,3,)=0,0,(VLOOKUP($D147,$C$5:$AU$500,5,)/VLOOKUP($D147,$C$5:$AU$500,3,))*$E147) -> 0 | H147: =IF(VLOOKUP($D147,$C$5:$AU$500,3,)=0,0,(VLOOKUP($D147,$C$5:$AU$500,6,)/VLOOKUP($D147,$C$5:$AU$500,3,))*$E147) -> 0 | I147: =IF(VLOOKUP($D147,$C$5:$AU$500,3,)=0,0,(VLOOKUP($D147,$C$5:$AU$500,7,)/VLOOKUP($D147,$C$5:$AU$500,3,))*$E147) -> 0 | J147: =IF(VLOOKUP($D147,$C$5:$AU$500,3,)=0,0,(VLOOKUP($D147,$C$5:$AU$500,8,)/VLOOKUP($D147,$C$5:$AU$500,3,))*$E147) -> 0 | K147: =IF(VLOOKUP($D147,$C$5:$AU$500,3,)=0,0,(VLOOKUP($D147,$C$5:$AU$500,9,)/VLOOKUP($D147,$C$5:$AU$500,3,))*$E147) -> 0 | L147: =IF(VLOOKUP($D147,$C$5:$AU$500,3,)=0,0,(VLOOKUP($D147,$C$5:$AU$500,10,)/VLOOKUP($D147,$C$5:$AU$500,3,))*$E147) -> 91465.61747 | M147: =IF(VLOOKUP($D147,$C$5:$AU$500,3,)=0,0,(VLOOKUP($D147,$C$5:$AU$500,11,)/VLOOKUP($D147,$C$5:$AU$500,3,))*$E147) -> 0 | N147: =IF(VLOOKUP($D147,$C$5:$AU$500,3,)=0,0,(VLOOKUP($D147,$C$5:$AU$500,12,)/VLOOKUP($D147,$C$5:$AU$500,3,))*$E147) -> 0 | O147: =IF(VLOOKUP($D147,$C$5:$AU$500,3,)=0,0,(VLOOKUP($D147,$C$5:$AU$500,13,)/VLOOKUP($D147,$C$5:$AU$500,3,))*$E147) -> 0 | P147: =IF(VLOOKUP($D147,$C$5:$AU$500,3,)=0,0,(VLOOKUP($D147,$C$5:$AU$500,14,)/VLOOKUP($D147,$C$5:$AU$500,3,))*$E147) -> 0 | Q147: =IF(VLOOKUP($D147,$C$5:$AU$500,3,)=0,0,(VLOOKUP($D147,$C$5:$AU$500,15,)/VLOOKUP($D147,$C$5:$AU$500,3,))*$E147) -> 0 | R147: =IF(VLOOKUP($D147,$C$5:$AU$500,3,)=0,0,(VLOOKUP($D147,$C$5:$AU$500,16,)/VLOOKUP($D147,$C$5:$AU$500,3,))*$E147) -> 0 | S147: =IF(VLOOKUP($D147,$C$5:$AU$500,3,)=0,0,(VLOOKUP($D147,$C$5:$AU$500,17,)/VLOOKUP($D147,$C$5:$AU$500,3,))*$E147) -> 0 | T147: =IF(VLOOKUP($D147,$C$5:$AU$500,3,)=0,0,(VLOOKUP($D147,$C$5:$AU$500,18,)/VLOOKUP($D147,$C$5:$AU$500,3,))*$E147) -> 0 | U147: =IF(VLOOKUP($D147,$C$5:$AU$500,3,)=0,0,(VLOOKUP($D147,$C$5:$AU$500,19,)/VLOOKUP($D147,$C$5:$AU$500,3,))*$E147) -> 0 | V147: =IF(VLOOKUP($D147,$C$5:$AU$500,3,)=0,0,(VLOOKUP($D147,$C$5:$AU$500,20,)/VLOOKUP($D147,$C$5:$AU$500,3,))*$E147) -> 0 | W147: =IF(VLOOKUP($D147,$C$5:$AU$500,3,)=0,0,(VLOOKUP($D147,$C$5:$AU$500,21,)/VLOOKUP($D147,$C$5:$AU$500,3,))*$E147) -> 0 | X147: =IF(VLOOKUP($D147,$C$5:$AU$500,3,)=0,0,(VLOOKUP($D147,$C$5:$AU$500,22,)/VLOOKUP($D147,$C$5:$AU$500,3,))*$E147) -> 0 | Y147: =IF(VLOOKUP($D147,$C$5:$AU$500,3,)=0,0,(VLOOKUP($D147,$C$5:$AU$500,23,)/VLOOKUP($D147,$C$5:$AU$500,3,))*$E147) -> 0 | Z147: =IF(VLOOKUP($D147,$C$5:$AU$500,3,)=0,0,(VLOOKUP($D147,$C$5:$AU$500,24,)/VLOOKUP($D147,$C$5:$AU$500,3,))*$E147) -> 0 | AA147: =IF(VLOOKUP($D147,$C$5:$AU$500,3,)=0,0,(VLOOKUP($D147,$C$5:$AU$500,25,)/VLOOKUP($D147,$C$5:$AU$500,3,))*$E147) -> 0 | AB147: =IF(VLOOKUP($D147,$C$5:$AU$500,3,)=0,0,(VLOOKUP($D147,$C$5:$AU$500,26,)/VLOOKUP($D147,$C$5:$AU$500,3,))*$E147) -> 0 | AC147: =IF(VLOOKUP($D147,$C$5:$AU$500,3,)=0,0,(VLOOKUP($D147,$C$5:$AU$500,27,)/VLOOKUP($D147,$C$5:$AU$500,3,))*$E147) -> 0 | AD147: =IF(VLOOKUP($D147,$C$5:$AU$500,3,)=0,0,(VLOOKUP($D147,$C$5:$AU$500,28,)/VLOOKUP($D147,$C$5:$AU$500,3,))*$E147) -> 0 | AE147: =IF(VLOOKUP($D147,$C$5:$AU$500,3,)=0,0,(VLOOKUP($D147,$C$5:$AU$500,29,)/VLOOKUP($D147,$C$5:$AU$500,3,))*$E147) -> 0 | AF147: =IF(VLOOKUP($D147,$C$5:$AU$500,3,)=0,0,(VLOOKUP($D147,$C$5:$AU$500,30,)/VLOOKUP($D147,$C$5:$AU$500,3,))*$E147) -> 0 | AG147: =SUM(F147:AF147) -> 91465.61747 | AH147: =IF(ABS(E147-AG147)<0.01,"ok","err") -> ok | AI147: 0
A149: Meter Reading, Billing and Customer Service
A150: Customer | C150: OMMRBC | D150: C05 | E150: ='Func & Classif'!Y285 -> 1851790.054 | F150: =IF(VLOOKUP($D150,$C$5:$AU$500,3,)=0,0,(VLOOKUP($D150,$C$5:$AU$500,4,)/VLOOKUP($D150,$C$5:$AU$500,3,))*$E150) -> 1566291.708 | G150: =IF(VLOOKUP($D150,$C$5:$AU$500,3,)=0,0,(VLOOKUP($D150,$C$5:$AU$500,5,)/VLOOKUP($D150,$C$5:$AU$500,3,))*$E150) -> 211920.4834 | H150: =IF(VLOOKUP($D150,$C$5:$AU$500,3,)=0,0,(VLOOKUP($D150,$C$5:$AU$500,6,)/VLOOKUP($D150,$C$5:$AU$500,3,))*$E150) -> 30041.63889 | I150: =IF(VLOOKUP($D150,$C$5:$AU$500,3,)=0,0,(VLOOKUP($D150,$C$5:$AU$500,7,)/VLOOKUP($D150,$C$5:$AU$500,3,))*$E150) -> 38006.83565 | J150: =IF(VLOOKUP($D150,$C$5:$AU$500,3,)=0,0,(VLOOKUP($D150,$C$5:$AU$500,8,)/VLOOKUP($D150,$C$5:$AU$500,3,))*$E150) -> 61.66603946 | K150: =IF(VLOOKUP($D150,$C$5:$AU$500,3,)=0,0,(VLOOKUP($D150,$C$5:$AU$500,9,)/VLOOKUP($D150,$C$5:$AU$500,3,))*$E150) -> 61.66603946 | L150: =IF(VLOOKUP($D150,$C$5:$AU$500,3,)=0,0,(VLOOKUP($D150,$C$5:$AU$500,10,)/VLOOKUP($D150,$C$5:$AU$500,3,))*$E150) -> 5406.056126 | M150: =IF(VLOOKUP($D150,$C$5:$AU$500,3,)=0,0,(VLOOKUP($D150,$C$5:$AU$500,11,)/VLOOKUP($D150,$C$5:$AU$500,3,))*$E150) -> 0 | N150: =IF(VLOOKUP($D150,$C$5:$AU$500,3,)=0,0,(VLOOKUP($D150,$C$5:$AU$500,12,)/VLOOKUP($D150,$C$5:$AU$500,3,))*$E150) -> 0 | O150: =IF(VLOOKUP($D150,$C$5:$AU$500,3,)=0,0,(VLOOKUP($D150,$C$5:$AU$500,13,)/VLOOKUP($D150,$C$5:$AU$500,3,))*$E150) -> 0 | P150: =IF(VLOOKUP($D150,$C$5:$AU$500,3,)=0,0,(VLOOKUP($D150,$C$5:$AU$500,14,)/VLOOKUP($D150,$C$5:$AU$500,3,))*$E150) -> 0 | Q150: =IF(VLOOKUP($D150,$C$5:$AU$500,3,)=0,0,(VLOOKUP($D150,$C$5:$AU$500,15,)/VLOOKUP($D150,$C$5:$AU$500,3,))*$E150) -> 0 | R150: =IF(VLOOKUP($D150,$C$5:$AU$500,3,)=0,0,(VLOOKUP($D150,$C$5:$AU$500,16,)/VLOOKUP($D150,$C$5:$AU$500,3,))*$E150) -> 0 | S150: =IF(VLOOKUP($D150,$C$5:$AU$500,3,)=0,0,(VLOOKUP($D150,$C$5:$AU$500,17,)/VLOOKUP($D150,$C$5:$AU$500,3,))*$E150) -> 0 | T150: =IF(VLOOKUP($D150,$C$5:$AU$500,3,)=0,0,(VLOOKUP($D150,$C$5:$AU$500,18,)/VLOOKUP($D150,$C$5:$AU$500,3,))*$E150) -> 0 | U150: =IF(VLOOKUP($D150,$C$5:$AU$500,3,)=0,0,(VLOOKUP($D150,$C$5:$AU$500,19,)/VLOOKUP($D150,$C$5:$AU$500,3,))*$E150) -> 0 | V150: =IF(VLOOKUP($D150,$C$5:$AU$500,3,)=0,0,(VLOOKUP($D150,$C$5:$AU$500,20,)/VLOOKUP($D150,$C$5:$AU$500,3,))*$E150) -> 0 | W150: =IF(VLOOKUP($D150,$C$5:$AU$500,3,)=0,0,(VLOOKUP($D150,$C$5:$AU$500,21,)/VLOOKUP($D150,$C$5:$AU$500,3,))*$E150) -> 0 | X150: =IF(VLOOKUP($D150,$C$5:$AU$500,3,)=0,0,(VLOOKUP($D150,$C$5:$AU$500,22,)/VLOOKUP($D150,$C$5:$AU$500,3,))*$E150) -> 0 | Y150: =IF(VLOOKUP($D150,$C$5:$AU$500,3,)=0,0,(VLOOKUP($D150,$C$5:$AU$500,23,)/VLOOKUP($D150,$C$5:$AU$500,3,))*$E150) -> 0 | Z150: =IF(VLOOKUP($D150,$C$5:$AU$500,3,)=0,0,(VLOOKUP($D150,$C$5:$AU$500,24,)/VLOOKUP($D150,$C$5:$AU$500,3,))*$E150) -> 0 | AA150: =IF(VLOOKUP($D150,$C$5:$AU$500,3,)=0,0,(VLOOKUP($D150,$C$5:$AU$500,25,)/VLOOKUP($D150,$C$5:$AU$500,3,))*$E150) -> 0 | AB150: =IF(VLOOKUP($D150,$C$5:$AU$500,3,)=0,0,(VLOOKUP($D150,$C$5:$AU$500,26,)/VLOOKUP($D150,$C$5:$AU$500,3,))*$E150) -> 0 | AC150: =IF(VLOOKUP($D150,$C$5:$AU$500,3,)=0,0,(VLOOKUP($D150,$C$5:$AU$500,27,)/VLOOKUP($D150,$C$5:$AU$500,3,))*$E150) -> 0 | AD150: =IF(VLOOKUP($D150,$C$5:$AU$500,3,)=0,0,(VLOOKUP($D150,$C$5:$AU$500,28,)/VLOOKUP($D150,$C$5:$AU$500,3,))*$E150) -> 0 | AE150: =IF(VLOOKUP($D150,$C$5:$AU$500,3,)=0,0,(VLOOKUP($D150,$C$5:$AU$500,29,)/VLOOKUP($D150,$C$5:$AU$500,3,))*$E150) -> 0 | AF150: =IF(VLOOKUP($D150,$C$5:$AU$500,3,)=0,0,(VLOOKUP($D150,$C$5:$AU$500,30,)/VLOOKUP($D150,$C$5:$AU$500,3,))*$E150) -> 0 | AG150: =SUM(F150:AF150) -> 1851790.054 | AH150: =IF(ABS(E150-AG150)<0.01,"ok","err") -> ok | AI150: 0
A152: Load Management
A153: Customer | C153: OMCSC | D153: C06 | E153: ='Func & Classif'!AA285 -> 0 | F153: =IF(VLOOKUP($D153,$C$5:$AU$500,3,)=0,0,(VLOOKUP($D153,$C$5:$AU$500,4,)/VLOOKUP($D153,$C$5:$AU$500,3,))*$E153) -> 0 | G153: =IF(VLOOKUP($D153,$C$5:$AU$500,3,)=0,0,(VLOOKUP($D153,$C$5:$AU$500,5,)/VLOOKUP($D153,$C$5:$AU$500,3,))*$E153) -> 0 | H153: =IF(VLOOKUP($D153,$C$5:$AU$500,3,)=0,0,(VLOOKUP($D153,$C$5:$AU$500,6,)/VLOOKUP($D153,$C$5:$AU$500,3,))*$E153) -> 0 | I153: =IF(VLOOKUP($D153,$C$5:$AU$500,3,)=0,0,(VLOOKUP($D153,$C$5:$AU$500,7,)/VLOOKUP($D153,$C$5:$AU$500,3,))*$E153) -> 0 | J153: =IF(VLOOKUP($D153,$C$5:$AU$500,3,)=0,0,(VLOOKUP($D153,$C$5:$AU$500,8,)/VLOOKUP($D153,$C$5:$AU$500,3,))*$E153) -> 0 | K153: =IF(VLOOKUP($D153,$C$5:$AU$500,3,)=0,0,(VLOOKUP($D153,$C$5:$AU$500,9,)/VLOOKUP($D153,$C$5:$AU$500,3,))*$E153) -> 0 | L153: =IF(VLOOKUP($D153,$C$5:$AU$500,3,)=0,0,(VLOOKUP($D153,$C$5:$AU$500,10,)/VLOOKUP($D153,$C$5:$AU$500,3,))*$E153) -> 0 | M153: =IF(VLOOKUP($D153,$C$5:$AU$500,3,)=0,0,(VLOOKUP($D153,$C$5:$AU$500,11,)/VLOOKUP($D153,$C$5:$AU$500,3,))*$E153) -> 0 | N153: =IF(VLOOKUP($D153,$C$5:$AU$500,3,)=0,0,(VLOOKUP($D153,$C$5:$AU$500,12,)/VLOOKUP($D153,$C$5:$AU$500,3,))*$E153) -> 0 | O153: =IF(VLOOKUP($D153,$C$5:$AU$500,3,)=0,0,(VLOOKUP($D153,$C$5:$AU$500,13,)/VLOOKUP($D153,$C$5:$AU$500,3,))*$E153) -> 0 | P153: =IF(VLOOKUP($D153,$C$5:$AU$500,3,)=0,0,(VLOOKUP($D153,$C$5:$AU$500,14,)/VLOOKUP($D153,$C$5:$AU$500,3,))*$E153) -> 0 | Q153: =IF(VLOOKUP($D153,$C$5:$AU$500,3,)=0,0,(VLOOKUP($D153,$C$5:$AU$500,15,)/VLOOKUP($D153,$C$5:$AU$500,3,))*$E153) -> 0 | R153: =IF(VLOOKUP($D153,$C$5:$AU$500,3,)=0,0,(VLOOKUP($D153,$C$5:$AU$500,16,)/VLOOKUP($D153,$C$5:$AU$500,3,))*$E153) -> 0 | S153: =IF(VLOOKUP($D153,$C$5:$AU$500,3,)=0,0,(VLOOKUP($D153,$C$5:$AU$500,17,)/VLOOKUP($D153,$C$5:$AU$500,3,))*$E153) -> 0 | T153: =IF(VLOOKUP($D153,$C$5:$AU$500,3,)=0,0,(VLOOKUP($D153,$C$5:$AU$500,18,)/VLOOKUP($D153,$C$5:$AU$500,3,))*$E153) -> 0 | U153: =IF(VLOOKUP($D153,$C$5:$AU$500,3,)=0,0,(VLOOKUP($D153,$C$5:$AU$500,19,)/VLOOKUP($D153,$C$5:$AU$500,3,))*$E153) -> 0 | V153: =IF(VLOOKUP($D153,$C$5:$AU$500,3,)=0,0,(VLOOKUP($D153,$C$5:$AU$500,20,)/VLOOKUP($D153,$C$5:$AU$500,3,))*$E153) -> 0 | W153: =IF(VLOOKUP($D153,$C$5:$AU$500,3,)=0,0,(VLOOKUP($D153,$C$5:$AU$500,21,)/VLOOKUP($D153,$C$5:$AU$500,3,))*$E153) -> 0 | X153: =IF(VLOOKUP($D153,$C$5:$AU$500,3,)=0,0,(VLOOKUP($D153,$C$5:$AU$500,22,)/VLOOKUP($D153,$C$5:$AU$500,3,))*$E153) -> 0 | Y153: =IF(VLOOKUP($D153,$C$5:$AU$500,3,)=0,0,(VLOOKUP($D153,$C$5:$AU$500,23,)/VLOOKUP($D153,$C$5:$AU$500,3,))*$E153) -> 0 | Z153: =IF(VLOOKUP($D153,$C$5:$AU$500,3,)=0,0,(VLOOKUP($D153,$C$5:$AU$500,24,)/VLOOKUP($D153,$C$5:$AU$500,3,))*$E153) -> 0 | AA153: =IF(VLOOKUP($D153,$C$5:$AU$500,3,)=0,0,(VLOOKUP($D153,$C$5:$AU$500,25,)/VLOOKUP($D153,$C$5:$AU$500,3,))*$E153) -> 0 | AB153: =IF(VLOOKUP($D153,$C$5:$AU$500,3,)=0,0,(VLOOKUP($D153,$C$5:$AU$500,26,)/VLOOKUP($D153,$C$5:$AU$500,3,))*$E153) -> 0 | AC153: =IF(VLOOKUP($D153,$C$5:$AU$500,3,)=0,0,(VLOOKUP($D153,$C$5:$AU$500,27,)/VLOOKUP($D153,$C$5:$AU$500,3,))*$E153) -> 0 | AD153: =IF(VLOOKUP($D153,$C$5:$AU$500,3,)=0,0,(VLOOKUP($D153,$C$5:$AU$500,28,)/VLOOKUP($D153,$C$5:$AU$500,3,))*$E153) -> 0 | AE153: =IF(VLOOKUP($D153,$C$5:$AU$500,3,)=0,0,(VLOOKUP($D153,$C$5:$AU$500,29,)/VLOOKUP($D153,$C$5:$AU$500,3,))*$E153) -> 0 | AF153: =IF(VLOOKUP($D153,$C$5:$AU$500,3,)=0,0,(VLOOKUP($D153,$C$5:$AU$500,30,)/VLOOKUP($D153,$C$5:$AU$500,3,))*$E153) -> 0 | AG153: =SUM(F153:AF153) -> 0 | AH153: =IF(ABS(E153-AG153)<0.01,"ok","err") -> ok
A155: Total | C155: OMT | E155: =E125+E128+E131+E136+E141+E144+E147+E150+E153 -> 61470595.52 | F155: =F125+F128+F131+F136+F141+F144+F147+F150+F153 -> 39045774.28 | G155: 3724852.482 | H155: 1169223.844 | I155: 15275470.69 | J155: 74284.43362 | K155: 1434771.791 | L155: 746217.9952 | M155: 0 | N155: 0 | O155: 0 | P155: 0 | Q155: 0 | R155: 0 | S155: =S125+S131+S136+S141+S144+S147+S150+S153 -> 0 | T155: 0 | U155: 0 | V155: 0 | W155: 0 | X155: 0 | Y155: 0 | Z155: 0 | AA155: 0 | AB155: 0 | AC155: 0 | AD155: 0 | AE155: 0 | AF155: 0 | AG155: =SUM(F155:AF155) -> 61470595.52 | AH155: =IF(ABS(E155-AG155)<0.01,"ok","err") -> ok | AI155: 0
E156: =E155/$E155 -> 1 | F156: =F155/$E155 -> 0.6351943389 | G156: =G155/$E155 -> 0.06059567912 | H156: =H155/$E155 -> 0.01902086411 | I156: =I155/$E155 -> 0.2485004507 | J156: =J155/$E155 -> 0.001208454758 | K156: =K155/$E155 -> 0.02334078235 | L156: =L155/$E155 -> 0.01213943006 | M156: =M155/$E155 -> 0
A158: Labor Expenses
A160: Production & Purchase Power
A161: Demand | C161: LBPPD | D161: PPDA | E161: ='Func & Classif'!H465 -> 0 | F161: =IF(VLOOKUP($D161,$C$5:$AU$500,3,)=0,0,(VLOOKUP($D161,$C$5:$AU$500,4,)/VLOOKUP($D161,$C$5:$AU$500,3,))*$E161) -> 0 | G161: =IF(VLOOKUP($D161,$C$5:$AU$500,3,)=0,0,(VLOOKUP($D161,$C$5:$AU$500,5,)/VLOOKUP($D161,$C$5:$AU$500,3,))*$E161) -> 0 | H161: =IF(VLOOKUP($D161,$C$5:$AU$500,3,)=0,0,(VLOOKUP($D161,$C$5:$AU$500,6,)/VLOOKUP($D161,$C$5:$AU$500,3,))*$E161) -> 0 | I161: =IF(VLOOKUP($D161,$C$5:$AU$500,3,)=0,0,(VLOOKUP($D161,$C$5:$AU$500,7,)/VLOOKUP($D161,$C$5:$AU$500,3,))*$E161) -> 0 | J161: =IF(VLOOKUP($D161,$C$5:$AU$500,3,)=0,0,(VLOOKUP($D161,$C$5:$AU$500,8,)/VLOOKUP($D161,$C$5:$AU$500,3,))*$E161) -> 0 | K161: =IF(VLOOKUP($D161,$C$5:$AU$500,3,)=0,0,(VLOOKUP($D161,$C$5:$AU$500,9,)/VLOOKUP($D161,$C$5:$AU$500,3,))*$E161) -> 0 | L161: =IF(VLOOKUP($D161,$C$5:$AU$500,3,)=0,0,(VLOOKUP($D161,$C$5:$AU$500,10,)/VLOOKUP($D161,$C$5:$AU$500,3,))*$E161) -> 0 | M161: =IF(VLOOKUP($D161,$C$5:$AU$500,3,)=0,0,(VLOOKUP($D161,$C$5:$AU$500,11,)/VLOOKUP($D161,$C$5:$AU$500,3,))*$E161) -> 0 | N161: =IF(VLOOKUP($D161,$C$5:$AU$500,3,)=0,0,(VLOOKUP($D161,$C$5:$AU$500,12,)/VLOOKUP($D161,$C$5:$AU$500,3,))*$E161) -> 0 | O161: =IF(VLOOKUP($D161,$C$5:$AU$500,3,)=0,0,(VLOOKUP($D161,$C$5:$AU$500,13,)/VLOOKUP($D161,$C$5:$AU$500,3,))*$E161) -> 0 | P161: =IF(VLOOKUP($D161,$C$5:$AU$500,3,)=0,0,(VLOOKUP($D161,$C$5:$AU$500,14,)/VLOOKUP($D161,$C$5:$AU$500,3,))*$E161) -> 0 | Q161: =IF(VLOOKUP($D161,$C$5:$AU$500,3,)=0,0,(VLOOKUP($D161,$C$5:$AU$500,15,)/VLOOKUP($D161,$C$5:$AU$500,3,))*$E161) -> 0 | R161: =IF(VLOOKUP($D161,$C$5:$AU$500,3,)=0,0,(VLOOKUP($D161,$C$5:$AU$500,16,)/VLOOKUP($D161,$C$5:$AU$500,3,))*$E161) -> 0 | S161: =IF(VLOOKUP($D161,$C$5:$AU$500,3,)=0,0,(VLOOKUP($D161,$C$5:$AU$500,17,)/VLOOKUP($D161,$C$5:$AU$500,3,))*$E161) -> 0 | T161: =IF(VLOOKUP($D161,$C$5:$AU$500,3,)=0,0,(VLOOKUP($D161,$C$5:$AU$500,18,)/VLOOKUP($D161,$C$5:$AU$500,3,))*$E161) -> 0 | U161: =IF(VLOOKUP($D161,$C$5:$AU$500,3,)=0,0,(VLOOKUP($D161,$C$5:$AU$500,19,)/VLOOKUP($D161,$C$5:$AU$500,3,))*$E161) -> 0 | V161: =IF(VLOOKUP($D161,$C$5:$AU$500,3,)=0,0,(VLOOKUP($D161,$C$5:$AU$500,20,)/VLOOKUP($D161,$C$5:$AU$500,3,))*$E161) -> 0 | W161: =IF(VLOOKUP($D161,$C$5:$AU$500,3,)=0,0,(VLOOKUP($D161,$C$5:$AU$500,21,)/VLOOKUP($D161,$C$5:$AU$500,3,))*$E161) -> 0 | X161: =IF(VLOOKUP($D161,$C$5:$AU$500,3,)=0,0,(VLOOKUP($D161,$C$5:$AU$500,22,)/VLOOKUP($D161,$C$5:$AU$500,3,))*$E161) -> 0 | Y161: =IF(VLOOKUP($D161,$C$5:$AU$500,3,)=0,0,(VLOOKUP($D161,$C$5:$AU$500,23,)/VLOOKUP($D161,$C$5:$AU$500,3,))*$E161) -> 0 | Z161: =IF(VLOOKUP($D161,$C$5:$AU$500,3,)=0,0,(VLOOKUP($D161,$C$5:$AU$500,24,)/VLOOKUP($D161,$C$5:$AU$500,3,))*$E161) -> 0 | AA161: =IF(VLOOKUP($D161,$C$5:$AU$500,3,)=0,0,(VLOOKUP($D161,$C$5:$AU$500,25,)/VLOOKUP($D161,$C$5:$AU$500,3,))*$E161) -> 0 | AB161: =IF(VLOOKUP($D161,$C$5:$AU$500,3,)=0,0,(VLOOKUP($D161,$C$5:$AU$500,26,)/VLOOKUP($D161,$C$5:$AU$500,3,))*$E161) -> 0 | AC161: =IF(VLOOKUP($D161,$C$5:$AU$500,3,)=0,0,(VLOOKUP($D161,$C$5:$AU$500,27,)/VLOOKUP($D161,$C$5:$AU$500,3,))*$E161) -> 0 | AD161: =IF(VLOOKUP($D161,$C$5:$AU$500,3,)=0,0,(VLOOKUP($D161,$C$5:$AU$500,28,)/VLOOKUP($D161,$C$5:$AU$500,3,))*$E161) -> 0 | AE161: =IF(VLOOKUP($D161,$C$5:$AU$500,3,)=0,0,(VLOOKUP($D161,$C$5:$AU$500,29,)/VLOOKUP($D161,$C$5:$AU$500,3,))*$E161) -> 0 | AF161: =IF(VLOOKUP($D161,$C$5:$AU$500,3,)=0,0,(VLOOKUP($D161,$C$5:$AU$500,30,)/VLOOKUP($D161,$C$5:$AU$500,3,))*$E161) -> 0 | AG161: =SUM(F161:AF161) -> 0 | AH161: =IF(ABS(E161-AG161)<0.01,"ok","err") -> ok
